Workbook

Sheet Titel
B4: KLR - RD
B5: Brandenburg
B23: =ParameterDatei!C3&" - Lizenz-Nr.: "&ParameterDatei!C4 -> DV - KLR / BRA - Version 3.56 - Lizenz-Nr.: | H23: © ORGAKOM:

Sheet ParameterDatei
B2: Programm-Versionsnummer
B3: 2011-05-09 | C3: ="DV - KLR / BRA - Version "&D4 -> DV - KLR / BRA - Version 3.56 | D3: 3_56 | E3: Hautmenu | F3: Sperren | G3: Freigeben
B4: Lizenz-Nr.: | D4: =SUBSTITUTE(D3,"_",".") -> 3.56
B7: Wert | C7: Beschreibung
B8: =Stammdaten_1!$D$8 -> 2014 | C8: Berichtszeitraum
B9: =B107 -> 4 | C9: Rettungsdienstbereich
B11: Dateiname Ist / Soll | C11: KLR-BRA-Stamm-3_56.xlsm | D11: ="KLR-BRA-"&INDEX(D85:D105,B107)&"-"&Stammdaten_1!D8&".xls" -> KLR-BRA-HVL-2014.xls
B12: Fullname | C12: Macintosh HD:Users:jhuber:Documents:• Projekte •:DV-KLR-RD:KLR-BRA-Stamm-3_56.xlsm
B13: Pfad | C13: =LEFT(C12,(FIND(C11,C12)-1)) -> Macintosh HD:Users:jhuber:Documents:• Projekte •:DV-KLR-RD:
B14: Servicecode
D15: =(SUBSTITUTE(C15,"_",","))*1 -> 
B16: FALSE | C16: Ganzer Bildschirm einschalten | D16: =IF(B16=TRUE,1,0) -> 0
B17: TRUE | C17: Druckermenus | D17: =IF(B17=TRUE,1,2) -> 1
B19: Transfer max aus | C19: 3.45 | D19: =IF(D15<C19,"",2) -> 
D21: =D15*1 -> 
D22: =IF(151<3.64,0,1) -> 1
B26: TRUE
C27: Juergen Huber
B74: 21 | C74: RDB-Bereich fest
B75: 4 | C75: Jahr fest
B76: 100 | C76: Bildschirmzoom
B83: Nr. | C83: Auswahl RDB-Bereich | D83: Abkürzungen RDB-Bereich | F83: Einwohner *) | G83: qkm *)
B85: 1 | C85: Barnim | D85: BAR | E85: C | F85: 176904 | G85: 1472.4
B86: 2 | C86: Dahme-Spreewald | D86: LDS | E86: D | F86: 161 708 | G86: 2261.1
B87: 3 | C87: Elbe-Elster | D87: EE | E87: E | F87: 113586 | G87: 1889.3
B88: 4 | C88: Havelland | D88: HVL | E88: F | F88: 154984 | G88: 1717.2
B89: 5 | C89: Märkisch-Oderland | D89: MOL | E89: G | F89: 191067 | G89: 2149.4
B90: 6 | C90: Oberhavel | D90: OHV | E90: H | F90: 202776 | G90: 1795.8
B91: 7 | C91: Oberspreewald-Lausitz | D91: OSL | E91: I | F91: 123426 | G91: 1216.7
B92: 8 | C92: Oder-Spree | D92: LOS | E92: J | F92: 185062 | G92: 2242.7
B93: 9 | C93: Ostprignitz-Ruppin | D93: OPR | E93: K | F93: 103734 | G93: 2509.2
B94: 10 | C94: Potsdam-Mittelmark | D94: PM | E94: L | F94: 204594 | G94: 2575.1
B95: 11 | C95: Prignitz | D95: PR | E95: M | F95: 83086 | G95: 2123.3
B96: 12 | C96: Spree-Neiße | D96: SPN | E96: N | F96: 128470 | G96: 1647.9
B97: 13 | C97: Stadt Brandenburg | D97: BRB | E97: O | F97: 72264 | G97: 228.8
B98: 14 | C98: Stadt Cottbus | D98: CB | E98: P | F98: 101671 | G98: 164.3
B99: 15 | C99: Stadt Frankfurt (Oder) | D99: FF | E99: Q | F99: 60625 | G99: 147.6
B100: 16 | C100: Stadt Potsdam | D100: P | E100: R | F100: 154606 | G100: 187.3
B101: 17 | C101: Teltow-Fläming | D101: TF | E101: S | F101: 161847 | G101: 2092.1
B102: 18 | C102: Uckermark | D102: UM | E102: T | F102: 131115 | G102: 3058.1
B103: 19 | C103: Stammdaten | D103: Stamm | F103: 0 | G103: 0
B104: 20 | C104: Stammdaten | D104: Stamm | F104: =SUM(F85:F102) -> 2349817 | G104: =SUM(G85:G102) -> 29478.3
B105: 21 | C105: Leer | D105: Leer | F105: 0 | G105: 0
B107: 4 | D107: *) Amt für Statistik Berlin-Brandenburg: Bevölkerung im Land Brandenburg am 31. Dezember 2009
C113: Jahreszahl | D113: Prozenttabelle
B115: 1 | C115: 2008 | D115: 0
B116: 2 | C116: 2009 | D116: 0.025
B117: 3 | C117: 2010 | D117: 0.05
B118: 4 | C118: 2011 | D118: 0.075
B119: 5 | C119: 2012 | D119: 0.1
B120: 6 | C120: 2013 | D120: 0.125
B121: 7 | C121: 2014 | D121: 0.15
B122: 8 | C122: 2015 | D122: 0.175
B123: 9 | C123: 2016 | D123: 0.2
B124: 10 | C124: 2017 | D124: 0.225
B125: 11 | C125: 2018 | D125: 0.25
B126: 12 | C126: 2019 | D126: 0.275
B127: 13 | C127: 2020 | D127: 0.3
B128: 14 | C128: 2021 | D128: 0.325
B129: 15 | C129: 2022 | D129: 0.35
B130: 16 | C130: 2023 | D130: 0.375
B131: 17 | C131: 2024 | D131: 0.4
B132: 18 | C132: =D3 -> 3_56
B133: 18
C137: Kostenstellen | D137: Auswahlfeld | E137: Beschriftung | F137: Datenbankmatrix | H137: Auswahlfeld
F138: pm x | G138: pm y
B139: 1 | C139: Verwaltung 1 | D139: ="VW - "&LEFT(Stammdaten_1!D10,16) -> VW - Träger | E139: =Stammdaten_1!D10 -> Träger | F139: 12 | G139: =F139+299 -> 311 | H139: ="Verwaltung "&Stammdaten_1!D10 -> Verwaltung Träger
B140: 2 | C140: Verwaltung 2 | D140: ="VW - "&LEFT(Stammdaten_1!D12,16) -> VW - | E140: =Stammdaten_1!D12 -> 0 | F140: =F139+300 -> 312 | G140: 611 | H140: ="Verwaltung "&Stammdaten_1!D12 -> Verwaltung
B141: 3 | C141: Verwaltung 3 | D141: ="VW - "&LEFT(Stammdaten_1!D14,16) -> VW - | E141: =Stammdaten_1!D14 -> 0 | F141: 612 | G141: 911 | H141: ="Verwaltung "&Stammdaten_1!D14 -> Verwaltung
B142: 4 | C142: Verwaltung 4 | D142: ="VW - "&LEFT(Stammdaten_1!D16,16) -> VW - | E142: =Stammdaten_1!D16 -> 0 | F142: 912 | G142: 1211 | H142: ="Verwaltung "&Stammdaten_1!D16 -> Verwaltung
B143: 5 | C143: Verwaltung 5 | D143: ="VW - "&LEFT(Stammdaten_1!D18,16) -> VW - | E143: =Stammdaten_1!D18 -> 0 | F143: 1212 | G143: 1511 | H143: ="Verwaltung "&Stammdaten_1!D18 -> Verwaltung
B144: 6 | C144: Leistelle | D144: ="LS - "&LEFT(Stammdaten_1!D20,16) -> LS - | E144: =Stammdaten_1!D20 -> 0 | F144: 1512 | G144: 1811 | H144: ="Leitstelle "&Stammdaten_1!D20 -> Leitstelle
B145: 7 | C145: Rettungswache 1 | D145: ="RW - "&LEFT(Stammdaten_1!H6,16) -> RW - | E145: =Stammdaten_1!H6 -> 0 | F145: 1812 | G145: 2111 | H145: ="Rettungswache "&Stammdaten_1!H6 -> Rettungswache
B146: 8 | C146: Rettungswache 2 | D146: ="RW - "&LEFT(Stammdaten_1!H8,16) -> RW - | E146: =Stammdaten_1!H8 -> 0 | F146: 2112 | G146: =F146+299 -> 2411 | H146: ="Rettungswache "&Stammdaten_1!H8 -> Rettungswache
B147: 9 | C147: Rettungswache 3 | D147: ="RW - "&LEFT(Stammdaten_1!H10,16) -> RW - | E147: =Stammdaten_1!H10 -> 0 | F147: =F146+300 -> 2412 | G147: 2711 | H147: ="Rettungswache "&Stammdaten_1!H10 -> Rettungswache
B148: 10 | C148: Rettungswache 4 | D148: ="RW - "&LEFT(Stammdaten_1!H12,16) -> RW - | E148: =Stammdaten_1!H12 -> 0 | F148: 2712 | G148: 3011 | H148: ="Rettungswache "&Stammdaten_1!H12 -> Rettungswache
B149: 11 | C149: Rettungswache 5 | D149: ="RW - "&LEFT(Stammdaten_1!H14,16) -> RW - | E149: =Stammdaten_1!H14 -> 0 | F149: 3012 | G149: 3311 | H149: ="Rettungswache "&Stammdaten_1!H14 -> Rettungswache
B150: 12 | C150: Rettungswache 6 | D150: ="RW - "&LEFT(Stammdaten_1!H16,16) -> RW - | E150: =Stammdaten_1!H16 -> 0 | F150: 3312 | G150: 3611 | H150: ="Rettungswache "&Stammdaten_1!H16 -> Rettungswache
B151: 13 | C151: Rettungswache 7 | D151: ="RW - "&LEFT(Stammdaten_1!H18,16) -> RW - | E151: =Stammdaten_1!H18 -> 0 | F151: 3612 | G151: 3911 | H151: ="Rettungswache "&Stammdaten_1!H18 -> Rettungswache
B152: 14 | C152: Rettungswache 8 | D152: ="RW - "&LEFT(Stammdaten_1!H20,16) -> RW - | E152: =Stammdaten_1!H20 -> 0 | F152: 3912 | G152: 4211 | H152: ="Rettungswache "&Stammdaten_1!H20 -> Rettungswache
B153: 15 | C153: Rettungswache 9 | D153: ="RW - "&LEFT(Stammdaten_2!D6,16) -> RW - | E153: =Stammdaten_2!D6 -> 0 | F153: 4212 | G153: 4511 | H153: ="Rettungswache "&Stammdaten_2!D6 -> Rettungswache
B154: 16 | C154: Rettungswache 10 | D154: ="RW - "&LEFT(Stammdaten_2!D8,16) -> RW - | E154: =Stammdaten_2!D8 -> 0 | F154: 4512 | G154: 4811 | H154: ="Rettungswache "&Stammdaten_2!D8 -> Rettungswache
B155: 17 | C155: Rettungswache 11 | D155: ="RW - "&LEFT(Stammdaten_2!D10,16) -> RW - | E155: =Stammdaten_2!D10 -> 0 | F155: 4812 | G155: 5111 | H155: ="Rettungswache "&Stammdaten_2!D10 -> Rettungswache
B156: 18 | C156: Rettungswache 12 | D156: ="RW - "&LEFT(Stammdaten_2!D12,16) -> RW - | E156: =Stammdaten_2!D12 -> 0 | F156: 5112 | G156: 5411 | H156: ="Rettungswache "&Stammdaten_2!D12 -> Rettungswache
B157: 19 | C157: Rettungswache 13 | D157: ="RW - "&LEFT(Stammdaten_2!D14,16) -> RW - | E157: =Stammdaten_2!D14 -> 0 | F157: 5412 | G157: 5711 | H157: ="Rettungswache "&Stammdaten_2!D14 -> Rettungswache
B158: 20 | C158: Rettungswache 14 | D158: RW - | E158: =Stammdaten_2!D16 -> 0 | F158: 5712 | G158: 6011 | H158: ="Rettungswache "&Stammdaten_2!D16 -> Rettungswache
B159: 21 | C159: Rettungswache 15 | D159: ="RW - "&LEFT(Stammdaten_2!D18,16) -> RW - | E159: =Stammdaten_2!D18 -> 0 | F159: 6012 | G159: 6311 | H159: ="Rettungswache "&Stammdaten_2!D18 -> Rettungswache
B160: 22 | C160: Rettungswache 16 | D160: ="RW - "&LEFT(Stammdaten_2!D20,16) -> RW - | E160: =Stammdaten_2!D20 -> 0 | F160: 6312 | G160: 6611 | H160: ="Rettungswache "&Stammdaten_2!D20 -> Rettungswache
B161: 23 | C161: Rettungswache 17 | D161: ="RW - "&LEFT(Stammdaten_2!H6,16) -> RW - | E161: =Stammdaten_2!H6 -> 0 | F161: 6612 | G161: 6911 | H161: ="Rettungswache "&Stammdaten_2!H6 -> Rettungswache
B162: 24 | C162: Rettungswache 18 | D162: ="RW - "&LEFT(Stammdaten_2!H8,16) -> RW - | E162: =Stammdaten_2!H8 -> 0 | F162: 6912 | G162: 7211 | H162: ="Rettungswache "&Stammdaten_2!H8 -> Rettungswache
B163: 25 | C163: Rettungswache 19 | D163: ="RW - "&LEFT(Stammdaten_2!H10,16) -> RW - | E163: =Stammdaten_2!H10 -> 0 | F163: 7212 | G163: 7511 | H163: ="Rettungswache "&Stammdaten_2!H10 -> Rettungswache
B164: 26 | C164: Rettungswache 20 | D164: ="RW - "&LEFT(Stammdaten_2!H12,16) -> RW - | E164: =Stammdaten_2!H12 -> 0 | F164: 7512 | G164: 7811 | H164: ="Rettungswache "&Stammdaten_2!H12 -> Rettungswache
E165: Ausdruck | F165: =F164+300 -> 7812 | G165: 8111
C166: Einzelnachweise | D166: 7 | F166: =INDEX(F139:F164,D166) -> 1812 | G166: =INDEX(G139:G164,D166) -> 2111
C167: Gesamtnachweise | D167: 1 | E167: A. Gesamtnachweis | F167: 12 | G167: =F167+299 -> 311 | H167: 1
C168: Auswahlposition F8 | E168: C. Gesamt Verwaltung | F168: =F167+300 -> 312 | G168: =F168+299 -> 611 | H168: 1
E169: D. Gesamt Leitstelle | F169: =F168+300 -> 612 | G169: =F169+299 -> 911 | H169: 6
E170: E. Gesamt Rettungswachen | F170: =F169+300 -> 912 | G170: =F170+299 -> 1211 | H170: 7
D171: 1 | F171: =INDEX(F167:F170,D167) -> 12 | G171: =INDEX(G167:G170,D167) -> 311 | H171: =INDEX(H167:H170,D167) -> 1
F173: =((D166-1)*300)+12 -> 1812 | G173: =(D166*300)+11 -> 2111

Sheet Hauptmenu
B2: DV-gestützte Kosten- und Leistungsrechnung für den Rettungsdienst im Land Brandenburg
E4: • Hauptmenu •
B6: Nutzerhinweise | D6: Dateneingabe | F6: A - Gesamtnachweis | H6: F - Statistik
B8: Versionshinweise | D8: Stammdaten | F8: A4 - Gebührenerlöse
B10: G1 - Formularschema | F10: B1.1 - Leistungsdaten
B12: G2 - Erläuterungen KLR | F12: B1.2 - Gebühren-Basisdaten
B14: G3 - Gebührenschema | F14: B2 - Gebührenmatrix
B16: Erläuterung GV-Ausgleich | F16: C - Verwaltung
B18: Erläuterung LS-Kosten | D18: Online-Benutzerhandbuch | F18: D - Leitstelle | H18: Alles Sichern
B20: Systemeinstellungen | D20: Versions-Download | F20: E - Rettungswachen | H20: Beenden
B23: =ParameterDatei!C3&" - Lizenz-Nr.: "&ParameterDatei!C4 -> DV - KLR / BRA - Version 3.56 - Lizenz-Nr.: | H23: © ORGAKOM:

Sheet System-Daten
B2: • Sichern • Hauptmenu •
E4: • Systemeinstellungen •
B6: Ganzer Bildschirm einschalten | F6: Drucker-Skalierungen: | H6: Auf Standardwerte setzen
B8: Druckermenu einschalten | F8: KLR-Nachweise | H8: 75
F10: Statistiken | H10: 100
B12: Von vorangehendem Zeitraum | D12: Daten vortragen | F12: Gebühren-Matrix | H12: 50
B16: Aus alter Version transferieren | D16: Alle Daten transferieren | F16: Bildschirm-Skalierungen: | H16: Auf Standardwerte setzen
F18: Menus | H18: 100
B20: Dateninhalte komplett löschen | D20: Alle Daten löschen | F20: Tabellenblätter | H20: 100
B23: =ParameterDatei!C3 -> DV - KLR / BRA - Version 3.56 | H23: © ORGAKOM:

Sheet Stammdaten_1
E2: < Blättern • Sichern • Auswahlmenu • Hauptmenu • Blättern >
D4: • Stammdaten 1 •
B6: Rettungsdienstbereich : | D6: =INDEX(ParameterDatei!C85:C103,ParameterDatei!B107) -> Havelland | F6: Rettungswache 1 :
B8: KLR für Kalenderjahr : | D8: 2014 | F8: Rettungswache 2 :
B10: Verwaltung 1 : | D10: Träger | F10: Rettungswache 3 :
B12: Verwaltung 2 : | F12: Rettungswache 4 :
B14: Verwaltung 3 : | F14: Rettungswache 5 :
B16: Verwaltung 4 : | F16: Rettungswache 6 :
B18: Verwaltung 5 : | F18: Rettungswache 7 :
B20: Leitstelle : | F20: Rettungswache 8 :
B23: =ParameterDatei!C3 -> DV - KLR / BRA - Version 3.56 | H23: © ORGAKOM:

Sheet Stammdaten_2
E2: < Blättern • Sichern • Auswahlmenu • Hauptmenu • Blättern >
E4: • Stammdaten 2 •
B6: Rettungswache 9 : | F6: Rettungswache 17 :
B8: Rettungswache 10 : | F8: Rettungswache 18 :
B10: Rettungswache 11 : | F10: Rettungswache 19 :
B12: Rettungswache 12 : | F12: Rettungswache 20 :
B14: Rettungswache 13 :
B16: Rettungswache 14 :
B18: Rettungswache 15 : | F18: Druckmenu anzeigen | H18: Ja
B20: Rettungswache 16 : | F20: Monitor-Zoom-Faktor : | H20: 100
B23: =ParameterDatei!C3 -> DV - KLR / BRA - Version 3.56 | H23: © ORGAKOM:

Sheet Auswahlmenu
E2: • Hauptmenu • Stammdaten 1 •
E4: • Auswahlmenu •
B6: Auswahl der Kostenstelle : | F6: Einzelnachweis | H6: F8 Afa Geräte
D8: =ParameterDatei!D166 -> 7 | F8: F1 RM-Vorhaltung | H8: Erläuterungsbogen
F10: F2 Einsatzstatistik | H10: A - Gesamtnachweis
F12: F3 Frequenzstatistik | H12: A4 - Gebührenerlöse
F14: F4 Personalbedarf | H14: B1 - Leistungsdaten
F16: F5 Personalstatistik | H16: Verwaltung Gesamt
F18: F6 Afa Immobilien | H18: Leitstelle Gesamt
F20: F7 Afa Fahrzeuge | H20: Rettungswachen Gesamt
B23: =ParameterDatei!C3 -> DV - KLR / BRA - Version 3.56 | H23: © ORGAKOM:

Sheet EN
E1: x | F1: x | G1: x | H1: x | J1: x
B2: < Blättern • Drucken • Sichern • Hauptmenu • Auswahlmenu • Blättern >
C6: ="Dateneingabe - KLR Rettungsdienst für den RDB "&INDEX(ParameterDatei!C85:C102,ParameterDatei!B107)&" - 01.01.-31.12."&Stammdaten_1!D8 -> Dateneingabe - KLR Rettungsdienst für den RDB Havelland - 01.01.-31.12.2014
C7: ="Einzelnachweis "&INDEX(ParameterDatei!H139:H164,ParameterDatei!D166) -> Einzelnachweis Rettungswache
C9: Bezeichnung | E9: ="Ansatzfähige Kosten "&Stammdaten_1!D8-2 -> Ansatzfähige Kosten 2012 | F9: ="Buchhaltung Ist "&Stammdaten_1!D8-2 -> Buchhaltung Ist 2012 | G9: ="Hoch-rechnung "&Stammdaten_1!D8-2&" > "&Stammdaten_1!D8 -> Hoch-rechnung 2012 > 2014 | H9: ="Plankosten, Planerlöse "&Stammdaten_1!D8-2&" > "&Stammdaten_1!D8 -> Plankosten, Planerlöse 2012 > 2014 | I9: ="Ergebnis (2+3+4)" -> Ergebnis (2+3+4) | J9: ="Änderungen" -> Änderungen | K9: ="Ansatzfähige Kosten (5+6) "&Stammdaten_1!D8 -> Ansatzfähige Kosten (5+6) 2014
E10: 1 | F10: 2 | G10: 3 | H10: 4 | I10: 5 | J10: 6 | K10: 7
C13: C 1 | D13: Gesamtkostenermittlung
C16: C 2 | D16: Einnahmen
C17: C 2.1 | D17: Einnahmen aus Verwaltg. und Betrieb | E17: =E60 -> 0 | F17: =F60 -> 0 | G17: =G60 -> 0 | H17: =H60 -> 0 | I17: =F17+G17+H17 -> 0 | J17: =J60 -> 0 | K17: =I17+J17 -> 0
C18: C 2.2 | D18: Sonstige Finanzeinnahmen | E18: =E74 -> 0 | F18: =F74 -> 0 | G18: =G74 -> 0 | H18: =H74 -> 0 | I18: =F18+G18+H18 -> 0 | J18: =J74 -> 0 | K18: =I18+J18 -> 0
C19: C 2 | D19: Summe Einnahmen | E19: =SUM(E17:E18) -> 0 | F19: 0 | G19: 0 | H19: 0 | I19: 0 | J19: 0 | K19: 0
C22: C 3 | D22: Aufwand
C23: C 3.1 | D23: Personalkosten | E23: =E147 -> 0 | F23: =F147 -> 0 | G23: =G147 -> 0 | H23: =H147 -> 0 | I23: =F23+G23+H23 -> 0 | J23: =J147 -> 0 | K23: =I23+J23 -> 0
C24: C 3.2 | D24: Sachkosten | E24: =E216 -> 0 | F24: =F216 -> 0 | G24: =G216 -> 0 | H24: =H216 -> 0 | I24: =F24+G24+H24 -> 0 | J24: =J216 -> 0 | K24: =I24+J24 -> 0
C25: C 3.3 | D25: Sonstige Kosten | E25: =E246 -> 0 | F25: =F246 -> 0 | G25: =G246 -> 0 | H25: =H246 -> 0 | I25: =F25+G25+H25 -> 0 | J25: =J246 -> 0 | K25: =I25+J25 -> 0
C26: C 3.4 | D26: Kalkulatorische Kosten | E26: =E270 -> 0 | F26: =F270 -> 0 | G26: =G270 -> 0 | H26: =H270 -> 0 | I26: =F26+G26+H26 -> 0 | J26: =J270 -> 0 | K26: =I26+J26 -> 0
C27: C 3 | D27: Summe Aufwand | E27: =SUM(E23:E26) -> 0 | F27: 0 | G27: 0 | H27: 0 | I27: 0 | J27: 0 | K27: 0
D30: Gesamtkosten
D31: (C 3 - C 2) | E31: =E27-E19 -> 0 | F31: =F27-F19 -> 0 | G31: =G27-G19 -> 0 | H31: =H27-H19 -> 0 | I31: =F31+G31+H31 -> 0 | J31: =J27-J19 -> 0 | K31: =I31+J31 -> 0
C37: C 2 | D37: Einnahmen
C38: C 2.1 | D38: Einnahmen aus Verwaltung und Betrieb
C41: 11 | D41: Benutzungsgebühren
A42: x | B42: x | C42: 11100 | D42: Erlöse Leitstelle * | E42: 0 | F42: 0 | G42: 0 | H42: 0 | I42: =F42+G42+H42 -> 0 | J42: 0 | K42: =I42+J42 -> 0 | N42: VW 01 | O42: 38
A43: x | B43: x | C43: 11200 | D43: Erstattung für Sicherstellungen * | E43: 0 | F43: 0 | G43: 0 | H43: 0 | I43: =F43+G43+H43 -> 0 | J43: 0 | K43: =I43+J43 -> 0 | N43: VW 01 | O43: 39
A44: x | B44: x | C44: 11300 | D44: Erlöse Sondertarife * | E44: 0 | F44: 0 | G44: 0 | H44: 0 | I44: =F44+G44+H44 -> 0 | J44: 0 | K44: =I44+J44 -> 0 | N44: VW 01 | O44: 40
C47: 13 | D47: Einnahmen aus Verkauf
A48: x | B48: x | C48: 13100 | D48: Erträge aus Anlagenverkauf | E48: 0 | F48: 0 | G48: 0 | H48: 0 | I48: =F48+G48+H48 -> 0 | J48: 0 | K48: =I48+J48 -> 0 | N48: VW 01 | O48: 44
C51: 15 | D51: Sonstige Verwaltungseinnahmen
A52: x | B52: x | C52: 15100 | D52: Sonstige Erlöse | E52: 0 | F52: 0 | G52: 0 | H52: 0 | I52: =F52+G52+H52 -> 0 | J52: 0 | K52: =I52+J52 -> 0 | N52: VW 01 | O52: 48
C55: 17 | D55: Zuweisungen und Zuschüsse
A56: x | B56: x | C56: 17100 | D56: Spenden, Zuschüsse * | E56: 0 | F56: 0 | G56: 0 | H56: 0 | I56: =F56+G56+H56 -> 0 | J56: 0 | K56: =I56+J56 -> 0 | N56: VW 01 | O56: 52
A57: x | B57: x | C57: 17400 | D57: Erstattung für BFD | E57: 0 | F57: 0 | G57: 0 | H57: 0 | I57: =F57+G57+H57 -> 0 | J57: 0 | K57: =I57+J57 -> 0 | N57: VW 01 | O57: 53
D60: Summe C 2.1 | E60: =E42+E43+E44+E48+E52+E56+E57 -> 0 | F60: 0 | G60: 0 | H60: 0 | I60: 0 | J60: 0 | K60: 0
C66: C 2 | D66: Einnahmen
C67: C 2.2 | D67: Sonstige Finanzeinnahmen
C70: 20 | D70: Zinseinnahmen
A71: x | B71: x | C71: 20100 | D71: Zinserlöse | E71: 0 | F71: 0 | G71: 0 | H71: 0 | I71: =F71+G71+H71 -> 0 | J71: 0 | K71: =I71+J71 -> 0 | N71: VW 01 | O71: 67
D74: Summe C 2.2 | E74: =E71 -> 0 | F74: 0 | G74: 0 | H74: 0 | I74: 0 | J74: 0 | K74: 0
C80: C 3 | D80: Aufwand
C81: C 3.1 | D81: Personalausgaben
C84: 40 | D84: Aufwendungen ehrenamtl. Tätigkeit
A85: x | B85: x | C85: 40000 | D85: Aufwendungen ehrenamtl. Tätigkeit | E85: 0 | F85: 0 | G85: 0 | H85: 0 | I85: =F85+G85+H85 -> 0 | J85: 0 | K85: =I85+J85 -> 0 | N85: VW 01 | O85: 81
C88: 41 | D88: Dienstbezüge und dergl.
A89: x | B89: x | C89: 41000 | D89: Beamte | E89: 0 | F89: 0 | G89: 0 | H89: 0 | I89: =F89+G89+H89 -> 0 | J89: 0 | K89: =I89+J89 -> 0 | N89: VW 01 | O89: 85
A90: x | B90: x | C90: 41400 | D90: Angestellte | E90: 0 | F90: 0 | G90: 0 | H90: 0 | I90: =F90+G90+H90 -> 0 | J90: 0 | K90: =I90+J90 -> 0 | N90: VW 01 | O90: 86
A91: x | B91: x | C91: 41500 | D91: Arbeiter | E91: 0 | F91: 0 | G91: 0 | H91: 0 | I91: =F91+G91+H91 -> 0 | J91: 0 | K91: =I91+J91 -> 0 | N91: VW 01 | O91: 90
A92: x | B92: x | C92: 41600 | D92: Beschäftg.-entgelte/Aufwandsentsch. | E92: 0 | F92: 0 | G92: 0 | H92: 0 | I92: =F92+G92+H92 -> 0 | J92: 0 | K92: =I92+J92 -> 0 | N92: VW 01 | O92: 91
C95: 4141 | D95: Notarztvergütungen *
A96: x | B96: x | C96: 41410 | D96: Ärztlicher Leiter Rettungsdienst * | E96: 0 | F96: 0 | G96: 0 | H96: 0 | I96: =F96+G96+H96 -> 0 | J96: 0 | K96: =I96+J96 -> 0
A97: x | B97: x | C97: 41411 | D97: angestellte Notärzte * | E97: 0 | F97: 0 | G97: 0 | H97: 0 | I97: =F97+G97+H97 -> 0 | J97: 0 | K97: =I97+J97 -> 0 | N97: VW 01 | O97: 87
A98: x | B98: x | C98: 41412 | D98: Krankenhausärzte * | E98: 0 | F98: 0 | G98: 0 | H98: 0 | I98: =F98+G98+H98 -> 0 | J98: 0 | K98: =I98+J98 -> 0 | N98: VW 01 | O98: 88
A99: x | B99: x | C99: 41413 | D99: niedergel. Ärzte/Vertragsärzte * | E99: 0 | F99: 0 | G99: 0 | H99: 0 | I99: =F99+G99+H99 -> 0 | J99: 0 | K99: =I99+J99 -> 0 | N99: VW 01 | O99: 89
A100: x | B100: x | C100: 41414 | D100: Notärzte in Ausbildung * | E100: 0 | F100: 0 | G100: 0 | H100: 0 | I100: =F100+G100+H100 -> 0 | J100: 0 | K100: =I100+J100 -> 0
C103: 418 | D103: Zuschläge / Zulagen *
A104: x | B104: x | C104: 41810 | D104: Zuschläge Sa/So/Fei/Nachtzuschlag | E104: 0 | F104: 0 | G104: 0 | H104: 0 | I104: =F104+G104+H104 -> 0 | J104: 0 | K104: =I104+J104 -> 0 | N104: VW 01 | O104: 96
A105: x | B105: x | C105: 41820 | D105: Wechselschicht/Schichtzulage | E105: 0 | F105: 0 | G105: 0 | H105: 0 | I105: 0 | J105: 0 | K105: 0 | N105: VW 01 | O105: 97
A106: x | B106: x | C106: 41830 | D106: Verpflegungsmehraufwand | E106: 0 | F106: 0 | G106: 0 | H106: 0 | I106: 0 | J106: 0 | K106: 0 | N106: VW 01 | O106: 98
A107: x | B107: x | C107: 41840 | D107: Überstundenvergütung | E107: 0 | F107: 0 | G107: 0 | H107: 0 | I107: 0 | J107: 0 | K107: 0 | N107: VW 01 | O107: 99
A108: x | B108: x | C108: 41850 | D108: Bereitschaftsdienst/ Rufbereitschaft | E108: 0 | F108: 0 | G108: 0 | H108: 0 | I108: 0 | J108: 0 | K108: 0 | N108: VW 01 | O108: 100
A109: x | B109: x | C109: 41860 | D109: Leitende Notärzte * | E109: 0 | F109: 0 | G109: 0 | H109: 0 | I109: 0 | J109: 0 | K109: 0
A110: x | B110: x | C110: 41870 | D110: Sonstige Zulagen * | E110: 0 | F110: 0 | G110: 0 | H110: 0 | I110: 0 | J110: 0 | K110: 0 | N110: VW 01 | O110: 101
C113: 42 | D113: Versorgungsbezüge u. dgl. *
A114: x | B114: x | C114: 42000 | D114: Beamte | E114: 0 | F114: 0 | G114: 0 | H114: 0 | I114: =F114+G114+H114 -> 0 | J114: 0 | K114: =I114+J114 -> 0 | N114: VW 01 | O114: 105
A115: x | B115: x | C115: 42400 | D115: Angestellte | E115: 0 | F115: 0 | G115: 0 | H115: 0 | I115: =F115+G115+H115 -> 0 | J115: 0 | K115: =I115+J115 -> 0 | N115: VW 01 | O115: 106
A116: x | B116: x | C116: 42411 | D116: angestellte Notärzte | E116: 0 | F116: 0 | G116: 0 | H116: 0 | I116: =F116+G116+H116 -> 0 | J116: 0 | K116: =I116+J116 -> 0 | N116: VW 01 | O116: 107
A117: x | B117: x | C117: 42500 | D117: Arbeiter | E117: 0 | F117: 0 | G117: 0 | H117: 0 | I117: =F117+G117+H117 -> 0 | J117: 0 | K117: =I117+J117 -> 0 | N117: VW 01 | O117: 108
A118: x | B118: x | C118: 42800 | D118: Sonstige | E118: 0 | F118: 0 | G118: 0 | H118: 0 | I118: =F118+G118+H118 -> 0 | J118: 0 | K118: =I118+J118 -> 0 | N118: VW 01 | O118: 109
C121: 43 | D121: Beiträge Versorgungskassen, ZVK
A122: x | B122: x | C122: 43000 | D122: Beamte | E122: 0 | F122: 0 | G122: 0 | H122: 0 | I122: =F122+G122+H122 -> 0 | J122: 0 | K122: =I122+J122 -> 0 | N122: VW 01 | O122: 113
A123: x | B123: x | C123: 43400 | D123: Angestellte | E123: 0 | F123: 0 | G123: 0 | H123: 0 | I123: =F123+G123+H123 -> 0 | J123: 0 | K123: =I123+J123 -> 0 | N123: VW 01 | O123: 114
A124: x | B124: x | C124: 43411 | D124: angestellte Notärzte | E124: 0 | F124: 0 | G124: 0 | H124: 0 | I124: =F124+G124+H124 -> 0 | J124: 0 | K124: =I124+J124 -> 0 | N124: VW 01 | O124: 115
A125: x | B125: x | C125: 43500 | D125: Arbeiter | E125: 0 | F125: 0 | G125: 0 | H125: 0 | I125: =F125+G125+H125 -> 0 | J125: 0 | K125: =I125+J125 -> 0 | N125: VW 01 | O125: 116
A126: x | B126: x | C126: 43800 | D126: Sonstige * | E126: 0 | F126: 0 | G126: 0 | H126: 0 | I126: =F126+G126+H126 -> 0 | J126: 0 | K126: =I126+J126 -> 0 | N126: VW 01 | O126: 117
C129: 44 | D129: Beiträge zur gesetzl. Sozialvers.
A130: x | B130: x | C130: 44400 | D130: Angestellte | E130: 0 | F130: 0 | G130: 0 | H130: 0 | I130: =F130+G130+H130 -> 0 | J130: 0 | K130: =I130+J130 -> 0 | N130: VW 01 | O130: 121
A131: x | B131: x | C131: 44411 | D131: angestellte Notärzte | E131: 0 | F131: 0 | G131: 0 | H131: 0 | I131: =F131+G131+H131 -> 0 | J131: 0 | K131: =I131+J131 -> 0 | N131: VW 01 | O131: 122
A132: x | B132: x | C132: 44500 | D132: Arbeiter | E132: 0 | F132: 0 | G132: 0 | H132: 0 | I132: =F132+G132+H132 -> 0 | J132: 0 | K132: =I132+J132 -> 0 | N132: VW 01 | O132: 123
A133: x | B133: x | C133: 44800 | D133: Sonstige | E133: 0 | F133: 0 | G133: 0 | H133: 0 | I133: =F133+G133+H133 -> 0 | J133: 0 | K133: =I133+J133 -> 0 | N133: VW 01 | O133: 124
A134: x | B134: x | C134: 45000 | D134: Beihilfen/Beiträge zur Beihilfevers. * | E134: 0 | F134: 0 | G134: 0 | H134: 0 | I134: =F134+G134+H134 -> 0 | J134: 0 | K134: =I134+J134 -> 0 | N134: VW 01 | O134: 125
C137: 46 | D137: Personalnebenausgaben
A138: x | B138: x | C138: 46100 | D138: Reisekostenerstattungen | E138: 0 | F138: 0 | G138: 0 | H138: 0 | I138: =F138+G138+H138 -> 0 | J138: 0 | K138: =I138+J138 -> 0 | N138: VW 01 | O138: 129
A139: x | B139: x | C139: 46200 | D139: Fortbildung * | E139: 0 | F139: 0 | G139: 0 | H139: 0 | I139: 0 | J139: 0 | K139: 0 | N139: VW 01 | O139: 130
A140: x | B140: x | C140: 46300 | D140: Arbeitsmedizinische Untersuchungen | E140: 0 | F140: 0 | G140: 0 | H140: 0 | I140: 0 | J140: 0 | K140: 0 | N140: VW 01 | O140: 131
A141: x | B141: x | C141: 46400 | D141: Abfindungen * | E141: 0 | F141: 0 | G141: 0 | H141: 0 | I141: 0 | J141: 0 | K141: 0 | N141: VW 01 | O141: 132
A142: x | B142: x | C142: 46500 | D142: Sonstiger Personalaufwand * | E142: 0 | F142: 0 | G142: 0 | H142: 0 | I142: 0 | J142: 0 | K142: 0 | N142: VW 01 | O142: 133
A143: x | B143: x | C143: 46600 | D143: Ausbildungskosten nichtärztl. Personal * | E143: 0 | F143: 0 | G143: 0 | H143: 0 | I143: 0 | J143: 0 | K143: 0
A144: x | B144: x | C144: 46700 | D144: Ausbildungskosten Notärzte * | E144: 0 | F144: 0 | G144: 0 | H144: 0 | I144: 0 | J144: 0 | K144: 0
D147: Summe C 3.1 | E147: =SUM(E85:E144) -> 0 | F147: =SUM(F85:F144) -> 0 | G147: 0 | H147: 0 | I147: 0 | J147: 0 | K147: 0
C153: C 3 | D153: Aufwand
C154: C 3.2 | D154: Sachkosten
C157: 50 | D157: Unterhaltg. Grundstücke / Gebäude *
A158: x | B158: x | C158: 50100 | D158: Rep./Instandhaltg. von Gebäuden | E158: 0 | F158: 0 | G158: 0 | H158: 0 | I158: =F158+G158+H158 -> 0 | J158: 0 | K158: =I158+J158 -> 0 | N158: VW 01 | O158: 147
A159: x | B159: x | C159: 50200 | D159: Re./Instandhaltg. an Außenanlagen | E159: 0 | F159: 0 | G159: 0 | H159: 0 | I159: 0 | J159: 0 | K159: 0 | N159: VW 01 | O159: 148
A160: x | B160: x | C160: 50300 | D160: Reparaturmaterial / Kleinwerkzeuge * | E160: 0 | F160: 0 | G160: 0 | H160: 0 | I160: 0 | J160: 0 | K160: 0 | N160: VW 01 | O160: 149
A161: x | B161: x | C161: 50400 | D161: Wartungsaufwand | E161: 0 | F161: 0 | G161: 0 | H161: 0 | I161: 0 | J161: 0 | K161: 0 | N161: VW 01 | O161: 150
A162: x | B162: x | C162: 50500 | D162: Sonstige Rep. und Instandsetzungen | E162: 0 | F162: 0 | G162: 0 | H162: 0 | I162: 0 | J162: 0 | K162: 0 | N162: VW 01 | O162: 151
A163: x | B163: x | C163: 51000 | D163: Unterhaltg. sonst. unbew. Vermög. | E163: 0 | F163: 0 | G163: 0 | H163: 0 | I163: 0 | J163: 0 | K163: 0 | N163: VW 01 | O163: 152
C166: 52 | D166: Geräte, Ausrüstung, Verbrauch
A167: x | B167: x | C167: 52100 | D167: Geringwertige Ausrüstungsgegenst. | E167: 0 | F167: 0 | G167: 0 | H167: 0 | I167: =F167+G167+H167 -> 0 | J167: 0 | K167: =I167+J167 -> 0 | N167: VW 01 | O167: 156
A168: x | B168: x | C168: 52210 | D168: Medikamente | E168: 0 | F168: 0 | G168: 0 | H168: 0 | I168: =F168+G168+H168 -> 0 | J168: 0 | K168: =I168+J168 -> 0 | N168: VW 01 | O168: 157
A169: x | B169: x | C169: 52220 | D169: Verbandsstoffe/med. Verbrauchsmat. * | E169: 0 | F169: 0 | G169: 0 | H169: 0 | I169: =F169+G169+H169 -> 0 | J169: 0 | K169: =I169+J169 -> 0 | N169: VW 01 | O169: 158
A170: x | B170: x | C170: 52230 | D170: Med.-techn. Geräte als GWG | E170: 0 | F170: 0 | G170: 0 | H170: 0 | I170: =F170+G170+H170 -> 0 | J170: 0 | K170: =I170+J170 -> 0 | N170: VW 01 | O170: 159
C173: 523 | D173: Reparaturen und Wartung
A174: x | B174: x | C174: 52310 | D174: Funkanlagen | E174: 0 | F174: 0 | G174: 0 | H174: 0 | I174: =F174+G174+H174 -> 0 | J174: 0 | K174: =I174+J174 -> 0 | N174: VW 01 | O174: 163
A175: x | B175: x | C175: 52320 | D175: Fernsprechanlagen | E175: 0 | F175: 0 | G175: 0 | H175: 0 | I175: =F175+G175+H175 -> 0 | J175: 0 | K175: =I175+J175 -> 0 | N175: VW 01 | O175: 164
A176: x | B176: x | C176: 52330 | D176: Med.-techn. Geräte | E176: 0 | F176: 0 | G176: 0 | H176: 0 | I176: =F176+G176+H176 -> 0 | J176: 0 | K176: =I176+J176 -> 0 | N176: VW 01 | O176: 165
A177: x | B177: x | C177: 52340 | D177: Sonstiges * | E177: 0 | F177: 0 | G177: 0 | H177: 0 | I177: =F177+G177+H177 -> 0 | J177: 0 | K177: =I177+J177 -> 0 | N177: VW 01 | O177: 166
C180: 53 | D180: Leasing, Mieten, Pachten *
A181: x | B181: x | C181: 53100 | D181: Grundstücke | E181: 0 | F181: 0 | G181: 0 | H181: 0 | I181: =F181+G181+H181 -> 0 | J181: 0 | K181: =I181+J181 -> 0 | N181: VW 01 | O181: 170
A182: x | B182: x | C182: 53200 | D182: Gebäude | E182: 0 | F182: 0 | G182: 0 | H182: 0 | I182: =F182+G182+H182 -> 0 | J182: 0 | K182: =I182+J182 -> 0 | N182: VW 01 | O182: 171
A183: x | B183: x | C183: 53300 | D183: Techn. Geräte und Anlagen | E183: 0 | F183: 0 | G183: 0 | H183: 0 | I183: =F183+G183+H183 -> 0 | J183: 0 | K183: =I183+J183 -> 0 | N183: VW 01 | O183: 172
C186: 54 | D186: Bewirtschaftung Grundstücke
A187: x | B187: x | C187: 54110 | D187: Heizung | E187: 0 | F187: 0 | G187: 0 | H187: 0 | I187: =F187+G187+H187 -> 0 | J187: 0 | K187: =I187+J187 -> 0 | N187: VW 01 | O187: 176
A188: x | B188: x | C188: 54120 | D188: Elektro/Gas/Wasser | E188: 0 | F188: 0 | G188: 0 | H188: 0 | I188: 0 | J188: 0 | K188: 0 | N188: VW 01 | O188: 177
A189: x | B189: x | C189: 54200 | D189: Reinigung | E189: 0 | F189: 0 | G189: 0 | H189: 0 | I189: 0 | J189: 0 | K189: 0 | N189: VW 01 | O189: 178
A190: x | B190: x | C190: 54300 | D190: Sachversicherungen | E190: 0 | F190: 0 | G190: 0 | H190: 0 | I190: 0 | J190: 0 | K190: 0 | N190: VW 01 | O190: 179
A191: x | B191: x | C191: 54400 | D191: Gebühren/Beiträge/Steuern | E191: 0 | F191: 0 | G191: 0 | H191: 0 | I191: 0 | J191: 0 | K191: 0 | N191: VW 01 | O191: 180
A192: x | B192: x | C192: 54500 | D192: Wartung Inventar | E192: 0 | F192: 0 | G192: 0 | H192: 0 | I192: 0 | J192: 0 | K192: 0 | N192: VW 01 | O192: 181
A193: x | B193: x | C193: 54600 | D193: Sonst. Raum- und Grundstückskosten | E193: 0 | F193: 0 | G193: 0 | H193: 0 | I193: 0 | J193: 0 | K193: 0 | N193: VW 01 | O193: 182
C196: 55 | D196: Haltung von Fahrzeugen
A197: x | B197: x | C197: 55100 | D197: Mieten / Leasing * | E197: 0 | F197: 0 | G197: 0 | H197: 0 | I197: =F197+G197+H197 -> 0 | J197: 0 | K197: =I197+J197 -> 0 | N197: VW 01 | O197: 186
A198: x | B198: x | C198: 55200 | D198: Kraftstoff/Öl | E198: 0 | F198: 0 | G198: 0 | H198: 0 | I198: 0 | J198: 0 | K198: 0 | N198: VW 01 | O198: 187
A199: x | B199: x | C199: 55310 | D199: KFZ-Unfall-Reparaturen | E199: 0 | F199: 0 | G199: 0 | H199: 0 | I199: 0 | J199: 0 | K199: 0 | N199: VW 01 | O199: 188
A200: x | B200: x | C200: 55320 | D200: KFZ-Reparaturen / Wartung | E200: 0 | F200: 0 | G200: 0 | H200: 0 | I200: 0 | J200: 0 | K200: 0 | N200: VW 01 | O200: 189
A201: x | B201: x | C201: 55400 | D201: KFZ-Bereifung / Zubehör | E201: 0 | F201: 0 | G201: 0 | H201: 0 | I201: 0 | J201: 0 | K201: 0 | N201: VW 01 | O201: 190
A202: x | B202: x | C202: 55500 | D202: KFZ-Versicherungen | E202: 0 | F202: 0 | G202: 0 | H202: 0 | I202: 0 | J202: 0 | K202: 0 | N202: VW 01 | O202: 191
A203: x | B203: x | C203: 55600 | D203: Sonstige KFZ-Kosten * | E203: 0 | F203: 0 | G203: 0 | H203: 0 | I203: 0 | J203: 0 | K203: 0 | N203: VW 01 | O203: 192
A204: x | B204: x | C204: 55700 | D204: KFZ-Steuern | E204: 0 | F204: 0 | G204: 0 | H204: 0 | I204: 0 | J204: 0 | K204: 0 | N204: VW 01 | O204: 193
C207: 56 | D207: Besondere Aufwendungen
A208: x | B208: x | C208: 56100 | D208: Beschaffung Berufskleidung | E208: 0 | F208: 0 | G208: 0 | H208: 0 | I208: =F208+G208+H208 -> 0 | J208: 0 | K208: =I208+J208 -> 0 | N208: VW 01 | O208: 197
A209: x | B209: x | C209: 56200 | D209: Reinigung/Unterhalt Berufskleidung | E209: 0 | F209: 0 | G209: 0 | H209: 0 | I209: 0 | J209: 0 | K209: 0 | N209: VW 01 | O209: 198
A210: x | B210: x | C210: 56300 | D210: Sonstige Aufwendungen | E210: 0 | F210: 0 | G210: 0 | H210: 0 | I210: 0 | J210: 0 | K210: 0 | N210: VW 01 | O210: 199
A211: x | B211: x | C211: 56400 | D211: Sachkosten der Qualitätssicherung * | E211: 0 | F211: 0 | G211: 0 | H211: 0 | I211: 0 | J211: 0 | K211: 0
A212: x | B212: x | C212: 56500 | D212: Sachkosten MANV * | E212: 0 | F212: 0 | G212: 0 | H212: 0 | I212: 0 | J212: 0 | K212: 0
A213: x | B213: x | C213: 57000 | D213: Weitere Betriebsausgaben * | E213: 0 | F213: 0 | G213: 0 | H213: 0 | I213: 0 | J213: 0 | K213: 0 | N213: VW 01 | O213: 200
D216: Summe C 3.2 | E216: =SUM(E158:E163)+SUM(E167:E170)+SUM(E174:E177)+SUM(E181:E183)+SUM(E187:E193)+SUM(E197:E204)+SUM(E208:E213) -> 0 | F216: =SUM(F158:F163)+SUM(F167:F170)+SUM(F174:F177)+SUM(F181:F183)+SUM(F187:F193)+SUM(F197:F204)+SUM(F208:F213) -> 0 | G216: =SUM(G158:G163)+SUM(G167:G170)+SUM(G174:G177)+SUM(G181:G183)+SUM(G187:G193)+SUM(G197:G204)+SUM(G208:G213) -> 0 | H216: =SUM(H158:H163)+SUM(H167:H170)+SUM(H174:H177)+SUM(H181:H183)+SUM(H187:H193)+SUM(H197:H204)+SUM(H208:H213) -> 0 | I216: =F216+G216+H216 -> 0 | J216: =SUM(J158:J163)+SUM(J167:J170)+SUM(J174:J177)+SUM(J181:J183)+SUM(J187:J193)+SUM(J197:J204)+SUM(J208:J213) -> 0 | K216: =I216+J216 -> 0
C222: C 3 | D222: Aufwand
C223: C 3.3 | D223: Sonstige Kosten
C226: 64 | D226: Versicherungen/Schadensfälle *
A227: x | B227: x | C227: 64100 | D227: Haftpflichtversicherung | E227: 0 | F227: 0 | G227: 0 | H227: 0 | I227: =F227+G227+H227 -> 0 | J227: 0 | K227: =I227+J227 -> 0 | N227: VW 01 | O227: 214
A228: x | B228: x | C228: 64200 | D228: Unfallversicherung | E228: 0 | F228: 0 | G228: 0 | H228: 0 | I228: =F228+G228+H228 -> 0 | J228: 0 | K228: =I228+J228 -> 0 | N228: VW 01 | O228: 215
A229: x | B229: x | C229: 64300 | D229: Sonstige Versicherungen | E229: 0 | F229: 0 | G229: 0 | H229: 0 | I229: =F229+G229+H229 -> 0 | J229: 0 | K229: =I229+J229 -> 0 | N229: VW 01 | O229: 216
A230: x | B230: x | C230: 64400 | D230: Schadensfälle | E230: 0 | F230: 0 | G230: 0 | H230: 0 | I230: =F230+G230+H230 -> 0 | J230: 0 | K230: =I230+J230 -> 0 | N230: VW 01 | O230: 217
C233: 65 | D233: Geschäftsausgaben
A234: x | B234: x | C234: 65100 | D234: Porto, Telefon- und Funkgebühren | E234: 0 | F234: 0 | G234: 0 | H234: 0 | I234: =F234+G234+H234 -> 0 | J234: 0 | K234: =I234+J234 -> 0 | N234: VW 01 | O234: 221
A235: x | B235: x | C235: 65200 | D235: Rechts- und Beratungskosten * | E235: 0 | F235: 0 | G235: 0 | H235: 0 | I235: 0 | J235: 0 | K235: 0 | N235: VW 01 | O235: 222
A236: x | B236: x | C236: 65300 | D236: Abschluss- und Prüfungskosten * | E236: 0 | F236: 0 | G236: 0 | H236: 0 | I236: 0 | J236: 0 | K236: 0 | N236: VW 01 | O236: 223
A237: x | B237: x | C237: 65400 | D237: Büromaterial | E237: 0 | F237: 0 | G237: 0 | H237: 0 | I237: 0 | J237: 0 | K237: 0 | N237: VW 01 | O237: 224
A238: x | B238: x | C238: 65500 | D238: Kosten des Geldverkehrs * | E238: 0 | F238: 0 | G238: 0 | H238: 0 | I238: 0 | J238: 0 | K238: 0 | N238: VW 01 | O238: 225
A239: x | B239: x | C239: 65600 | D239: Wartung EDV | E239: 0 | F239: 0 | G239: 0 | H239: 0 | I239: 0 | J239: 0 | K239: 0 | N239: VW 01 | O239: 226
A240: x | B240: x | C240: 65700 | D240: Sonstiger Verwaltungsaufwand | E240: 0 | F240: 0 | G240: 0 | H240: 0 | I240: 0 | J240: 0 | K240: 0 | N240: VW 01 | O240: 227
A241: x | B241: x | C241: 65800 | D241: Vordrucke/Formulare | E241: 0 | F241: 0 | G241: 0 | H241: 0 | I241: 0 | J241: 0 | K241: 0 | N241: VW 01 | O241: 228
A242: x | B242: x | C242: 65900 | D242: Fachliteratur | E242: 0 | F242: 0 | G242: 0 | H242: 0 | I242: 0 | J242: 0 | K242: 0 | N242: VW 01 | O242: 229
A243: x | B243: x | C243: 67000 | D243: Erstattung Querschnittsamtskosten * | E243: 0 | F243: 0 | G243: 0 | H243: 0 | I243: 0 | J243: 0 | K243: 0 | N243: VW 01 | O243: 230
D246: Summe C 3.3 | E246: =SUM(E227:E230)+SUM(E234:E243) -> 0 | F246: =SUM(F227:F230)+SUM(F234:F243) -> 0 | G246: =SUM(G227:G230)+SUM(G234:G243) -> 0 | H246: =SUM(H227:H230)+SUM(H234:H243) -> 0 | I246: =F246+G246+H246 -> 0 | J246: =SUM(J227:J230)+SUM(J234:J243) -> 0 | K246: =I246+J246 -> 0
C252: C 3 | D252: Aufwand
C253: C 3.4 | D253: Kalkulatorische Kosten - Sonstige Finanzausgaben
C256: 68 | D256: Kalkulatorische Kosten *
A257: x | B257: x | C257: 68010 | D257: AfA Gebäude | E257: 0 | F257: 0 | G257: 0 | H257: 0 | I257: =F257+G257+H257 -> 0 | J257: 0 | K257: =I257+J257 -> 0 | N257: VW 01 | O257: 244
A258: x | B258: x | C258: 68020 | D258: AfA Fahrzeuge | E258: 0 | F258: 0 | G258: 0 | H258: 0 | I258: 0 | J258: 0 | K258: 0 | N258: VW 01 | O258: 245
A259: x | B259: x | C259: 68030 | D259: AfA Ausrüstungen * | E259: 0 | F259: 0 | G259: 0 | H259: 0 | I259: 0 | J259: 0 | K259: 0 | N259: VW 01 | O259: 246
A260: x | B260: x | C260: 68040 | D260: AfA Med.-techn. Geräte | E260: 0 | F260: 0 | G260: 0 | H260: 0 | I260: 0 | J260: 0 | K260: 0 | N260: VW 01 | O260: 247
A261: x | B261: x | C261: 68500 | D261: Verzinsung des Anlagekapitals | E261: 0 | F261: 0 | G261: 0 | H261: 0 | I261: 0 | J261: 0 | K261: 0 | N261: VW 01 | O261: 248
A262: x | B262: x | C262: 68600 | D262: Kalkulatorische Mieten * | E262: 0 | F262: 0 | G262: 0 | H262: 0 | I262: 0 | J262: 0 | K262: 0 | N262: VW 01 | O262: 249
C265: 8 | D265: Sonstige Finanzausgaben
A266: x | B266: x | C266: 80000 | D266: Zinsausgaben * | E266: 0 | F266: 0 | G266: 0 | H266: 0 | I266: =F266+G266+H266 -> 0 | J266: 0 | K266: =I266+J266 -> 0 | N266: VW 01 | O266: 253
A267: x | B267: x | C267: 89000 | D267: Einzelwertberichtigung zu Forderng. | E267: 0 | F267: 0 | G267: 0 | H267: 0 | I267: =F267+G267+H267 -> 0 | J267: 0 | K267: =I267+J267 -> 0 | N267: VW 01 | O267: 254
D270: Summe C 3.4 | E270: =SUM(E257:E262)+SUM(E266:E267) -> 0 | F270: =SUM(F257:F262)+SUM(F266:F267) -> 0 | G270: =SUM(G257:G262)+SUM(G266:G267) -> 0 | H270: =SUM(H257:H262)+SUM(H266:H267) -> 0 | I270: =F270+G270+H270 -> 0 | J270: =SUM(J257:J262)+SUM(J266:J267) -> 0 | K270: =I270+J270 -> 0
C313: C 1 | D313: Gesamtkostenermittlung
C316: C 2 | D316: Einnahmen
C317: C 2.1 | D317: Einnahmen aus Verwaltg. und Betrieb | E317: =E360 -> 0 | F317: =F360 -> 0 | G317: =G360 -> 0 | H317: =H360 -> 0 | I317: =F317+G317+H317 -> 0 | J317: =J360 -> 0 | K317: =I317+J317 -> 0
C318: C 2.2 | D318: Sonstige Finanzeinnahmen | E318: =E374 -> 0 | F318: =F374 -> 0 | G318: =G374 -> 0 | H318: =H374 -> 0 | I318: =F318+G318+H318 -> 0 | J318: =J374 -> 0 | K318: =I318+J318 -> 0
C319: C 2 | D319: Summe Einnahmen | E319: =SUM(E317:E318) -> 0 | F319: 0 | G319: 0 | H319: 0 | I319: 0 | J319: 0 | K319: 0
C322: C 3 | D322: Aufwand
C323: C 3.1 | D323: Personalkosten | E323: =E447 -> 0 | F323: =F447 -> 0 | G323: =G447 -> 0 | H323: =H447 -> 0 | I323: =F323+G323+H323 -> 0 | J323: =J447 -> 0 | K323: =I323+J323 -> 0
C324: C 3.2 | D324: Sachkosten | E324: =E516 -> 0 | F324: =F516 -> 0 | G324: =G516 -> 0 | H324: =H516 -> 0 | I324: =F324+G324+H324 -> 0 | J324: =J516 -> 0 | K324: =I324+J324 -> 0
C325: C 3.3 | D325: Sonstige Kosten | E325: =E546 -> 0 | F325: =F546 -> 0 | G325: =G546 -> 0 | H325: =H546 -> 0 | I325: =F325+G325+H325 -> 0 | J325: =J546 -> 0 | K325: =I325+J325 -> 0
C326: C 3.4 | D326: Kalkulatorische Kosten | E326: =E570 -> 0 | F326: =F570 -> 0 | G326: =G570 -> 0 | H326: =H570 -> 0 | I326: =F326+G326+H326 -> 0 | J326: =J570 -> 0 | K326: =I326+J326 -> 0
C327: C 3 | D327: Summe Aufwand | E327: =SUM(E323:E326) -> 0 | F327: 0 | G327: 0 | H327: 0 | I327: 0 | J327: 0 | K327: 0
D330: Gesamtkosten
D331: (C 3 - C 2) | E331: =E327-E319 -> 0 | F331: =F327-F319 -> 0 | G331: =G327-G319 -> 0 | H331: =H327-H319 -> 0 | I331: =F331+G331+H331 -> 0 | J331: =J327-J319 -> 0 | K331: =I331+J331 -> 0
C337: C 2 | D337: Einnahmen
C338: C 2.1 | D338: Einnahmen aus Verwaltung und Betrieb
C341: 11 | D341: Benutzungsgebühren
A342: x | B342: x | C342: 11100 | D342: Erlöse Leitstelle * | E342: 0 | F342: 0 | G342: 0 | H342: 0 | I342: =F342+G342+H342 -> 0 | J342: 0 | K342: =I342+J342 -> 0 | N342: VW 02 | O342: 38
A343: x | B343: x | C343: 11200 | D343: Erstattung für Sicherstellungen * | E343: 0 | F343: 0 | G343: 0 | H343: 0 | I343: =F343+G343+H343 -> 0 | J343: 0 | K343: =I343+J343 -> 0 | N343: VW 02 | O343: 39
A344: x | B344: x | C344: 11300 | D344: Erlöse Sondertarife * | E344: 0 | F344: 0 | G344: 0 | H344: 0 | I344: =F344+G344+H344 -> 0 | J344: 0 | K344: =I344+J344 -> 0 | N344: VW 02 | O344: 40
C347: 13 | D347: Einnahmen aus Verkauf
A348: x | B348: x | C348: 13100 | D348: Erträge aus Anlagenverkauf | E348: 0 | F348: 0 | G348: 0 | H348: 0 | I348: =F348+G348+H348 -> 0 | J348: 0 | K348: =I348+J348 -> 0 | N348: VW 02 | O348: 44
C351: 15 | D351: Sonstige Verwaltungseinnahmen
A352: x | B352: x | C352: 15100 | D352: Sonstige Erlöse | E352: 0 | F352: 0 | G352: 0 | H352: 0 | I352: =F352+G352+H352 -> 0 | J352: 0 | K352: =I352+J352 -> 0 | N352: VW 02 | O352: 48
C355: 17 | D355: Zuweisungen und Zuschüsse
A356: x | B356: x | C356: 17100 | D356: Spenden, Zuschüsse * | E356: 0 | F356: 0 | G356: 0 | H356: 0 | I356: =F356+G356+H356 -> 0 | J356: 0 | K356: =I356+J356 -> 0 | N356: VW 02 | O356: 52
A357: x | B357: x | C357: 17400 | D357: Erstattung für BFD | E357: 0 | F357: 0 | G357: 0 | H357: 0 | I357: =F357+G357+H357 -> 0 | J357: 0 | K357: =I357+J357 -> 0 | N357: VW 02 | O357: 53
D360: Summe C 2.1 | E360: =E342+E343+E344+E348+E352+E356+E357 -> 0 | F360: 0 | G360: 0 | H360: 0 | I360: 0 | J360: 0 | K360: 0
C366: C 2 | D366: Einnahmen
C367: C 2.2 | D367: Sonstige Finanzeinnahmen
C370: 20 | D370: Zinseinnahmen
A371: x | B371: x | C371: 20100 | D371: Zinserlöse | E371: 0 | F371: 0 | G371: 0 | H371: 0 | I371: =F371+G371+H371 -> 0 | J371: 0 | K371: =I371+J371 -> 0 | N371: VW 02 | O371: 67
D374: Summe C 2.2 | E374: =E371 -> 0 | F374: 0 | G374: 0 | H374: 0 | I374: 0 | J374: 0 | K374: 0
... 4018 more rows

Sheet Gesamt
B2: Drucken • Hauptmenu • Auswahlmenu
C6: ="KLR Rettungsdienst für den RDB "&INDEX(ParameterDatei!C85:C102,ParameterDatei!B107)&" - 01.01.-31.12."&Stammdaten_1!D8 -> KLR Rettungsdienst für den RDB Havelland - 01.01.-31.12.2014
C7: =INDEX(ParameterDatei!E167:E170,ParameterDatei!D167) -> A. Gesamtnachweis
C9: Bezeichnung | E9: ="Ansatzfähige Kosten "&Stammdaten_1!D8-2 -> Ansatzfähige Kosten 2012 | F9: ="Buchhaltung Ist "&Stammdaten_1!D8-2 -> Buchhaltung Ist 2012 | G9: ="Hoch-rechnung "&Stammdaten_1!D8-2&" > "&Stammdaten_1!D8 -> Hoch-rechnung 2012 > 2014 | H9: ="Plankosten, Planerlöse "&Stammdaten_1!D8-2&" > "&Stammdaten_1!D8 -> Plankosten, Planerlöse 2012 > 2014 | I9: ="Ergebnis (2+3+4)" -> Ergebnis (2+3+4) | J9: ="Änderungen" -> Änderungen | K9: ="Ansatzfähige Kosten (5+6) "&Stammdaten_1!D8 -> Ansatzfähige Kosten (5+6) 2014
E10: 1 | F10: 2 | G10: 3 | H10: 4 | I10: 5 | J10: 6 | K10: 7
C13: A 1 | D13: Gesamtkostenermittlung
C16: A 2 | D16: Einnahmen
C17: A 2.1 | D17: Einnahmen aus Verwaltg. und Betrieb | E17: =E70 -> 0 | F17: =F70 -> 0 | G17: =G70 -> 0 | H17: =H70 -> 0 | I17: =F17+G17+H17 -> 0 | J17: =J70 -> 0 | K17: =I17+J17 -> 0
C18: A 2.2 | D18: Sonstige Finanzeinnahmen | E18: =E84 -> 0 | F18: =F84 -> 0 | G18: =G84 -> 0 | H18: =H84 -> 0 | I18: =F18+G18+H18 -> 0 | J18: =J84 -> 0 | K18: =I18+J18 -> 0
C19: A 2 | D19: Summe Einnahmen | E19: =SUM(E17:E18) -> 0 | F19: 0 | G19: 0 | H19: 0 | I19: 0 | J19: 0 | K19: 0
C22: A 3 | D22: Aufwand
C23: A 3.1 | D23: Personalkosten | E23: =E157 -> 0 | F23: =F157 -> 0 | G23: =G157 -> 0 | H23: =H157 -> 0 | I23: =F23+G23+H23 -> 0 | J23: =J157 -> 0 | K23: =I23+J23 -> 0
C24: A 3.2 | D24: Sachkosten | E24: =E226 -> 0 | F24: =F226 -> 0 | G24: =G226 -> 0 | H24: =H226 -> 0 | I24: =F24+G24+H24 -> 0 | J24: =J226 -> 0 | K24: =I24+J24 -> 0
C25: A 3.3 | D25: Sonstige Kosten | E25: =E256 -> 0 | F25: =F256 -> 0 | G25: =G256 -> 0 | H25: =H256 -> 0 | I25: =F25+G25+H25 -> 0 | J25: =J256 -> 0 | K25: =I25+J25 -> 0
C26: A 3.4 | D26: Kalkulatorische Kosten | E26: =E280 -> 0 | F26: =F280 -> 0 | G26: =G280 -> 0 | H26: =H280 -> 0 | I26: =F26+G26+H26 -> 0 | J26: =J280 -> 0 | K26: =I26+J26 -> 0
C27: A 3 | D27: Summe Aufwand | E27: =SUM(E23:E26) -> 0 | F27: 0 | G27: 0 | H27: 0 | I27: 0 | J27: 0 | K27: 0
C30: A G | D30: Gesamtkosten
D31: (A 3 - A 2) | E31: =E27-E19 -> 0 | F31: =F27-F19 -> 0 | G31: =G27-G19 -> 0 | H31: =H27-H19 -> 0 | I31: =F31+G31+H31 -> 0 | J31: =J27-J19 -> 0 | K31: =I31+J31 -> 0
C34: A 4 | D34: Gewinn- und Verlustausgleich
C35: A 4.1 | D35: Kostenansatz / Gebührenerlöse | E35: 0 | F35: =F298 -> 0 | I35: =F35-E35 -> 0 | J35: 0 | K35: =I35+J35 -> 0
C36: A 4.2 | D36: Gesamtkosten AG | E36: =E27-E19 -> 0 | F36: =F31 -> 0 | I36: =E36-F36 -> 0 | J36: 0 | K36: =I36+J36 -> 0
C37: A 4 | D37: Ausgleich (A 4.1 + A 4.2) | K37: =K35+K36 -> 0
C40: A K | D40: ="Kostenansatz "&Stammdaten_1!D8 -> Kostenansatz 2014
D41: (A G - A 4) | K41: =K31-K37 -> 0
C47: A 2 | D47: Einnahmen
C48: A 2.1 | D48: Einnahmen aus Verwaltung und Betrieb
C51: 11 | D51: Benutzungsgebühren
C52: 11100 | D52: Erlöse Leitstelle * | E52: =Verdichtung!$E42 -> 0 | F52: =Verdichtung!$E342 -> 0 | G52: =Verdichtung!$E642 -> 0 | H52: =Verdichtung!$E942 -> 0 | I52: =Verdichtung!$E1242 -> 0 | J52: =Verdichtung!$E1542 -> 0 | K52: =Verdichtung!$E1842 -> 0
C53: 11200 | D53: Erstattung für Sicherstellungen * | E53: =Verdichtung!$E43 -> 0 | F53: =Verdichtung!$E343 -> 0 | G53: =Verdichtung!$E643 -> 0 | H53: =Verdichtung!$E943 -> 0 | I53: =Verdichtung!$E1243 -> 0 | J53: =Verdichtung!$E1543 -> 0 | K53: =Verdichtung!$E1843 -> 0
C54: 11300 | D54: Erlöse Sondertarife * | E54: =Verdichtung!$E44 -> 0 | F54: =Verdichtung!$E344 -> 0 | G54: =Verdichtung!$E644 -> 0 | H54: =Verdichtung!$E944 -> 0 | I54: =Verdichtung!$E1244 -> 0 | J54: =Verdichtung!$E1544 -> 0 | K54: =Verdichtung!$E1844 -> 0
C57: 13 | D57: Einnahmen aus Verkauf
C58: 13100 | D58: Erträge aus Anlagenverkauf | E58: =Verdichtung!$E48 -> 0 | F58: =Verdichtung!$E348 -> 0 | G58: =Verdichtung!$E648 -> 0 | H58: =Verdichtung!$E948 -> 0 | I58: =Verdichtung!$E1248 -> 0 | J58: =Verdichtung!$E1548 -> 0 | K58: =Verdichtung!$E1848 -> 0
C61: 15 | D61: Sonstige Verwaltungseinnahmen
C62: 15100 | D62: Sonstige Erlöse | E62: =Verdichtung!$E52 -> 0 | F62: =Verdichtung!$E352 -> 0 | G62: =Verdichtung!$E652 -> 0 | H62: =Verdichtung!$E952 -> 0 | I62: =Verdichtung!$E1252 -> 0 | J62: =Verdichtung!$E1552 -> 0 | K62: =Verdichtung!$E1852 -> 0
C65: 17 | D65: Zuweisungen und Zuschüsse
C66: 17100 | D66: Spenden, Zuschüsse * | E66: =Verdichtung!$E56 -> 0 | F66: =Verdichtung!$E356 -> 0 | G66: =Verdichtung!$E656 -> 0 | H66: =Verdichtung!$E956 -> 0 | I66: =Verdichtung!$E1256 -> 0 | J66: =Verdichtung!$E1556 -> 0 | K66: =Verdichtung!$E1856 -> 0
C67: 17400 | D67: Erstattung für BFD | E67: =Verdichtung!$E57 -> 0 | F67: =Verdichtung!$E357 -> 0 | G67: =Verdichtung!$E657 -> 0 | H67: =Verdichtung!$E957 -> 0 | I67: =Verdichtung!$E1257 -> 0 | J67: =Verdichtung!$E1557 -> 0 | K67: =Verdichtung!$E1857 -> 0
D70: Summe A 2.1 | E70: =SUM(E52:E67) -> 0 | F70: =SUM(F52:F67) -> 0 | G70: 0 | H70: 0 | I70: 0 | J70: 0 | K70: 0
C76: A 2 | D76: Einnahmen
C77: A 2.2 | D77: Sonstige Finanzeinnahmen
C80: 20 | D80: Zinseinnahmen
C81: 20100 | D81: Zinserlöse | E81: =Verdichtung!$E71 -> 0 | F81: =Verdichtung!$E371 -> 0 | G81: =Verdichtung!$E671 -> 0 | H81: =Verdichtung!$E971 -> 0 | I81: =Verdichtung!$E1271 -> 0 | J81: =Verdichtung!$E1571 -> 0 | K81: =Verdichtung!$E1871 -> 0
D84: Summe A 2.2 | E84: =E374+E672+E973 -> 0 | F84: =F374+F672+F973 -> 0 | G84: =G374+G672+G973 -> 0 | H84: =H374+H672+H973 -> 0 | I84: =F84+G84+H84 -> 0 | J84: =J374+J672+J973 -> 0 | K84: =I84+J84 -> 0
C90: A 3 | D90: Aufwand
C91: A 3.1 | D91: Personalausgaben
C94: 40 | D94: Aufwendungen ehrenamtl. Tätigkeit
C95: 40000 | D95: Aufwendungen ehrenamtl. Tätigkeit | E95: =Verdichtung!$E85 -> 0 | F95: =Verdichtung!$E385 -> 0 | G95: =Verdichtung!$E685 -> 0 | H95: =Verdichtung!$E985 -> 0 | I95: =Verdichtung!$E1285 -> 0 | J95: =Verdichtung!$E1585 -> 0 | K95: =Verdichtung!$E1885 -> 0
C98: 41 | D98: Dienstbezüge und dergl.
C99: 41000 | D99: Beamte | E99: =Verdichtung!$E89 -> 0 | F99: =Verdichtung!$E389 -> 0 | G99: =Verdichtung!$E689 -> 0 | H99: =Verdichtung!$E989 -> 0 | I99: =Verdichtung!$E1289 -> 0 | J99: =Verdichtung!$E1589 -> 0 | K99: =Verdichtung!$E1889 -> 0
C100: 41400 | D100: Angestellte | E100: =Verdichtung!$E90 -> 0 | F100: =Verdichtung!$E390 -> 0 | G100: =Verdichtung!$E690 -> 0 | H100: =Verdichtung!$E990 -> 0 | I100: =Verdichtung!$E1290 -> 0 | J100: =Verdichtung!$E1590 -> 0 | K100: =Verdichtung!$E1890 -> 0
C101: 41500 | D101: Arbeiter | E101: =Verdichtung!$E91 -> 0 | F101: =Verdichtung!$E391 -> 0 | G101: =Verdichtung!$E691 -> 0 | H101: =Verdichtung!$E991 -> 0 | I101: =Verdichtung!$E1291 -> 0 | J101: =Verdichtung!$E1591 -> 0 | K101: =Verdichtung!$E1891 -> 0
C102: 41600 | D102: Beschäftg.-entgelte/Aufwandsentsch. | E102: =Verdichtung!$E92 -> 0 | F102: =Verdichtung!$E392 -> 0 | G102: =Verdichtung!$E692 -> 0 | H102: =Verdichtung!$E992 -> 0 | I102: =Verdichtung!$E1292 -> 0 | J102: =Verdichtung!$E1592 -> 0 | K102: =Verdichtung!$E1892 -> 0
C105: 4141 | D105: Notarztvergütungen *
C106: 41410 | D106: Ärztlicher Leiter Rettungsdienst * | E106: =Verdichtung!$E96 -> 0 | F106: =Verdichtung!$E396 -> 0 | G106: =Verdichtung!$E696 -> 0 | H106: =Verdichtung!$E996 -> 0 | I106: =Verdichtung!$E1296 -> 0 | J106: =Verdichtung!$E1596 -> 0 | K106: =Verdichtung!$E1896 -> 0
C107: 41411 | D107: angestellte Notärzte * | E107: =Verdichtung!$E97 -> 0 | F107: =Verdichtung!$E397 -> 0 | G107: =Verdichtung!$E697 -> 0 | H107: =Verdichtung!$E997 -> 0 | I107: =Verdichtung!$E1297 -> 0 | J107: =Verdichtung!$E1597 -> 0 | K107: =Verdichtung!$E1897 -> 0
C108: 41412 | D108: Krankenhausärzte * | E108: =Verdichtung!$E98 -> 0 | F108: =Verdichtung!$E398 -> 0 | G108: =Verdichtung!$E698 -> 0 | H108: =Verdichtung!$E998 -> 0 | I108: =Verdichtung!$E1298 -> 0 | J108: =Verdichtung!$E1598 -> 0 | K108: =Verdichtung!$E1898 -> 0
C109: 41413 | D109: niedergel. Ärzte/Vertragsärzte * | E109: =Verdichtung!$E99 -> 0 | F109: =Verdichtung!$E399 -> 0 | G109: =Verdichtung!$E699 -> 0 | H109: =Verdichtung!$E999 -> 0 | I109: =Verdichtung!$E1299 -> 0 | J109: =Verdichtung!$E1599 -> 0 | K109: =Verdichtung!$E1899 -> 0
C110: 41414 | D110: Notärzte in Ausbildung * | E110: =Verdichtung!$E100 -> 0 | F110: =Verdichtung!$E400 -> 0 | G110: =Verdichtung!$E700 -> 0 | H110: =Verdichtung!$E1000 -> 0 | I110: =Verdichtung!$E1300 -> 0 | J110: =Verdichtung!$E1600 -> 0 | K110: =Verdichtung!$E1900 -> 0
C113: 418 | D113: Zuschläge / Zulagen *
C114: 41810 | D114: Zuschläge Sa/So/Fei/Nachtzuschlag | E114: =Verdichtung!$E104 -> 0 | F114: =Verdichtung!$E404 -> 0 | G114: =Verdichtung!$E704 -> 0 | H114: =Verdichtung!$E1004 -> 0 | I114: =Verdichtung!$E1304 -> 0 | J114: =Verdichtung!$E1604 -> 0 | K114: =Verdichtung!$E1904 -> 0
C115: 41820 | D115: Wechselschicht/Schichtzulage | E115: =Verdichtung!$E105 -> 0 | F115: =Verdichtung!$E405 -> 0 | G115: =Verdichtung!$E705 -> 0 | H115: =Verdichtung!$E1005 -> 0 | I115: =Verdichtung!$E1305 -> 0 | J115: =Verdichtung!$E1605 -> 0 | K115: =Verdichtung!$E1905 -> 0
C116: 41830 | D116: Verpflegungsmehraufwand | E116: =Verdichtung!$E106 -> 0 | F116: =Verdichtung!$E406 -> 0 | G116: =Verdichtung!$E706 -> 0 | H116: =Verdichtung!$E1006 -> 0 | I116: =Verdichtung!$E1306 -> 0 | J116: =Verdichtung!$E1606 -> 0 | K116: =Verdichtung!$E1906 -> 0
C117: 41840 | D117: Überstundenvergütung | E117: =Verdichtung!$E107 -> 0 | F117: =Verdichtung!$E407 -> 0 | G117: =Verdichtung!$E707 -> 0 | H117: =Verdichtung!$E1007 -> 0 | I117: =Verdichtung!$E1307 -> 0 | J117: =Verdichtung!$E1607 -> 0 | K117: =Verdichtung!$E1907 -> 0
C118: 41850 | D118: Bereitschaftsdienst/ Rufbereitschaft | E118: =Verdichtung!$E108 -> 0 | F118: =Verdichtung!$E408 -> 0 | G118: =Verdichtung!$E708 -> 0 | H118: =Verdichtung!$E1008 -> 0 | I118: =Verdichtung!$E1308 -> 0 | J118: =Verdichtung!$E1608 -> 0 | K118: =Verdichtung!$E1908 -> 0
C119: 41860 | D119: Leitende Notärzte * | E119: =Verdichtung!$E109 -> 0 | F119: =Verdichtung!$E409 -> 0 | G119: =Verdichtung!$E709 -> 0 | H119: =Verdichtung!$E1009 -> 0 | I119: =Verdichtung!$E1309 -> 0 | J119: =Verdichtung!$E1609 -> 0 | K119: =Verdichtung!$E1909 -> 0
C120: 41870 | D120: Sonstige Zulagen * | E120: =Verdichtung!$E110 -> 0 | F120: =Verdichtung!$E410 -> 0 | G120: =Verdichtung!$E710 -> 0 | H120: =Verdichtung!$E1010 -> 0 | I120: =Verdichtung!$E1310 -> 0 | J120: =Verdichtung!$E1610 -> 0 | K120: =Verdichtung!$E1910 -> 0
C123: 42 | D123: Versorgungsbezüge u. dgl. *
C124: 42000 | D124: Beamte | E124: =Verdichtung!$E114 -> 0 | F124: =Verdichtung!$E414 -> 0 | G124: =Verdichtung!$E714 -> 0 | H124: =Verdichtung!$E1014 -> 0 | I124: =Verdichtung!$E1314 -> 0 | J124: =Verdichtung!$E1614 -> 0 | K124: =Verdichtung!$E1914 -> 0
C125: 42400 | D125: Angestellte | E125: =Verdichtung!$E115 -> 0 | F125: =Verdichtung!$E415 -> 0 | G125: =Verdichtung!$E715 -> 0 | H125: =Verdichtung!$E1015 -> 0 | I125: =Verdichtung!$E1315 -> 0 | J125: =Verdichtung!$E1615 -> 0 | K125: =Verdichtung!$E1915 -> 0
C126: 42411 | D126: angestellte Notärzte | E126: =Verdichtung!$E116 -> 0 | F126: =Verdichtung!$E416 -> 0 | G126: =Verdichtung!$E716 -> 0 | H126: =Verdichtung!$E1016 -> 0 | I126: =Verdichtung!$E1316 -> 0 | J126: =Verdichtung!$E1616 -> 0 | K126: =Verdichtung!$E1916 -> 0
C127: 42500 | D127: Arbeiter | E127: =Verdichtung!$E117 -> 0 | F127: =Verdichtung!$E417 -> 0 | G127: =Verdichtung!$E717 -> 0 | H127: =Verdichtung!$E1017 -> 0 | I127: =Verdichtung!$E1317 -> 0 | J127: =Verdichtung!$E1617 -> 0 | K127: =Verdichtung!$E1917 -> 0
C128: 42800 | D128: Sonstige | E128: =Verdichtung!$E118 -> 0 | F128: =Verdichtung!$E418 -> 0 | G128: =Verdichtung!$E718 -> 0 | H128: =Verdichtung!$E1018 -> 0 | I128: =Verdichtung!$E1318 -> 0 | J128: =Verdichtung!$E1618 -> 0 | K128: =Verdichtung!$E1918 -> 0
C131: 43 | D131: Beiträge Versorgungskassen, ZVK
C132: 43000 | D132: Beamte | E132: =Verdichtung!$E122 -> 0 | F132: =Verdichtung!$E422 -> 0 | G132: =Verdichtung!$E722 -> 0 | H132: =Verdichtung!$E1022 -> 0 | I132: =Verdichtung!$E1322 -> 0 | J132: =Verdichtung!$E1622 -> 0 | K132: =Verdichtung!$E1922 -> 0
C133: 43400 | D133: Angestellte | E133: =Verdichtung!$E123 -> 0 | F133: =Verdichtung!$E423 -> 0 | G133: =Verdichtung!$E723 -> 0 | H133: =Verdichtung!$E1023 -> 0 | I133: =Verdichtung!$E1323 -> 0 | J133: =Verdichtung!$E1623 -> 0 | K133: =Verdichtung!$E1923 -> 0
C134: 43411 | D134: angestellte Notärzte | E134: =Verdichtung!$E124 -> 0 | F134: =Verdichtung!$E424 -> 0 | G134: =Verdichtung!$E724 -> 0 | H134: =Verdichtung!$E1024 -> 0 | I134: =Verdichtung!$E1324 -> 0 | J134: =Verdichtung!$E1624 -> 0 | K134: =Verdichtung!$E1924 -> 0
C135: 43500 | D135: Arbeiter | E135: =Verdichtung!$E125 -> 0 | F135: =Verdichtung!$E425 -> 0 | G135: =Verdichtung!$E725 -> 0 | H135: =Verdichtung!$E1025 -> 0 | I135: =Verdichtung!$E1325 -> 0 | J135: =Verdichtung!$E1625 -> 0 | K135: =Verdichtung!$E1925 -> 0
C136: 43800 | D136: Sonstige * | E136: =Verdichtung!$E126 -> 0 | F136: =Verdichtung!$E426 -> 0 | G136: =Verdichtung!$E726 -> 0 | H136: =Verdichtung!$E1026 -> 0 | I136: =Verdichtung!$E1326 -> 0 | J136: =Verdichtung!$E1626 -> 0 | K136: =Verdichtung!$E1926 -> 0
C139: 44 | D139: Beiträge zur gesetzl. Sozialvers.
C140: 44400 | D140: Angestellte | E140: =Verdichtung!$E130 -> 0 | F140: =Verdichtung!$E430 -> 0 | G140: =Verdichtung!$E730 -> 0 | H140: =Verdichtung!$E1030 -> 0 | I140: =Verdichtung!$E1330 -> 0 | J140: =Verdichtung!$E1630 -> 0 | K140: =Verdichtung!$E1930 -> 0
C141: 44411 | D141: angestellte Notärzte | E141: =Verdichtung!$E131 -> 0 | F141: =Verdichtung!$E431 -> 0 | G141: =Verdichtung!$E731 -> 0 | H141: =Verdichtung!$E1031 -> 0 | I141: =Verdichtung!$E1331 -> 0 | J141: =Verdichtung!$E1631 -> 0 | K141: =Verdichtung!$E1931 -> 0
C142: 44500 | D142: Arbeiter | E142: =Verdichtung!$E132 -> 0 | F142: =Verdichtung!$E432 -> 0 | G142: =Verdichtung!$E732 -> 0 | H142: =Verdichtung!$E1032 -> 0 | I142: =Verdichtung!$E1332 -> 0 | J142: =Verdichtung!$E1632 -> 0 | K142: =Verdichtung!$E1932 -> 0
C143: 44800 | D143: Sonstige | E143: =Verdichtung!$E133 -> 0 | F143: =Verdichtung!$E433 -> 0 | G143: =Verdichtung!$E733 -> 0 | H143: =Verdichtung!$E1033 -> 0 | I143: =Verdichtung!$E1333 -> 0 | J143: =Verdichtung!$E1633 -> 0 | K143: =Verdichtung!$E1933 -> 0
C144: 45000 | D144: Beihilfen/Beiträge zur Beihilfevers. * | E144: =Verdichtung!$E134 -> 0 | F144: =Verdichtung!$E434 -> 0 | G144: =Verdichtung!$E734 -> 0 | H144: =Verdichtung!$E1034 -> 0 | I144: =Verdichtung!$E1334 -> 0 | J144: =Verdichtung!$E1634 -> 0 | K144: =Verdichtung!$E1934 -> 0
C147: 46 | D147: Personalnebenausgaben
C148: 46100 | D148: Reisekostenerstattungen | E148: =Verdichtung!$E138 -> 0 | F148: =Verdichtung!$E438 -> 0 | G148: =Verdichtung!$E738 -> 0 | H148: =Verdichtung!$E1038 -> 0 | I148: =Verdichtung!$E1338 -> 0 | J148: =Verdichtung!$E1638 -> 0 | K148: =Verdichtung!$E1938 -> 0
C149: 46200 | D149: Fortbildung * | E149: =Verdichtung!$E139 -> 0 | F149: =Verdichtung!$E439 -> 0 | G149: =Verdichtung!$E739 -> 0 | H149: =Verdichtung!$E1039 -> 0 | I149: =Verdichtung!$E1339 -> 0 | J149: =Verdichtung!$E1639 -> 0 | K149: =Verdichtung!$E1939 -> 0
C150: 46300 | D150: Arbeitsmedizinische Untersuchungen | E150: =Verdichtung!$E140 -> 0 | F150: =Verdichtung!$E440 -> 0 | G150: =Verdichtung!$E740 -> 0 | H150: =Verdichtung!$E1040 -> 0 | I150: =Verdichtung!$E1340 -> 0 | J150: =Verdichtung!$E1640 -> 0 | K150: =Verdichtung!$E1940 -> 0
C151: 46400 | D151: Abfindungen * | E151: =Verdichtung!$E141 -> 0 | F151: =Verdichtung!$E441 -> 0 | G151: =Verdichtung!$E741 -> 0 | H151: =Verdichtung!$E1041 -> 0 | I151: =Verdichtung!$E1341 -> 0 | J151: =Verdichtung!$E1641 -> 0 | K151: =Verdichtung!$E1941 -> 0
C152: 46500 | D152: Sonstiger Personalaufwand * | E152: =Verdichtung!$E142 -> 0 | F152: =Verdichtung!$E442 -> 0 | G152: =Verdichtung!$E742 -> 0 | H152: =Verdichtung!$E1042 -> 0 | I152: =Verdichtung!$E1342 -> 0 | J152: =Verdichtung!$E1642 -> 0 | K152: =Verdichtung!$E1942 -> 0
C153: 46600 | D153: Ausbildungskosten nichtärztl. Personal * | E153: =Verdichtung!$E143 -> 0 | F153: =Verdichtung!$E443 -> 0 | G153: =Verdichtung!$E743 -> 0 | H153: =Verdichtung!$E1043 -> 0 | I153: =Verdichtung!$E1343 -> 0 | J153: =Verdichtung!$E1643 -> 0 | K153: =Verdichtung!$E1943 -> 0
C154: 46700 | D154: Ausbildungskosten Notärzte * | E154: =Verdichtung!$E144 -> 0 | F154: =Verdichtung!$E444 -> 0 | G154: =Verdichtung!$E744 -> 0 | H154: =Verdichtung!$E1044 -> 0 | I154: =Verdichtung!$E1344 -> 0 | J154: =Verdichtung!$E1644 -> 0 | K154: =Verdichtung!$E1944 -> 0
D157: Summe A 3.1 | E157: =SUM(E95:E154) -> 0 | F157: =SUM(F95:F154) -> 0 | G157: 0 | H157: 0 | I157: 0 | J157: 0 | K157: 0
C163: A 3 | D163: Aufwand
C164: A 3.2 | D164: Sachkosten
C167: 50 | D167: Unterhaltg. Grundstücke / Gebäude *
C168: 50100 | D168: Rep./Instandhaltg. von Gebäuden | E168: =Verdichtung!$E158 -> 0 | F168: =Verdichtung!$E458 -> 0 | G168: =Verdichtung!$E758 -> 0 | H168: =Verdichtung!$E1058 -> 0 | I168: =Verdichtung!$E1358 -> 0 | J168: =Verdichtung!$E1658 -> 0 | K168: =Verdichtung!$E1958 -> 0
C169: 50200 | D169: Re./Instandhaltg. an Außenanlagen | E169: =Verdichtung!$E159 -> 0 | F169: =Verdichtung!$E459 -> 0 | G169: =Verdichtung!$E759 -> 0 | H169: =Verdichtung!$E1059 -> 0 | I169: =Verdichtung!$E1359 -> 0 | J169: =Verdichtung!$E1659 -> 0 | K169: =Verdichtung!$E1959 -> 0
C170: 50300 | D170: Reparaturmaterial / Kleinwerkzeuge * | E170: =Verdichtung!$E160 -> 0 | F170: =Verdichtung!$E460 -> 0 | G170: =Verdichtung!$E760 -> 0 | H170: =Verdichtung!$E1060 -> 0 | I170: =Verdichtung!$E1360 -> 0 | J170: =Verdichtung!$E1660 -> 0 | K170: =Verdichtung!$E1960 -> 0
C171: 50400 | D171: Wartungsaufwand | E171: =Verdichtung!$E161 -> 0 | F171: =Verdichtung!$E461 -> 0 | G171: =Verdichtung!$E761 -> 0 | H171: =Verdichtung!$E1061 -> 0 | I171: =Verdichtung!$E1361 -> 0 | J171: =Verdichtung!$E1661 -> 0 | K171: =Verdichtung!$E1961 -> 0
C172: 50500 | D172: Sonstige Rep. und Instandsetzungen | E172: =Verdichtung!$E162 -> 0 | F172: =Verdichtung!$E462 -> 0 | G172: =Verdichtung!$E762 -> 0 | H172: =Verdichtung!$E1062 -> 0 | I172: =Verdichtung!$E1362 -> 0 | J172: =Verdichtung!$E1662 -> 0 | K172: =Verdichtung!$E1962 -> 0
C173: 51000 | D173: Unterhaltg. sonst. unbew. Vermög. | E173: =Verdichtung!$E163 -> 0 | F173: =Verdichtung!$E463 -> 0 | G173: =Verdichtung!$E763 -> 0 | H173: =Verdichtung!$E1063 -> 0 | I173: =Verdichtung!$E1363 -> 0 | J173: =Verdichtung!$E1663 -> 0 | K173: =Verdichtung!$E1963 -> 0
C176: 52 | D176: Geräte, Ausrüstung, Verbrauch
C177: 52100 | D177: Geringwertige Ausrüstungsgegenst. | E177: =Verdichtung!$E167 -> 0 | F177: =Verdichtung!$E467 -> 0 | G177: =Verdichtung!$E767 -> 0 | H177: =Verdichtung!$E1067 -> 0 | I177: =Verdichtung!$E1367 -> 0 | J177: =Verdichtung!$E1667 -> 0 | K177: =Verdichtung!$E1967 -> 0
C178: 52210 | D178: Medikamente | E178: =Verdichtung!$E168 -> 0 | F178: =Verdichtung!$E468 -> 0 | G178: =Verdichtung!$E768 -> 0 | H178: =Verdichtung!$E1068 -> 0 | I178: =Verdichtung!$E1368 -> 0 | J178: =Verdichtung!$E1668 -> 0 | K178: =Verdichtung!$E1968 -> 0
C179: 52220 | D179: Verbandsstoffe/med. Verbrauchsmat. * | E179: =Verdichtung!$E169 -> 0 | F179: =Verdichtung!$E469 -> 0 | G179: =Verdichtung!$E769 -> 0 | H179: =Verdichtung!$E1069 -> 0 | I179: =Verdichtung!$E1369 -> 0 | J179: =Verdichtung!$E1669 -> 0 | K179: =Verdichtung!$E1969 -> 0
C180: 52230 | D180: Med.-techn. Geräte als GWG | E180: =Verdichtung!$E170 -> 0 | F180: =Verdichtung!$E470 -> 0 | G180: =Verdichtung!$E770 -> 0 | H180: =Verdichtung!$E1070 -> 0 | I180: =Verdichtung!$E1370 -> 0 | J180: =Verdichtung!$E1670 -> 0 | K180: =Verdichtung!$E1970 -> 0
C183: 523 | D183: Reparaturen und Wartung
C184: 52310 | D184: Funkanlagen | E184: =Verdichtung!$E174 -> 0 | F184: =Verdichtung!$E474 -> 0 | G184: =Verdichtung!$E774 -> 0 | H184: =Verdichtung!$E1074 -> 0 | I184: =Verdichtung!$E1374 -> 0 | J184: =Verdichtung!$E1674 -> 0 | K184: =Verdichtung!$E1974 -> 0
C185: 52320 | D185: Fernsprechanlagen | E185: =Verdichtung!$E175 -> 0 | F185: =Verdichtung!$E475 -> 0 | G185: =Verdichtung!$E775 -> 0 | H185: =Verdichtung!$E1075 -> 0 | I185: =Verdichtung!$E1375 -> 0 | J185: =Verdichtung!$E1675 -> 0 | K185: =Verdichtung!$E1975 -> 0
C186: 52330 | D186: Med.-techn. Geräte | E186: =Verdichtung!$E176 -> 0 | F186: =Verdichtung!$E476 -> 0 | G186: =Verdichtung!$E776 -> 0 | H186: =Verdichtung!$E1076 -> 0 | I186: =Verdichtung!$E1376 -> 0 | J186: =Verdichtung!$E1676 -> 0 | K186: =Verdichtung!$E1976 -> 0
C187: 52340 | D187: Sonstiges * | E187: =Verdichtung!$E177 -> 0 | F187: =Verdichtung!$E477 -> 0 | G187: =Verdichtung!$E777 -> 0 | H187: =Verdichtung!$E1077 -> 0 | I187: =Verdichtung!$E1377 -> 0 | J187: =Verdichtung!$E1677 -> 0 | K187: =Verdichtung!$E1977 -> 0
C190: 53 | D190: Leasing, Mieten, Pachten *
C191: 53100 | D191: Grundstücke | E191: =Verdichtung!$E181 -> 0 | F191: =Verdichtung!$E481 -> 0 | G191: =Verdichtung!$E781 -> 0 | H191: =Verdichtung!$E1081 -> 0 | I191: =Verdichtung!$E1381 -> 0 | J191: =Verdichtung!$E1681 -> 0 | K191: =Verdichtung!$E1981 -> 0
C192: 53200 | D192: Gebäude | E192: =Verdichtung!$E182 -> 0 | F192: =Verdichtung!$E482 -> 0 | G192: =Verdichtung!$E782 -> 0 | H192: =Verdichtung!$E1082 -> 0 | I192: =Verdichtung!$E1382 -> 0 | J192: =Verdichtung!$E1682 -> 0 | K192: =Verdichtung!$E1982 -> 0
C193: 53300 | D193: Techn. Geräte und Anlagen | E193: =Verdichtung!$E183 -> 0 | F193: =Verdichtung!$E483 -> 0 | G193: =Verdichtung!$E783 -> 0 | H193: =Verdichtung!$E1083 -> 0 | I193: =Verdichtung!$E1383 -> 0 | J193: =Verdichtung!$E1683 -> 0 | K193: =Verdichtung!$E1983 -> 0
C196: 54 | D196: Bewirtschaftung Grundstücke
C197: 54110 | D197: Heizung | E197: =Verdichtung!$E187 -> 0 | F197: =Verdichtung!$E487 -> 0 | G197: =Verdichtung!$E787 -> 0 | H197: =Verdichtung!$E1087 -> 0 | I197: =Verdichtung!$E1387 -> 0 | J197: =Verdichtung!$E1687 -> 0 | K197: =Verdichtung!$E1987 -> 0
C198: 54120 | D198: Elektro/Gas/Wasser | E198: =Verdichtung!$E188 -> 0 | F198: =Verdichtung!$E488 -> 0 | G198: =Verdichtung!$E788 -> 0 | H198: =Verdichtung!$E1088 -> 0 | I198: =Verdichtung!$E1388 -> 0 | J198: =Verdichtung!$E1688 -> 0 | K198: =Verdichtung!$E1988 -> 0
C199: 54200 | D199: Reinigung | E199: =Verdichtung!$E189 -> 0 | F199: =Verdichtung!$E489 -> 0 | G199: =Verdichtung!$E789 -> 0 | H199: =Verdichtung!$E1089 -> 0 | I199: =Verdichtung!$E1389 -> 0 | J199: =Verdichtung!$E1689 -> 0 | K199: =Verdichtung!$E1989 -> 0
C200: 54300 | D200: Sachversicherungen | E200: =Verdichtung!$E190 -> 0 | F200: =Verdichtung!$E490 -> 0 | G200: =Verdichtung!$E790 -> 0 | H200: =Verdichtung!$E1090 -> 0 | I200: =Verdichtung!$E1390 -> 0 | J200: =Verdichtung!$E1690 -> 0 | K200: =Verdichtung!$E1990 -> 0
C201: 54400 | D201: Gebühren/Beiträge/Steuern | E201: =Verdichtung!$E191 -> 0 | F201: =Verdichtung!$E491 -> 0 | G201: =Verdichtung!$E791 -> 0 | H201: =Verdichtung!$E1091 -> 0 | I201: =Verdichtung!$E1391 -> 0 | J201: =Verdichtung!$E1691 -> 0 | K201: =Verdichtung!$E1991 -> 0
C202: 54500 | D202: Wartung Inventar | E202: =Verdichtung!$E192 -> 0 | F202: =Verdichtung!$E492 -> 0 | G202: =Verdichtung!$E792 -> 0 | H202: =Verdichtung!$E1092 -> 0 | I202: =Verdichtung!$E1392 -> 0 | J202: =Verdichtung!$E1692 -> 0 | K202: =Verdichtung!$E1992 -> 0
C203: 54600 | D203: Sonst. Raum- und Grundstückskosten | E203: =Verdichtung!$E193 -> 0 | F203: =Verdichtung!$E493 -> 0 | G203: =Verdichtung!$E793 -> 0 | H203: =Verdichtung!$E1093 -> 0 | I203: =Verdichtung!$E1393 -> 0 | J203: =Verdichtung!$E1693 -> 0 | K203: =Verdichtung!$E1993 -> 0
C206: 55 | D206: Haltung von Fahrzeugen
C207: 55100 | D207: Mieten / Leasing * | E207: =Verdichtung!$E197 -> 0 | F207: =Verdichtung!$E497 -> 0 | G207: =Verdichtung!$E797 -> 0 | H207: =Verdichtung!$E1097 -> 0 | I207: =Verdichtung!$E1397 -> 0 | J207: =Verdichtung!$E1697 -> 0 | K207: =Verdichtung!$E1997 -> 0
C208: 55200 | D208: Kraftstoff/Öl | E208: =Verdichtung!$E198 -> 0 | F208: =Verdichtung!$E498 -> 0 | G208: =Verdichtung!$E798 -> 0 | H208: =Verdichtung!$E1098 -> 0 | I208: =Verdichtung!$E1398 -> 0 | J208: =Verdichtung!$E1698 -> 0 | K208: =Verdichtung!$E1998 -> 0
C209: 55310 | D209: KFZ-Unfall-Reparaturen | E209: =Verdichtung!$E199 -> 0 | F209: =Verdichtung!$E499 -> 0 | G209: =Verdichtung!$E799 -> 0 | H209: =Verdichtung!$E1099 -> 0 | I209: =Verdichtung!$E1399 -> 0 | J209: =Verdichtung!$E1699 -> 0 | K209: =Verdichtung!$E1999 -> 0
C210: 55320 | D210: KFZ-Reparaturen / Wartung | E210: =Verdichtung!$E200 -> 0 | F210: =Verdichtung!$E500 -> 0 | G210: =Verdichtung!$E800 -> 0 | H210: =Verdichtung!$E1100 -> 0 | I210: =Verdichtung!$E1400 -> 0 | J210: =Verdichtung!$E1700 -> 0 | K210: =Verdichtung!$E2000 -> 0
C211: 55400 | D211: KFZ-Bereifung / Zubehör | E211: =Verdichtung!$E201 -> 0 | F211: =Verdichtung!$E501 -> 0 | G211: =Verdichtung!$E801 -> 0 | H211: =Verdichtung!$E1101 -> 0 | I211: =Verdichtung!$E1401 -> 0 | J211: =Verdichtung!$E1701 -> 0 | K211: =Verdichtung!$E2001 -> 0
C212: 55500 | D212: KFZ-Versicherungen | E212: =Verdichtung!$E202 -> 0 | F212: =Verdichtung!$E502 -> 0 | G212: =Verdichtung!$E802 -> 0 | H212: =Verdichtung!$E1102 -> 0 | I212: =Verdichtung!$E1402 -> 0 | J212: =Verdichtung!$E1702 -> 0 | K212: =Verdichtung!$E2002 -> 0
C213: 55600 | D213: Sonstige KFZ-Kosten * | E213: =Verdichtung!$E203 -> 0 | F213: =Verdichtung!$E503 -> 0 | G213: =Verdichtung!$E803 -> 0 | H213: =Verdichtung!$E1103 -> 0 | I213: =Verdichtung!$E1403 -> 0 | J213: =Verdichtung!$E1703 -> 0 | K213: =Verdichtung!$E2003 -> 0
C214: 55700 | D214: KFZ-Steuern | E214: =Verdichtung!$E204 -> 0 | F214: =Verdichtung!$E504 -> 0 | G214: =Verdichtung!$E804 -> 0 | H214: =Verdichtung!$E1104 -> 0 | I214: =Verdichtung!$E1404 -> 0 | J214: =Verdichtung!$E1704 -> 0 | K214: =Verdichtung!$E2004 -> 0
C217: 56 | D217: Besondere Aufwendungen
C218: 56100 | D218: Beschaffung Berufskleidung | E218: =Verdichtung!$E208 -> 0 | F218: =Verdichtung!$E508 -> 0 | G218: =Verdichtung!$E808 -> 0 | H218: =Verdichtung!$E1108 -> 0 | I218: =Verdichtung!$E1408 -> 0 | J218: =Verdichtung!$E1708 -> 0 | K218: =Verdichtung!$E2008 -> 0
C219: 56200 | D219: Reinigung/Unterhalt Berufskleidung | E219: =Verdichtung!$E209 -> 0 | F219: =Verdichtung!$E509 -> 0 | G219: =Verdichtung!$E809 -> 0 | H219: =Verdichtung!$E1109 -> 0 | I219: =Verdichtung!$E1409 -> 0 | J219: =Verdichtung!$E1709 -> 0 | K219: =Verdichtung!$E2009 -> 0
C220: 56300 | D220: Sonstige Aufwendungen | E220: =Verdichtung!$E210 -> 0 | F220: =Verdichtung!$E510 -> 0 | G220: =Verdichtung!$E810 -> 0 | H220: =Verdichtung!$E1110 -> 0 | I220: =Verdichtung!$E1410 -> 0 | J220: =Verdichtung!$E1710 -> 0 | K220: =Verdichtung!$E2010 -> 0
C221: 56400 | D221: Sachkosten der Qualitätssicherung * | E221: =Verdichtung!$E211 -> 0 | F221: =Verdichtung!$E511 -> 0 | G221: =Verdichtung!$E811 -> 0 | H221: =Verdichtung!$E1111 -> 0 | I221: =Verdichtung!$E1411 -> 0 | J221: =Verdichtung!$E1711 -> 0 | K221: =Verdichtung!$E2011 -> 0
C222: 56500 | D222: Sachkosten MANV * | E222: =Verdichtung!$E212 -> 0 | F222: =Verdichtung!$E512 -> 0 | G222: =Verdichtung!$E812 -> 0 | H222: =Verdichtung!$E1112 -> 0 | I222: =Verdichtung!$E1412 -> 0 | J222: =Verdichtung!$E1712 -> 0 | K222: =Verdichtung!$E2012 -> 0
C223: 57000 | D223: Weitere Betriebsausgaben * | E223: =Verdichtung!$E213 -> 0 | F223: =Verdichtung!$E513 -> 0 | G223: =Verdichtung!$E813 -> 0 | H223: =Verdichtung!$E1113 -> 0 | I223: =Verdichtung!$E1413 -> 0 | J223: =Verdichtung!$E1713 -> 0 | K223: =Verdichtung!$E2013 -> 0
D226: Summe A 3.2 | E226: =SUM(E168:E223) -> 0 | F226: =SUM(F168:F223) -> 0 | G226: 0 | H226: 0 | I226: 0 | J226: 0 | K226: 0
C232: A 3 | D232: Aufwand
C233: A3.3 | D233: Sonstige Kosten
C236: 64 | D236: Versicherungen/Schadensfälle *
C237: 64100 | D237: Haftpflichtversicherung | E237: =Verdichtung!$E227 -> 0 | F237: =Verdichtung!$E527 -> 0 | G237: =Verdichtung!$E827 -> 0 | H237: =Verdichtung!$E1127 -> 0 | I237: =Verdichtung!$E1427 -> 0 | J237: =Verdichtung!$E1727 -> 0 | K237: =Verdichtung!$E2027 -> 0
C238: 64200 | D238: Unfallversicherung | E238: =Verdichtung!$E228 -> 0 | F238: =Verdichtung!$E528 -> 0 | G238: =Verdichtung!$E828 -> 0 | H238: =Verdichtung!$E1128 -> 0 | I238: =Verdichtung!$E1428 -> 0 | J238: =Verdichtung!$E1728 -> 0 | K238: =Verdichtung!$E2028 -> 0
C239: 64300 | D239: Sonstige Versicherungen | E239: =Verdichtung!$E229 -> 0 | F239: =Verdichtung!$E529 -> 0 | G239: =Verdichtung!$E829 -> 0 | H239: =Verdichtung!$E1129 -> 0 | I239: =Verdichtung!$E1429 -> 0 | J239: =Verdichtung!$E1729 -> 0 | K239: =Verdichtung!$E2029 -> 0
C240: 64400 | D240: Schadensfälle | E240: =Verdichtung!$E230 -> 0 | F240: =Verdichtung!$E530 -> 0 | G240: =Verdichtung!$E830 -> 0 | H240: =Verdichtung!$E1130 -> 0 | I240: =Verdichtung!$E1430 -> 0 | J240: =Verdichtung!$E1730 -> 0 | K240: =Verdichtung!$E2030 -> 0
C243: 65 | D243: Geschäftsausgaben
C244: 65100 | D244: Porto, Telefon- und Funkgebühren | E244: =Verdichtung!$E234 -> 0 | F244: =Verdichtung!$E534 -> 0 | G244: =Verdichtung!$E834 -> 0 | H244: =Verdichtung!$E1134 -> 0 | I244: =Verdichtung!$E1434 -> 0 | J244: =Verdichtung!$E1734 -> 0 | K244: =Verdichtung!$E2034 -> 0
C245: 65200 | D245: Rechts- und Beratungskosten * | E245: =Verdichtung!$E235 -> 0 | F245: =Verdichtung!$E535 -> 0 | G245: =Verdichtung!$E835 -> 0 | H245: =Verdichtung!$E1135 -> 0 | I245: =Verdichtung!$E1435 -> 0 | J245: =Verdichtung!$E1735 -> 0 | K245: =Verdichtung!$E2035 -> 0
C246: 65300 | D246: Abschluss- und Prüfungskosten * | E246: =Verdichtung!$E236 -> 0 | F246: =Verdichtung!$E536 -> 0 | G246: =Verdichtung!$E836 -> 0 | H246: =Verdichtung!$E1136 -> 0 | I246: =Verdichtung!$E1436 -> 0 | J246: =Verdichtung!$E1736 -> 0 | K246: =Verdichtung!$E2036 -> 0
C247: 65400 | D247: Büromaterial | E247: =Verdichtung!$E237 -> 0 | F247: =Verdichtung!$E537 -> 0 | G247: =Verdichtung!$E837 -> 0 | H247: =Verdichtung!$E1137 -> 0 | I247: =Verdichtung!$E1437 -> 0 | J247: =Verdichtung!$E1737 -> 0 | K247: =Verdichtung!$E2037 -> 0
C248: 65500 | D248: Kosten des Geldverkehrs * | E248: =Verdichtung!$E238 -> 0 | F248: =Verdichtung!$E538 -> 0 | G248: =Verdichtung!$E838 -> 0 | H248: =Verdichtung!$E1138 -> 0 | I248: =Verdichtung!$E1438 -> 0 | J248: =Verdichtung!$E1738 -> 0 | K248: =Verdichtung!$E2038 -> 0
C249: 65600 | D249: Wartung EDV | E249: =Verdichtung!$E239 -> 0 | F249: =Verdichtung!$E539 -> 0 | G249: =Verdichtung!$E839 -> 0 | H249: =Verdichtung!$E1139 -> 0 | I249: =Verdichtung!$E1439 -> 0 | J249: =Verdichtung!$E1739 -> 0 | K249: =Verdichtung!$E2039 -> 0
C250: 65700 | D250: Sonstiger Verwaltungsaufwand | E250: =Verdichtung!$E240 -> 0 | F250: =Verdichtung!$E540 -> 0 | G250: =Verdichtung!$E840 -> 0 | H250: =Verdichtung!$E1140 -> 0 | I250: =Verdichtung!$E1440 -> 0 | J250: =Verdichtung!$E1740 -> 0 | K250: =Verdichtung!$E2040 -> 0
C251: 65800 | D251: Vordrucke/Formulare | E251: =Verdichtung!$E241 -> 0 | F251: =Verdichtung!$E541 -> 0 | G251: =Verdichtung!$E841 -> 0 | H251: =Verdichtung!$E1141 -> 0 | I251: =Verdichtung!$E1441 -> 0 | J251: =Verdichtung!$E1741 -> 0 | K251: =Verdichtung!$E2041 -> 0
C252: 65900 | D252: Fachliteratur | E252: =Verdichtung!$E242 -> 0 | F252: =Verdichtung!$E542 -> 0 | G252: =Verdichtung!$E842 -> 0 | H252: =Verdichtung!$E1142 -> 0 | I252: =Verdichtung!$E1442 -> 0 | J252: =Verdichtung!$E1742 -> 0 | K252: =Verdichtung!$E2042 -> 0
C253: 67000 | D253: Erstattung Querschnittsamtskosten * | E253: =Verdichtung!$E243 -> 0 | F253: =Verdichtung!$E543 -> 0 | G253: =Verdichtung!$E843 -> 0 | H253: =Verdichtung!$E1143 -> 0 | I253: =Verdichtung!$E1443 -> 0 | J253: =Verdichtung!$E1743 -> 0 | K253: =Verdichtung!$E2043 -> 0
D256: Summe A 3.3 | E256: =SUM(E237:E253) -> 0 | F256: =SUM(F237:F253) -> 0 | G256: 0 | H256: 0 | I256: 0 | J256: 0 | K256: 0
C262: A 3 | D262: Aufwand
C263: A 3.4 | D263: Kalkulatorische Kosten - Sonstige Finanzausgaben
C266: 68 | D266: Kalkulatorische Kosten *
C267: 68010 | D267: AfA Gebäude | E267: =Verdichtung!$E257 -> 0 | F267: =Verdichtung!$E557 -> 0 | G267: =Verdichtung!$E857 -> 0 | H267: =Verdichtung!$E1157 -> 0 | I267: =Verdichtung!$E1457 -> 0 | J267: =Verdichtung!$E1757 -> 0 | K267: =Verdichtung!$E2057 -> 0
C268: 68020 | D268: AfA Fahrzeuge | E268: =Verdichtung!$E258 -> 0 | F268: =Verdichtung!$E558 -> 0 | G268: =Verdichtung!$E858 -> 0 | H268: =Verdichtung!$E1158 -> 0 | I268: =Verdichtung!$E1458 -> 0 | J268: =Verdichtung!$E1758 -> 0 | K268: =Verdichtung!$E2058 -> 0
C269: 68030 | D269: AfA Ausrüstungen * | E269: =Verdichtung!$E259 -> 0 | F269: =Verdichtung!$E559 -> 0 | G269: =Verdichtung!$E859 -> 0 | H269: =Verdichtung!$E1159 -> 0 | I269: =Verdichtung!$E1459 -> 0 | J269: =Verdichtung!$E1759 -> 0 | K269: =Verdichtung!$E2059 -> 0
C270: 68040 | D270: AfA Med.-techn. Geräte | E270: =Verdichtung!$E260 -> 0 | F270: =Verdichtung!$E560 -> 0 | G270: =Verdichtung!$E860 -> 0 | H270: =Verdichtung!$E1160 -> 0 | I270: =Verdichtung!$E1460 -> 0 | J270: =Verdichtung!$E1760 -> 0 | K270: =Verdichtung!$E2060 -> 0
C271: 68500 | D271: Verzinsung des Anlagekapitals | E271: =Verdichtung!$E261 -> 0 | F271: =Verdichtung!$E561 -> 0 | G271: =Verdichtung!$E861 -> 0 | H271: =Verdichtung!$E1161 -> 0 | I271: =Verdichtung!$E1461 -> 0 | J271: =Verdichtung!$E1761 -> 0 | K271: =Verdichtung!$E2061 -> 0
C272: 68600 | D272: Kalkulatorische Mieten * | E272: =Verdichtung!$E262 -> 0 | F272: =Verdichtung!$E562 -> 0 | G272: =Verdichtung!$E862 -> 0 | H272: =Verdichtung!$E1162 -> 0 | I272: =Verdichtung!$E1462 -> 0 | J272: =Verdichtung!$E1762 -> 0 | K272: =Verdichtung!$E2062 -> 0
C275: 8 | D275: Sonstige Finanzausgaben
C276: 80000 | D276: Zinsausgaben * | E276: =Verdichtung!$E266 -> 0 | F276: =Verdichtung!$E566 -> 0 | G276: =Verdichtung!$E866 -> 0 | H276: =Verdichtung!$E1166 -> 0 | I276: =Verdichtung!$E1466 -> 0 | J276: =Verdichtung!$E1766 -> 0 | K276: =Verdichtung!$E2066 -> 0
C277: 89000 | D277: Einzelwertberichtigung zu Forderng. | E277: =Verdichtung!$E267 -> 0 | F277: =Verdichtung!$E567 -> 0 | G277: =Verdichtung!$E867 -> 0 | H277: =Verdichtung!$E1167 -> 0 | I277: =Verdichtung!$E1467 -> 0 | J277: =Verdichtung!$E1767 -> 0 | K277: =Verdichtung!$E2067 -> 0
D280: Summe A3.4 | E280: =SUM(E267:E277) -> 0 | F280: =SUM(F267:F277) -> 0 | G280: 0 | H280: 0 | I280: 0 | J280: 0 | K280: 0
C286: A 4 | D286: Ertragsausgleich
C287: A 4.1 | D287: Gebührenerlöse
D290: Gebührenerlöse
D291: Erlöse KTW-Pauschale
D292: Erlöse RTW-Pauschale
D293: Erlöse NEF-Pauschale
D294: Erlöse KM-Zuschlag
D295: Erstattungen für Notarzt
D298: Summe A 4.1 | F298: =SUM(F291:F295) -> 0
C313: C 1 | D313: Gesamtkostenermittlung
C316: C 2 | D316: Einnahmen
C317: C 2.1 | D317: Einnahmen aus Verwaltg. und Betrieb | E317: =E360 -> 0 | F317: =F360 -> 0 | G317: 0 | H317: 0 | I317: 0 | J317: 0 | K317: 0
C318: C 2.2 | D318: Sonstige Finanzeinnahmen | E318: =E374 -> 0 | F318: =F374 -> 0 | G318: 0 | H318: 0 | I318: 0 | J318: 0 | K318: 0
C319: C 2 | D319: Summe Einnahmen | E319: =E317+E318 -> 0 | F319: =F317+F318 -> 0 | G319: 0 | H319: 0 | I319: 0 | J319: 0 | K319: 0
C322: C 3 | D322: Aufwand
C323: C 3.1 | D323: Personalkosten | E323: =E447 -> 0 | F323: =F447 -> 0 | G323: 0 | H323: 0 | I323: 0 | J323: 0 | K323: 0
C324: C 3.2 | D324: Sachkosten | E324: =E516 -> 0 | F324: =F516 -> 0 | G324: 0 | H324: 0 | I324: 0 | J324: 0 | K324: 0
C325: C 3.3 | D325: Sonstige Kosten | E325: =E546 -> 0 | F325: =F546 -> 0 | G325: 0 | H325: 0 | I325: 0 | J325: 0 | K325: 0
C326: C 3.4 | D326: Kalkulatorische Kosten | E326: =E570 -> 0 | F326: =F570 -> 0 | G326: 0 | H326: 0 | I326: 0 | J326: 0 | K326: 0
C327: C 3 | D327: Summe Aufwand | E327: =SUM(E323:E326) -> 0 | F327: =SUM(F323:F326) -> 0 | G327: 0 | H327: 0 | I327: 0 | J327: 0 | K327: 0
D330: Gesamtkosten
D331: (C 3 - C 2) | E331: =E327-E319 -> 0 | F331: =F327-F319 -> 0 | G331: 0 | H331: 0 | I331: 0 | J331: 0 | K331: 0
C337: C 2 | D337: Einnahmen
C338: C 2.1 | D338: Einnahmen aus Verwaltung und Betrieb
C341: 11 | D341: Benutzungsgebühren
C342: 11100 | D342: Erlöse Leitstelle * | E342: =Verdichtung!$F42 -> 0 | F342: =Verdichtung!$F342 -> 0 | G342: =Verdichtung!$F642 -> 0 | H342: =Verdichtung!$F942 -> 0 | I342: =Verdichtung!$F1242 -> 0 | J342: =Verdichtung!$F1542 -> 0 | K342: =Verdichtung!$F1842 -> 0
C343: 11200 | D343: Erstattung für Sicherstellungen * | E343: =Verdichtung!$F43 -> 0 | F343: =Verdichtung!$F343 -> 0 | G343: =Verdichtung!$F643 -> 0 | H343: =Verdichtung!$F943 -> 0 | I343: =Verdichtung!$F1243 -> 0 | J343: =Verdichtung!$F1543 -> 0 | K343: =Verdichtung!$F1843 -> 0
... 499 more rows

Sheet Verdichtung
B2: • Hauptmenu •
C6: ="Dateneingabe - KLR Rettungsdienst für den RDB "&INDEX(ParameterDatei!C$85:C$102,ParameterDatei!B$107)&" - 01.01.-31.12."&Stammdaten_1!D$8 -> Dateneingabe - KLR Rettungsdienst für den RDB Havelland - 01.01.-31.12.2014
C7: ="Verdichtung Spalte 1 "&"Ansatzfähige Kosten - "&Stammdaten_1!D$8-2 -> Verdichtung Spalte 1 Ansatzfähige Kosten - 2012
C9: Bezeichnung | E9: Gesamt RD-Bereich | F9: Gesamt Verwaltung | G9: Gesamt Leistelle | H9: Gesamt RW | I9: =ParameterDatei!C$139 -> Verwaltung 1 | J9: =ParameterDatei!C$140 -> Verwaltung 2 | K9: =ParameterDatei!C$141 -> Verwaltung 3 | L9: =ParameterDatei!C$142 -> Verwaltung 4 | M9: =ParameterDatei!C$143 -> Verwaltung 5 | N9: =ParameterDatei!C$144 -> Leistelle | O9: ="RW "&ParameterDatei!B$145-6 -> RW 1 | P9: ="RW "&ParameterDatei!B$146-6 -> RW 2 | Q9: ="RW "&ParameterDatei!B$147-6 -> RW 3 | R9: ="RW "&ParameterDatei!B$148-6 -> RW 4 | S9: ="RW "&ParameterDatei!B$149-6 -> RW 5 | T9: ="RW "&ParameterDatei!B$150-6 -> RW 6 | U9: ="RW "&ParameterDatei!B$151-6 -> RW 7 | V9: ="RW "&ParameterDatei!B$152-6 -> RW 8 | W9: ="RW "&ParameterDatei!B$153-6 -> RW 9 | X9: ="RW "&ParameterDatei!B$154-6 -> RW 10 | Y9: ="RW "&ParameterDatei!B$155-6 -> RW 11 | Z9: ="RW "&ParameterDatei!B$156-6 -> RW 12 | AA9: ="RW "&ParameterDatei!B$157-6 -> RW 13 | AB9: ="RW "&ParameterDatei!B$158-6 -> RW 14 | AC9: ="RW "&ParameterDatei!B$159-6 -> RW 15 | AD9: ="RW "&ParameterDatei!B$160-6 -> RW 16 | AE9: ="RW "&ParameterDatei!B$161-6 -> RW 17 | AF9: ="RW "&ParameterDatei!B$162-6 -> RW 18 | AG9: ="RW "&ParameterDatei!B$163-6 -> RW 19 | AH9: ="RW "&ParameterDatei!B$164-6 -> RW 20
E10: 1 | F10: 2 | G10: 3 | H10: 4 | I10: 5 | J10: 6 | K10: 7 | L10: 8 | M10: 9 | N10: 10 | O10: 11 | P10: 12 | Q10: 13 | R10: 14 | S10: 15 | T10: 16 | U10: 17 | V10: 18 | W10: 19 | X10: 20 | Y10: 21 | Z10: 22 | AA10: 23 | AB10: 24 | AC10: 25 | AD10: 26 | AE10: 27 | AF10: 28 | AG10: 29 | AH10: 30
C13: C 1 | D13: Gesamtkostenermittlung
C16: C 2 | D16: Einnahmen
C17: C 2.1 | D17: Einnahmen aus Verwaltg. und Betrieb | E17: =E60 -> 0 | F17: =F60 -> 0 | G17: =G60 -> 0 | H17: =H60 -> 0 | I17: =I60 -> 0 | J17: =J60 -> 0 | K17: 0 | L17: 0 | M17: 0 | N17: 0 | O17: 0 | P17: 0 | Q17: 0 | R17: 0 | S17: 0 | T17: 0 | U17: 0 | V17: 0 | W17: 0 | X17: 0 | Y17: 0 | Z17: 0 | AA17: 0 | AB17: 0 | AC17: 0 | AD17: 0 | AE17: 0 | AF17: 0 | AG17: 0 | AH17: 0
C18: C 2.2 | D18: Sonstige Finanzeinnahmen | E18: =E74 -> 0 | F18: =F74 -> 0 | G18: =G74 -> 0 | H18: =H74 -> 0 | I18: =I74 -> 0 | J18: =J74 -> 0 | K18: 0 | L18: 0 | M18: 0 | N18: 0 | O18: 0 | P18: 0 | Q18: 0 | R18: 0 | S18: 0 | T18: 0 | U18: 0 | V18: 0 | W18: 0 | X18: 0 | Y18: 0 | Z18: 0 | AA18: 0 | AB18: 0 | AC18: 0 | AD18: 0 | AE18: 0 | AF18: 0 | AG18: 0 | AH18: 0
C19: C 2 | D19: Summe Einnahmen | E19: =E17+E18 -> 0 | F19: =F17+F18 -> 0 | G19: =G17+G18 -> 0 | H19: =H17+H18 -> 0 | I19: =I17+I18 -> 0 | J19: =J17+J18 -> 0 | K19: 0 | L19: 0 | M19: 0 | N19: 0 | O19: 0 | P19: 0 | Q19: 0 | R19: 0 | S19: 0 | T19: 0 | U19: 0 | V19: 0 | W19: 0 | X19: 0 | Y19: 0 | Z19: 0 | AA19: 0 | AB19: 0 | AC19: 0 | AD19: 0 | AE19: 0 | AF19: 0 | AG19: 0 | AH19: 0
C22: C 3 | D22: Aufwand
C23: C 3.1 | D23: Personalkosten | E23: =E147 -> 0 | F23: =F147 -> 0 | G23: =G147 -> 0 | H23: =H147 -> 0 | I23: =I147 -> 0 | J23: =J147 -> 0 | K23: 0 | L23: 0 | M23: 0 | N23: 0 | O23: 0 | P23: 0 | Q23: 0 | R23: 0 | S23: 0 | T23: 0 | U23: 0 | V23: 0 | W23: 0 | X23: 0 | Y23: 0 | Z23: 0 | AA23: 0 | AB23: 0 | AC23: 0 | AD23: 0 | AE23: 0 | AF23: 0 | AG23: 0 | AH23: 0
C24: C 3.2 | D24: Sachkosten | E24: =E216 -> 0 | F24: =F216 -> 0 | G24: =G216 -> 0 | H24: =H216 -> 0 | I24: =I216 -> 0 | J24: =J216 -> 0 | K24: 0 | L24: 0 | M24: 0 | N24: 0 | O24: 0 | P24: 0 | Q24: 0 | R24: 0 | S24: 0 | T24: 0 | U24: 0 | V24: 0 | W24: 0 | X24: 0 | Y24: 0 | Z24: 0 | AA24: 0 | AB24: 0 | AC24: 0 | AD24: 0 | AE24: 0 | AF24: 0 | AG24: 0 | AH24: 0
C25: C 3.3 | D25: Sonstige Kosten | E25: =E246 -> 0 | F25: =F246 -> 0 | G25: =G246 -> 0 | H25: =H246 -> 0 | I25: =I246 -> 0 | J25: =J246 -> 0 | K25: 0 | L25: 0 | M25: 0 | N25: 0 | O25: 0 | P25: 0 | Q25: 0 | R25: 0 | S25: 0 | T25: 0 | U25: 0 | V25: 0 | W25: 0 | X25: 0 | Y25: 0 | Z25: 0 | AA25: 0 | AB25: 0 | AC25: 0 | AD25: 0 | AE25: 0 | AF25: 0 | AG25: 0 | AH25: 0
C26: C 3.4 | D26: Kalkulatorische Kosten | E26: =E270 -> 0 | F26: =F270 -> 0 | G26: =G270 -> 0 | H26: =H270 -> 0 | I26: =I270 -> 0 | J26: =J270 -> 0 | K26: 0 | L26: 0 | M26: 0 | N26: 0 | O26: 0 | P26: 0 | Q26: 0 | R26: 0 | S26: 0 | T26: 0 | U26: 0 | V26: 0 | W26: 0 | X26: 0 | Y26: 0 | Z26: 0 | AA26: 0 | AB26: 0 | AC26: 0 | AD26: 0 | AE26: 0 | AF26: 0 | AG26: 0 | AH26: 0
C27: C 3 | D27: Summe Aufwand | E27: =SUM(E23:E26) -> 0 | F27: =SUM(F23:F26) -> 0 | G27: =SUM(G23:G26) -> 0 | H27: =SUM(H23:H26) -> 0 | I27: =SUM(I23:I26) -> 0 | J27: =SUM(J23:J26) -> 0 | K27: 0 | L27: 0 | M27: 0 | N27: 0 | O27: 0 | P27: 0 | Q27: 0 | R27: 0 | S27: 0 | T27: 0 | U27: 0 | V27: 0 | W27: 0 | X27: 0 | Y27: 0 | Z27: 0 | AA27: 0 | AB27: 0 | AC27: 0 | AD27: 0 | AE27: 0 | AF27: 0 | AG27: 0 | AH27: 0
D30: Gesamtkosten
D31: (C 3 - C 2) | E31: =E27-E19 -> 0 | F31: =F27-F19 -> 0 | G31: =G27-G19 -> 0 | H31: =H27-H19 -> 0 | I31: =I27-I19 -> 0 | J31: =J27-J19 -> 0 | K31: 0 | L31: 0 | M31: 0 | N31: 0 | O31: 0 | P31: 0 | Q31: 0 | R31: 0 | S31: 0 | T31: 0 | U31: 0 | V31: 0 | W31: 0 | X31: 0 | Y31: 0 | Z31: 0 | AA31: 0 | AB31: 0 | AC31: 0 | AD31: 0 | AE31: 0 | AF31: 0 | AG31: 0 | AH31: 0
C37: C 2 | D37: Einnahmen
C38: C 2.1 | D38: Einnahmen aus Verwaltung und Betrieb
C41: 11 | D41: Benutzungsgebühren
B42: x | C42: 11100 | D42: Erlöse Leitstelle * | E42: =SUM(I42:AH42) -> 0 | F42: =SUM(I42:M42) -> 0 | G42: =N42 -> 0 | H42: =SUM(O42:AH42) -> 0 | I42: =EN!$E$42 -> 0 | J42: =EN!$E$342 -> 0 | K42: =EN!$E$642 -> 0 | L42: =EN!$E$942 -> 0 | M42: =EN!$E$1242 -> 0 | N42: =EN!$E$1542 -> 0 | O42: =EN!$E$1842 -> 0 | P42: =EN!$E$2142 -> 0 | Q42: =EN!$E$2442 -> 0 | R42: =EN!$E$2742 -> 0 | S42: =EN!$E$3042 -> 0 | T42: =EN!$E$3342 -> 0 | U42: =EN!$E$3642 -> 0 | V42: =EN!$E$3942 -> 0 | W42: =EN!$E$4242 -> 0 | X42: =EN!$E$4542 -> 0 | Y42: =EN!$E$4842 -> 0 | Z42: =EN!$E$5142 -> 0 | AA42: =EN!$E$5442 -> 0 | AB42: =EN!$E$5742 -> 0 | AC42: =EN!$E$6042 -> 0 | AD42: =EN!$E$6342 -> 0 | AE42: =EN!$E$6642 -> 0 | AF42: =EN!$E$6942 -> 0 | AG42: =EN!$E$7242 -> 0 | AH42: =EN!$E$7542 -> 0
B43: x | C43: 11200 | D43: Erstattung für Sicherstellungen * | E43: =SUM(I43:AH43) -> 0 | F43: =SUM(I43:M43) -> 0 | G43: =N43 -> 0 | H43: =SUM(O43:AH43) -> 0 | I43: =EN!$E$43 -> 0 | J43: =EN!$E$343 -> 0 | K43: =EN!$E$643 -> 0 | L43: =EN!$E$943 -> 0 | M43: =EN!$E$1243 -> 0 | N43: =EN!$E$1543 -> 0 | O43: =EN!$E$1843 -> 0 | P43: =EN!$E$2143 -> 0 | Q43: =EN!$E$2443 -> 0 | R43: =EN!$E$2743 -> 0 | S43: =EN!$E$3043 -> 0 | T43: =EN!$E$3343 -> 0 | U43: =EN!$E$3643 -> 0 | V43: =EN!$E$3943 -> 0 | W43: =EN!$E$4243 -> 0 | X43: =EN!$E$4543 -> 0 | Y43: =EN!$E$4843 -> 0 | Z43: =EN!$E$5143 -> 0 | AA43: =EN!$E$5443 -> 0 | AB43: =EN!$E$5743 -> 0 | AC43: =EN!$E$6043 -> 0 | AD43: =EN!$E$6343 -> 0 | AE43: =EN!$E$6643 -> 0 | AF43: =EN!$E$6943 -> 0 | AG43: =EN!$E$7243 -> 0 | AH43: =EN!$E$7543 -> 0
B44: x | C44: 11300 | D44: Erlöse Sondertarife * | E44: =SUM(I44:AH44) -> 0 | F44: =SUM(I44:M44) -> 0 | G44: =N44 -> 0 | H44: =SUM(O44:AH44) -> 0 | I44: =EN!$E$44 -> 0 | J44: =EN!$E$344 -> 0 | K44: =EN!$E$644 -> 0 | L44: =EN!$E$944 -> 0 | M44: =EN!$E$1244 -> 0 | N44: =EN!$E$1544 -> 0 | O44: =EN!$E$1844 -> 0 | P44: =EN!$E$2144 -> 0 | Q44: =EN!$E$2444 -> 0 | R44: =EN!$E$2744 -> 0 | S44: =EN!$E$3044 -> 0 | T44: =EN!$E$3344 -> 0 | U44: =EN!$E$3644 -> 0 | V44: =EN!$E$3944 -> 0 | W44: =EN!$E$4244 -> 0 | X44: =EN!$E$4544 -> 0 | Y44: =EN!$E$4844 -> 0 | Z44: =EN!$E$5144 -> 0 | AA44: =EN!$E$5444 -> 0 | AB44: =EN!$E$5744 -> 0 | AC44: =EN!$E$6044 -> 0 | AD44: =EN!$E$6344 -> 0 | AE44: =EN!$E$6644 -> 0 | AF44: =EN!$E$6944 -> 0 | AG44: =EN!$E$7244 -> 0 | AH44: =EN!$E$7544 -> 0
C47: 13 | D47: Einnahmen aus Verkauf
B48: x | C48: 13100 | D48: Erträge aus Anlagenverkauf | E48: =SUM(I48:AH48) -> 0 | F48: =SUM(I48:M48) -> 0 | G48: =N48 -> 0 | H48: =SUM(O48:AH48) -> 0 | I48: =EN!$E$48 -> 0 | J48: =EN!$E$348 -> 0 | K48: =EN!$E$648 -> 0 | L48: =EN!$E$948 -> 0 | M48: =EN!$E$1248 -> 0 | N48: =EN!$E$1548 -> 0 | O48: =EN!$E$1848 -> 0 | P48: =EN!$E$2148 -> 0 | Q48: =EN!$E$2448 -> 0 | R48: =EN!$E$2748 -> 0 | S48: =EN!$E$3048 -> 0 | T48: =EN!$E$3348 -> 0 | U48: =EN!$E$3648 -> 0 | V48: =EN!$E$3948 -> 0 | W48: =EN!$E$4248 -> 0 | X48: =EN!$E$4548 -> 0 | Y48: =EN!$E$4848 -> 0 | Z48: =EN!$E$5148 -> 0 | AA48: =EN!$E$5448 -> 0 | AB48: =EN!$E$5748 -> 0 | AC48: =EN!$E$6048 -> 0 | AD48: =EN!$E$6348 -> 0 | AE48: =EN!$E$6648 -> 0 | AF48: =EN!$E$6948 -> 0 | AG48: =EN!$E$7248 -> 0 | AH48: =EN!$E$7548 -> 0
C51: 15 | D51: Sonstige Verwaltungseinnahmen
B52: x | C52: 15100 | D52: Sonstige Erlöse | E52: =SUM(I52:AH52) -> 0 | F52: =SUM(I52:M52) -> 0 | G52: =N52 -> 0 | H52: =SUM(O52:AH52) -> 0 | I52: =EN!$E$52 -> 0 | J52: =EN!$E$352 -> 0 | K52: =EN!$E$652 -> 0 | L52: =EN!$E$952 -> 0 | M52: =EN!$E$1252 -> 0 | N52: =EN!$E$1552 -> 0 | O52: =EN!$E$1852 -> 0 | P52: =EN!$E$2152 -> 0 | Q52: =EN!$E$2452 -> 0 | R52: =EN!$E$2752 -> 0 | S52: =EN!$E$3052 -> 0 | T52: =EN!$E$3352 -> 0 | U52: =EN!$E$3652 -> 0 | V52: =EN!$E$3952 -> 0 | W52: =EN!$E$4252 -> 0 | X52: =EN!$E$4552 -> 0 | Y52: =EN!$E$4852 -> 0 | Z52: =EN!$E$5152 -> 0 | AA52: =EN!$E$5452 -> 0 | AB52: =EN!$E$5752 -> 0 | AC52: =EN!$E$6052 -> 0 | AD52: =EN!$E$6352 -> 0 | AE52: =EN!$E$6652 -> 0 | AF52: =EN!$E$6952 -> 0 | AG52: =EN!$E$7252 -> 0 | AH52: =EN!$E$7552 -> 0
C55: 17 | D55: Zuweisungen und Zuschüsse
B56: x | C56: 17100 | D56: Spenden, Zuschüsse | E56: =SUM(I56:AH56) -> 0 | F56: =SUM(I56:M56) -> 0 | G56: =N56 -> 0 | H56: =SUM(O56:AH56) -> 0 | I56: =EN!$E$56 -> 0 | J56: =EN!$E$356 -> 0 | K56: =EN!$E$656 -> 0 | L56: =EN!$E$956 -> 0 | M56: =EN!$E$1256 -> 0 | N56: =EN!$E$1556 -> 0 | O56: =EN!$E$1856 -> 0 | P56: =EN!$E$2156 -> 0 | Q56: =EN!$E$2456 -> 0 | R56: =EN!$E$2756 -> 0 | S56: =EN!$E$3056 -> 0 | T56: =EN!$E$3356 -> 0 | U56: =EN!$E$3656 -> 0 | V56: =EN!$E$3956 -> 0 | W56: =EN!$E$4256 -> 0 | X56: =EN!$E$4556 -> 0 | Y56: =EN!$E$4856 -> 0 | Z56: =EN!$E$5156 -> 0 | AA56: =EN!$E$5456 -> 0 | AB56: =EN!$E$5756 -> 0 | AC56: =EN!$E$6056 -> 0 | AD56: =EN!$E$6356 -> 0 | AE56: =EN!$E$6656 -> 0 | AF56: =EN!$E$6956 -> 0 | AG56: =EN!$E$7256 -> 0 | AH56: =EN!$E$7556 -> 0
B57: x | C57: 17400 | D57: Erstattung für ZDL | E57: =SUM(I57:AH57) -> 0 | F57: =SUM(I57:M57) -> 0 | G57: =N57 -> 0 | H57: =SUM(O57:AH57) -> 0 | I57: =EN!$E$57 -> 0 | J57: =EN!$E$357 -> 0 | K57: =EN!$E$657 -> 0 | L57: =EN!$E$957 -> 0 | M57: =EN!$E$1257 -> 0 | N57: =EN!$E$1557 -> 0 | O57: =EN!$E$1857 -> 0 | P57: =EN!$E$2157 -> 0 | Q57: =EN!$E$2457 -> 0 | R57: =EN!$E$2757 -> 0 | S57: =EN!$E$3057 -> 0 | T57: =EN!$E$3357 -> 0 | U57: =EN!$E$3657 -> 0 | V57: =EN!$E$3957 -> 0 | W57: =EN!$E$4257 -> 0 | X57: =EN!$E$4557 -> 0 | Y57: =EN!$E$4857 -> 0 | Z57: =EN!$E$5157 -> 0 | AA57: =EN!$E$5457 -> 0 | AB57: =EN!$E$5757 -> 0 | AC57: =EN!$E$6057 -> 0 | AD57: =EN!$E$6357 -> 0 | AE57: =EN!$E$6657 -> 0 | AF57: =EN!$E$6957 -> 0 | AG57: =EN!$E$7257 -> 0 | AH57: =EN!$E$7557 -> 0
D60: Summe C 2.1 | E60: =SUM(E42:E57) -> 0 | F60: =SUM(F42:F57) -> 0 | G60: 0 | H60: 0 | I60: 0 | J60: 0 | K60: 0 | L60: 0 | M60: 0 | N60: 0 | O60: 0 | P60: 0 | Q60: 0 | R60: 0 | S60: 0 | T60: 0 | U60: 0 | V60: 0 | W60: 0 | X60: 0 | Y60: 0 | Z60: 0 | AA60: 0 | AB60: 0 | AC60: 0 | AD60: 0 | AE60: 0 | AF60: 0 | AG60: 0 | AH60: 0
C66: C 2 | D66: Einnahmen
C67: C 2.2 | D67: Sonstige Finanzeinnahmen
C70: 20 | D70: Zinseinnahmen
B71: x | C71: 20100 | D71: Zinserlöse | E71: =SUM(I71:AH71) -> 0 | F71: =SUM(I71:M71) -> 0 | G71: =N71 -> 0 | H71: =SUM(O71:AH71) -> 0 | I71: =EN!$E$71 -> 0 | J71: =EN!$E$371 -> 0 | K71: =EN!$E$671 -> 0 | L71: =EN!$E$971 -> 0 | M71: =EN!$E$1271 -> 0 | N71: =EN!$E$1571 -> 0 | O71: =EN!$E$1871 -> 0 | P71: =EN!$E$2171 -> 0 | Q71: =EN!$E$2471 -> 0 | R71: =EN!$E$2771 -> 0 | S71: =EN!$E$3071 -> 0 | T71: =EN!$E$3371 -> 0 | U71: =EN!$E$3671 -> 0 | V71: =EN!$E$3971 -> 0 | W71: =EN!$E$4271 -> 0 | X71: =EN!$E$4571 -> 0 | Y71: =EN!$E$4871 -> 0 | Z71: =EN!$E$5171 -> 0 | AA71: =EN!$E$5471 -> 0 | AB71: =EN!$E$5771 -> 0 | AC71: =EN!$E$6071 -> 0 | AD71: =EN!$E$6371 -> 0 | AE71: =EN!$E$6671 -> 0 | AF71: =EN!$E$6971 -> 0 | AG71: =EN!$E$7271 -> 0 | AH71: =EN!$E$7571 -> 0
D74: Summe C 2.2 | E74: =E71 -> 0 | F74: =F71 -> 0 | G74: 0 | H74: 0 | I74: 0 | J74: 0 | K74: 0 | L74: 0 | M74: 0 | N74: 0 | O74: 0 | P74: 0 | Q74: 0 | R74: 0 | S74: 0 | T74: 0 | U74: 0 | V74: 0 | W74: 0 | X74: 0 | Y74: 0 | Z74: 0 | AA74: 0 | AB74: 0 | AC74: 0 | AD74: 0 | AE74: 0 | AF74: 0 | AG74: 0 | AH74: 0
C80: C 3 | D80: Aufwand
C81: C 3.1 | D81: Personalausgaben
C84: 40 | D84: Aufwendungen ehrenamtl. Tätigkeit
B85: x | C85: 40000 | D85: Aufwendungen ehrenamtl. Tätigkeit | E85: =SUM(I85:AH85) -> 0 | F85: =SUM(I85:M85) -> 0 | G85: =N85 -> 0 | H85: =SUM(O85:AH85) -> 0 | I85: =EN!$E$85 -> 0 | J85: =EN!$E$385 -> 0 | K85: =EN!$E$685 -> 0 | L85: =EN!$E$985 -> 0 | M85: =EN!$E$1285 -> 0 | N85: =EN!$E$1585 -> 0 | O85: =EN!$E$1885 -> 0 | P85: =EN!$E$2185 -> 0 | Q85: =EN!$E$2485 -> 0 | R85: =EN!$E$2785 -> 0 | S85: =EN!$E$3085 -> 0 | T85: =EN!$E$3385 -> 0 | U85: =EN!$E$3685 -> 0 | V85: =EN!$E$3985 -> 0 | W85: =EN!$E$4285 -> 0 | X85: =EN!$E$4585 -> 0 | Y85: =EN!$E$4885 -> 0 | Z85: =EN!$E$5185 -> 0 | AA85: =EN!$E$5485 -> 0 | AB85: =EN!$E$5785 -> 0 | AC85: =EN!$E$6085 -> 0 | AD85: =EN!$E$6385 -> 0 | AE85: =EN!$E$6685 -> 0 | AF85: =EN!$E$6985 -> 0 | AG85: =EN!$E$7285 -> 0 | AH85: =EN!$E$7585 -> 0
C88: 41 | D88: Dienstbezüge und dergl.
B89: x | C89: 41000 | D89: Beamte | E89: =SUM(I89:AH89) -> 0 | F89: =SUM(I89:M89) -> 0 | G89: =N89 -> 0 | H89: =SUM(O89:AH89) -> 0 | I89: =EN!$E$89 -> 0 | J89: =EN!$E$389 -> 0 | K89: =EN!$E$689 -> 0 | L89: =EN!$E$989 -> 0 | M89: =EN!$E$1289 -> 0 | N89: =EN!$E$1589 -> 0 | O89: =EN!$E$1889 -> 0 | P89: =EN!$E$2189 -> 0 | Q89: =EN!$E$2489 -> 0 | R89: =EN!$E$2789 -> 0 | S89: =EN!$E$3089 -> 0 | T89: =EN!$E$3389 -> 0 | U89: =EN!$E$3689 -> 0 | V89: =EN!$E$3989 -> 0 | W89: =EN!$E$4289 -> 0 | X89: =EN!$E$4589 -> 0 | Y89: =EN!$E$4889 -> 0 | Z89: =EN!$E$5189 -> 0 | AA89: =EN!$E$5489 -> 0 | AB89: =EN!$E$5789 -> 0 | AC89: =EN!$E$6089 -> 0 | AD89: =EN!$E$6389 -> 0 | AE89: =EN!$E$6689 -> 0 | AF89: =EN!$E$6989 -> 0 | AG89: =EN!$E$7289 -> 0 | AH89: =EN!$E$7589 -> 0
B90: x | C90: 41400 | D90: Angestellte | E90: =SUM(I90:AH90) -> 0 | F90: =SUM(I90:M90) -> 0 | G90: =N90 -> 0 | H90: =SUM(O90:AH90) -> 0 | I90: =EN!$E$90 -> 0 | J90: =EN!$E$390 -> 0 | K90: =EN!$E$690 -> 0 | L90: =EN!$E$990 -> 0 | M90: =EN!$E$1290 -> 0 | N90: =EN!$E$1590 -> 0 | O90: =EN!$E$1890 -> 0 | P90: =EN!$E$2190 -> 0 | Q90: =EN!$E$2490 -> 0 | R90: =EN!$E$2790 -> 0 | S90: =EN!$E$3090 -> 0 | T90: =EN!$E$3390 -> 0 | U90: =EN!$E$3690 -> 0 | V90: =EN!$E$3990 -> 0 | W90: =EN!$E$4290 -> 0 | X90: =EN!$E$4590 -> 0 | Y90: =EN!$E$4890 -> 0 | Z90: =EN!$E$5190 -> 0 | AA90: =EN!$E$5490 -> 0 | AB90: =EN!$E$5790 -> 0 | AC90: =EN!$E$6090 -> 0 | AD90: =EN!$E$6390 -> 0 | AE90: =EN!$E$6690 -> 0 | AF90: =EN!$E$6990 -> 0 | AG90: =EN!$E$7290 -> 0 | AH90: =EN!$E$7590 -> 0
B91: x | C91: 41500 | D91: Arbeiter | E91: =SUM(I91:AH91) -> 0 | F91: =SUM(I91:M91) -> 0 | G91: =N91 -> 0 | H91: =SUM(O91:AH91) -> 0 | I91: =EN!$E$91 -> 0 | J91: =EN!$E$391 -> 0 | K91: =EN!$E$691 -> 0 | L91: =EN!$E$991 -> 0 | M91: =EN!$E$1291 -> 0 | N91: =EN!$E$1591 -> 0 | O91: =EN!$E$1891 -> 0 | P91: =EN!$E$2191 -> 0 | Q91: =EN!$E$2491 -> 0 | R91: =EN!$E$2791 -> 0 | S91: =EN!$E$3091 -> 0 | T91: =EN!$E$3391 -> 0 | U91: =EN!$E$3691 -> 0 | V91: =EN!$E$3991 -> 0 | W91: =EN!$E$4291 -> 0 | X91: =EN!$E$4591 -> 0 | Y91: =EN!$E$4891 -> 0 | Z91: =EN!$E$5191 -> 0 | AA91: =EN!$E$5491 -> 0 | AB91: =EN!$E$5791 -> 0 | AC91: =EN!$E$6091 -> 0 | AD91: =EN!$E$6391 -> 0 | AE91: =EN!$E$6691 -> 0 | AF91: =EN!$E$6991 -> 0 | AG91: =EN!$E$7291 -> 0 | AH91: =EN!$E$7591 -> 0
B92: x | C92: 41600 | D92: Beschäftg.-entgelte/Aufwandsentsch. | E92: =SUM(I92:AH92) -> 0 | F92: =SUM(I92:M92) -> 0 | G92: =N92 -> 0 | H92: =SUM(O92:AH92) -> 0 | I92: =EN!$E$92 -> 0 | J92: =EN!$E$392 -> 0 | K92: =EN!$E$692 -> 0 | L92: =EN!$E$992 -> 0 | M92: =EN!$E$1292 -> 0 | N92: =EN!$E$1592 -> 0 | O92: =EN!$E$1892 -> 0 | P92: =EN!$E$2192 -> 0 | Q92: =EN!$E$2492 -> 0 | R92: =EN!$E$2792 -> 0 | S92: =EN!$E$3092 -> 0 | T92: =EN!$E$3392 -> 0 | U92: =EN!$E$3692 -> 0 | V92: =EN!$E$3992 -> 0 | W92: =EN!$E$4292 -> 0 | X92: =EN!$E$4592 -> 0 | Y92: =EN!$E$4892 -> 0 | Z92: =EN!$E$5192 -> 0 | AA92: =EN!$E$5492 -> 0 | AB92: =EN!$E$5792 -> 0 | AC92: =EN!$E$6092 -> 0 | AD92: =EN!$E$6392 -> 0 | AE92: =EN!$E$6692 -> 0 | AF92: =EN!$E$6992 -> 0 | AG92: =EN!$E$7292 -> 0 | AH92: =EN!$E$7592 -> 0
C95: 4141 | D95: Notarztvergütungen
B96: x | C96: 41410 | D96: Ärztlicher Leiter Rettungsdienst | E96: =SUM(I96:AH96) -> 0 | F96: =SUM(I96:M96) -> 0 | G96: =N96 -> 0 | H96: =SUM(O96:AH96) -> 0 | I96: =EN!$E$96 -> 0 | J96: =EN!$E$396 -> 0 | K96: =EN!$E$696 -> 0 | L96: =EN!$E$996 -> 0 | M96: =EN!$E$1296 -> 0 | N96: =EN!$E$1596 -> 0 | O96: =EN!$E$1896 -> 0 | P96: =EN!$E$2196 -> 0 | Q96: =EN!$E$2496 -> 0 | R96: =EN!$E$2796 -> 0 | S96: =EN!$E$3096 -> 0 | T96: =EN!$E$3396 -> 0 | U96: =EN!$E$3696 -> 0 | V96: =EN!$E$3996 -> 0 | W96: =EN!$E$4296 -> 0 | X96: =EN!$E$4596 -> 0 | Y96: =EN!$E$4896 -> 0 | Z96: =EN!$E$5196 -> 0 | AA96: =EN!$E$5496 -> 0 | AB96: =EN!$E$5796 -> 0 | AC96: =EN!$E$6096 -> 0 | AD96: =EN!$E$6396 -> 0 | AE96: =EN!$E$6696 -> 0 | AF96: =EN!$E$6996 -> 0 | AG96: =EN!$E$7296 -> 0 | AH96: =EN!$E$7596 -> 0
B97: x | C97: 41411 | D97: angestellte Notärzte * | E97: =SUM(I97:AH97) -> 0 | F97: =SUM(I97:M97) -> 0 | G97: =N97 -> 0 | H97: =SUM(O97:AH97) -> 0 | I97: =EN!$E$97 -> 0 | J97: =EN!$E$397 -> 0 | K97: =EN!$E$697 -> 0 | L97: =EN!$E$997 -> 0 | M97: =EN!$E$1297 -> 0 | N97: =EN!$E$1597 -> 0 | O97: =EN!$E$1897 -> 0 | P97: =EN!$E$2197 -> 0 | Q97: =EN!$E$2497 -> 0 | R97: =EN!$E$2797 -> 0 | S97: =EN!$E$3097 -> 0 | T97: =EN!$E$3397 -> 0 | U97: =EN!$E$3697 -> 0 | V97: =EN!$E$3997 -> 0 | W97: =EN!$E$4297 -> 0 | X97: =EN!$E$4597 -> 0 | Y97: =EN!$E$4897 -> 0 | Z97: =EN!$E$5197 -> 0 | AA97: =EN!$E$5497 -> 0 | AB97: =EN!$E$5797 -> 0 | AC97: =EN!$E$6097 -> 0 | AD97: =EN!$E$6397 -> 0 | AE97: =EN!$E$6697 -> 0 | AF97: =EN!$E$6997 -> 0 | AG97: =EN!$E$7297 -> 0 | AH97: =EN!$E$7597 -> 0
B98: x | C98: 41412 | D98: Krankenhausärzte * | E98: =SUM(I98:AH98) -> 0 | F98: =SUM(I98:M98) -> 0 | G98: =N98 -> 0 | H98: =SUM(O98:AH98) -> 0 | I98: =EN!$E$98 -> 0 | J98: =EN!$E$398 -> 0 | K98: =EN!$E$698 -> 0 | L98: =EN!$E$998 -> 0 | M98: =EN!$E$1298 -> 0 | N98: =EN!$E$1598 -> 0 | O98: =EN!$E$1898 -> 0 | P98: =EN!$E$2198 -> 0 | Q98: =EN!$E$2498 -> 0 | R98: =EN!$E$2798 -> 0 | S98: =EN!$E$3098 -> 0 | T98: =EN!$E$3398 -> 0 | U98: =EN!$E$3698 -> 0 | V98: =EN!$E$3998 -> 0 | W98: =EN!$E$4298 -> 0 | X98: =EN!$E$4598 -> 0 | Y98: =EN!$E$4898 -> 0 | Z98: =EN!$E$5198 -> 0 | AA98: =EN!$E$5498 -> 0 | AB98: =EN!$E$5798 -> 0 | AC98: =EN!$E$6098 -> 0 | AD98: =EN!$E$6398 -> 0 | AE98: =EN!$E$6698 -> 0 | AF98: =EN!$E$6998 -> 0 | AG98: =EN!$E$7298 -> 0 | AH98: =EN!$E$7598 -> 0
B99: x | C99: 41413 | D99: niedergel. Ärzte/Vertragsärzte * | E99: =SUM(I99:AH99) -> 0 | F99: =SUM(I99:M99) -> 0 | G99: =N99 -> 0 | H99: =SUM(O99:AH99) -> 0 | I99: =EN!$E$99 -> 0 | J99: =EN!$E$399 -> 0 | K99: =EN!$E$699 -> 0 | L99: =EN!$E$999 -> 0 | M99: =EN!$E$1299 -> 0 | N99: =EN!$E$1599 -> 0 | O99: =EN!$E$1899 -> 0 | P99: =EN!$E$2199 -> 0 | Q99: =EN!$E$2499 -> 0 | R99: =EN!$E$2799 -> 0 | S99: =EN!$E$3099 -> 0 | T99: =EN!$E$3399 -> 0 | U99: =EN!$E$3699 -> 0 | V99: =EN!$E$3999 -> 0 | W99: =EN!$E$4299 -> 0 | X99: =EN!$E$4599 -> 0 | Y99: =EN!$E$4899 -> 0 | Z99: =EN!$E$5199 -> 0 | AA99: =EN!$E$5499 -> 0 | AB99: =EN!$E$5799 -> 0 | AC99: =EN!$E$6099 -> 0 | AD99: =EN!$E$6399 -> 0 | AE99: =EN!$E$6699 -> 0 | AF99: =EN!$E$6999 -> 0 | AG99: =EN!$E$7299 -> 0 | AH99: =EN!$E$7599 -> 0
B100: x | C100: 41414 | D100: Notärzte in Ausbildung | E100: =SUM(I100:AH100) -> 0 | F100: =SUM(I100:M100) -> 0 | G100: =N100 -> 0 | H100: =SUM(O100:AH100) -> 0 | I100: =EN!$E$100 -> 0 | J100: =EN!$E$400 -> 0 | K100: =EN!$E$700 -> 0 | L100: =EN!$E$1000 -> 0 | M100: =EN!$E$1300 -> 0 | N100: =EN!$E$1600 -> 0 | O100: =EN!$E$1900 -> 0 | P100: =EN!$E$2200 -> 0 | Q100: =EN!$E$2500 -> 0 | R100: =EN!$E$2800 -> 0 | S100: =EN!$E$3100 -> 0 | T100: =EN!$E$3400 -> 0 | U100: =EN!$E$3700 -> 0 | V100: =EN!$E$4000 -> 0 | W100: =EN!$E$4300 -> 0 | X100: =EN!$E$4600 -> 0 | Y100: =EN!$E$4900 -> 0 | Z100: =EN!$E$5200 -> 0 | AA100: =EN!$E$5500 -> 0 | AB100: =EN!$E$5800 -> 0 | AC100: =EN!$E$6100 -> 0 | AD100: =EN!$E$6400 -> 0 | AE100: =EN!$E$6700 -> 0 | AF100: =EN!$E$7000 -> 0 | AG100: =EN!$E$7300 -> 0 | AH100: =EN!$E$7600 -> 0
C103: 418 | D103: Zuschläge / Zulagen *
B104: x | C104: 41810 | D104: Zuschläge Sa/So/Fei/Nachtzuschlag | E104: =SUM(I104:AH104) -> 0 | F104: =SUM(I104:M104) -> 0 | G104: =N104 -> 0 | H104: =SUM(O104:AH104) -> 0 | I104: =EN!$E$104 -> 0 | J104: =EN!$E$404 -> 0 | K104: =EN!$E$704 -> 0 | L104: =EN!$E$1004 -> 0 | M104: =EN!$E$1304 -> 0 | N104: =EN!$E$1604 -> 0 | O104: =EN!$E$1904 -> 0 | P104: =EN!$E$2204 -> 0 | Q104: =EN!$E$2504 -> 0 | R104: =EN!$E$2804 -> 0 | S104: =EN!$E$3104 -> 0 | T104: =EN!$E$3404 -> 0 | U104: =EN!$E$3704 -> 0 | V104: =EN!$E$4004 -> 0 | W104: =EN!$E$4304 -> 0 | X104: =EN!$E$4604 -> 0 | Y104: =EN!$E$4904 -> 0 | Z104: =EN!$E$5204 -> 0 | AA104: =EN!$E$5504 -> 0 | AB104: =EN!$E$5804 -> 0 | AC104: =EN!$E$6104 -> 0 | AD104: =EN!$E$6404 -> 0 | AE104: =EN!$E$6704 -> 0 | AF104: =EN!$E$7004 -> 0 | AG104: =EN!$E$7304 -> 0 | AH104: =EN!$E$7604 -> 0
B105: x | C105: 41820 | D105: Wechselschicht/Schichtzulage | E105: 0 | F105: 0 | G105: 0 | H105: 0 | I105: =EN!$E$105 -> 0 | J105: =EN!$E$405 -> 0 | K105: =EN!$E$705 -> 0 | L105: =EN!$E$1005 -> 0 | M105: =EN!$E$1305 -> 0 | N105: =EN!$E$1605 -> 0 | O105: =EN!$E$1905 -> 0 | P105: =EN!$E$2205 -> 0 | Q105: =EN!$E$2505 -> 0 | R105: =EN!$E$2805 -> 0 | S105: =EN!$E$3105 -> 0 | T105: =EN!$E$3405 -> 0 | U105: =EN!$E$3705 -> 0 | V105: =EN!$E$4005 -> 0 | W105: =EN!$E$4305 -> 0 | X105: =EN!$E$4605 -> 0 | Y105: =EN!$E$4905 -> 0 | Z105: =EN!$E$5205 -> 0 | AA105: =EN!$E$5505 -> 0 | AB105: =EN!$E$5805 -> 0 | AC105: =EN!$E$6105 -> 0 | AD105: =EN!$E$6405 -> 0 | AE105: =EN!$E$6705 -> 0 | AF105: =EN!$E$7005 -> 0 | AG105: =EN!$E$7305 -> 0 | AH105: =EN!$E$7605 -> 0
B106: x | C106: 41830 | D106: Verpflegungsmehraufwand | E106: 0 | F106: 0 | G106: 0 | H106: 0 | I106: =EN!$E$106 -> 0 | J106: =EN!$E$406 -> 0 | K106: =EN!$E$706 -> 0 | L106: =EN!$E$1006 -> 0 | M106: =EN!$E$1306 -> 0 | N106: =EN!$E$1606 -> 0 | O106: =EN!$E$1906 -> 0 | P106: =EN!$E$2206 -> 0 | Q106: =EN!$E$2506 -> 0 | R106: =EN!$E$2806 -> 0 | S106: =EN!$E$3106 -> 0 | T106: =EN!$E$3406 -> 0 | U106: =EN!$E$3706 -> 0 | V106: =EN!$E$4006 -> 0 | W106: =EN!$E$4306 -> 0 | X106: =EN!$E$4606 -> 0 | Y106: =EN!$E$4906 -> 0 | Z106: =EN!$E$5206 -> 0 | AA106: =EN!$E$5506 -> 0 | AB106: =EN!$E$5806 -> 0 | AC106: =EN!$E$6106 -> 0 | AD106: =EN!$E$6406 -> 0 | AE106: =EN!$E$6706 -> 0 | AF106: =EN!$E$7006 -> 0 | AG106: =EN!$E$7306 -> 0 | AH106: =EN!$E$7606 -> 0
B107: x | C107: 41840 | D107: Überstundenvergütung | E107: 0 | F107: 0 | G107: 0 | H107: 0 | I107: =EN!$E$107 -> 0 | J107: =EN!$E$407 -> 0 | K107: =EN!$E$707 -> 0 | L107: =EN!$E$1007 -> 0 | M107: =EN!$E$1307 -> 0 | N107: =EN!$E$1607 -> 0 | O107: =EN!$E$1907 -> 0 | P107: =EN!$E$2207 -> 0 | Q107: =EN!$E$2507 -> 0 | R107: =EN!$E$2807 -> 0 | S107: =EN!$E$3107 -> 0 | T107: =EN!$E$3407 -> 0 | U107: =EN!$E$3707 -> 0 | V107: =EN!$E$4007 -> 0 | W107: =EN!$E$4307 -> 0 | X107: =EN!$E$4607 -> 0 | Y107: =EN!$E$4907 -> 0 | Z107: =EN!$E$5207 -> 0 | AA107: =EN!$E$5507 -> 0 | AB107: =EN!$E$5807 -> 0 | AC107: =EN!$E$6107 -> 0 | AD107: =EN!$E$6407 -> 0 | AE107: =EN!$E$6707 -> 0 | AF107: =EN!$E$7007 -> 0 | AG107: =EN!$E$7307 -> 0 | AH107: =EN!$E$7607 -> 0
B108: x | C108: 41850 | D108: Bereitschaftsdienst/ Rufbereitschaft | E108: 0 | F108: 0 | G108: 0 | H108: 0 | I108: =EN!$E$108 -> 0 | J108: =EN!$E$408 -> 0 | K108: =EN!$E$708 -> 0 | L108: =EN!$E$1008 -> 0 | M108: =EN!$E$1308 -> 0 | N108: =EN!$E$1608 -> 0 | O108: =EN!$E$1908 -> 0 | P108: =EN!$E$2208 -> 0 | Q108: =EN!$E$2508 -> 0 | R108: =EN!$E$2808 -> 0 | S108: =EN!$E$3108 -> 0 | T108: =EN!$E$3408 -> 0 | U108: =EN!$E$3708 -> 0 | V108: =EN!$E$4008 -> 0 | W108: =EN!$E$4308 -> 0 | X108: =EN!$E$4608 -> 0 | Y108: =EN!$E$4908 -> 0 | Z108: =EN!$E$5208 -> 0 | AA108: =EN!$E$5508 -> 0 | AB108: =EN!$E$5808 -> 0 | AC108: =EN!$E$6108 -> 0 | AD108: =EN!$E$6408 -> 0 | AE108: =EN!$E$6708 -> 0 | AF108: =EN!$E$7008 -> 0 | AG108: =EN!$E$7308 -> 0 | AH108: =EN!$E$7608 -> 0
B109: x | C109: 41860 | D109: Leitende Notärzte | E109: 0 | F109: 0 | G109: 0 | H109: 0 | I109: =EN!$E$109 -> 0 | J109: =EN!$E$409 -> 0 | K109: =EN!$E$709 -> 0 | L109: =EN!$E$1009 -> 0 | M109: =EN!$E$1309 -> 0 | N109: =EN!$E$1609 -> 0 | O109: =EN!$E$1909 -> 0 | P109: =EN!$E$2209 -> 0 | Q109: =EN!$E$2509 -> 0 | R109: =EN!$E$2809 -> 0 | S109: =EN!$E$3109 -> 0 | T109: =EN!$E$3409 -> 0 | U109: =EN!$E$3709 -> 0 | V109: =EN!$E$4009 -> 0 | W109: =EN!$E$4309 -> 0 | X109: =EN!$E$4609 -> 0 | Y109: =EN!$E$4909 -> 0 | Z109: =EN!$E$5209 -> 0 | AA109: =EN!$E$5509 -> 0 | AB109: =EN!$E$5809 -> 0 | AC109: =EN!$E$6109 -> 0 | AD109: =EN!$E$6409 -> 0 | AE109: =EN!$E$6709 -> 0 | AF109: =EN!$E$7009 -> 0 | AG109: =EN!$E$7309 -> 0 | AH109: =EN!$E$7609 -> 0
B110: x | C110: 41870 | D110: Sonstige Zulagen * | E110: 0 | F110: 0 | G110: 0 | H110: 0 | I110: =EN!$E$110 -> 0 | J110: =EN!$E$410 -> 0 | K110: =EN!$E$710 -> 0 | L110: =EN!$E$1010 -> 0 | M110: =EN!$E$1310 -> 0 | N110: =EN!$E$1610 -> 0 | O110: =EN!$E$1910 -> 0 | P110: =EN!$E$2210 -> 0 | Q110: =EN!$E$2510 -> 0 | R110: =EN!$E$2810 -> 0 | S110: =EN!$E$3110 -> 0 | T110: =EN!$E$3410 -> 0 | U110: =EN!$E$3710 -> 0 | V110: =EN!$E$4010 -> 0 | W110: =EN!$E$4310 -> 0 | X110: =EN!$E$4610 -> 0 | Y110: =EN!$E$4910 -> 0 | Z110: =EN!$E$5210 -> 0 | AA110: =EN!$E$5510 -> 0 | AB110: =EN!$E$5810 -> 0 | AC110: =EN!$E$6110 -> 0 | AD110: =EN!$E$6410 -> 0 | AE110: =EN!$E$6710 -> 0 | AF110: =EN!$E$7010 -> 0 | AG110: =EN!$E$7310 -> 0 | AH110: =EN!$E$7610 -> 0
C113: 42 | D113: Versorgungsbezüge u. dgl. *
B114: x | C114: 42000 | D114: Beamte | E114: =SUM(I114:AH114) -> 0 | F114: =SUM(I114:M114) -> 0 | G114: =N114 -> 0 | H114: =SUM(O114:AH114) -> 0 | I114: =EN!$E$114 -> 0 | J114: =EN!$E$414 -> 0 | K114: =EN!$E$714 -> 0 | L114: =EN!$E$1014 -> 0 | M114: =EN!$E$1314 -> 0 | N114: =EN!$E$1614 -> 0 | O114: =EN!$E$1914 -> 0 | P114: =EN!$E$2214 -> 0 | Q114: =EN!$E$2514 -> 0 | R114: =EN!$E$2814 -> 0 | S114: =EN!$E$3114 -> 0 | T114: =EN!$E$3414 -> 0 | U114: =EN!$E$3714 -> 0 | V114: =EN!$E$4014 -> 0 | W114: =EN!$E$4314 -> 0 | X114: =EN!$E$4614 -> 0 | Y114: =EN!$E$4914 -> 0 | Z114: =EN!$E$5214 -> 0 | AA114: =EN!$E$5514 -> 0 | AB114: =EN!$E$5814 -> 0 | AC114: =EN!$E$6114 -> 0 | AD114: =EN!$E$6414 -> 0 | AE114: =EN!$E$6714 -> 0 | AF114: =EN!$E$7014 -> 0 | AG114: =EN!$E$7314 -> 0 | AH114: =EN!$E$7614 -> 0
B115: x | C115: 42400 | D115: Angestellte | E115: =SUM(I115:AH115) -> 0 | F115: =SUM(I115:M115) -> 0 | G115: =N115 -> 0 | H115: =SUM(O115:AH115) -> 0 | I115: =EN!$E$115 -> 0 | J115: =EN!$E$415 -> 0 | K115: =EN!$E$715 -> 0 | L115: =EN!$E$1015 -> 0 | M115: =EN!$E$1315 -> 0 | N115: =EN!$E$1615 -> 0 | O115: =EN!$E$1915 -> 0 | P115: =EN!$E$2215 -> 0 | Q115: =EN!$E$2515 -> 0 | R115: =EN!$E$2815 -> 0 | S115: =EN!$E$3115 -> 0 | T115: =EN!$E$3415 -> 0 | U115: =EN!$E$3715 -> 0 | V115: =EN!$E$4015 -> 0 | W115: =EN!$E$4315 -> 0 | X115: =EN!$E$4615 -> 0 | Y115: =EN!$E$4915 -> 0 | Z115: =EN!$E$5215 -> 0 | AA115: =EN!$E$5515 -> 0 | AB115: =EN!$E$5815 -> 0 | AC115: =EN!$E$6115 -> 0 | AD115: =EN!$E$6415 -> 0 | AE115: =EN!$E$6715 -> 0 | AF115: =EN!$E$7015 -> 0 | AG115: =EN!$E$7315 -> 0 | AH115: =EN!$E$7615 -> 0
B116: x | C116: 42411 | D116: angestellte Notärzte | E116: =SUM(I116:AH116) -> 0 | F116: =SUM(I116:M116) -> 0 | G116: =N116 -> 0 | H116: =SUM(O116:AH116) -> 0 | I116: =EN!$E$116 -> 0 | J116: =EN!$E$416 -> 0 | K116: =EN!$E$716 -> 0 | L116: =EN!$E$1016 -> 0 | M116: =EN!$E$1316 -> 0 | N116: =EN!$E$1616 -> 0 | O116: =EN!$E$1916 -> 0 | P116: =EN!$E$2216 -> 0 | Q116: =EN!$E$2516 -> 0 | R116: =EN!$E$2816 -> 0 | S116: =EN!$E$3116 -> 0 | T116: =EN!$E$3416 -> 0 | U116: =EN!$E$3716 -> 0 | V116: =EN!$E$4016 -> 0 | W116: =EN!$E$4316 -> 0 | X116: =EN!$E$4616 -> 0 | Y116: =EN!$E$4916 -> 0 | Z116: =EN!$E$5216 -> 0 | AA116: =EN!$E$5516 -> 0 | AB116: =EN!$E$5816 -> 0 | AC116: =EN!$E$6116 -> 0 | AD116: =EN!$E$6416 -> 0 | AE116: =EN!$E$6716 -> 0 | AF116: =EN!$E$7016 -> 0 | AG116: =EN!$E$7316 -> 0 | AH116: =EN!$E$7616 -> 0
B117: x | C117: 42500 | D117: Arbeiter | E117: =SUM(I117:AH117) -> 0 | F117: =SUM(I117:M117) -> 0 | G117: =N117 -> 0 | H117: =SUM(O117:AH117) -> 0 | I117: =EN!$E$117 -> 0 | J117: =EN!$E$417 -> 0 | K117: =EN!$E$717 -> 0 | L117: =EN!$E$1017 -> 0 | M117: =EN!$E$1317 -> 0 | N117: =EN!$E$1617 -> 0 | O117: =EN!$E$1917 -> 0 | P117: =EN!$E$2217 -> 0 | Q117: =EN!$E$2517 -> 0 | R117: =EN!$E$2817 -> 0 | S117: =EN!$E$3117 -> 0 | T117: =EN!$E$3417 -> 0 | U117: =EN!$E$3717 -> 0 | V117: =EN!$E$4017 -> 0 | W117: =EN!$E$4317 -> 0 | X117: =EN!$E$4617 -> 0 | Y117: =EN!$E$4917 -> 0 | Z117: =EN!$E$5217 -> 0 | AA117: =EN!$E$5517 -> 0 | AB117: =EN!$E$5817 -> 0 | AC117: =EN!$E$6117 -> 0 | AD117: =EN!$E$6417 -> 0 | AE117: =EN!$E$6717 -> 0 | AF117: =EN!$E$7017 -> 0 | AG117: =EN!$E$7317 -> 0 | AH117: =EN!$E$7617 -> 0
B118: x | C118: 42800 | D118: Sonstige | E118: =SUM(I118:AH118) -> 0 | F118: =SUM(I118:M118) -> 0 | G118: =N118 -> 0 | H118: =SUM(O118:AH118) -> 0 | I118: =EN!$E$118 -> 0 | J118: =EN!$E$418 -> 0 | K118: =EN!$E$718 -> 0 | L118: =EN!$E$1018 -> 0 | M118: =EN!$E$1318 -> 0 | N118: =EN!$E$1618 -> 0 | O118: =EN!$E$1918 -> 0 | P118: =EN!$E$2218 -> 0 | Q118: =EN!$E$2518 -> 0 | R118: =EN!$E$2818 -> 0 | S118: =EN!$E$3118 -> 0 | T118: =EN!$E$3418 -> 0 | U118: =EN!$E$3718 -> 0 | V118: =EN!$E$4018 -> 0 | W118: =EN!$E$4318 -> 0 | X118: =EN!$E$4618 -> 0 | Y118: =EN!$E$4918 -> 0 | Z118: =EN!$E$5218 -> 0 | AA118: =EN!$E$5518 -> 0 | AB118: =EN!$E$5818 -> 0 | AC118: =EN!$E$6118 -> 0 | AD118: =EN!$E$6418 -> 0 | AE118: =EN!$E$6718 -> 0 | AF118: =EN!$E$7018 -> 0 | AG118: =EN!$E$7318 -> 0 | AH118: =EN!$E$7618 -> 0
C121: 43 | D121: Beiträge Versorgungskassen, ZVK
B122: x | C122: 43000 | D122: Beamte | E122: =SUM(I122:AH122) -> 0 | F122: =SUM(I122:M122) -> 0 | G122: =N122 -> 0 | H122: =SUM(O122:AH122) -> 0 | I122: =EN!$E$122 -> 0 | J122: =EN!$E$422 -> 0 | K122: =EN!$E$722 -> 0 | L122: =EN!$E$1022 -> 0 | M122: =EN!$E$1322 -> 0 | N122: =EN!$E$1622 -> 0 | O122: =EN!$E$1922 -> 0 | P122: =EN!$E$2222 -> 0 | Q122: =EN!$E$2522 -> 0 | R122: =EN!$E$2822 -> 0 | S122: =EN!$E$3122 -> 0 | T122: =EN!$E$3422 -> 0 | U122: =EN!$E$3722 -> 0 | V122: =EN!$E$4022 -> 0 | W122: =EN!$E$4322 -> 0 | X122: =EN!$E$4622 -> 0 | Y122: =EN!$E$4922 -> 0 | Z122: =EN!$E$5222 -> 0 | AA122: =EN!$E$5522 -> 0 | AB122: =EN!$E$5822 -> 0 | AC122: =EN!$E$6122 -> 0 | AD122: =EN!$E$6422 -> 0 | AE122: =EN!$E$6722 -> 0 | AF122: =EN!$E$7022 -> 0 | AG122: =EN!$E$7322 -> 0 | AH122: =EN!$E$7622 -> 0
B123: x | C123: 43400 | D123: Angestellte | E123: =SUM(I123:AH123) -> 0 | F123: =SUM(I123:M123) -> 0 | G123: =N123 -> 0 | H123: =SUM(O123:AH123) -> 0 | I123: =EN!$E$123 -> 0 | J123: =EN!$E$423 -> 0 | K123: =EN!$E$723 -> 0 | L123: =EN!$E$1023 -> 0 | M123: =EN!$E$1323 -> 0 | N123: =EN!$E$1623 -> 0 | O123: =EN!$E$1923 -> 0 | P123: =EN!$E$2223 -> 0 | Q123: =EN!$E$2523 -> 0 | R123: =EN!$E$2823 -> 0 | S123: =EN!$E$3123 -> 0 | T123: =EN!$E$3423 -> 0 | U123: =EN!$E$3723 -> 0 | V123: =EN!$E$4023 -> 0 | W123: =EN!$E$4323 -> 0 | X123: =EN!$E$4623 -> 0 | Y123: =EN!$E$4923 -> 0 | Z123: =EN!$E$5223 -> 0 | AA123: =EN!$E$5523 -> 0 | AB123: =EN!$E$5823 -> 0 | AC123: =EN!$E$6123 -> 0 | AD123: =EN!$E$6423 -> 0 | AE123: =EN!$E$6723 -> 0 | AF123: =EN!$E$7023 -> 0 | AG123: =EN!$E$7323 -> 0 | AH123: =EN!$E$7623 -> 0
B124: x | C124: 43411 | D124: angestellte Notärzte | E124: =SUM(I124:AH124) -> 0 | F124: =SUM(I124:M124) -> 0 | G124: =N124 -> 0 | H124: =SUM(O124:AH124) -> 0 | I124: =EN!$E$124 -> 0 | J124: =EN!$E$424 -> 0 | K124: =EN!$E$724 -> 0 | L124: =EN!$E$1024 -> 0 | M124: =EN!$E$1324 -> 0 | N124: =EN!$E$1624 -> 0 | O124: =EN!$E$1924 -> 0 | P124: =EN!$E$2224 -> 0 | Q124: =EN!$E$2524 -> 0 | R124: =EN!$E$2824 -> 0 | S124: =EN!$E$3124 -> 0 | T124: =EN!$E$3424 -> 0 | U124: =EN!$E$3724 -> 0 | V124: =EN!$E$4024 -> 0 | W124: =EN!$E$4324 -> 0 | X124: =EN!$E$4624 -> 0 | Y124: =EN!$E$4924 -> 0 | Z124: =EN!$E$5224 -> 0 | AA124: =EN!$E$5524 -> 0 | AB124: =EN!$E$5824 -> 0 | AC124: =EN!$E$6124 -> 0 | AD124: =EN!$E$6424 -> 0 | AE124: =EN!$E$6724 -> 0 | AF124: =EN!$E$7024 -> 0 | AG124: =EN!$E$7324 -> 0 | AH124: =EN!$E$7624 -> 0
B125: x | C125: 43500 | D125: Arbeiter | E125: =SUM(I125:AH125) -> 0 | F125: =SUM(I125:M125) -> 0 | G125: =N125 -> 0 | H125: =SUM(O125:AH125) -> 0 | I125: =EN!$E$125 -> 0 | J125: =EN!$E$425 -> 0 | K125: =EN!$E$725 -> 0 | L125: =EN!$E$1025 -> 0 | M125: =EN!$E$1325 -> 0 | N125: =EN!$E$1625 -> 0 | O125: =EN!$E$1925 -> 0 | P125: =EN!$E$2225 -> 0 | Q125: =EN!$E$2525 -> 0 | R125: =EN!$E$2825 -> 0 | S125: =EN!$E$3125 -> 0 | T125: =EN!$E$3425 -> 0 | U125: =EN!$E$3725 -> 0 | V125: =EN!$E$4025 -> 0 | W125: =EN!$E$4325 -> 0 | X125: =EN!$E$4625 -> 0 | Y125: =EN!$E$4925 -> 0 | Z125: =EN!$E$5225 -> 0 | AA125: =EN!$E$5525 -> 0 | AB125: =EN!$E$5825 -> 0 | AC125: =EN!$E$6125 -> 0 | AD125: =EN!$E$6425 -> 0 | AE125: =EN!$E$6725 -> 0 | AF125: =EN!$E$7025 -> 0 | AG125: =EN!$E$7325 -> 0 | AH125: =EN!$E$7625 -> 0
B126: x | C126: 43800 | D126: Sonstige * | E126: =SUM(I126:AH126) -> 0 | F126: =SUM(I126:M126) -> 0 | G126: =N126 -> 0 | H126: =SUM(O126:AH126) -> 0 | I126: =EN!$E$126 -> 0 | J126: =EN!$E$426 -> 0 | K126: =EN!$E$726 -> 0 | L126: =EN!$E$1026 -> 0 | M126: =EN!$E$1326 -> 0 | N126: =EN!$E$1626 -> 0 | O126: =EN!$E$1926 -> 0 | P126: =EN!$E$2226 -> 0 | Q126: =EN!$E$2526 -> 0 | R126: =EN!$E$2826 -> 0 | S126: =EN!$E$3126 -> 0 | T126: =EN!$E$3426 -> 0 | U126: =EN!$E$3726 -> 0 | V126: =EN!$E$4026 -> 0 | W126: =EN!$E$4326 -> 0 | X126: =EN!$E$4626 -> 0 | Y126: =EN!$E$4926 -> 0 | Z126: =EN!$E$5226 -> 0 | AA126: =EN!$E$5526 -> 0 | AB126: =EN!$E$5826 -> 0 | AC126: =EN!$E$6126 -> 0 | AD126: =EN!$E$6426 -> 0 | AE126: =EN!$E$6726 -> 0 | AF126: =EN!$E$7026 -> 0 | AG126: =EN!$E$7326 -> 0 | AH126: =EN!$E$7626 -> 0
C129: 44 | D129: Beiträge zur gesetzl. Sozialvers.
B130: x | C130: 44400 | D130: Angestellte | E130: =SUM(I130:AH130) -> 0 | F130: =SUM(I130:M130) -> 0 | G130: =N130 -> 0 | H130: =SUM(O130:AH130) -> 0 | I130: =EN!$E$130 -> 0 | J130: =EN!$E$430 -> 0 | K130: =EN!$E$730 -> 0 | L130: =EN!$E$1030 -> 0 | M130: =EN!$E$1330 -> 0 | N130: =EN!$E$1630 -> 0 | O130: =EN!$E$1930 -> 0 | P130: =EN!$E$2230 -> 0 | Q130: =EN!$E$2530 -> 0 | R130: =EN!$E$2830 -> 0 | S130: =EN!$E$3130 -> 0 | T130: =EN!$E$3430 -> 0 | U130: =EN!$E$3730 -> 0 | V130: =EN!$E$4030 -> 0 | W130: =EN!$E$4330 -> 0 | X130: =EN!$E$4630 -> 0 | Y130: =EN!$E$4930 -> 0 | Z130: =EN!$E$5230 -> 0 | AA130: =EN!$E$5530 -> 0 | AB130: =EN!$E$5830 -> 0 | AC130: =EN!$E$6130 -> 0 | AD130: =EN!$E$6430 -> 0 | AE130: =EN!$E$6730 -> 0 | AF130: =EN!$E$7030 -> 0 | AG130: =EN!$E$7330 -> 0 | AH130: =EN!$E$7630 -> 0
B131: x | C131: 44411 | D131: angestellte Notärzte | E131: =SUM(I131:AH131) -> 0 | F131: =SUM(I131:M131) -> 0 | G131: =N131 -> 0 | H131: =SUM(O131:AH131) -> 0 | I131: =EN!$E$131 -> 0 | J131: =EN!$E$431 -> 0 | K131: =EN!$E$731 -> 0 | L131: =EN!$E$1031 -> 0 | M131: =EN!$E$1331 -> 0 | N131: =EN!$E$1631 -> 0 | O131: =EN!$E$1931 -> 0 | P131: =EN!$E$2231 -> 0 | Q131: =EN!$E$2531 -> 0 | R131: =EN!$E$2831 -> 0 | S131: =EN!$E$3131 -> 0 | T131: =EN!$E$3431 -> 0 | U131: =EN!$E$3731 -> 0 | V131: =EN!$E$4031 -> 0 | W131: =EN!$E$4331 -> 0 | X131: =EN!$E$4631 -> 0 | Y131: =EN!$E$4931 -> 0 | Z131: =EN!$E$5231 -> 0 | AA131: =EN!$E$5531 -> 0 | AB131: =EN!$E$5831 -> 0 | AC131: =EN!$E$6131 -> 0 | AD131: =EN!$E$6431 -> 0 | AE131: =EN!$E$6731 -> 0 | AF131: =EN!$E$7031 -> 0 | AG131: =EN!$E$7331 -> 0 | AH131: =EN!$E$7631 -> 0
B132: x | C132: 44500 | D132: Arbeiter | E132: =SUM(I132:AH132) -> 0 | F132: =SUM(I132:M132) -> 0 | G132: =N132 -> 0 | H132: =SUM(O132:AH132) -> 0 | I132: =EN!$E$132 -> 0 | J132: =EN!$E$432 -> 0 | K132: =EN!$E$732 -> 0 | L132: =EN!$E$1032 -> 0 | M132: =EN!$E$1332 -> 0 | N132: =EN!$E$1632 -> 0 | O132: =EN!$E$1932 -> 0 | P132: =EN!$E$2232 -> 0 | Q132: =EN!$E$2532 -> 0 | R132: =EN!$E$2832 -> 0 | S132: =EN!$E$3132 -> 0 | T132: =EN!$E$3432 -> 0 | U132: =EN!$E$3732 -> 0 | V132: =EN!$E$4032 -> 0 | W132: =EN!$E$4332 -> 0 | X132: =EN!$E$4632 -> 0 | Y132: =EN!$E$4932 -> 0 | Z132: =EN!$E$5232 -> 0 | AA132: =EN!$E$5532 -> 0 | AB132: =EN!$E$5832 -> 0 | AC132: =EN!$E$6132 -> 0 | AD132: =EN!$E$6432 -> 0 | AE132: =EN!$E$6732 -> 0 | AF132: =EN!$E$7032 -> 0 | AG132: =EN!$E$7332 -> 0 | AH132: =EN!$E$7632 -> 0
B133: x | C133: 44800 | D133: Sonstige | E133: =SUM(I133:AH133) -> 0 | F133: =SUM(I133:M133) -> 0 | G133: =N133 -> 0 | H133: =SUM(O133:AH133) -> 0 | I133: =EN!$E$133 -> 0 | J133: =EN!$E$433 -> 0 | K133: =EN!$E$733 -> 0 | L133: =EN!$E$1033 -> 0 | M133: =EN!$E$1333 -> 0 | N133: =EN!$E$1633 -> 0 | O133: =EN!$E$1933 -> 0 | P133: =EN!$E$2233 -> 0 | Q133: =EN!$E$2533 -> 0 | R133: =EN!$E$2833 -> 0 | S133: =EN!$E$3133 -> 0 | T133: =EN!$E$3433 -> 0 | U133: =EN!$E$3733 -> 0 | V133: =EN!$E$4033 -> 0 | W133: =EN!$E$4333 -> 0 | X133: =EN!$E$4633 -> 0 | Y133: =EN!$E$4933 -> 0 | Z133: =EN!$E$5233 -> 0 | AA133: =EN!$E$5533 -> 0 | AB133: =EN!$E$5833 -> 0 | AC133: =EN!$E$6133 -> 0 | AD133: =EN!$E$6433 -> 0 | AE133: =EN!$E$6733 -> 0 | AF133: =EN!$E$7033 -> 0 | AG133: =EN!$E$7333 -> 0 | AH133: =EN!$E$7633 -> 0
B134: x | C134: 45000 | D134: Beihilfen/Beiträge zur Beihilfevers. * | E134: =SUM(I134:AH134) -> 0 | F134: =SUM(I134:M134) -> 0 | G134: =N134 -> 0 | H134: =SUM(O134:AH134) -> 0 | I134: =EN!$E$134 -> 0 | J134: =EN!$E$434 -> 0 | K134: =EN!$E$734 -> 0 | L134: =EN!$E$1034 -> 0 | M134: =EN!$E$1334 -> 0 | N134: =EN!$E$1634 -> 0 | O134: =EN!$E$1934 -> 0 | P134: =EN!$E$2234 -> 0 | Q134: =EN!$E$2534 -> 0 | R134: =EN!$E$2834 -> 0 | S134: =EN!$E$3134 -> 0 | T134: =EN!$E$3434 -> 0 | U134: =EN!$E$3734 -> 0 | V134: =EN!$E$4034 -> 0 | W134: =EN!$E$4334 -> 0 | X134: =EN!$E$4634 -> 0 | Y134: =EN!$E$4934 -> 0 | Z134: =EN!$E$5234 -> 0 | AA134: =EN!$E$5534 -> 0 | AB134: =EN!$E$5834 -> 0 | AC134: =EN!$E$6134 -> 0 | AD134: =EN!$E$6434 -> 0 | AE134: =EN!$E$6734 -> 0 | AF134: =EN!$E$7034 -> 0 | AG134: =EN!$E$7334 -> 0 | AH134: =EN!$E$7634 -> 0
C137: 46 | D137: Personalnebenausgaben
B138: x | C138: 46100 | D138: Reisekostenerstattungen | E138: =SUM(I138:AH138) -> 0 | F138: =SUM(I138:M138) -> 0 | G138: =N138 -> 0 | H138: =SUM(O138:AH138) -> 0 | I138: =EN!$E$138 -> 0 | J138: =EN!$E$438 -> 0 | K138: =EN!$E$738 -> 0 | L138: =EN!$E$1038 -> 0 | M138: =EN!$E$1338 -> 0 | N138: =EN!$E$1638 -> 0 | O138: =EN!$E$1938 -> 0 | P138: =EN!$E$2238 -> 0 | Q138: =EN!$E$2538 -> 0 | R138: =EN!$E$2838 -> 0 | S138: =EN!$E$3138 -> 0 | T138: =EN!$E$3438 -> 0 | U138: =EN!$E$3738 -> 0 | V138: =EN!$E$4038 -> 0 | W138: =EN!$E$4338 -> 0 | X138: =EN!$E$4638 -> 0 | Y138: =EN!$E$4938 -> 0 | Z138: =EN!$E$5238 -> 0 | AA138: =EN!$E$5538 -> 0 | AB138: =EN!$E$5838 -> 0 | AC138: =EN!$E$6138 -> 0 | AD138: =EN!$E$6438 -> 0 | AE138: =EN!$E$6738 -> 0 | AF138: =EN!$E$7038 -> 0 | AG138: =EN!$E$7338 -> 0 | AH138: =EN!$E$7638 -> 0
B139: x | C139: 46200 | D139: Fortbildung * | E139: 0 | F139: 0 | G139: 0 | H139: 0 | I139: =EN!$E$139 -> 0 | J139: =EN!$E$439 -> 0 | K139: =EN!$E$739 -> 0 | L139: =EN!$E$1039 -> 0 | M139: =EN!$E$1339 -> 0 | N139: =EN!$E$1639 -> 0 | O139: =EN!$E$1939 -> 0 | P139: =EN!$E$2239 -> 0 | Q139: =EN!$E$2539 -> 0 | R139: =EN!$E$2839 -> 0 | S139: =EN!$E$3139 -> 0 | T139: =EN!$E$3439 -> 0 | U139: =EN!$E$3739 -> 0 | V139: =EN!$E$4039 -> 0 | W139: =EN!$E$4339 -> 0 | X139: =EN!$E$4639 -> 0 | Y139: =EN!$E$4939 -> 0 | Z139: =EN!$E$5239 -> 0 | AA139: =EN!$E$5539 -> 0 | AB139: =EN!$E$5839 -> 0 | AC139: =EN!$E$6139 -> 0 | AD139: =EN!$E$6439 -> 0 | AE139: =EN!$E$6739 -> 0 | AF139: =EN!$E$7039 -> 0 | AG139: =EN!$E$7339 -> 0 | AH139: =EN!$E$7639 -> 0
B140: x | C140: 46300 | D140: Arbeitsmedizinische Untersuchungen | E140: 0 | F140: 0 | G140: 0 | H140: 0 | I140: =EN!$E$140 -> 0 | J140: =EN!$E$440 -> 0 | K140: =EN!$E$740 -> 0 | L140: =EN!$E$1040 -> 0 | M140: =EN!$E$1340 -> 0 | N140: =EN!$E$1640 -> 0 | O140: =EN!$E$1940 -> 0 | P140: =EN!$E$2240 -> 0 | Q140: =EN!$E$2540 -> 0 | R140: =EN!$E$2840 -> 0 | S140: =EN!$E$3140 -> 0 | T140: =EN!$E$3440 -> 0 | U140: =EN!$E$3740 -> 0 | V140: =EN!$E$4040 -> 0 | W140: =EN!$E$4340 -> 0 | X140: =EN!$E$4640 -> 0 | Y140: =EN!$E$4940 -> 0 | Z140: =EN!$E$5240 -> 0 | AA140: =EN!$E$5540 -> 0 | AB140: =EN!$E$5840 -> 0 | AC140: =EN!$E$6140 -> 0 | AD140: =EN!$E$6440 -> 0 | AE140: =EN!$E$6740 -> 0 | AF140: =EN!$E$7040 -> 0 | AG140: =EN!$E$7340 -> 0 | AH140: =EN!$E$7640 -> 0
B141: x | C141: 46400 | D141: Abfindungen * | E141: 0 | F141: 0 | G141: 0 | H141: 0 | I141: =EN!$E$141 -> 0 | J141: =EN!$E$441 -> 0 | K141: =EN!$E$741 -> 0 | L141: =EN!$E$1041 -> 0 | M141: =EN!$E$1341 -> 0 | N141: =EN!$E$1641 -> 0 | O141: =EN!$E$1941 -> 0 | P141: =EN!$E$2241 -> 0 | Q141: =EN!$E$2541 -> 0 | R141: =EN!$E$2841 -> 0 | S141: =EN!$E$3141 -> 0 | T141: =EN!$E$3441 -> 0 | U141: =EN!$E$3741 -> 0 | V141: =EN!$E$4041 -> 0 | W141: =EN!$E$4341 -> 0 | X141: =EN!$E$4641 -> 0 | Y141: =EN!$E$4941 -> 0 | Z141: =EN!$E$5241 -> 0 | AA141: =EN!$E$5541 -> 0 | AB141: =EN!$E$5841 -> 0 | AC141: =EN!$E$6141 -> 0 | AD141: =EN!$E$6441 -> 0 | AE141: =EN!$E$6741 -> 0 | AF141: =EN!$E$7041 -> 0 | AG141: =EN!$E$7341 -> 0 | AH141: =EN!$E$7641 -> 0
B142: x | C142: 46500 | D142: Sonstiger Personalaufwand * | E142: 0 | F142: 0 | G142: 0 | H142: 0 | I142: =EN!$E$142 -> 0 | J142: =EN!$E$442 -> 0 | K142: =EN!$E$742 -> 0 | L142: =EN!$E$1042 -> 0 | M142: =EN!$E$1342 -> 0 | N142: =EN!$E$1642 -> 0 | O142: =EN!$E$1942 -> 0 | P142: =EN!$E$2242 -> 0 | Q142: =EN!$E$2542 -> 0 | R142: =EN!$E$2842 -> 0 | S142: =EN!$E$3142 -> 0 | T142: =EN!$E$3442 -> 0 | U142: =EN!$E$3742 -> 0 | V142: =EN!$E$4042 -> 0 | W142: =EN!$E$4342 -> 0 | X142: =EN!$E$4642 -> 0 | Y142: =EN!$E$4942 -> 0 | Z142: =EN!$E$5242 -> 0 | AA142: =EN!$E$5542 -> 0 | AB142: =EN!$E$5842 -> 0 | AC142: =EN!$E$6142 -> 0 | AD142: =EN!$E$6442 -> 0 | AE142: =EN!$E$6742 -> 0 | AF142: =EN!$E$7042 -> 0 | AG142: =EN!$E$7342 -> 0 | AH142: =EN!$E$7642 -> 0
C143: 46600 | D143: Ausbildungskosten nichtärztl. Personal * | E143: 0 | F143: 0 | G143: 0 | H143: 0 | I143: =EN!$E$143 -> 0 | J143: =EN!$E$443 -> 0 | K143: =EN!$E$743 -> 0 | L143: =EN!$E$1043 -> 0 | M143: =EN!$E$1343 -> 0 | N143: =EN!$E$1643 -> 0 | O143: =EN!$E$1943 -> 0 | P143: =EN!$E$2243 -> 0 | Q143: =EN!$E$2543 -> 0 | R143: =EN!$E$2843 -> 0 | S143: =EN!$E$3143 -> 0 | T143: =EN!$E$3443 -> 0 | U143: =EN!$E$3743 -> 0 | V143: =EN!$E$4043 -> 0 | W143: =EN!$E$4343 -> 0 | X143: =EN!$E$4643 -> 0 | Y143: =EN!$E$4943 -> 0 | Z143: =EN!$E$5243 -> 0 | AA143: =EN!$E$5543 -> 0 | AB143: =EN!$E$5843 -> 0 | AC143: =EN!$E$6143 -> 0 | AD143: =EN!$E$6443 -> 0 | AE143: =EN!$E$6743 -> 0 | AF143: =EN!$E$7043 -> 0 | AG143: =EN!$E$7343 -> 0 | AH143: =EN!$E$7643 -> 0
C144: 46700 | D144: Ausbildungskosten Notärzte * | E144: 0 | F144: 0 | G144: 0 | H144: 0 | I144: =EN!$E$144 -> 0 | J144: =EN!$E$444 -> 0 | K144: =EN!$E$744 -> 0 | L144: =EN!$E$1044 -> 0 | M144: =EN!$E$1344 -> 0 | N144: =EN!$E$1644 -> 0 | O144: =EN!$E$1944 -> 0 | P144: =EN!$E$2244 -> 0 | Q144: =EN!$E$2544 -> 0 | R144: =EN!$E$2844 -> 0 | S144: =EN!$E$3144 -> 0 | T144: =EN!$E$3444 -> 0 | U144: =EN!$E$3744 -> 0 | V144: =EN!$E$4044 -> 0 | W144: =EN!$E$4344 -> 0 | X144: =EN!$E$4644 -> 0 | Y144: =EN!$E$4944 -> 0 | Z144: =EN!$E$5244 -> 0 | AA144: =EN!$E$5544 -> 0 | AB144: =EN!$E$5844 -> 0 | AC144: =EN!$E$6144 -> 0 | AD144: =EN!$E$6444 -> 0 | AE144: =EN!$E$6744 -> 0 | AF144: =EN!$E$7044 -> 0 | AG144: =EN!$E$7344 -> 0 | AH144: =EN!$E$7644 -> 0
D147: Summe C 3.1 | E147: =SUM(E85:E144) -> 0 | F147: =SUM(F85:F144) -> 0 | G147: 0 | H147: 0 | I147: 0 | J147: 0 | K147: 0 | L147: 0 | M147: 0 | N147: 0 | O147: 0 | P147: 0 | Q147: 0 | R147: 0 | S147: 0 | T147: 0 | U147: 0 | V147: 0 | W147: 0 | X147: 0 | Y147: 0 | Z147: 0 | AA147: 0 | AB147: 0 | AC147: 0 | AD147: 0 | AE147: 0 | AF147: 0 | AG147: 0 | AH147: 0
C153: C 3 | D153: Aufwand
C154: C 3.2 | D154: Sachkosten
C157: 50 | D157: Unterhaltg. Grundstücke / Gebäude *
C158: 50100 | D158: Rep./Instandhaltg. von Gebäuden | E158: =SUM(I158:AH158) -> 0 | F158: =SUM(I158:M158) -> 0 | G158: =N158 -> 0 | H158: =SUM(O158:AH158) -> 0 | I158: =EN!$E$158 -> 0 | J158: =EN!$E$458 -> 0 | K158: =EN!$E$758 -> 0 | L158: =EN!$E$1058 -> 0 | M158: =EN!$E$1358 -> 0 | N158: =EN!$E$1658 -> 0 | O158: =EN!$E$1958 -> 0 | P158: =EN!$E$2258 -> 0 | Q158: =EN!$E$2558 -> 0 | R158: =EN!$E$2858 -> 0 | S158: =EN!$E$3158 -> 0 | T158: =EN!$E$3458 -> 0 | U158: =EN!$E$3758 -> 0 | V158: =EN!$E$4058 -> 0 | W158: =EN!$E$4358 -> 0 | X158: =EN!$E$4658 -> 0 | Y158: =EN!$E$4958 -> 0 | Z158: =EN!$E$5258 -> 0 | AA158: =EN!$E$5558 -> 0 | AB158: =EN!$E$5858 -> 0 | AC158: =EN!$E$6158 -> 0 | AD158: =EN!$E$6458 -> 0 | AE158: =EN!$E$6758 -> 0 | AF158: =EN!$E$7058 -> 0 | AG158: =EN!$E$7358 -> 0 | AH158: =EN!$E$7658 -> 0
C159: 50200 | D159: Re./Instandhaltg. an Außenanlagen | E159: 0 | F159: 0 | G159: 0 | H159: 0 | I159: =EN!$E$159 -> 0 | J159: =EN!$E$459 -> 0 | K159: =EN!$E$759 -> 0 | L159: =EN!$E$1059 -> 0 | M159: =EN!$E$1359 -> 0 | N159: =EN!$E$1659 -> 0 | O159: =EN!$E$1959 -> 0 | P159: =EN!$E$2259 -> 0 | Q159: =EN!$E$2559 -> 0 | R159: =EN!$E$2859 -> 0 | S159: =EN!$E$3159 -> 0 | T159: =EN!$E$3459 -> 0 | U159: =EN!$E$3759 -> 0 | V159: =EN!$E$4059 -> 0 | W159: =EN!$E$4359 -> 0 | X159: =EN!$E$4659 -> 0 | Y159: =EN!$E$4959 -> 0 | Z159: =EN!$E$5259 -> 0 | AA159: =EN!$E$5559 -> 0 | AB159: =EN!$E$5859 -> 0 | AC159: =EN!$E$6159 -> 0 | AD159: =EN!$E$6459 -> 0 | AE159: =EN!$E$6759 -> 0 | AF159: =EN!$E$7059 -> 0 | AG159: =EN!$E$7359 -> 0 | AH159: =EN!$E$7659 -> 0
C160: 50300 | D160: Reparaturmaterial / Kleinwerkzeuge * | E160: 0 | F160: 0 | G160: 0 | H160: 0 | I160: =EN!$E$160 -> 0 | J160: =EN!$E$460 -> 0 | K160: =EN!$E$760 -> 0 | L160: =EN!$E$1060 -> 0 | M160: =EN!$E$1360 -> 0 | N160: =EN!$E$1660 -> 0 | O160: =EN!$E$1960 -> 0 | P160: =EN!$E$2260 -> 0 | Q160: =EN!$E$2560 -> 0 | R160: =EN!$E$2860 -> 0 | S160: =EN!$E$3160 -> 0 | T160: =EN!$E$3460 -> 0 | U160: =EN!$E$3760 -> 0 | V160: =EN!$E$4060 -> 0 | W160: =EN!$E$4360 -> 0 | X160: =EN!$E$4660 -> 0 | Y160: =EN!$E$4960 -> 0 | Z160: =EN!$E$5260 -> 0 | AA160: =EN!$E$5560 -> 0 | AB160: =EN!$E$5860 -> 0 | AC160: =EN!$E$6160 -> 0 | AD160: =EN!$E$6460 -> 0 | AE160: =EN!$E$6760 -> 0 | AF160: =EN!$E$7060 -> 0 | AG160: =EN!$E$7360 -> 0 | AH160: =EN!$E$7660 -> 0
C161: 50400 | D161: Wartungsaufwand | E161: 0 | F161: 0 | G161: 0 | H161: 0 | I161: =EN!$E$161 -> 0 | J161: =EN!$E$461 -> 0 | K161: =EN!$E$761 -> 0 | L161: =EN!$E$1061 -> 0 | M161: =EN!$E$1361 -> 0 | N161: =EN!$E$1661 -> 0 | O161: =EN!$E$1961 -> 0 | P161: =EN!$E$2261 -> 0 | Q161: =EN!$E$2561 -> 0 | R161: =EN!$E$2861 -> 0 | S161: =EN!$E$3161 -> 0 | T161: =EN!$E$3461 -> 0 | U161: =EN!$E$3761 -> 0 | V161: =EN!$E$4061 -> 0 | W161: =EN!$E$4361 -> 0 | X161: =EN!$E$4661 -> 0 | Y161: =EN!$E$4961 -> 0 | Z161: =EN!$E$5261 -> 0 | AA161: =EN!$E$5561 -> 0 | AB161: =EN!$E$5861 -> 0 | AC161: =EN!$E$6161 -> 0 | AD161: =EN!$E$6461 -> 0 | AE161: =EN!$E$6761 -> 0 | AF161: =EN!$E$7061 -> 0 | AG161: =EN!$E$7361 -> 0 | AH161: =EN!$E$7661 -> 0
C162: 50500 | D162: Sonstige Rep. und Instandsetzungen | E162: 0 | F162: 0 | G162: 0 | H162: 0 | I162: =EN!$E$162 -> 0 | J162: =EN!$E$462 -> 0 | K162: =EN!$E$762 -> 0 | L162: =EN!$E$1062 -> 0 | M162: =EN!$E$1362 -> 0 | N162: =EN!$E$1662 -> 0 | O162: =EN!$E$1962 -> 0 | P162: =EN!$E$2262 -> 0 | Q162: =EN!$E$2562 -> 0 | R162: =EN!$E$2862 -> 0 | S162: =EN!$E$3162 -> 0 | T162: =EN!$E$3462 -> 0 | U162: =EN!$E$3762 -> 0 | V162: =EN!$E$4062 -> 0 | W162: =EN!$E$4362 -> 0 | X162: =EN!$E$4662 -> 0 | Y162: =EN!$E$4962 -> 0 | Z162: =EN!$E$5262 -> 0 | AA162: =EN!$E$5562 -> 0 | AB162: =EN!$E$5862 -> 0 | AC162: =EN!$E$6162 -> 0 | AD162: =EN!$E$6462 -> 0 | AE162: =EN!$E$6762 -> 0 | AF162: =EN!$E$7062 -> 0 | AG162: =EN!$E$7362 -> 0 | AH162: =EN!$E$7662 -> 0
C163: 51000 | D163: Unterhaltg. sonst. unbew. Vermög. | E163: 0 | F163: 0 | G163: 0 | H163: 0 | I163: =EN!$E$163 -> 0 | J163: =EN!$E$463 -> 0 | K163: =EN!$E$763 -> 0 | L163: =EN!$E$1063 -> 0 | M163: =EN!$E$1363 -> 0 | N163: =EN!$E$1663 -> 0 | O163: =EN!$E$1963 -> 0 | P163: =EN!$E$2263 -> 0 | Q163: =EN!$E$2563 -> 0 | R163: =EN!$E$2863 -> 0 | S163: =EN!$E$3163 -> 0 | T163: =EN!$E$3463 -> 0 | U163: =EN!$E$3763 -> 0 | V163: =EN!$E$4063 -> 0 | W163: =EN!$E$4363 -> 0 | X163: =EN!$E$4663 -> 0 | Y163: =EN!$E$4963 -> 0 | Z163: =EN!$E$5263 -> 0 | AA163: =EN!$E$5563 -> 0 | AB163: =EN!$E$5863 -> 0 | AC163: =EN!$E$6163 -> 0 | AD163: =EN!$E$6463 -> 0 | AE163: =EN!$E$6763 -> 0 | AF163: =EN!$E$7063 -> 0 | AG163: =EN!$E$7363 -> 0 | AH163: =EN!$E$7663 -> 0
C166: 52 | D166: Geräte, Ausrüstung, Verbrauch
C167: 52100 | D167: Geringwertige Ausrüstungsgegenst. * | E167: =SUM(I167:AH167) -> 0 | F167: =SUM(I167:M167) -> 0 | G167: =N167 -> 0 | H167: =SUM(O167:AH167) -> 0 | I167: =EN!$E$167 -> 0 | J167: =EN!$E$467 -> 0 | K167: =EN!$E$767 -> 0 | L167: =EN!$E$1067 -> 0 | M167: =EN!$E$1367 -> 0 | N167: =EN!$E$1667 -> 0 | O167: =EN!$E$1967 -> 0 | P167: =EN!$E$2267 -> 0 | Q167: =EN!$E$2567 -> 0 | R167: =EN!$E$2867 -> 0 | S167: =EN!$E$3167 -> 0 | T167: =EN!$E$3467 -> 0 | U167: =EN!$E$3767 -> 0 | V167: =EN!$E$4067 -> 0 | W167: =EN!$E$4367 -> 0 | X167: =EN!$E$4667 -> 0 | Y167: =EN!$E$4967 -> 0 | Z167: =EN!$E$5267 -> 0 | AA167: =EN!$E$5567 -> 0 | AB167: =EN!$E$5867 -> 0 | AC167: =EN!$E$6167 -> 0 | AD167: =EN!$E$6467 -> 0 | AE167: =EN!$E$6767 -> 0 | AF167: =EN!$E$7067 -> 0 | AG167: =EN!$E$7367 -> 0 | AH167: =EN!$E$7667 -> 0
C168: 52210 | D168: Medikamente | E168: =SUM(I168:AH168) -> 0 | F168: =SUM(I168:M168) -> 0 | G168: =N168 -> 0 | H168: =SUM(O168:AH168) -> 0 | I168: =EN!$E$168 -> 0 | J168: =EN!$E$468 -> 0 | K168: =EN!$E$768 -> 0 | L168: =EN!$E$1068 -> 0 | M168: =EN!$E$1368 -> 0 | N168: =EN!$E$1668 -> 0 | O168: =EN!$E$1968 -> 0 | P168: =EN!$E$2268 -> 0 | Q168: =EN!$E$2568 -> 0 | R168: =EN!$E$2868 -> 0 | S168: =EN!$E$3168 -> 0 | T168: =EN!$E$3468 -> 0 | U168: =EN!$E$3768 -> 0 | V168: =EN!$E$4068 -> 0 | W168: =EN!$E$4368 -> 0 | X168: =EN!$E$4668 -> 0 | Y168: =EN!$E$4968 -> 0 | Z168: =EN!$E$5268 -> 0 | AA168: =EN!$E$5568 -> 0 | AB168: =EN!$E$5868 -> 0 | AC168: =EN!$E$6168 -> 0 | AD168: =EN!$E$6468 -> 0 | AE168: =EN!$E$6768 -> 0 | AF168: =EN!$E$7068 -> 0 | AG168: =EN!$E$7368 -> 0 | AH168: =EN!$E$7668 -> 0
C169: 52220 | D169: Verbandsstoffe/med. Verbrauchsmat. * | E169: =SUM(I169:AH169) -> 0 | F169: =SUM(I169:M169) -> 0 | G169: =N169 -> 0 | H169: =SUM(O169:AH169) -> 0 | I169: =EN!$E$169 -> 0 | J169: =EN!$E$469 -> 0 | K169: =EN!$E$769 -> 0 | L169: =EN!$E$1069 -> 0 | M169: =EN!$E$1369 -> 0 | N169: =EN!$E$1669 -> 0 | O169: =EN!$E$1969 -> 0 | P169: =EN!$E$2269 -> 0 | Q169: =EN!$E$2569 -> 0 | R169: =EN!$E$2869 -> 0 | S169: =EN!$E$3169 -> 0 | T169: =EN!$E$3469 -> 0 | U169: =EN!$E$3769 -> 0 | V169: =EN!$E$4069 -> 0 | W169: =EN!$E$4369 -> 0 | X169: =EN!$E$4669 -> 0 | Y169: =EN!$E$4969 -> 0 | Z169: =EN!$E$5269 -> 0 | AA169: =EN!$E$5569 -> 0 | AB169: =EN!$E$5869 -> 0 | AC169: =EN!$E$6169 -> 0 | AD169: =EN!$E$6469 -> 0 | AE169: =EN!$E$6769 -> 0 | AF169: =EN!$E$7069 -> 0 | AG169: =EN!$E$7369 -> 0 | AH169: =EN!$E$7669 -> 0
C170: 52230 | D170: Med.-techn. Geräte als GWG * | E170: =SUM(I170:AH170) -> 0 | F170: =SUM(I170:M170) -> 0 | G170: =N170 -> 0 | H170: =SUM(O170:AH170) -> 0 | I170: =EN!$E$170 -> 0 | J170: =EN!$E$470 -> 0 | K170: =EN!$E$770 -> 0 | L170: =EN!$E$1070 -> 0 | M170: =EN!$E$1370 -> 0 | N170: =EN!$E$1670 -> 0 | O170: =EN!$E$1970 -> 0 | P170: =EN!$E$2270 -> 0 | Q170: =EN!$E$2570 -> 0 | R170: =EN!$E$2870 -> 0 | S170: =EN!$E$3170 -> 0 | T170: =EN!$E$3470 -> 0 | U170: =EN!$E$3770 -> 0 | V170: =EN!$E$4070 -> 0 | W170: =EN!$E$4370 -> 0 | X170: =EN!$E$4670 -> 0 | Y170: =EN!$E$4970 -> 0 | Z170: =EN!$E$5270 -> 0 | AA170: =EN!$E$5570 -> 0 | AB170: =EN!$E$5870 -> 0 | AC170: =EN!$E$6170 -> 0 | AD170: =EN!$E$6470 -> 0 | AE170: =EN!$E$6770 -> 0 | AF170: =EN!$E$7070 -> 0 | AG170: =EN!$E$7370 -> 0 | AH170: =EN!$E$7670 -> 0
C173: 523 | D173: Reparaturen und Wartung
C174: 52310 | D174: Funkanlagen | E174: =SUM(I174:AH174) -> 0 | F174: =SUM(I174:M174) -> 0 | G174: =N174 -> 0 | H174: =SUM(O174:AH174) -> 0 | I174: =EN!$E$174 -> 0 | J174: =EN!$E$474 -> 0 | K174: =EN!$E$774 -> 0 | L174: =EN!$E$1074 -> 0 | M174: =EN!$E$1374 -> 0 | N174: =EN!$E$1674 -> 0 | O174: =EN!$E$1974 -> 0 | P174: =EN!$E$2274 -> 0 | Q174: =EN!$E$2574 -> 0 | R174: =EN!$E$2874 -> 0 | S174: =EN!$E$3174 -> 0 | T174: =EN!$E$3474 -> 0 | U174: =EN!$E$3774 -> 0 | V174: =EN!$E$4074 -> 0 | W174: =EN!$E$4374 -> 0 | X174: =EN!$E$4674 -> 0 | Y174: =EN!$E$4974 -> 0 | Z174: =EN!$E$5274 -> 0 | AA174: =EN!$E$5574 -> 0 | AB174: =EN!$E$5874 -> 0 | AC174: =EN!$E$6174 -> 0 | AD174: =EN!$E$6474 -> 0 | AE174: =EN!$E$6774 -> 0 | AF174: =EN!$E$7074 -> 0 | AG174: =EN!$E$7374 -> 0 | AH174: =EN!$E$7674 -> 0
C175: 52320 | D175: Fernsprechanlagen | E175: =SUM(I175:AH175) -> 0 | F175: =SUM(I175:M175) -> 0 | G175: =N175 -> 0 | H175: =SUM(O175:AH175) -> 0 | I175: =EN!$E$175 -> 0 | J175: =EN!$E$475 -> 0 | K175: =EN!$E$775 -> 0 | L175: =EN!$E$1075 -> 0 | M175: =EN!$E$1375 -> 0 | N175: =EN!$E$1675 -> 0 | O175: =EN!$E$1975 -> 0 | P175: =EN!$E$2275 -> 0 | Q175: =EN!$E$2575 -> 0 | R175: =EN!$E$2875 -> 0 | S175: =EN!$E$3175 -> 0 | T175: =EN!$E$3475 -> 0 | U175: =EN!$E$3775 -> 0 | V175: =EN!$E$4075 -> 0 | W175: =EN!$E$4375 -> 0 | X175: =EN!$E$4675 -> 0 | Y175: =EN!$E$4975 -> 0 | Z175: =EN!$E$5275 -> 0 | AA175: =EN!$E$5575 -> 0 | AB175: =EN!$E$5875 -> 0 | AC175: =EN!$E$6175 -> 0 | AD175: =EN!$E$6475 -> 0 | AE175: =EN!$E$6775 -> 0 | AF175: =EN!$E$7075 -> 0 | AG175: =EN!$E$7375 -> 0 | AH175: =EN!$E$7675 -> 0
C176: 52330 | D176: Med.-techn. Geräte | E176: =SUM(I176:AH176) -> 0 | F176: =SUM(I176:M176) -> 0 | G176: =N176 -> 0 | H176: =SUM(O176:AH176) -> 0 | I176: =EN!$E$176 -> 0 | J176: =EN!$E$476 -> 0 | K176: =EN!$E$776 -> 0 | L176: =EN!$E$1076 -> 0 | M176: =EN!$E$1376 -> 0 | N176: =EN!$E$1676 -> 0 | O176: =EN!$E$1976 -> 0 | P176: =EN!$E$2276 -> 0 | Q176: =EN!$E$2576 -> 0 | R176: =EN!$E$2876 -> 0 | S176: =EN!$E$3176 -> 0 | T176: =EN!$E$3476 -> 0 | U176: =EN!$E$3776 -> 0 | V176: =EN!$E$4076 -> 0 | W176: =EN!$E$4376 -> 0 | X176: =EN!$E$4676 -> 0 | Y176: =EN!$E$4976 -> 0 | Z176: =EN!$E$5276 -> 0 | AA176: =EN!$E$5576 -> 0 | AB176: =EN!$E$5876 -> 0 | AC176: =EN!$E$6176 -> 0 | AD176: =EN!$E$6476 -> 0 | AE176: =EN!$E$6776 -> 0 | AF176: =EN!$E$7076 -> 0 | AG176: =EN!$E$7376 -> 0 | AH176: =EN!$E$7676 -> 0
C177: 52340 | D177: Sonstiges * | E177: =SUM(I177:AH177) -> 0 | F177: =SUM(I177:M177) -> 0 | G177: =N177 -> 0 | H177: =SUM(O177:AH177) -> 0 | I177: =EN!$E$177 -> 0 | J177: =EN!$E$477 -> 0 | K177: =EN!$E$777 -> 0 | L177: =EN!$E$1077 -> 0 | M177: =EN!$E$1377 -> 0 | N177: =EN!$E$1677 -> 0 | O177: =EN!$E$1977 -> 0 | P177: =EN!$E$2277 -> 0 | Q177: =EN!$E$2577 -> 0 | R177: =EN!$E$2877 -> 0 | S177: =EN!$E$3177 -> 0 | T177: =EN!$E$3477 -> 0 | U177: =EN!$E$3777 -> 0 | V177: =EN!$E$4077 -> 0 | W177: =EN!$E$4377 -> 0 | X177: =EN!$E$4677 -> 0 | Y177: =EN!$E$4977 -> 0 | Z177: =EN!$E$5277 -> 0 | AA177: =EN!$E$5577 -> 0 | AB177: =EN!$E$5877 -> 0 | AC177: =EN!$E$6177 -> 0 | AD177: =EN!$E$6477 -> 0 | AE177: =EN!$E$6777 -> 0 | AF177: =EN!$E$7077 -> 0 | AG177: =EN!$E$7377 -> 0 | AH177: =EN!$E$7677 -> 0
C180: 53 | D180: Leasing, Mieten, Pachten *
C181: 53100 | D181: Grundstücke | E181: =SUM(I181:AH181) -> 0 | F181: =SUM(I181:M181) -> 0 | G181: =N181 -> 0 | H181: =SUM(O181:AH181) -> 0 | I181: =EN!$E$181 -> 0 | J181: =EN!$E$481 -> 0 | K181: =EN!$E$781 -> 0 | L181: =EN!$E$1081 -> 0 | M181: =EN!$E$1381 -> 0 | N181: =EN!$E$1681 -> 0 | O181: =EN!$E$1981 -> 0 | P181: =EN!$E$2281 -> 0 | Q181: =EN!$E$2581 -> 0 | R181: =EN!$E$2881 -> 0 | S181: =EN!$E$3181 -> 0 | T181: =EN!$E$3481 -> 0 | U181: =EN!$E$3781 -> 0 | V181: =EN!$E$4081 -> 0 | W181: =EN!$E$4381 -> 0 | X181: =EN!$E$4681 -> 0 | Y181: =EN!$E$4981 -> 0 | Z181: =EN!$E$5281 -> 0 | AA181: =EN!$E$5581 -> 0 | AB181: =EN!$E$5881 -> 0 | AC181: =EN!$E$6181 -> 0 | AD181: =EN!$E$6481 -> 0 | AE181: =EN!$E$6781 -> 0 | AF181: =EN!$E$7081 -> 0 | AG181: =EN!$E$7381 -> 0 | AH181: =EN!$E$7681 -> 0
C182: 53200 | D182: Gebäude | E182: =SUM(I182:AH182) -> 0 | F182: =SUM(I182:M182) -> 0 | G182: =N182 -> 0 | H182: =SUM(O182:AH182) -> 0 | I182: =EN!$E$182 -> 0 | J182: =EN!$E$482 -> 0 | K182: =EN!$E$782 -> 0 | L182: =EN!$E$1082 -> 0 | M182: =EN!$E$1382 -> 0 | N182: =EN!$E$1682 -> 0 | O182: =EN!$E$1982 -> 0 | P182: =EN!$E$2282 -> 0 | Q182: =EN!$E$2582 -> 0 | R182: =EN!$E$2882 -> 0 | S182: =EN!$E$3182 -> 0 | T182: =EN!$E$3482 -> 0 | U182: =EN!$E$3782 -> 0 | V182: =EN!$E$4082 -> 0 | W182: =EN!$E$4382 -> 0 | X182: =EN!$E$4682 -> 0 | Y182: =EN!$E$4982 -> 0 | Z182: =EN!$E$5282 -> 0 | AA182: =EN!$E$5582 -> 0 | AB182: =EN!$E$5882 -> 0 | AC182: =EN!$E$6182 -> 0 | AD182: =EN!$E$6482 -> 0 | AE182: =EN!$E$6782 -> 0 | AF182: =EN!$E$7082 -> 0 | AG182: =EN!$E$7382 -> 0 | AH182: =EN!$E$7682 -> 0
C183: 53300 | D183: Techn. Geräte und Anlagen | E183: =SUM(I183:AH183) -> 0 | F183: =SUM(I183:M183) -> 0 | G183: =N183 -> 0 | H183: =SUM(O183:AH183) -> 0 | I183: =EN!$E$183 -> 0 | J183: =EN!$E$483 -> 0 | K183: =EN!$E$783 -> 0 | L183: =EN!$E$1083 -> 0 | M183: =EN!$E$1383 -> 0 | N183: =EN!$E$1683 -> 0 | O183: =EN!$E$1983 -> 0 | P183: =EN!$E$2283 -> 0 | Q183: =EN!$E$2583 -> 0 | R183: =EN!$E$2883 -> 0 | S183: =EN!$E$3183 -> 0 | T183: =EN!$E$3483 -> 0 | U183: =EN!$E$3783 -> 0 | V183: =EN!$E$4083 -> 0 | W183: =EN!$E$4383 -> 0 | X183: =EN!$E$4683 -> 0 | Y183: =EN!$E$4983 -> 0 | Z183: =EN!$E$5283 -> 0 | AA183: =EN!$E$5583 -> 0 | AB183: =EN!$E$5883 -> 0 | AC183: =EN!$E$6183 -> 0 | AD183: =EN!$E$6483 -> 0 | AE183: =EN!$E$6783 -> 0 | AF183: =EN!$E$7083 -> 0 | AG183: =EN!$E$7383 -> 0 | AH183: =EN!$E$7683 -> 0
C186: 54 | D186: Bewirtschaftung Grundstücke
C187: 54110 | D187: Heizung | E187: =SUM(I187:AH187) -> 0 | F187: =SUM(I187:M187) -> 0 | G187: =N187 -> 0 | H187: =SUM(O187:AH187) -> 0 | I187: =EN!$E$187 -> 0 | J187: =EN!$E$487 -> 0 | K187: =EN!$E$787 -> 0 | L187: =EN!$E$1087 -> 0 | M187: =EN!$E$1387 -> 0 | N187: =EN!$E$1687 -> 0 | O187: =EN!$E$1987 -> 0 | P187: =EN!$E$2287 -> 0 | Q187: =EN!$E$2587 -> 0 | R187: =EN!$E$2887 -> 0 | S187: =EN!$E$3187 -> 0 | T187: =EN!$E$3487 -> 0 | U187: =EN!$E$3787 -> 0 | V187: =EN!$E$4087 -> 0 | W187: =EN!$E$4387 -> 0 | X187: =EN!$E$4687 -> 0 | Y187: =EN!$E$4987 -> 0 | Z187: =EN!$E$5287 -> 0 | AA187: =EN!$E$5587 -> 0 | AB187: =EN!$E$5887 -> 0 | AC187: =EN!$E$6187 -> 0 | AD187: =EN!$E$6487 -> 0 | AE187: =EN!$E$6787 -> 0 | AF187: =EN!$E$7087 -> 0 | AG187: =EN!$E$7387 -> 0 | AH187: =EN!$E$7687 -> 0
C188: 54120 | D188: Elektro/Gas/Wasser | E188: 0 | F188: 0 | G188: 0 | H188: 0 | I188: =EN!$E$188 -> 0 | J188: =EN!$E$488 -> 0 | K188: =EN!$E$788 -> 0 | L188: =EN!$E$1088 -> 0 | M188: =EN!$E$1388 -> 0 | N188: =EN!$E$1688 -> 0 | O188: =EN!$E$1988 -> 0 | P188: =EN!$E$2288 -> 0 | Q188: =EN!$E$2588 -> 0 | R188: =EN!$E$2888 -> 0 | S188: =EN!$E$3188 -> 0 | T188: =EN!$E$3488 -> 0 | U188: =EN!$E$3788 -> 0 | V188: =EN!$E$4088 -> 0 | W188: =EN!$E$4388 -> 0 | X188: =EN!$E$4688 -> 0 | Y188: =EN!$E$4988 -> 0 | Z188: =EN!$E$5288 -> 0 | AA188: =EN!$E$5588 -> 0 | AB188: =EN!$E$5888 -> 0 | AC188: =EN!$E$6188 -> 0 | AD188: =EN!$E$6488 -> 0 | AE188: =EN!$E$6788 -> 0 | AF188: =EN!$E$7088 -> 0 | AG188: =EN!$E$7388 -> 0 | AH188: =EN!$E$7688 -> 0
C189: 54200 | D189: Reinigung | E189: 0 | F189: 0 | G189: 0 | H189: 0 | I189: =EN!$E$189 -> 0 | J189: =EN!$E$489 -> 0 | K189: =EN!$E$789 -> 0 | L189: =EN!$E$1089 -> 0 | M189: =EN!$E$1389 -> 0 | N189: =EN!$E$1689 -> 0 | O189: =EN!$E$1989 -> 0 | P189: =EN!$E$2289 -> 0 | Q189: =EN!$E$2589 -> 0 | R189: =EN!$E$2889 -> 0 | S189: =EN!$E$3189 -> 0 | T189: =EN!$E$3489 -> 0 | U189: =EN!$E$3789 -> 0 | V189: =EN!$E$4089 -> 0 | W189: =EN!$E$4389 -> 0 | X189: =EN!$E$4689 -> 0 | Y189: =EN!$E$4989 -> 0 | Z189: =EN!$E$5289 -> 0 | AA189: =EN!$E$5589 -> 0 | AB189: =EN!$E$5889 -> 0 | AC189: =EN!$E$6189 -> 0 | AD189: =EN!$E$6489 -> 0 | AE189: =EN!$E$6789 -> 0 | AF189: =EN!$E$7089 -> 0 | AG189: =EN!$E$7389 -> 0 | AH189: =EN!$E$7689 -> 0
C190: 54300 | D190: Sachversicherungen | E190: 0 | F190: 0 | G190: 0 | H190: 0 | I190: =EN!$E$190 -> 0 | J190: =EN!$E$490 -> 0 | K190: =EN!$E$790 -> 0 | L190: =EN!$E$1090 -> 0 | M190: =EN!$E$1390 -> 0 | N190: =EN!$E$1690 -> 0 | O190: =EN!$E$1990 -> 0 | P190: =EN!$E$2290 -> 0 | Q190: =EN!$E$2590 -> 0 | R190: =EN!$E$2890 -> 0 | S190: =EN!$E$3190 -> 0 | T190: =EN!$E$3490 -> 0 | U190: =EN!$E$3790 -> 0 | V190: =EN!$E$4090 -> 0 | W190: =EN!$E$4390 -> 0 | X190: =EN!$E$4690 -> 0 | Y190: =EN!$E$4990 -> 0 | Z190: =EN!$E$5290 -> 0 | AA190: =EN!$E$5590 -> 0 | AB190: =EN!$E$5890 -> 0 | AC190: =EN!$E$6190 -> 0 | AD190: =EN!$E$6490 -> 0 | AE190: =EN!$E$6790 -> 0 | AF190: =EN!$E$7090 -> 0 | AG190: =EN!$E$7390 -> 0 | AH190: =EN!$E$7690 -> 0
C191: 54400 | D191: Gebühren/Beiträge/Steuern | E191: 0 | F191: 0 | G191: 0 | H191: 0 | I191: =EN!$E$191 -> 0 | J191: =EN!$E$491 -> 0 | K191: =EN!$E$791 -> 0 | L191: =EN!$E$1091 -> 0 | M191: =EN!$E$1391 -> 0 | N191: =EN!$E$1691 -> 0 | O191: =EN!$E$1991 -> 0 | P191: =EN!$E$2291 -> 0 | Q191: =EN!$E$2591 -> 0 | R191: =EN!$E$2891 -> 0 | S191: =EN!$E$3191 -> 0 | T191: =EN!$E$3491 -> 0 | U191: =EN!$E$3791 -> 0 | V191: =EN!$E$4091 -> 0 | W191: =EN!$E$4391 -> 0 | X191: =EN!$E$4691 -> 0 | Y191: =EN!$E$4991 -> 0 | Z191: =EN!$E$5291 -> 0 | AA191: =EN!$E$5591 -> 0 | AB191: =EN!$E$5891 -> 0 | AC191: =EN!$E$6191 -> 0 | AD191: =EN!$E$6491 -> 0 | AE191: =EN!$E$6791 -> 0 | AF191: =EN!$E$7091 -> 0 | AG191: =EN!$E$7391 -> 0 | AH191: =EN!$E$7691 -> 0
C192: 54500 | D192: Wartung Inventar | E192: 0 | F192: 0 | G192: 0 | H192: 0 | I192: =EN!$E$192 -> 0 | J192: =EN!$E$492 -> 0 | K192: =EN!$E$792 -> 0 | L192: =EN!$E$1092 -> 0 | M192: =EN!$E$1392 -> 0 | N192: =EN!$E$1692 -> 0 | O192: =EN!$E$1992 -> 0 | P192: =EN!$E$2292 -> 0 | Q192: =EN!$E$2592 -> 0 | R192: =EN!$E$2892 -> 0 | S192: =EN!$E$3192 -> 0 | T192: =EN!$E$3492 -> 0 | U192: =EN!$E$3792 -> 0 | V192: =EN!$E$4092 -> 0 | W192: =EN!$E$4392 -> 0 | X192: =EN!$E$4692 -> 0 | Y192: =EN!$E$4992 -> 0 | Z192: =EN!$E$5292 -> 0 | AA192: =EN!$E$5592 -> 0 | AB192: =EN!$E$5892 -> 0 | AC192: =EN!$E$6192 -> 0 | AD192: =EN!$E$6492 -> 0 | AE192: =EN!$E$6792 -> 0 | AF192: =EN!$E$7092 -> 0 | AG192: =EN!$E$7392 -> 0 | AH192: =EN!$E$7692 -> 0
C193: 54600 | D193: Sonst. Raum- und Grundstückskosten | E193: 0 | F193: 0 | G193: 0 | H193: 0 | I193: =EN!$E$193 -> 0 | J193: =EN!$E$493 -> 0 | K193: =EN!$E$793 -> 0 | L193: =EN!$E$1093 -> 0 | M193: =EN!$E$1393 -> 0 | N193: =EN!$E$1693 -> 0 | O193: =EN!$E$1993 -> 0 | P193: =EN!$E$2293 -> 0 | Q193: =EN!$E$2593 -> 0 | R193: =EN!$E$2893 -> 0 | S193: =EN!$E$3193 -> 0 | T193: =EN!$E$3493 -> 0 | U193: =EN!$E$3793 -> 0 | V193: =EN!$E$4093 -> 0 | W193: =EN!$E$4393 -> 0 | X193: =EN!$E$4693 -> 0 | Y193: =EN!$E$4993 -> 0 | Z193: =EN!$E$5293 -> 0 | AA193: =EN!$E$5593 -> 0 | AB193: =EN!$E$5893 -> 0 | AC193: =EN!$E$6193 -> 0 | AD193: =EN!$E$6493 -> 0 | AE193: =EN!$E$6793 -> 0 | AF193: =EN!$E$7093 -> 0 | AG193: =EN!$E$7393 -> 0 | AH193: =EN!$E$7693 -> 0
C196: 55 | D196: Haltung von Fahrzeugen
C197: 55100 | D197: Mieten / Leasing * | E197: =SUM(I197:AH197) -> 0 | F197: =SUM(I197:M197) -> 0 | G197: =N197 -> 0 | H197: =SUM(O197:AH197) -> 0 | I197: =EN!$E$197 -> 0 | J197: =EN!$E$497 -> 0 | K197: =EN!$E$797 -> 0 | L197: =EN!$E$1097 -> 0 | M197: =EN!$E$1397 -> 0 | N197: =EN!$E$1697 -> 0 | O197: =EN!$E$1997 -> 0 | P197: =EN!$E$2297 -> 0 | Q197: =EN!$E$2597 -> 0 | R197: =EN!$E$2897 -> 0 | S197: =EN!$E$3197 -> 0 | T197: =EN!$E$3497 -> 0 | U197: =EN!$E$3797 -> 0 | V197: =EN!$E$4097 -> 0 | W197: =EN!$E$4397 -> 0 | X197: =EN!$E$4697 -> 0 | Y197: =EN!$E$4997 -> 0 | Z197: =EN!$E$5297 -> 0 | AA197: =EN!$E$5597 -> 0 | AB197: =EN!$E$5897 -> 0 | AC197: =EN!$E$6197 -> 0 | AD197: =EN!$E$6497 -> 0 | AE197: =EN!$E$6797 -> 0 | AF197: =EN!$E$7097 -> 0 | AG197: =EN!$E$7397 -> 0 | AH197: =EN!$E$7697 -> 0
C198: 55200 | D198: Kraftstoff/Öl | E198: 0 | F198: 0 | G198: 0 | H198: 0 | I198: =EN!$E$198 -> 0 | J198: =EN!$E$498 -> 0 | K198: =EN!$E$798 -> 0 | L198: =EN!$E$1098 -> 0 | M198: =EN!$E$1398 -> 0 | N198: =EN!$E$1698 -> 0 | O198: =EN!$E$1998 -> 0 | P198: =EN!$E$2298 -> 0 | Q198: =EN!$E$2598 -> 0 | R198: =EN!$E$2898 -> 0 | S198: =EN!$E$3198 -> 0 | T198: =EN!$E$3498 -> 0 | U198: =EN!$E$3798 -> 0 | V198: =EN!$E$4098 -> 0 | W198: =EN!$E$4398 -> 0 | X198: =EN!$E$4698 -> 0 | Y198: =EN!$E$4998 -> 0 | Z198: =EN!$E$5298 -> 0 | AA198: =EN!$E$5598 -> 0 | AB198: =EN!$E$5898 -> 0 | AC198: =EN!$E$6198 -> 0 | AD198: =EN!$E$6498 -> 0 | AE198: =EN!$E$6798 -> 0 | AF198: =EN!$E$7098 -> 0 | AG198: =EN!$E$7398 -> 0 | AH198: =EN!$E$7698 -> 0
C199: 55310 | D199: KFZ-Unfall-Reparaturen | E199: 0 | F199: 0 | G199: 0 | H199: 0 | I199: =EN!$E$199 -> 0 | J199: =EN!$E$499 -> 0 | K199: =EN!$E$799 -> 0 | L199: =EN!$E$1099 -> 0 | M199: =EN!$E$1399 -> 0 | N199: =EN!$E$1699 -> 0 | O199: =EN!$E$1999 -> 0 | P199: =EN!$E$2299 -> 0 | Q199: =EN!$E$2599 -> 0 | R199: =EN!$E$2899 -> 0 | S199: =EN!$E$3199 -> 0 | T199: =EN!$E$3499 -> 0 | U199: =EN!$E$3799 -> 0 | V199: =EN!$E$4099 -> 0 | W199: =EN!$E$4399 -> 0 | X199: =EN!$E$4699 -> 0 | Y199: =EN!$E$4999 -> 0 | Z199: =EN!$E$5299 -> 0 | AA199: =EN!$E$5599 -> 0 | AB199: =EN!$E$5899 -> 0 | AC199: =EN!$E$6199 -> 0 | AD199: =EN!$E$6499 -> 0 | AE199: =EN!$E$6799 -> 0 | AF199: =EN!$E$7099 -> 0 | AG199: =EN!$E$7399 -> 0 | AH199: =EN!$E$7699 -> 0
C200: 55320 | D200: KFZ-Reparaturen / Wartung | E200: 0 | F200: 0 | G200: 0 | H200: 0 | I200: =EN!$E$200 -> 0 | J200: =EN!$E$500 -> 0 | K200: =EN!$E$800 -> 0 | L200: =EN!$E$1100 -> 0 | M200: =EN!$E$1400 -> 0 | N200: =EN!$E$1700 -> 0 | O200: =EN!$E$2000 -> 0 | P200: =EN!$E$2300 -> 0 | Q200: =EN!$E$2600 -> 0 | R200: =EN!$E$2900 -> 0 | S200: =EN!$E$3200 -> 0 | T200: =EN!$E$3500 -> 0 | U200: =EN!$E$3800 -> 0 | V200: =EN!$E$4100 -> 0 | W200: =EN!$E$4400 -> 0 | X200: =EN!$E$4700 -> 0 | Y200: =EN!$E$5000 -> 0 | Z200: =EN!$E$5300 -> 0 | AA200: =EN!$E$5600 -> 0 | AB200: =EN!$E$5900 -> 0 | AC200: =EN!$E$6200 -> 0 | AD200: =EN!$E$6500 -> 0 | AE200: =EN!$E$6800 -> 0 | AF200: =EN!$E$7100 -> 0 | AG200: =EN!$E$7400 -> 0 | AH200: =EN!$E$7700 -> 0
C201: 55400 | D201: KFZ-Bereifung / Zubehör | E201: 0 | F201: 0 | G201: 0 | H201: 0 | I201: =EN!$E$201 -> 0 | J201: =EN!$E$501 -> 0 | K201: =EN!$E$801 -> 0 | L201: =EN!$E$1101 -> 0 | M201: =EN!$E$1401 -> 0 | N201: =EN!$E$1701 -> 0 | O201: =EN!$E$2001 -> 0 | P201: =EN!$E$2301 -> 0 | Q201: =EN!$E$2601 -> 0 | R201: =EN!$E$2901 -> 0 | S201: =EN!$E$3201 -> 0 | T201: =EN!$E$3501 -> 0 | U201: =EN!$E$3801 -> 0 | V201: =EN!$E$4101 -> 0 | W201: =EN!$E$4401 -> 0 | X201: =EN!$E$4701 -> 0 | Y201: =EN!$E$5001 -> 0 | Z201: =EN!$E$5301 -> 0 | AA201: =EN!$E$5601 -> 0 | AB201: =EN!$E$5901 -> 0 | AC201: =EN!$E$6201 -> 0 | AD201: =EN!$E$6501 -> 0 | AE201: =EN!$E$6801 -> 0 | AF201: =EN!$E$7101 -> 0 | AG201: =EN!$E$7401 -> 0 | AH201: =EN!$E$7701 -> 0
C202: 55500 | D202: KFZ-Versicherungen | E202: 0 | F202: 0 | G202: 0 | H202: 0 | I202: =EN!$E$202 -> 0 | J202: =EN!$E$502 -> 0 | K202: =EN!$E$802 -> 0 | L202: =EN!$E$1102 -> 0 | M202: =EN!$E$1402 -> 0 | N202: =EN!$E$1702 -> 0 | O202: =EN!$E$2002 -> 0 | P202: =EN!$E$2302 -> 0 | Q202: =EN!$E$2602 -> 0 | R202: =EN!$E$2902 -> 0 | S202: =EN!$E$3202 -> 0 | T202: =EN!$E$3502 -> 0 | U202: =EN!$E$3802 -> 0 | V202: =EN!$E$4102 -> 0 | W202: =EN!$E$4402 -> 0 | X202: =EN!$E$4702 -> 0 | Y202: =EN!$E$5002 -> 0 | Z202: =EN!$E$5302 -> 0 | AA202: =EN!$E$5602 -> 0 | AB202: =EN!$E$5902 -> 0 | AC202: =EN!$E$6202 -> 0 | AD202: =EN!$E$6502 -> 0 | AE202: =EN!$E$6802 -> 0 | AF202: =EN!$E$7102 -> 0 | AG202: =EN!$E$7402 -> 0 | AH202: =EN!$E$7702 -> 0
C203: 55600 | D203: Sonstige KFZ-Kosten * | E203: 0 | F203: 0 | G203: 0 | H203: 0 | I203: =EN!$E$203 -> 0 | J203: =EN!$E$503 -> 0 | K203: =EN!$E$803 -> 0 | L203: =EN!$E$1103 -> 0 | M203: =EN!$E$1403 -> 0 | N203: =EN!$E$1703 -> 0 | O203: =EN!$E$2003 -> 0 | P203: =EN!$E$2303 -> 0 | Q203: =EN!$E$2603 -> 0 | R203: =EN!$E$2903 -> 0 | S203: =EN!$E$3203 -> 0 | T203: =EN!$E$3503 -> 0 | U203: =EN!$E$3803 -> 0 | V203: =EN!$E$4103 -> 0 | W203: =EN!$E$4403 -> 0 | X203: =EN!$E$4703 -> 0 | Y203: =EN!$E$5003 -> 0 | Z203: =EN!$E$5303 -> 0 | AA203: =EN!$E$5603 -> 0 | AB203: =EN!$E$5903 -> 0 | AC203: =EN!$E$6203 -> 0 | AD203: =EN!$E$6503 -> 0 | AE203: =EN!$E$6803 -> 0 | AF203: =EN!$E$7103 -> 0 | AG203: =EN!$E$7403 -> 0 | AH203: =EN!$E$7703 -> 0
C204: 55700 | D204: KFZ-Steuern | E204: 0 | F204: 0 | G204: 0 | H204: 0 | I204: =EN!$E$204 -> 0 | J204: =EN!$E$504 -> 0 | K204: =EN!$E$804 -> 0 | L204: =EN!$E$1104 -> 0 | M204: =EN!$E$1404 -> 0 | N204: =EN!$E$1704 -> 0 | O204: =EN!$E$2004 -> 0 | P204: =EN!$E$2304 -> 0 | Q204: =EN!$E$2604 -> 0 | R204: =EN!$E$2904 -> 0 | S204: =EN!$E$3204 -> 0 | T204: =EN!$E$3504 -> 0 | U204: =EN!$E$3804 -> 0 | V204: =EN!$E$4104 -> 0 | W204: =EN!$E$4404 -> 0 | X204: =EN!$E$4704 -> 0 | Y204: =EN!$E$5004 -> 0 | Z204: =EN!$E$5304 -> 0 | AA204: =EN!$E$5604 -> 0 | AB204: =EN!$E$5904 -> 0 | AC204: =EN!$E$6204 -> 0 | AD204: =EN!$E$6504 -> 0 | AE204: =EN!$E$6804 -> 0 | AF204: =EN!$E$7104 -> 0 | AG204: =EN!$E$7404 -> 0 | AH204: =EN!$E$7704 -> 0
C207: 56 | D207: Besondere Aufwendungen
C208: 56100 | D208: Beschaffung Berufskleidung | E208: =SUM(I208:AH208) -> 0 | F208: =SUM(I208:M208) -> 0 | G208: =N208 -> 0 | H208: =SUM(O208:AH208) -> 0 | I208: =EN!$E$208 -> 0 | J208: =EN!$E$508 -> 0 | K208: =EN!$E$808 -> 0 | L208: =EN!$E$1108 -> 0 | M208: =EN!$E$1408 -> 0 | N208: =EN!$E$1708 -> 0 | O208: =EN!$E$2008 -> 0 | P208: =EN!$E$2308 -> 0 | Q208: =EN!$E$2608 -> 0 | R208: =EN!$E$2908 -> 0 | S208: =EN!$E$3208 -> 0 | T208: =EN!$E$3508 -> 0 | U208: =EN!$E$3808 -> 0 | V208: =EN!$E$4108 -> 0 | W208: =EN!$E$4408 -> 0 | X208: =EN!$E$4708 -> 0 | Y208: =EN!$E$5008 -> 0 | Z208: =EN!$E$5308 -> 0 | AA208: =EN!$E$5608 -> 0 | AB208: =EN!$E$5908 -> 0 | AC208: =EN!$E$6208 -> 0 | AD208: =EN!$E$6508 -> 0 | AE208: =EN!$E$6808 -> 0 | AF208: =EN!$E$7108 -> 0 | AG208: =EN!$E$7408 -> 0 | AH208: =EN!$E$7708 -> 0
C209: 56200 | D209: Reinigung/Unterhalt Berufskleidung | E209: 0 | F209: 0 | G209: 0 | H209: 0 | I209: =EN!$E$209 -> 0 | J209: =EN!$E$509 -> 0 | K209: =EN!$E$809 -> 0 | L209: =EN!$E$1109 -> 0 | M209: =EN!$E$1409 -> 0 | N209: =EN!$E$1709 -> 0 | O209: =EN!$E$2009 -> 0 | P209: =EN!$E$2309 -> 0 | Q209: =EN!$E$2609 -> 0 | R209: =EN!$E$2909 -> 0 | S209: =EN!$E$3209 -> 0 | T209: =EN!$E$3509 -> 0 | U209: =EN!$E$3809 -> 0 | V209: =EN!$E$4109 -> 0 | W209: =EN!$E$4409 -> 0 | X209: =EN!$E$4709 -> 0 | Y209: =EN!$E$5009 -> 0 | Z209: =EN!$E$5309 -> 0 | AA209: =EN!$E$5609 -> 0 | AB209: =EN!$E$5909 -> 0 | AC209: =EN!$E$6209 -> 0 | AD209: =EN!$E$6509 -> 0 | AE209: =EN!$E$6809 -> 0 | AF209: =EN!$E$7109 -> 0 | AG209: =EN!$E$7409 -> 0 | AH209: =EN!$E$7709 -> 0
C210: 56300 | D210: Sonstige Aufwendungen | E210: 0 | F210: 0 | G210: 0 | H210: 0 | I210: =EN!$E$210 -> 0 | J210: =EN!$E$510 -> 0 | K210: =EN!$E$810 -> 0 | L210: =EN!$E$1110 -> 0 | M210: =EN!$E$1410 -> 0 | N210: =EN!$E$1710 -> 0 | O210: =EN!$E$2010 -> 0 | P210: =EN!$E$2310 -> 0 | Q210: =EN!$E$2610 -> 0 | R210: =EN!$E$2910 -> 0 | S210: =EN!$E$3210 -> 0 | T210: =EN!$E$3510 -> 0 | U210: =EN!$E$3810 -> 0 | V210: =EN!$E$4110 -> 0 | W210: =EN!$E$4410 -> 0 | X210: =EN!$E$4710 -> 0 | Y210: =EN!$E$5010 -> 0 | Z210: =EN!$E$5310 -> 0 | AA210: =EN!$E$5610 -> 0 | AB210: =EN!$E$5910 -> 0 | AC210: =EN!$E$6210 -> 0 | AD210: =EN!$E$6510 -> 0 | AE210: =EN!$E$6810 -> 0 | AF210: =EN!$E$7110 -> 0 | AG210: =EN!$E$7410 -> 0 | AH210: =EN!$E$7710 -> 0
C211: 56400 | D211: Sachkosten der Qualitätssicherung | E211: 0 | F211: 0 | G211: 0 | H211: 0 | I211: =EN!$E$211 -> 0 | J211: =EN!$E$511 -> 0 | K211: =EN!$E$811 -> 0 | L211: =EN!$E$1111 -> 0 | M211: =EN!$E$1411 -> 0 | N211: =EN!$E$1711 -> 0 | O211: =EN!$E$2011 -> 0 | P211: =EN!$E$2311 -> 0 | Q211: =EN!$E$2611 -> 0 | R211: =EN!$E$2911 -> 0 | S211: =EN!$E$3211 -> 0 | T211: =EN!$E$3511 -> 0 | U211: =EN!$E$3811 -> 0 | V211: =EN!$E$4111 -> 0 | W211: =EN!$E$4411 -> 0 | X211: =EN!$E$4711 -> 0 | Y211: =EN!$E$5011 -> 0 | Z211: =EN!$E$5311 -> 0 | AA211: =EN!$E$5611 -> 0 | AB211: =EN!$E$5911 -> 0 | AC211: =EN!$E$6211 -> 0 | AD211: =EN!$E$6511 -> 0 | AE211: =EN!$E$6811 -> 0 | AF211: =EN!$E$7111 -> 0 | AG211: =EN!$E$7411 -> 0 | AH211: =EN!$E$7711 -> 0
C212: 56500 | D212: Sachkosten MANV | E212: 0 | F212: 0 | G212: 0 | H212: 0 | I212: =EN!$E$212 -> 0 | J212: =EN!$E$512 -> 0 | K212: =EN!$E$812 -> 0 | L212: =EN!$E$1112 -> 0 | M212: =EN!$E$1412 -> 0 | N212: =EN!$E$1712 -> 0 | O212: =EN!$E$2012 -> 0 | P212: =EN!$E$2312 -> 0 | Q212: =EN!$E$2612 -> 0 | R212: =EN!$E$2912 -> 0 | S212: =EN!$E$3212 -> 0 | T212: =EN!$E$3512 -> 0 | U212: =EN!$E$3812 -> 0 | V212: =EN!$E$4112 -> 0 | W212: =EN!$E$4412 -> 0 | X212: =EN!$E$4712 -> 0 | Y212: =EN!$E$5012 -> 0 | Z212: =EN!$E$5312 -> 0 | AA212: =EN!$E$5612 -> 0 | AB212: =EN!$E$5912 -> 0 | AC212: =EN!$E$6212 -> 0 | AD212: =EN!$E$6512 -> 0 | AE212: =EN!$E$6812 -> 0 | AF212: =EN!$E$7112 -> 0 | AG212: =EN!$E$7412 -> 0 | AH212: =EN!$E$7712 -> 0
C213: 57000 | D213: Weitere Betriebsausgaben * | E213: 0 | F213: 0 | G213: 0 | H213: 0 | I213: =EN!$E$213 -> 0 | J213: =EN!$E$513 -> 0 | K213: =EN!$E$813 -> 0 | L213: =EN!$E$1113 -> 0 | M213: =EN!$E$1413 -> 0 | N213: =EN!$E$1713 -> 0 | O213: =EN!$E$2013 -> 0 | P213: =EN!$E$2313 -> 0 | Q213: =EN!$E$2613 -> 0 | R213: =EN!$E$2913 -> 0 | S213: =EN!$E$3213 -> 0 | T213: =EN!$E$3513 -> 0 | U213: =EN!$E$3813 -> 0 | V213: =EN!$E$4113 -> 0 | W213: =EN!$E$4413 -> 0 | X213: =EN!$E$4713 -> 0 | Y213: =EN!$E$5013 -> 0 | Z213: =EN!$E$5313 -> 0 | AA213: =EN!$E$5613 -> 0 | AB213: =EN!$E$5913 -> 0 | AC213: =EN!$E$6213 -> 0 | AD213: =EN!$E$6513 -> 0 | AE213: =EN!$E$6813 -> 0 | AF213: =EN!$E$7113 -> 0 | AG213: =EN!$E$7413 -> 0 | AH213: =EN!$E$7713 -> 0
D216: Summe C 3.2 | E216: =SUM(E158:E213) -> 0 | F216: =SUM(F158:F213) -> 0 | G216: 0 | H216: 0 | I216: 0 | J216: 0 | K216: 0 | L216: 0 | M216: 0 | N216: 0 | O216: 0 | P216: 0 | Q216: 0 | R216: 0 | S216: 0 | T216: 0 | U216: 0 | V216: 0 | W216: 0 | X216: 0 | Y216: 0 | Z216: 0 | AA216: 0 | AB216: 0 | AC216: 0 | AD216: 0 | AE216: 0 | AF216: 0 | AG216: 0 | AH216: 0
C222: C 3 | D222: Aufwand
C223: C 3.3 | D223: Sonstige Kosten
C226: 64 | D226: Versicherungen/Schadensfälle *
C227: 64100 | D227: Haftpflichtversicherung | E227: =SUM(I227:AH227) -> 0 | F227: =SUM(I227:M227) -> 0 | G227: =N227 -> 0 | H227: =SUM(O227:AH227) -> 0 | I227: =EN!$E$227 -> 0 | J227: =EN!$E$527 -> 0 | K227: =EN!$E$827 -> 0 | L227: =EN!$E$1127 -> 0 | M227: =EN!$E$1427 -> 0 | N227: =EN!$E$1727 -> 0 | O227: =EN!$E$2027 -> 0 | P227: =EN!$E$2327 -> 0 | Q227: =EN!$E$2627 -> 0 | R227: =EN!$E$2927 -> 0 | S227: =EN!$E$3227 -> 0 | T227: =EN!$E$3527 -> 0 | U227: =EN!$E$3827 -> 0 | V227: =EN!$E$4127 -> 0 | W227: =EN!$E$4427 -> 0 | X227: =EN!$E$4727 -> 0 | Y227: =EN!$E$5027 -> 0 | Z227: =EN!$E$5327 -> 0 | AA227: =EN!$E$5627 -> 0 | AB227: =EN!$E$5927 -> 0 | AC227: =EN!$E$6227 -> 0 | AD227: =EN!$E$6527 -> 0 | AE227: =EN!$E$6827 -> 0 | AF227: =EN!$E$7127 -> 0 | AG227: =EN!$E$7427 -> 0 | AH227: =EN!$E$7727 -> 0
C228: 64200 | D228: Unfallversicherung | E228: =SUM(I228:AH228) -> 0 | F228: =SUM(I228:M228) -> 0 | G228: =N228 -> 0 | H228: =SUM(O228:AH228) -> 0 | I228: =EN!$E$228 -> 0 | J228: =EN!$E$528 -> 0 | K228: =EN!$E$828 -> 0 | L228: =EN!$E$1128 -> 0 | M228: =EN!$E$1428 -> 0 | N228: =EN!$E$1728 -> 0 | O228: =EN!$E$2028 -> 0 | P228: =EN!$E$2328 -> 0 | Q228: =EN!$E$2628 -> 0 | R228: =EN!$E$2928 -> 0 | S228: =EN!$E$3228 -> 0 | T228: =EN!$E$3528 -> 0 | U228: =EN!$E$3828 -> 0 | V228: =EN!$E$4128 -> 0 | W228: =EN!$E$4428 -> 0 | X228: =EN!$E$4728 -> 0 | Y228: =EN!$E$5028 -> 0 | Z228: =EN!$E$5328 -> 0 | AA228: =EN!$E$5628 -> 0 | AB228: =EN!$E$5928 -> 0 | AC228: =EN!$E$6228 -> 0 | AD228: =EN!$E$6528 -> 0 | AE228: =EN!$E$6828 -> 0 | AF228: =EN!$E$7128 -> 0 | AG228: =EN!$E$7428 -> 0 | AH228: =EN!$E$7728 -> 0
C229: 64300 | D229: Sonstige Versicherungen | E229: =SUM(I229:AH229) -> 0 | F229: =SUM(I229:M229) -> 0 | G229: =N229 -> 0 | H229: =SUM(O229:AH229) -> 0 | I229: =EN!$E$229 -> 0 | J229: =EN!$E$529 -> 0 | K229: =EN!$E$829 -> 0 | L229: =EN!$E$1129 -> 0 | M229: =EN!$E$1429 -> 0 | N229: =EN!$E$1729 -> 0 | O229: =EN!$E$2029 -> 0 | P229: =EN!$E$2329 -> 0 | Q229: =EN!$E$2629 -> 0 | R229: =EN!$E$2929 -> 0 | S229: =EN!$E$3229 -> 0 | T229: =EN!$E$3529 -> 0 | U229: =EN!$E$3829 -> 0 | V229: =EN!$E$4129 -> 0 | W229: =EN!$E$4429 -> 0 | X229: =EN!$E$4729 -> 0 | Y229: =EN!$E$5029 -> 0 | Z229: =EN!$E$5329 -> 0 | AA229: =EN!$E$5629 -> 0 | AB229: =EN!$E$5929 -> 0 | AC229: =EN!$E$6229 -> 0 | AD229: =EN!$E$6529 -> 0 | AE229: =EN!$E$6829 -> 0 | AF229: =EN!$E$7129 -> 0 | AG229: =EN!$E$7429 -> 0 | AH229: =EN!$E$7729 -> 0
C230: 64400 | D230: Schadensfälle | E230: =SUM(I230:AH230) -> 0 | F230: =SUM(I230:M230) -> 0 | G230: =N230 -> 0 | H230: =SUM(O230:AH230) -> 0 | I230: =EN!$E$230 -> 0 | J230: =EN!$E$530 -> 0 | K230: =EN!$E$830 -> 0 | L230: =EN!$E$1130 -> 0 | M230: =EN!$E$1430 -> 0 | N230: =EN!$E$1730 -> 0 | O230: =EN!$E$2030 -> 0 | P230: =EN!$E$2330 -> 0 | Q230: =EN!$E$2630 -> 0 | R230: =EN!$E$2930 -> 0 | S230: =EN!$E$3230 -> 0 | T230: =EN!$E$3530 -> 0 | U230: =EN!$E$3830 -> 0 | V230: =EN!$E$4130 -> 0 | W230: =EN!$E$4430 -> 0 | X230: =EN!$E$4730 -> 0 | Y230: =EN!$E$5030 -> 0 | Z230: =EN!$E$5330 -> 0 | AA230: =EN!$E$5630 -> 0 | AB230: =EN!$E$5930 -> 0 | AC230: =EN!$E$6230 -> 0 | AD230: =EN!$E$6530 -> 0 | AE230: =EN!$E$6830 -> 0 | AF230: =EN!$E$7130 -> 0 | AG230: =EN!$E$7430 -> 0 | AH230: =EN!$E$7730 -> 0
C233: 65 | D233: Geschäftsausgaben
C234: 65100 | D234: Porto, Telefon- und Funkgebühren | E234: =SUM(I234:AH234) -> 0 | F234: =SUM(I234:M234) -> 0 | G234: =N234 -> 0 | H234: =SUM(O234:AH234) -> 0 | I234: =EN!$E$234 -> 0 | J234: =EN!$E$534 -> 0 | K234: =EN!$E$834 -> 0 | L234: =EN!$E$1134 -> 0 | M234: =EN!$E$1434 -> 0 | N234: =EN!$E$1734 -> 0 | O234: =EN!$E$2034 -> 0 | P234: =EN!$E$2334 -> 0 | Q234: =EN!$E$2634 -> 0 | R234: =EN!$E$2934 -> 0 | S234: =EN!$E$3234 -> 0 | T234: =EN!$E$3534 -> 0 | U234: =EN!$E$3834 -> 0 | V234: =EN!$E$4134 -> 0 | W234: =EN!$E$4434 -> 0 | X234: =EN!$E$4734 -> 0 | Y234: =EN!$E$5034 -> 0 | Z234: =EN!$E$5334 -> 0 | AA234: =EN!$E$5634 -> 0 | AB234: =EN!$E$5934 -> 0 | AC234: =EN!$E$6234 -> 0 | AD234: =EN!$E$6534 -> 0 | AE234: =EN!$E$6834 -> 0 | AF234: =EN!$E$7134 -> 0 | AG234: =EN!$E$7434 -> 0 | AH234: =EN!$E$7734 -> 0
C235: 65200 | D235: Rechts- und Beratungskosten * | E235: 0 | F235: 0 | G235: 0 | H235: 0 | I235: =EN!$E$235 -> 0 | J235: =EN!$E$535 -> 0 | K235: =EN!$E$835 -> 0 | L235: =EN!$E$1135 -> 0 | M235: =EN!$E$1435 -> 0 | N235: =EN!$E$1735 -> 0 | O235: =EN!$E$2035 -> 0 | P235: =EN!$E$2335 -> 0 | Q235: =EN!$E$2635 -> 0 | R235: =EN!$E$2935 -> 0 | S235: =EN!$E$3235 -> 0 | T235: =EN!$E$3535 -> 0 | U235: =EN!$E$3835 -> 0 | V235: =EN!$E$4135 -> 0 | W235: =EN!$E$4435 -> 0 | X235: =EN!$E$4735 -> 0 | Y235: =EN!$E$5035 -> 0 | Z235: =EN!$E$5335 -> 0 | AA235: =EN!$E$5635 -> 0 | AB235: =EN!$E$5935 -> 0 | AC235: =EN!$E$6235 -> 0 | AD235: =EN!$E$6535 -> 0 | AE235: =EN!$E$6835 -> 0 | AF235: =EN!$E$7135 -> 0 | AG235: =EN!$E$7435 -> 0 | AH235: =EN!$E$7735 -> 0
C236: 65300 | D236: Abschluss- und Prüfungskosten * | E236: 0 | F236: 0 | G236: 0 | H236: 0 | I236: =EN!$E$236 -> 0 | J236: =EN!$E$536 -> 0 | K236: =EN!$E$836 -> 0 | L236: =EN!$E$1136 -> 0 | M236: =EN!$E$1436 -> 0 | N236: =EN!$E$1736 -> 0 | O236: =EN!$E$2036 -> 0 | P236: =EN!$E$2336 -> 0 | Q236: =EN!$E$2636 -> 0 | R236: =EN!$E$2936 -> 0 | S236: =EN!$E$3236 -> 0 | T236: =EN!$E$3536 -> 0 | U236: =EN!$E$3836 -> 0 | V236: =EN!$E$4136 -> 0 | W236: =EN!$E$4436 -> 0 | X236: =EN!$E$4736 -> 0 | Y236: =EN!$E$5036 -> 0 | Z236: =EN!$E$5336 -> 0 | AA236: =EN!$E$5636 -> 0 | AB236: =EN!$E$5936 -> 0 | AC236: =EN!$E$6236 -> 0 | AD236: =EN!$E$6536 -> 0 | AE236: =EN!$E$6836 -> 0 | AF236: =EN!$E$7136 -> 0 | AG236: =EN!$E$7436 -> 0 | AH236: =EN!$E$7736 -> 0
C237: 65400 | D237: Büromaterial | E237: 0 | F237: 0 | G237: 0 | H237: 0 | I237: =EN!$E$237 -> 0 | J237: =EN!$E$537 -> 0 | K237: =EN!$E$837 -> 0 | L237: =EN!$E$1137 -> 0 | M237: =EN!$E$1437 -> 0 | N237: =EN!$E$1737 -> 0 | O237: =EN!$E$2037 -> 0 | P237: =EN!$E$2337 -> 0 | Q237: =EN!$E$2637 -> 0 | R237: =EN!$E$2937 -> 0 | S237: =EN!$E$3237 -> 0 | T237: =EN!$E$3537 -> 0 | U237: =EN!$E$3837 -> 0 | V237: =EN!$E$4137 -> 0 | W237: =EN!$E$4437 -> 0 | X237: =EN!$E$4737 -> 0 | Y237: =EN!$E$5037 -> 0 | Z237: =EN!$E$5337 -> 0 | AA237: =EN!$E$5637 -> 0 | AB237: =EN!$E$5937 -> 0 | AC237: =EN!$E$6237 -> 0 | AD237: =EN!$E$6537 -> 0 | AE237: =EN!$E$6837 -> 0 | AF237: =EN!$E$7137 -> 0 | AG237: =EN!$E$7437 -> 0 | AH237: =EN!$E$7737 -> 0
C238: 65500 | D238: Kosten des Geldverkehrs * | E238: 0 | F238: 0 | G238: 0 | H238: 0 | I238: =EN!$E$238 -> 0 | J238: =EN!$E$538 -> 0 | K238: =EN!$E$838 -> 0 | L238: =EN!$E$1138 -> 0 | M238: =EN!$E$1438 -> 0 | N238: =EN!$E$1738 -> 0 | O238: =EN!$E$2038 -> 0 | P238: =EN!$E$2338 -> 0 | Q238: =EN!$E$2638 -> 0 | R238: =EN!$E$2938 -> 0 | S238: =EN!$E$3238 -> 0 | T238: =EN!$E$3538 -> 0 | U238: =EN!$E$3838 -> 0 | V238: =EN!$E$4138 -> 0 | W238: =EN!$E$4438 -> 0 | X238: =EN!$E$4738 -> 0 | Y238: =EN!$E$5038 -> 0 | Z238: =EN!$E$5338 -> 0 | AA238: =EN!$E$5638 -> 0 | AB238: =EN!$E$5938 -> 0 | AC238: =EN!$E$6238 -> 0 | AD238: =EN!$E$6538 -> 0 | AE238: =EN!$E$6838 -> 0 | AF238: =EN!$E$7138 -> 0 | AG238: =EN!$E$7438 -> 0 | AH238: =EN!$E$7738 -> 0
C239: 65600 | D239: Wartung EDV | E239: 0 | F239: 0 | G239: 0 | H239: 0 | I239: =EN!$E$239 -> 0 | J239: =EN!$E$539 -> 0 | K239: =EN!$E$839 -> 0 | L239: =EN!$E$1139 -> 0 | M239: =EN!$E$1439 -> 0 | N239: =EN!$E$1739 -> 0 | O239: =EN!$E$2039 -> 0 | P239: =EN!$E$2339 -> 0 | Q239: =EN!$E$2639 -> 0 | R239: =EN!$E$2939 -> 0 | S239: =EN!$E$3239 -> 0 | T239: =EN!$E$3539 -> 0 | U239: =EN!$E$3839 -> 0 | V239: =EN!$E$4139 -> 0 | W239: =EN!$E$4439 -> 0 | X239: =EN!$E$4739 -> 0 | Y239: =EN!$E$5039 -> 0 | Z239: =EN!$E$5339 -> 0 | AA239: =EN!$E$5639 -> 0 | AB239: =EN!$E$5939 -> 0 | AC239: =EN!$E$6239 -> 0 | AD239: =EN!$E$6539 -> 0 | AE239: =EN!$E$6839 -> 0 | AF239: =EN!$E$7139 -> 0 | AG239: =EN!$E$7439 -> 0 | AH239: =EN!$E$7739 -> 0
C240: 65700 | D240: Sonstiger Verwaltungsaufwand | E240: 0 | F240: 0 | G240: 0 | H240: 0 | I240: =EN!$E$240 -> 0 | J240: =EN!$E$540 -> 0 | K240: =EN!$E$840 -> 0 | L240: =EN!$E$1140 -> 0 | M240: =EN!$E$1440 -> 0 | N240: =EN!$E$1740 -> 0 | O240: =EN!$E$2040 -> 0 | P240: =EN!$E$2340 -> 0 | Q240: =EN!$E$2640 -> 0 | R240: =EN!$E$2940 -> 0 | S240: =EN!$E$3240 -> 0 | T240: =EN!$E$3540 -> 0 | U240: =EN!$E$3840 -> 0 | V240: =EN!$E$4140 -> 0 | W240: =EN!$E$4440 -> 0 | X240: =EN!$E$4740 -> 0 | Y240: =EN!$E$5040 -> 0 | Z240: =EN!$E$5340 -> 0 | AA240: =EN!$E$5640 -> 0 | AB240: =EN!$E$5940 -> 0 | AC240: =EN!$E$6240 -> 0 | AD240: =EN!$E$6540 -> 0 | AE240: =EN!$E$6840 -> 0 | AF240: =EN!$E$7140 -> 0 | AG240: =EN!$E$7440 -> 0 | AH240: =EN!$E$7740 -> 0
C241: 65800 | D241: Vordrucke/Formulare | E241: 0 | F241: 0 | G241: 0 | H241: 0 | I241: =EN!$E$241 -> 0 | J241: =EN!$E$541 -> 0 | K241: =EN!$E$841 -> 0 | L241: =EN!$E$1141 -> 0 | M241: =EN!$E$1441 -> 0 | N241: =EN!$E$1741 -> 0 | O241: =EN!$E$2041 -> 0 | P241: =EN!$E$2341 -> 0 | Q241: =EN!$E$2641 -> 0 | R241: =EN!$E$2941 -> 0 | S241: =EN!$E$3241 -> 0 | T241: =EN!$E$3541 -> 0 | U241: =EN!$E$3841 -> 0 | V241: =EN!$E$4141 -> 0 | W241: =EN!$E$4441 -> 0 | X241: =EN!$E$4741 -> 0 | Y241: =EN!$E$5041 -> 0 | Z241: =EN!$E$5341 -> 0 | AA241: =EN!$E$5641 -> 0 | AB241: =EN!$E$5941 -> 0 | AC241: =EN!$E$6241 -> 0 | AD241: =EN!$E$6541 -> 0 | AE241: =EN!$E$6841 -> 0 | AF241: =EN!$E$7141 -> 0 | AG241: =EN!$E$7441 -> 0 | AH241: =EN!$E$7741 -> 0
C242: 65900 | D242: Fachliteratur | E242: 0 | F242: 0 | G242: 0 | H242: 0 | I242: =EN!$E$242 -> 0 | J242: =EN!$E$542 -> 0 | K242: =EN!$E$842 -> 0 | L242: =EN!$E$1142 -> 0 | M242: =EN!$E$1442 -> 0 | N242: =EN!$E$1742 -> 0 | O242: =EN!$E$2042 -> 0 | P242: =EN!$E$2342 -> 0 | Q242: =EN!$E$2642 -> 0 | R242: =EN!$E$2942 -> 0 | S242: =EN!$E$3242 -> 0 | T242: =EN!$E$3542 -> 0 | U242: =EN!$E$3842 -> 0 | V242: =EN!$E$4142 -> 0 | W242: =EN!$E$4442 -> 0 | X242: =EN!$E$4742 -> 0 | Y242: =EN!$E$5042 -> 0 | Z242: =EN!$E$5342 -> 0 | AA242: =EN!$E$5642 -> 0 | AB242: =EN!$E$5942 -> 0 | AC242: =EN!$E$6242 -> 0 | AD242: =EN!$E$6542 -> 0 | AE242: =EN!$E$6842 -> 0 | AF242: =EN!$E$7142 -> 0 | AG242: =EN!$E$7442 -> 0 | AH242: =EN!$E$7742 -> 0
C243: 67000 | D243: Erstattung Querschnittsamtskosten * | E243: 0 | F243: 0 | G243: 0 | H243: 0 | I243: =EN!$E$243 -> 0 | J243: =EN!$E$543 -> 0 | K243: =EN!$E$843 -> 0 | L243: =EN!$E$1143 -> 0 | M243: =EN!$E$1443 -> 0 | N243: =EN!$E$1743 -> 0 | O243: =EN!$E$2043 -> 0 | P243: =EN!$E$2343 -> 0 | Q243: =EN!$E$2643 -> 0 | R243: =EN!$E$2943 -> 0 | S243: =EN!$E$3243 -> 0 | T243: =EN!$E$3543 -> 0 | U243: =EN!$E$3843 -> 0 | V243: =EN!$E$4143 -> 0 | W243: =EN!$E$4443 -> 0 | X243: =EN!$E$4743 -> 0 | Y243: =EN!$E$5043 -> 0 | Z243: =EN!$E$5343 -> 0 | AA243: =EN!$E$5643 -> 0 | AB243: =EN!$E$5943 -> 0 | AC243: =EN!$E$6243 -> 0 | AD243: =EN!$E$6543 -> 0 | AE243: =EN!$E$6843 -> 0 | AF243: =EN!$E$7143 -> 0 | AG243: =EN!$E$7443 -> 0 | AH243: =EN!$E$7743 -> 0
D246: Summe C 3.3 | E246: =SUM(E227:E243) -> 0 | F246: =SUM(F227:F243) -> 0 | G246: 0 | H246: 0 | I246: 0 | J246: 0 | K246: 0 | L246: 0 | M246: 0 | N246: 0 | O246: 0 | P246: 0 | Q246: 0 | R246: 0 | S246: 0 | T246: 0 | U246: 0 | V246: 0 | W246: 0 | X246: 0 | Y246: 0 | Z246: 0 | AA246: 0 | AB246: 0 | AC246: 0 | AD246: 0 | AE246: 0 | AF246: 0 | AG246: 0 | AH246: 0
C252: C 3 | D252: Aufwand
C253: C 3.4 | D253: Kalkulatorische Kosten - Sonstige Finanzausgaben
C256: 68 | D256: Kalkulatorische Kosten *
C257: 68010 | D257: AfA Gebäude | E257: =SUM(I257:AH257) -> 0 | F257: =SUM(I257:M257) -> 0 | G257: =N257 -> 0 | H257: =SUM(O257:AH257) -> 0 | I257: =EN!$E$257 -> 0 | J257: =EN!$E$557 -> 0 | K257: =EN!$E$857 -> 0 | L257: =EN!$E$1157 -> 0 | M257: =EN!$E$1457 -> 0 | N257: =EN!$E$1757 -> 0 | O257: =EN!$E$2057 -> 0 | P257: =EN!$E$2357 -> 0 | Q257: =EN!$E$2657 -> 0 | R257: =EN!$E$2957 -> 0 | S257: =EN!$E$3257 -> 0 | T257: =EN!$E$3557 -> 0 | U257: =EN!$E$3857 -> 0 | V257: =EN!$E$4157 -> 0 | W257: =EN!$E$4457 -> 0 | X257: =EN!$E$4757 -> 0 | Y257: =EN!$E$5057 -> 0 | Z257: =EN!$E$5357 -> 0 | AA257: =EN!$E$5657 -> 0 | AB257: =EN!$E$5957 -> 0 | AC257: =EN!$E$6257 -> 0 | AD257: =EN!$E$6557 -> 0 | AE257: =EN!$E$6857 -> 0 | AF257: =EN!$E$7157 -> 0 | AG257: =EN!$E$7457 -> 0 | AH257: =EN!$E$7757 -> 0
C258: 68020 | D258: AfA Fahrzeuge | E258: 0 | F258: 0 | G258: 0 | H258: 0 | I258: =EN!$E$258 -> 0 | J258: =EN!$E$558 -> 0 | K258: =EN!$E$858 -> 0 | L258: =EN!$E$1158 -> 0 | M258: =EN!$E$1458 -> 0 | N258: =EN!$E$1758 -> 0 | O258: =EN!$E$2058 -> 0 | P258: =EN!$E$2358 -> 0 | Q258: =EN!$E$2658 -> 0 | R258: =EN!$E$2958 -> 0 | S258: =EN!$E$3258 -> 0 | T258: =EN!$E$3558 -> 0 | U258: =EN!$E$3858 -> 0 | V258: =EN!$E$4158 -> 0 | W258: =EN!$E$4458 -> 0 | X258: =EN!$E$4758 -> 0 | Y258: =EN!$E$5058 -> 0 | Z258: =EN!$E$5358 -> 0 | AA258: =EN!$E$5658 -> 0 | AB258: =EN!$E$5958 -> 0 | AC258: =EN!$E$6258 -> 0 | AD258: =EN!$E$6558 -> 0 | AE258: =EN!$E$6858 -> 0 | AF258: =EN!$E$7158 -> 0 | AG258: =EN!$E$7458 -> 0 | AH258: =EN!$E$7758 -> 0
C259: 68030 | D259: AfA Ausrüstungen * | E259: 0 | F259: 0 | G259: 0 | H259: 0 | I259: =EN!$E$259 -> 0 | J259: =EN!$E$559 -> 0 | K259: =EN!$E$859 -> 0 | L259: =EN!$E$1159 -> 0 | M259: =EN!$E$1459 -> 0 | N259: =EN!$E$1759 -> 0 | O259: =EN!$E$2059 -> 0 | P259: =EN!$E$2359 -> 0 | Q259: =EN!$E$2659 -> 0 | R259: =EN!$E$2959 -> 0 | S259: =EN!$E$3259 -> 0 | T259: =EN!$E$3559 -> 0 | U259: =EN!$E$3859 -> 0 | V259: =EN!$E$4159 -> 0 | W259: =EN!$E$4459 -> 0 | X259: =EN!$E$4759 -> 0 | Y259: =EN!$E$5059 -> 0 | Z259: =EN!$E$5359 -> 0 | AA259: =EN!$E$5659 -> 0 | AB259: =EN!$E$5959 -> 0 | AC259: =EN!$E$6259 -> 0 | AD259: =EN!$E$6559 -> 0 | AE259: =EN!$E$6859 -> 0 | AF259: =EN!$E$7159 -> 0 | AG259: =EN!$E$7459 -> 0 | AH259: =EN!$E$7759 -> 0
C260: 68040 | D260: AfA Med.-techn. Geräte | E260: 0 | F260: 0 | G260: 0 | H260: 0 | I260: =EN!$E$260 -> 0 | J260: =EN!$E$560 -> 0 | K260: =EN!$E$860 -> 0 | L260: =EN!$E$1160 -> 0 | M260: =EN!$E$1460 -> 0 | N260: =EN!$E$1760 -> 0 | O260: =EN!$E$2060 -> 0 | P260: =EN!$E$2360 -> 0 | Q260: =EN!$E$2660 -> 0 | R260: =EN!$E$2960 -> 0 | S260: =EN!$E$3260 -> 0 | T260: =EN!$E$3560 -> 0 | U260: =EN!$E$3860 -> 0 | V260: =EN!$E$4160 -> 0 | W260: =EN!$E$4460 -> 0 | X260: =EN!$E$4760 -> 0 | Y260: =EN!$E$5060 -> 0 | Z260: =EN!$E$5360 -> 0 | AA260: =EN!$E$5660 -> 0 | AB260: =EN!$E$5960 -> 0 | AC260: =EN!$E$6260 -> 0 | AD260: =EN!$E$6560 -> 0 | AE260: =EN!$E$6860 -> 0 | AF260: =EN!$E$7160 -> 0 | AG260: =EN!$E$7460 -> 0 | AH260: =EN!$E$7760 -> 0
C261: 68500 | D261: Verzinsung des Anlagekapitals | E261: 0 | F261: 0 | G261: 0 | H261: 0 | I261: =EN!$E$261 -> 0 | J261: =EN!$E$561 -> 0 | K261: =EN!$E$861 -> 0 | L261: =EN!$E$1161 -> 0 | M261: =EN!$E$1461 -> 0 | N261: =EN!$E$1761 -> 0 | O261: =EN!$E$2061 -> 0 | P261: =EN!$E$2361 -> 0 | Q261: =EN!$E$2661 -> 0 | R261: =EN!$E$2961 -> 0 | S261: =EN!$E$3261 -> 0 | T261: =EN!$E$3561 -> 0 | U261: =EN!$E$3861 -> 0 | V261: =EN!$E$4161 -> 0 | W261: =EN!$E$4461 -> 0 | X261: =EN!$E$4761 -> 0 | Y261: =EN!$E$5061 -> 0 | Z261: =EN!$E$5361 -> 0 | AA261: =EN!$E$5661 -> 0 | AB261: =EN!$E$5961 -> 0 | AC261: =EN!$E$6261 -> 0 | AD261: =EN!$E$6561 -> 0 | AE261: =EN!$E$6861 -> 0 | AF261: =EN!$E$7161 -> 0 | AG261: =EN!$E$7461 -> 0 | AH261: =EN!$E$7761 -> 0
C262: 68600 | D262: Kalkulatorische Mieten * | E262: 0 | F262: 0 | G262: 0 | H262: 0 | I262: =EN!$E$262 -> 0 | J262: =EN!$E$562 -> 0 | K262: =EN!$E$862 -> 0 | L262: =EN!$E$1162 -> 0 | M262: =EN!$E$1462 -> 0 | N262: =EN!$E$1762 -> 0 | O262: =EN!$E$2062 -> 0 | P262: =EN!$E$2362 -> 0 | Q262: =EN!$E$2662 -> 0 | R262: =EN!$E$2962 -> 0 | S262: =EN!$E$3262 -> 0 | T262: =EN!$E$3562 -> 0 | U262: =EN!$E$3862 -> 0 | V262: =EN!$E$4162 -> 0 | W262: =EN!$E$4462 -> 0 | X262: =EN!$E$4762 -> 0 | Y262: =EN!$E$5062 -> 0 | Z262: =EN!$E$5362 -> 0 | AA262: =EN!$E$5662 -> 0 | AB262: =EN!$E$5962 -> 0 | AC262: =EN!$E$6262 -> 0 | AD262: =EN!$E$6562 -> 0 | AE262: =EN!$E$6862 -> 0 | AF262: =EN!$E$7162 -> 0 | AG262: =EN!$E$7462 -> 0 | AH262: =EN!$E$7762 -> 0
C265: 8 | D265: Sonstige Finanzausgaben
C266: 80000 | D266: Zinsausgaben * | E266: =SUM(I266:AH266) -> 0 | F266: =SUM(I266:M266) -> 0 | G266: =N266 -> 0 | H266: =SUM(O266:AH266) -> 0 | I266: =EN!$E$266 -> 0 | J266: =EN!$E$566 -> 0 | K266: =EN!$E$866 -> 0 | L266: =EN!$E$1166 -> 0 | M266: =EN!$E$1466 -> 0 | N266: =EN!$E$1766 -> 0 | O266: =EN!$E$2066 -> 0 | P266: =EN!$E$2366 -> 0 | Q266: =EN!$E$2666 -> 0 | R266: =EN!$E$2966 -> 0 | S266: =EN!$E$3266 -> 0 | T266: =EN!$E$3566 -> 0 | U266: =EN!$E$3866 -> 0 | V266: =EN!$E$4166 -> 0 | W266: =EN!$E$4466 -> 0 | X266: =EN!$E$4766 -> 0 | Y266: =EN!$E$5066 -> 0 | Z266: =EN!$E$5366 -> 0 | AA266: =EN!$E$5666 -> 0 | AB266: =EN!$E$5966 -> 0 | AC266: =EN!$E$6266 -> 0 | AD266: =EN!$E$6566 -> 0 | AE266: =EN!$E$6866 -> 0 | AF266: =EN!$E$7166 -> 0 | AG266: =EN!$E$7466 -> 0 | AH266: =EN!$E$7766 -> 0
C267: 89000 | D267: Einzelwertberichtigung zu Forderng. | E267: =SUM(I267:AH267) -> 0 | F267: =SUM(I267:M267) -> 0 | G267: =N267 -> 0 | H267: =SUM(O267:AH267) -> 0 | I267: =EN!$E$267 -> 0 | J267: =EN!$E$567 -> 0 | K267: =EN!$E$867 -> 0 | L267: =EN!$E$1167 -> 0 | M267: =EN!$E$1467 -> 0 | N267: =EN!$E$1767 -> 0 | O267: =EN!$E$2067 -> 0 | P267: =EN!$E$2367 -> 0 | Q267: =EN!$E$2667 -> 0 | R267: =EN!$E$2967 -> 0 | S267: =EN!$E$3267 -> 0 | T267: =EN!$E$3567 -> 0 | U267: =EN!$E$3867 -> 0 | V267: =EN!$E$4167 -> 0 | W267: =EN!$E$4467 -> 0 | X267: =EN!$E$4767 -> 0 | Y267: =EN!$E$5067 -> 0 | Z267: =EN!$E$5367 -> 0 | AA267: =EN!$E$5667 -> 0 | AB267: =EN!$E$5967 -> 0 | AC267: =EN!$E$6267 -> 0 | AD267: =EN!$E$6567 -> 0 | AE267: =EN!$E$6867 -> 0 | AF267: =EN!$E$7167 -> 0 | AG267: =EN!$E$7467 -> 0 | AH267: =EN!$E$7767 -> 0
D270: Summe C 3.4 | E270: =SUM(E257:E267) -> 0 | F270: =SUM(F257:F267) -> 0 | G270: 0 | H270: 0 | I270: 0 | J270: 0 | K270: 0 | L270: 0 | M270: 0 | N270: 0 | O270: 0 | P270: 0 | Q270: 0 | R270: 0 | S270: 0 | T270: 0 | U270: 0 | V270: 0 | W270: 0 | X270: 0 | Y270: 0 | Z270: 0 | AA270: 0 | AB270: 0 | AC270: 0 | AD270: 0 | AE270: 0 | AF270: 0 | AG270: 0 | AH270: 0
C306: ="Dateneingabe - KLR Rettungsdienst für den RDB "&INDEX(ParameterDatei!C$85:C$102,ParameterDatei!B$107)&" - 01.01.-31.12."&Stammdaten_1!D$8 -> Dateneingabe - KLR Rettungsdienst für den RDB Havelland - 01.01.-31.12.2014
C307: ="Verdichtung Spalte 2 - "&"Buchhaltung Ist - "&Stammdaten_1!D$8-2 -> Verdichtung Spalte 2 - Buchhaltung Ist - 2012
C309: Bezeichnung | E309: Gesamt RD-Bereich | F309: Gesamt Verwaltung | G309: Gesamt Leistelle | H309: Gesamt RW | I309: =ParameterDatei!C$139 -> Verwaltung 1 | J309: =ParameterDatei!C$140 -> Verwaltung 2 | K309: =ParameterDatei!C$141 -> Verwaltung 3 | L309: =ParameterDatei!C$142 -> Verwaltung 4 | M309: =ParameterDatei!C$143 -> Verwaltung 5 | N309: =ParameterDatei!C$144 -> Leistelle | O309: ="RW "&ParameterDatei!B$145-6 -> RW 1 | P309: ="RW "&ParameterDatei!B$146-6 -> RW 2 | Q309: ="RW "&ParameterDatei!B$147-6 -> RW 3 | R309: ="RW "&ParameterDatei!B$148-6 -> RW 4 | S309: ="RW "&ParameterDatei!B$149-6 -> RW 5 | T309: ="RW "&ParameterDatei!B$150-6 -> RW 6 | U309: ="RW "&ParameterDatei!B$151-6 -> RW 7 | V309: ="RW "&ParameterDatei!B$152-6 -> RW 8 | W309: ="RW "&ParameterDatei!B$153-6 -> RW 9 | X309: ="RW "&ParameterDatei!B$154-6 -> RW 10 | Y309: ="RW "&ParameterDatei!B$155-6 -> RW 11 | Z309: ="RW "&ParameterDatei!B$156-6 -> RW 12 | AA309: ="RW "&ParameterDatei!B$157-6 -> RW 13 | AB309: ="RW "&ParameterDatei!B$158-6 -> RW 14 | AC309: ="RW "&ParameterDatei!B$159-6 -> RW 15 | AD309: ="RW "&ParameterDatei!B$160-6 -> RW 16 | AE309: ="RW "&ParameterDatei!B$161-6 -> RW 17 | AF309: ="RW "&ParameterDatei!B$162-6 -> RW 18 | AG309: ="RW "&ParameterDatei!B$163-6 -> RW 19 | AH309: ="RW "&ParameterDatei!B$164-6 -> RW 20
E310: 1 | F310: 2 | G310: 3 | H310: 4 | I310: 5 | J310: 6 | K310: 7 | L310: 8 | M310: 9 | N310: 10 | O310: 11 | P310: 12 | Q310: 13 | R310: 14 | S310: 15 | T310: 16 | U310: 17 | V310: 18 | W310: 19 | X310: 20 | Y310: 21 | Z310: 22 | AA310: 23 | AB310: 24 | AC310: 25 | AD310: 26 | AE310: 27 | AF310: 28 | AG310: 29 | AH310: 30
C313: C 1 | D313: Gesamtkostenermittlung
C316: C 2 | D316: Einnahmen
C317: C 2.1 | D317: Einnahmen aus Verwaltg. und Betrieb | E317: =E360 -> 0 | F317: =F360 -> 0 | G317: =G360 -> 0 | H317: =H360 -> 0 | I317: =I360 -> 0 | J317: =J360 -> 0 | K317: 0 | L317: 0 | M317: 0 | N317: 0 | O317: 0 | P317: 0 | Q317: 0 | R317: 0 | S317: 0 | T317: 0 | U317: 0 | V317: 0 | W317: 0 | X317: 0 | Y317: 0 | Z317: 0 | AA317: 0 | AB317: 0 | AC317: 0 | AD317: 0 | AE317: 0 | AF317: 0 | AG317: 0 | AH317: 0
C318: C 2.2 | D318: Sonstige Finanzeinnahmen | E318: =E374 -> 0 | F318: =F374 -> 0 | G318: =G374 -> 0 | H318: =H374 -> 0 | I318: =I374 -> 0 | J318: =J374 -> 0 | K318: 0 | L318: 0 | M318: 0 | N318: 0 | O318: 0 | P318: 0 | Q318: 0 | R318: 0 | S318: 0 | T318: 0 | U318: 0 | V318: 0 | W318: 0 | X318: 0 | Y318: 0 | Z318: 0 | AA318: 0 | AB318: 0 | AC318: 0 | AD318: 0 | AE318: 0 | AF318: 0 | AG318: 0 | AH318: 0
C319: C 2 | D319: Summe Einnahmen | E319: =E317+E318 -> 0 | F319: 0 | G319: 0 | H319: 0 | I319: 0 | J319: 0 | K319: 0 | L319: 0 | M319: 0 | N319: 0 | O319: 0 | P319: 0 | Q319: 0 | R319: 0 | S319: 0 | T319: 0 | U319: 0 | V319: 0 | W319: 0 | X319: 0 | Y319: 0 | Z319: 0 | AA319: 0 | AB319: 0 | AC319: 0 | AD319: 0 | AE319: 0 | AF319: 0 | AG319: 0 | AH319: 0
C322: C 3 | D322: Aufwand
C323: C 3.1 | D323: Personalkosten | E323: =E447 -> 0 | F323: =F447 -> 0 | G323: =G447 -> 0 | H323: =H447 -> 0 | I323: =I447 -> 0 | J323: =J447 -> 0 | K323: 0 | L323: 0 | M323: 0 | N323: 0 | O323: 0 | P323: 0 | Q323: 0 | R323: 0 | S323: 0 | T323: 0 | U323: 0 | V323: 0 | W323: 0 | X323: 0 | Y323: 0 | Z323: 0 | AA323: 0 | AB323: 0 | AC323: 0 | AD323: 0 | AE323: 0 | AF323: 0 | AG323: 0 | AH323: 0
C324: C 3.2 | D324: Sachkosten | E324: =E516 -> 0 | F324: =F516 -> 0 | G324: =G516 -> 0 | H324: =H516 -> 0 | I324: =I516 -> 0 | J324: =J516 -> 0 | K324: 0 | L324: 0 | M324: 0 | N324: 0 | O324: 0 | P324: 0 | Q324: 0 | R324: 0 | S324: 0 | T324: 0 | U324: 0 | V324: 0 | W324: 0 | X324: 0 | Y324: 0 | Z324: 0 | AA324: 0 | AB324: 0 | AC324: 0 | AD324: 0 | AE324: 0 | AF324: 0 | AG324: 0 | AH324: 0
C325: C 3.3 | D325: Sonstige Kosten | E325: =E546 -> 0 | F325: =F546 -> 0 | G325: =G546 -> 0 | H325: =H546 -> 0 | I325: =I546 -> 0 | J325: =J546 -> 0 | K325: 0 | L325: 0 | M325: 0 | N325: 0 | O325: 0 | P325: 0 | Q325: 0 | R325: 0 | S325: 0 | T325: 0 | U325: 0 | V325: 0 | W325: 0 | X325: 0 | Y325: 0 | Z325: 0 | AA325: 0 | AB325: 0 | AC325: 0 | AD325: 0 | AE325: 0 | AF325: 0 | AG325: 0 | AH325: 0
C326: C 3.4 | D326: Kalkulatorische Kosten | E326: =E570 -> 0 | F326: =F570 -> 0 | G326: =G570 -> 0 | H326: =H570 -> 0 | I326: =I570 -> 0 | J326: =J570 -> 0 | K326: 0 | L326: 0 | M326: 0 | N326: 0 | O326: 0 | P326: 0 | Q326: 0 | R326: 0 | S326: 0 | T326: 0 | U326: 0 | V326: 0 | W326: 0 | X326: 0 | Y326: 0 | Z326: 0 | AA326: 0 | AB326: 0 | AC326: 0 | AD326: 0 | AE326: 0 | AF326: 0 | AG326: 0 | AH326: 0
C327: C 3 | D327: Summe Aufwand | E327: =SUM(E323:E326) -> 0 | F327: 0 | G327: 0 | H327: 0 | I327: 0 | J327: 0 | K327: 0 | L327: 0 | M327: 0 | N327: 0 | O327: 0 | P327: 0 | Q327: 0 | R327: 0 | S327: 0 | T327: 0 | U327: 0 | V327: 0 | W327: 0 | X327: 0 | Y327: 0 | Z327: 0 | AA327: 0 | AB327: 0 | AC327: 0 | AD327: 0 | AE327: 0 | AF327: 0 | AG327: 0 | AH327: 0
D330: Gesamtkosten
D331: (C 3 - C 2) | E331: =E327-E319 -> 0 | F331: =F327-F319 -> 0 | G331: =G327-G319 -> 0 | H331: =H327-H319 -> 0 | I331: =I327-I319 -> 0 | J331: =J327-J319 -> 0 | K331: 0 | L331: 0 | M331: 0 | N331: 0 | O331: 0 | P331: 0 | Q331: 0 | R331: 0 | S331: 0 | T331: 0 | U331: 0 | V331: 0 | W331: 0 | X331: 0 | Y331: 0 | Z331: 0 | AA331: 0 | AB331: 0 | AC331: 0 | AD331: 0 | AE331: 0 | AF331: 0 | AG331: 0 | AH331: 0
C337: C 2 | D337: Einnahmen
C338: C 2.1 | D338: Einnahmen aus Verwaltung und Betrieb
C341: 11 | D341: Benutzungsgebühren
C342: 11100 | D342: Erlöse Leitstelle * | E342: =SUM(I342:AH342) -> 0 | F342: =SUM(I342:M342) -> 0 | G342: =N342 -> 0 | H342: =SUM(O342:AH342) -> 0 | I342: =EN!$F$42 -> 0 | J342: =EN!$F$342 -> 0 | K342: =EN!$F$642 -> 0 | L342: =EN!$F$942 -> 0 | M342: =EN!$F$1242 -> 0 | N342: =EN!$F$1542 -> 0 | O342: =EN!$F$1842 -> 0 | P342: =EN!$F$2142 -> 0 | Q342: =EN!$F$2442 -> 0 | R342: =EN!$F$2742 -> 0 | S342: =EN!$F$3042 -> 0 | T342: =EN!$F$3342 -> 0 | U342: =EN!$F$3642 -> 0 | V342: =EN!$F$3942 -> 0 | W342: =EN!$F$4242 -> 0 | X342: =EN!$F$4542 -> 0 | Y342: =EN!$F$4842 -> 0 | Z342: =EN!$F$5142 -> 0 | AA342: =EN!$F$5442 -> 0 | AB342: =EN!$F$5742 -> 0 | AC342: =EN!$F$6042 -> 0 | AD342: =EN!$F$6342 -> 0 | AE342: =EN!$F$6642 -> 0 | AF342: =EN!$F$6942 -> 0 | AG342: =EN!$F$7242 -> 0 | AH342: =EN!$F$7542 -> 0
C343: 11200 | D343: Erstattung für Sicherstellungen * | E343: =SUM(I343:AH343) -> 0 | F343: =SUM(I343:M343) -> 0 | G343: =N343 -> 0 | H343: =SUM(O343:AH343) -> 0 | I343: =EN!$F$43 -> 0 | J343: =EN!$F$343 -> 0 | K343: =EN!$F$643 -> 0 | L343: =EN!$F$943 -> 0 | M343: =EN!$F$1243 -> 0 | N343: =EN!$F$1543 -> 0 | O343: =EN!$F$1843 -> 0 | P343: =EN!$F$2143 -> 0 | Q343: =EN!$F$2443 -> 0 | R343: =EN!$F$2743 -> 0 | S343: =EN!$F$3043 -> 0 | T343: =EN!$F$3343 -> 0 | U343: =EN!$F$3643 -> 0 | V343: =EN!$F$3943 -> 0 | W343: =EN!$F$4243 -> 0 | X343: =EN!$F$4543 -> 0 | Y343: =EN!$F$4843 -> 0 | Z343: =EN!$F$5143 -> 0 | AA343: =EN!$F$5443 -> 0 | AB343: =EN!$F$5743 -> 0 | AC343: =EN!$F$6043 -> 0 | AD343: =EN!$F$6343 -> 0 | AE343: =EN!$F$6643 -> 0 | AF343: =EN!$F$6943 -> 0 | AG343: =EN!$F$7243 -> 0 | AH343: =EN!$F$7543 -> 0
C344: 11300 | D344: Erlöse Sondertarife * | E344: =SUM(I344:AH344) -> 0 | F344: =SUM(I344:M344) -> 0 | G344: =N344 -> 0 | H344: =SUM(O344:AH344) -> 0 | I344: =EN!$F$44 -> 0 | J344: =EN!$F$344 -> 0 | K344: =EN!$F$644 -> 0 | L344: =EN!$F$944 -> 0 | M344: =EN!$F$1244 -> 0 | N344: =EN!$F$1544 -> 0 | O344: =EN!$F$1844 -> 0 | P344: =EN!$F$2144 -> 0 | Q344: =EN!$F$2444 -> 0 | R344: =EN!$F$2744 -> 0 | S344: =EN!$F$3044 -> 0 | T344: =EN!$F$3344 -> 0 | U344: =EN!$F$3644 -> 0 | V344: =EN!$F$3944 -> 0 | W344: =EN!$F$4244 -> 0 | X344: =EN!$F$4544 -> 0 | Y344: =EN!$F$4844 -> 0 | Z344: =EN!$F$5144 -> 0 | AA344: =EN!$F$5444 -> 0 | AB344: =EN!$F$5744 -> 0 | AC344: =EN!$F$6044 -> 0 | AD344: =EN!$F$6344 -> 0 | AE344: =EN!$F$6644 -> 0 | AF344: =EN!$F$6944 -> 0 | AG344: =EN!$F$7244 -> 0 | AH344: =EN!$F$7544 -> 0
C347: 13 | D347: Einnahmen aus Verkauf
C348: 13100 | D348: Erträge aus Anlagenverkauf | E348: =SUM(I348:AH348) -> 0 | F348: =SUM(I348:M348) -> 0 | G348: =N348 -> 0 | H348: =SUM(O348:AH348) -> 0 | I348: =EN!$F$48 -> 0 | J348: =EN!$F$348 -> 0 | K348: =EN!$F$648 -> 0 | L348: =EN!$F$948 -> 0 | M348: =EN!$F$1248 -> 0 | N348: =EN!$F$1548 -> 0 | O348: =EN!$F$1848 -> 0 | P348: =EN!$F$2148 -> 0 | Q348: =EN!$F$2448 -> 0 | R348: =EN!$F$2748 -> 0 | S348: =EN!$F$3048 -> 0 | T348: =EN!$F$3348 -> 0 | U348: =EN!$F$3648 -> 0 | V348: =EN!$F$3948 -> 0 | W348: =EN!$F$4248 -> 0 | X348: =EN!$F$4548 -> 0 | Y348: =EN!$F$4848 -> 0 | Z348: =EN!$F$5148 -> 0 | AA348: =EN!$F$5448 -> 0 | AB348: =EN!$F$5748 -> 0 | AC348: =EN!$F$6048 -> 0 | AD348: =EN!$F$6348 -> 0 | AE348: =EN!$F$6648 -> 0 | AF348: =EN!$F$6948 -> 0 | AG348: =EN!$F$7248 -> 0 | AH348: =EN!$F$7548 -> 0
C351: 15 | D351: Sonstige Verwaltungseinnahmen
C352: 15100 | D352: Sonstige Erlöse | E352: =SUM(I352:AH352) -> 0 | F352: =SUM(I352:M352) -> 0 | G352: =N352 -> 0 | H352: =SUM(O352:AH352) -> 0 | I352: =EN!$F$52 -> 0 | J352: =EN!$F$352 -> 0 | K352: =EN!$F$652 -> 0 | L352: =EN!$F$952 -> 0 | M352: =EN!$F$1252 -> 0 | N352: =EN!$F$1552 -> 0 | O352: =EN!$F$1852 -> 0 | P352: =EN!$F$2152 -> 0 | Q352: =EN!$F$2452 -> 0 | R352: =EN!$F$2752 -> 0 | S352: =EN!$F$3052 -> 0 | T352: =EN!$F$3352 -> 0 | U352: =EN!$F$3652 -> 0 | V352: =EN!$F$3952 -> 0 | W352: =EN!$F$4252 -> 0 | X352: =EN!$F$4552 -> 0 | Y352: =EN!$F$4852 -> 0 | Z352: =EN!$F$5152 -> 0 | AA352: =EN!$F$5452 -> 0 | AB352: =EN!$F$5752 -> 0 | AC352: =EN!$F$6052 -> 0 | AD352: =EN!$F$6352 -> 0 | AE352: =EN!$F$6652 -> 0 | AF352: =EN!$F$6952 -> 0 | AG352: =EN!$F$7252 -> 0 | AH352: =EN!$F$7552 -> 0
C355: 17 | D355: Zuweisungen und Zuschüsse
C356: 17100 | D356: Spenden, Zuschüsse | E356: =SUM(I356:AH356) -> 0 | F356: =SUM(I356:M356) -> 0 | G356: =N356 -> 0 | H356: =SUM(O356:AH356) -> 0 | I356: =EN!$F$56 -> 0 | J356: =EN!$F$356 -> 0 | K356: =EN!$F$656 -> 0 | L356: =EN!$F$956 -> 0 | M356: =EN!$F$1256 -> 0 | N356: =EN!$F$1556 -> 0 | O356: =EN!$F$1856 -> 0 | P356: =EN!$F$2156 -> 0 | Q356: =EN!$F$2456 -> 0 | R356: =EN!$F$2756 -> 0 | S356: =EN!$F$3056 -> 0 | T356: =EN!$F$3356 -> 0 | U356: =EN!$F$3656 -> 0 | V356: =EN!$F$3956 -> 0 | W356: =EN!$F$4256 -> 0 | X356: =EN!$F$4556 -> 0 | Y356: =EN!$F$4856 -> 0 | Z356: =EN!$F$5156 -> 0 | AA356: =EN!$F$5456 -> 0 | AB356: =EN!$F$5756 -> 0 | AC356: =EN!$F$6056 -> 0 | AD356: =EN!$F$6356 -> 0 | AE356: =EN!$F$6656 -> 0 | AF356: =EN!$F$6956 -> 0 | AG356: =EN!$F$7256 -> 0 | AH356: =EN!$F$7556 -> 0
C357: 17400 | D357: Erstattung für ZDL | E357: =SUM(I357:AH357) -> 0 | F357: =SUM(I357:M357) -> 0 | G357: =N357 -> 0 | H357: =SUM(O357:AH357) -> 0 | I357: =EN!$F$57 -> 0 | J357: =EN!$F$357 -> 0 | K357: =EN!$F$657 -> 0 | L357: =EN!$F$957 -> 0 | M357: =EN!$F$1257 -> 0 | N357: =EN!$F$1557 -> 0 | O357: =EN!$F$1857 -> 0 | P357: =EN!$F$2157 -> 0 | Q357: =EN!$F$2457 -> 0 | R357: =EN!$F$2757 -> 0 | S357: =EN!$F$3057 -> 0 | T357: =EN!$F$3357 -> 0 | U357: =EN!$F$3657 -> 0 | V357: =EN!$F$3957 -> 0 | W357: =EN!$F$4257 -> 0 | X357: =EN!$F$4557 -> 0 | Y357: =EN!$F$4857 -> 0 | Z357: =EN!$F$5157 -> 0 | AA357: =EN!$F$5457 -> 0 | AB357: =EN!$F$5757 -> 0 | AC357: =EN!$F$6057 -> 0 | AD357: =EN!$F$6357 -> 0 | AE357: =EN!$F$6657 -> 0 | AF357: =EN!$F$6957 -> 0 | AG357: =EN!$F$7257 -> 0 | AH357: =EN!$F$7557 -> 0
D360: Summe C 2.1 | E360: =SUM(E342:E357) -> 0 | F360: =SUM(F342:F357) -> 0 | G360: 0 | H360: 0 | I360: 0 | J360: 0 | K360: 0 | L360: 0 | M360: 0 | N360: 0 | O360: 0 | P360: 0 | Q360: 0 | R360: 0 | S360: 0 | T360: 0 | U360: 0 | V360: 0 | W360: 0 | X360: 0 | Y360: 0 | Z360: 0 | AA360: 0 | AB360: 0 | AC360: 0 | AD360: 0 | AE360: 0 | AF360: 0 | AG360: 0 | AH360: 0
C366: C 2 | D366: Einnahmen
C367: C 2.2 | D367: Sonstige Finanzeinnahmen
... 963 more rows

Sheet B1.2
B2: Drucken • Hauptmenu • Auswahlmenu
C6: ="Dateneingabe - KLR Rettungsdienst für den RDB "&INDEX(ParameterDatei!C85:C102,ParameterDatei!B107)&" - 01.01.-31.12."&Stammdaten_1!D8 -> Dateneingabe - KLR Rettungsdienst für den RDB Havelland - 01.01.-31.12.2014
C7: ="B 1.2 Basisdaten zur Gebührenermittlung" -> B 1.2 Basisdaten zur Gebührenermittlung
C9: Bezeichnung | K9: ="Ansatzfähige Kosten "&Stammdaten_1!D8 -> Ansatzfähige Kosten 2014
K10: 7
D14: Gesamtkosten
C15: B1.1.1 | D15: Gesamtkosten (A3 - A2 - A4) | K15: =Gesamt!K1218 -> 0
C16: B1.1.2 | D16: Vorkostenstelle Verwaltung (C3 - C2) | K16: =Gesamt!K1219 -> 0
C17: B1.1.3 | D17: Vorkostenstelle Leitstelle (D3 - D2) | K17: =Gesamt!K1220 -> 0
C18: B1.1.4 | D18: Kostenstellen Rettungswachen | K18: =Gesamt!K1221 -> 0
C20: Auf der Basis der Gebührenberechnungsmatirx B2 ergibt sich eine KTP-Grundgebühr in Höhe von | K20: =Gesamt!K1223 -> 0
C21: Auf der Basis der Gebührenberechnungsmatirx B2 ergibt sich eine RTW/NAW-Grundgebühr in Höhe von | K21: =Gesamt!K1224 -> 0
C22: Auf der Basis der Gebührenberechnungsmatirx B2 ergibt sich eine NEF-Grundgebühr in Höhe von | K22: =Gesamt!K1225 -> 0
D25: Variable KFZ-Kosten aus A3
C26: 55200 | D26: Kraftstoff/Öl | K26: =Gesamt!K1229 -> 0
C27: 55320 | D27: KFZ-Reparaturen / Wartung | K27: =Gesamt!K1230 -> 0
C28: 55400 | D28: KFZ-Bereifung / Zubehör | K28: =Gesamt!K1231 -> 0
C29: 55500 | D29: KFZ-Versicherungen | K29: =Gesamt!K1232 -> 0
C30: 55600 | D30: Sonstige KFZ-Kosten * | K30: =Gesamt!K1233 -> 0
C31: 55700 | D31: KFZ-Steuern | K31: =Gesamt!K1234 -> 0
D32: Summe Variable KFZ-Kosten | K32: =Gesamt!K1235 -> 0
C34: Auf der Basis der Gebührenberechnungsmatirx B2 ergibt sich ein KM-Zuschlag in Höhe von | K34: =Gesamt!K1237 -> 0
D37: Notarztkosten aus A3
C38: 41410 | D38: Vergütung Ärztlicher Leiter Rettungsdienst | K38: =Gesamt!K1241 -> 0
C39: 41411 | D39: Vergütung angestellte Notärzte * | K39: =Gesamt!K1242 -> 0
C40: 41412 | D40: Vergütung Krankenhausärzte * | K40: =Gesamt!K1243 -> 0
C41: 41413 | D41: Vergütung niedergel. Ärzte/Vertragsärzte * | K41: =Gesamt!K1244 -> 0
C42: 41414 | D42: Vergütung Notärzte in Ausbildung | K42: =Gesamt!K1245 -> 0
K43: =Gesamt!K1246 -> 0
C44: 41860 | D44: Leitende Notärzte | K44: =Gesamt!K1247 -> 0
K45: =Gesamt!K1248 -> 0
C46: 42411 | D46: Versorgungsbez. angestellte Notärzte | K46: =Gesamt!K1249 -> 0
C47: 43411 | D47: Beiträge VK angestellte Notärzte | K47: =Gesamt!K1250 -> 0
C48: 44411 | D48: Beiträge Soz.Vers. angestellte Notärzte | K48: =Gesamt!K1251 -> 0
C49: 46700 | D49: Ausbildungskosten Notärzte * | K49: =Gesamt!K1252 -> 0
D50: Summe Notarztkosten | K50: =Gesamt!K1253 -> 0
C52: Auf der Basis der Gebührenberechnungsmatirx B2 ergibt sich ein Notarzt-Zuschlag in Höhe von | K52: =Gesamt!K1255 -> 0

Sheet Drucken-EN
F2: Druck-Vorlage Einzelnachweis Rettungswachen
C6: ="KLR Rettungsdienst für den RDB "&INDEX(ParameterDatei!C85:C102,ParameterDatei!B107)&" - 01.01.-31.12."&Stammdaten_1!D8 -> KLR Rettungsdienst für den RDB Havelland - 01.01.-31.12.2014
C7: Einzelnachweis Verwaltung LK Barnim
E9: Ansatzfähige | F9: Buchhaltung | G9: Hoch- | H9: Plankonsten | I9: Ergebnis | J9: Änderungen | K9: Ansatzfähige
C10: Bezeichnung | E10: Kosten | F10: Ist | G10: rechnung | H10: Planerlöse | I10: (2+3+4) | K10: Kosten (5+6)
E11: =Stammdaten_1!D8-2 -> 2012 | F11: =Stammdaten_1!D8-2 -> 2012 | G11: =Stammdaten_1!D8-2&" > "&Stammdaten_1!D8 -> 2012 > 2014 | H11: =Stammdaten_1!D8-2&" > "&Stammdaten_1!D8 -> 2012 > 2014 | K11: =Stammdaten_1!D8 -> 2014
E13: 1 | F13: 2 | G13: 3 | H13: 4 | I13: 5 | J13: 6 | K13: 7
C16: E 1 | D16: Gesamtkostenermittlung
C19: E 2 | D19: Einnahmen
C20: E 2.1 | D20: Einnahmen aus Verwaltg. und Betrieb | E20: =E63 -> 0 | F20: =F63 -> 0 | G20: =G63 -> 0 | H20: =H63 -> 0 | I20: =F20+G20+H20 -> 0 | J20: =J63 -> 0 | K20: =I20+J20 -> 0
C21: E 2.2 | D21: Sonstige Finanzeinnahmen | E21: =E77 -> 0 | F21: =F77 -> 0 | G21: =G77 -> 0 | H21: =H77 -> 0 | I21: =F21+G21+H21 -> 0 | J21: =J77 -> 0 | K21: =I21+J21 -> 0
C22: E 2 | D22: Summe Einnahmen | E22: =SUM(E20:E21) -> 0 | F22: 0 | G22: 0 | H22: 0 | I22: 0 | J22: 0 | K22: 0
C25: E 3 | D25: Aufwand
C26: E 3.1 | D26: Personalkosten | E26: =E150 -> 0 | F26: =F150 -> 0 | G26: =G150 -> 0 | H26: =H150 -> 0 | I26: =F26+G26+H26 -> 0 | J26: =J150 -> 0 | K26: =I26+J26 -> 0
C27: E 3.2 | D27: Sachkosten | E27: =E219 -> 0 | F27: =F219 -> 0 | G27: =G219 -> 0 | H27: =H219 -> 0 | I27: =F27+G27+H27 -> 0 | J27: =J219 -> 0 | K27: =I27+J27 -> 0
C28: E 3.3 | D28: Sonstige Kosten | E28: =E249 -> 0 | F28: =F249 -> 0 | G28: =G249 -> 0 | H28: =H249 -> 0 | I28: =F28+G28+H28 -> 0 | J28: =J249 -> 0 | K28: =I28+J28 -> 0
C29: E 3.4 | D29: Kalkulatorische Kosten | E29: =E273 -> 0 | F29: =F273 -> 0 | G29: =G273 -> 0 | H29: =H273 -> 0 | I29: =F29+G29+H29 -> 0 | J29: =J273 -> 0 | K29: =I29+J29 -> 0
C30: E 3 | D30: Summe Aufwand | E30: =SUM(E26:E29) -> 0 | F30: 0 | G30: 0 | H30: 0 | I30: 0 | J30: 0 | K30: 0
D33: Gesamtkosten
D34: (E 3 - E 2) | E34: =E30-E22 -> 0 | F34: =F30-F22 -> 0 | G34: =G30-G22 -> 0 | H34: =H30-H22 -> 0 | I34: =F34+G34+H34 -> 0 | J34: =J30-J22 -> 0 | K34: =I34+J34 -> 0
C40: E 2 | D40: Einnahmen
C41: E 2.1 | D41: Einnahmen aus Verwaltung und Betrieb
C44: 11 | D44: Benutzungsgebühren
C45: 11100 | D45: Erlöse Leitstelle * | E45: 0 | F45: 0 | G45: 0 | H45: 0 | I45: =F45+G45+H45 -> 0 | J45: 0 | K45: =I45+J45 -> 0
C46: 11200 | D46: Erstattung für Sicherstellungen * | E46: 0 | F46: 0 | G46: 0 | H46: 0 | I46: =F46+G46+H46 -> 0 | J46: 0 | K46: =I46+J46 -> 0
C47: 11300 | D47: Erlöse Sondertarife * | E47: 0 | F47: 0 | G47: 0 | H47: 0 | I47: =F47+G47+H47 -> 0 | J47: 0 | K47: =I47+J47 -> 0
C50: 13 | D50: Einnahmen aus Verkauf
C51: 13100 | D51: Erträge aus Anlagenverkauf | E51: 0 | F51: 0 | G51: 0 | H51: 0 | I51: =F51+G51+H51 -> 0 | J51: 0 | K51: =I51+J51 -> 0
C54: 15 | D54: Sonstige Verwaltungseinnahmen
C55: 15100 | D55: Sonstige Erlöse | E55: 0 | F55: 0 | G55: 0 | H55: 0 | I55: =F55+G55+H55 -> 0 | J55: 0 | K55: =I55+J55 -> 0
C58: 17 | D58: Zuweisungen und Zuschüsse
C59: 17100 | D59: Spenden, Zuschüsse * | E59: 0 | F59: 0 | G59: 0 | H59: 0 | I59: =F59+G59+H59 -> 0 | J59: 0 | K59: =I59+J59 -> 0
C60: 17400 | D60: Erstattung für BFD | E60: 0 | F60: 0 | G60: 0 | H60: 0 | I60: =F60+G60+H60 -> 0 | J60: 0 | K60: =I60+J60 -> 0
D63: Summe E 2.1 | E63: =SUM(E45:E60) -> 0 | F63: =SUM(F45:F60) -> 0 | G63: 0 | H63: 0 | I63: 0 | J63: 0 | K63: 0
C69: E 2 | D69: Einnahmen
C70: E 2.2 | D70: Sonstige Finanzeinnahmen
C73: 20 | D73: Zinseinnahmen
C74: 20100 | D74: Zinserlöse | E74: 0 | F74: 0 | G74: 0 | H74: 0 | I74: =F74+G74+H74 -> 0 | J74: 0 | K74: =I74+J74 -> 0
D77: Summe E 2.2 | E77: =E74 -> 0 | F77: 0 | G77: 0 | H77: 0 | I77: 0 | J77: 0 | K77: 0
C83: E 3 | D83: Aufwand
C84: E 3.1 | D84: Personalausgaben
C87: 40 | D87: Aufwendungen ehrenamtl. Tätigkeit
C88: 40000 | D88: Aufwendungen ehrenamtl. Tätigkeit | E88: 0 | F88: 0 | G88: 0 | H88: 0 | I88: =F88+G88+H88 -> 0 | J88: 0 | K88: =I88+J88 -> 0
C91: 41 | D91: Dienstbezüge und dergl.
C92: 41000 | D92: Beamte | E92: 0 | F92: 0 | G92: 0 | H92: 0 | I92: =F92+G92+H92 -> 0 | J92: 0 | K92: =I92+J92 -> 0
C93: 41400 | D93: Angestellte | E93: 0 | F93: 0 | G93: 0 | H93: 0 | I93: =F93+G93+H93 -> 0 | J93: 0 | K93: =I93+J93 -> 0
C94: 41500 | D94: Arbeiter | E94: 0 | F94: 0 | G94: 0 | H94: 0 | I94: =F94+G94+H94 -> 0 | J94: 0 | K94: =I94+J94 -> 0
C95: 41600 | D95: Beschäftg.-entgelte/Aufwandsentsch. | E95: 0 | F95: 0 | G95: 0 | H95: 0 | I95: =F95+G95+H95 -> 0 | J95: 0 | K95: =I95+J95 -> 0
C98: 4141 | D98: Notarztvergütungen
C99: 41410 | D99: Ärztlicher Leiter Rettungsdienst | E99: 0 | F99: 0 | G99: 0 | H99: 0 | I99: =F99+G99+H99 -> 0 | J99: 0 | K99: =I99+J99 -> 0
C100: 41411 | D100: angestellte Notärzte * | E100: 0 | F100: 0 | G100: 0 | H100: 0 | I100: =F100+G100+H100 -> 0 | J100: 0 | K100: =I100+J100 -> 0
C101: 41412 | D101: Krankenhausärzte * | E101: 0 | F101: 0 | G101: 0 | H101: 0 | I101: =F101+G101+H101 -> 0 | J101: 0 | K101: =I101+J101 -> 0
C102: 41413 | D102: niedergel. Ärzte/Vertragsärzte * | E102: 0 | F102: 0 | G102: 0 | H102: 0 | I102: =F102+G102+H102 -> 0 | J102: 0 | K102: =I102+J102 -> 0
C103: 41414 | D103: Notärzte in Ausbildung | E103: 0 | F103: 0 | G103: 0 | H103: 0 | I103: =F103+G103+H103 -> 0 | J103: 0 | K103: =I103+J103 -> 0
C106: 418 | D106: Zuschläge / Zulagen *
C107: 41810 | D107: Zuschläge Sa/So/Fei/Nachtzuschlag | E107: 0 | F107: 0 | G107: 0 | H107: 0 | I107: =F107+G107+H107 -> 0 | J107: 0 | K107: =I107+J107 -> 0
C108: 41820 | D108: Wechselschicht/Schichtzulage | E108: 0 | F108: 0 | G108: 0 | H108: 0 | I108: 0 | J108: 0 | K108: 0
C109: 41830 | D109: Verpflegungsmehraufwand | E109: 0 | F109: 0 | G109: 0 | H109: 0 | I109: 0 | J109: 0 | K109: 0
C110: 41840 | D110: Überstundenvergütung | E110: 0 | F110: 0 | G110: 0 | H110: 0 | I110: 0 | J110: 0 | K110: 0
C111: 41850 | D111: Bereitschaftsdienst/ Rufbereitschaft | E111: 0 | F111: 0 | G111: 0 | H111: 0 | I111: 0 | J111: 0 | K111: 0
C112: 41860 | D112: Leitende Notärzte | E112: 0 | F112: 0 | G112: 0 | H112: 0 | I112: 0 | J112: 0 | K112: 0
C113: 41870 | D113: Sonstige Zulagen * | E113: 0 | F113: 0 | G113: 0 | H113: 0 | I113: 0 | J113: 0 | K113: 0
C116: 42 | D116: Versorgungsbezüge u. dgl. *
C117: 42000 | D117: Beamte | E117: 0 | F117: 0 | G117: 0 | H117: 0 | I117: =F117+G117+H117 -> 0 | J117: 0 | K117: =I117+J117 -> 0
C118: 42400 | D118: Angestellte | E118: 0 | F118: 0 | G118: 0 | H118: 0 | I118: =F118+G118+H118 -> 0 | J118: 0 | K118: =I118+J118 -> 0
C119: 42411 | D119: angestellte Notärzte | E119: 0 | F119: 0 | G119: 0 | H119: 0 | I119: =F119+G119+H119 -> 0 | J119: 0 | K119: =I119+J119 -> 0
C120: 42500 | D120: Arbeiter | E120: 0 | F120: 0 | G120: 0 | H120: 0 | I120: =F120+G120+H120 -> 0 | J120: 0 | K120: =I120+J120 -> 0
C121: 42800 | D121: Sonstige | E121: 0 | F121: 0 | G121: 0 | H121: 0 | I121: =F121+G121+H121 -> 0 | J121: 0 | K121: =I121+J121 -> 0
C124: 43 | D124: Beiträge Versorgungskassen, ZVK
C125: 43000 | D125: Beamte | E125: 0 | F125: 0 | G125: 0 | H125: 0 | I125: =F125+G125+H125 -> 0 | J125: 0 | K125: =I125+J125 -> 0
C126: 43400 | D126: Angestellte | E126: 0 | F126: 0 | G126: 0 | H126: 0 | I126: =F126+G126+H126 -> 0 | J126: 0 | K126: =I126+J126 -> 0
C127: 43411 | D127: angestellte Notärzte | E127: 0 | F127: 0 | G127: 0 | H127: 0 | I127: =F127+G127+H127 -> 0 | J127: 0 | K127: =I127+J127 -> 0
C128: 43500 | D128: Arbeiter | E128: 0 | F128: 0 | G128: 0 | H128: 0 | I128: =F128+G128+H128 -> 0 | J128: 0 | K128: =I128+J128 -> 0
C129: 43800 | D129: Sonstige * | E129: 0 | F129: 0 | G129: 0 | H129: 0 | I129: =F129+G129+H129 -> 0 | J129: 0 | K129: =I129+J129 -> 0
C132: 44 | D132: Beiträge zur gesetzl. Sozialvers.
C133: 44400 | D133: Angestellte | E133: 0 | F133: 0 | G133: 0 | H133: 0 | I133: =F133+G133+H133 -> 0 | J133: 0 | K133: =I133+J133 -> 0
C134: 44411 | D134: angestellte Notärzte | E134: 0 | F134: 0 | G134: 0 | H134: 0 | I134: =F134+G134+H134 -> 0 | J134: 0 | K134: =I134+J134 -> 0
C135: 44500 | D135: Arbeiter | E135: 0 | F135: 0 | G135: 0 | H135: 0 | I135: =F135+G135+H135 -> 0 | J135: 0 | K135: =I135+J135 -> 0
C136: 44800 | D136: Sonstige | E136: 0 | F136: 0 | G136: 0 | H136: 0 | I136: =F136+G136+H136 -> 0 | J136: 0 | K136: =I136+J136 -> 0
C137: 45000 | D137: Beihilfen/Beiträge zur Beihilfevers. * | E137: 0 | F137: 0 | G137: 0 | H137: 0 | I137: =F137+G137+H137 -> 0 | J137: 0 | K137: =I137+J137 -> 0
C140: 46 | D140: Personalnebenausgaben
C141: 46100 | D141: Reisekostenerstattungen | E141: 0 | F141: 0 | G141: 0 | H141: 0 | I141: =F141+G141+H141 -> 0 | J141: 0 | K141: =I141+J141 -> 0
C142: 46200 | D142: Fortbildung * | E142: 0 | F142: 0 | G142: 0 | H142: 0 | I142: 0 | J142: 0 | K142: 0
C143: 46300 | D143: Arbeitsmedizinische Untersuchungen | E143: 0 | F143: 0 | G143: 0 | H143: 0 | I143: 0 | J143: 0 | K143: 0
C144: 46400 | D144: Abfindungen * | E144: 0 | F144: 0 | G144: 0 | H144: 0 | I144: 0 | J144: 0 | K144: 0
C145: 46500 | D145: Sonstiger Personalaufwand * | E145: 0 | F145: 0 | G145: 0 | H145: 0 | I145: 0 | J145: 0 | K145: 0
C146: 46600 | D146: Ausbildungskosten nichtärztl. Personal * | E146: 0 | F146: 0 | G146: 0 | H146: 0 | I146: 0 | J146: 0 | K146: 0
C147: 46700 | D147: Ausbildungskosten Notärzte * | E147: 0 | F147: 0 | G147: 0 | H147: 0 | I147: =F147+G147+H147 -> 0 | J147: 0 | K147: 0
D150: Summe E 3.1 | E150: =SUM(E88:E147) -> 0 | F150: =SUM(F88:F147) -> 0 | G150: 0 | H150: 0 | I150: 0 | J150: 0 | K150: 0
C156: E 3 | D156: Aufwand
C157: E 3.2 | D157: Sachkosten
C160: 50 | D160: Unterhaltg. Grundstücke / Gebäude *
C161: 50100 | D161: Rep./Instandhaltg. von Gebäuden | E161: 0 | F161: 0 | G161: 0 | H161: 0 | I161: =F161+G161+H161 -> 0 | J161: 0 | K161: =I161+J161 -> 0
C162: 50200 | D162: Re./Instandhaltg. an Außenanlagen | E162: 0 | F162: 0 | G162: 0 | H162: 0 | I162: 0 | J162: 0 | K162: 0
C163: 50300 | D163: Reparaturmaterial / Kleinwerkzeuge * | E163: 0 | F163: 0 | G163: 0 | H163: 0 | I163: 0 | J163: 0 | K163: 0
C164: 50400 | D164: Wartungsaufwand | E164: 0 | F164: 0 | G164: 0 | H164: 0 | I164: 0 | J164: 0 | K164: 0
C165: 50500 | D165: Sonstige Rep. und Instandsetzungen | E165: 0 | F165: 0 | G165: 0 | H165: 0 | I165: 0 | J165: 0 | K165: 0
C166: 51000 | D166: Unterhaltg. sonst. unbew. Vermög. | E166: 0 | F166: 0 | G166: 0 | H166: 0 | I166: 0 | J166: 0 | K166: 0
C169: 52 | D169: Geräte, Ausrüstung, Verbrauch
C170: 52100 | D170: Geringwertige Ausrüstungsgegenst. * | E170: 0 | F170: 0 | G170: 0 | H170: 0 | I170: =F170+G170+H170 -> 0 | J170: 0 | K170: =I170+J170 -> 0
C171: 52210 | D171: Medikamente | E171: 0 | F171: 0 | G171: 0 | H171: 0 | I171: =F171+G171+H171 -> 0 | J171: 0 | K171: =I171+J171 -> 0
C172: 52220 | D172: Verbandsstoffe/med. Verbrauchsmat. * | E172: 0 | F172: 0 | G172: 0 | H172: 0 | I172: =F172+G172+H172 -> 0 | J172: 0 | K172: =I172+J172 -> 0
C173: 52230 | D173: Med.-techn. Geräte als GWG * | E173: 0 | F173: 0 | G173: 0 | H173: 0 | I173: =F173+G173+H173 -> 0 | J173: 0 | K173: =I173+J173 -> 0
C176: 523 | D176: Reparaturen und Wartung
C177: 52310 | D177: Funkanlagen | E177: 0 | F177: 0 | G177: 0 | H177: 0 | I177: =F177+G177+H177 -> 0 | J177: 0 | K177: =I177+J177 -> 0
C178: 52320 | D178: Fernsprechanlagen | E178: 0 | F178: 0 | G178: 0 | H178: 0 | I178: =F178+G178+H178 -> 0 | J178: 0 | K178: =I178+J178 -> 0
C179: 52330 | D179: Med.-techn. Geräte | E179: 0 | F179: 0 | G179: 0 | H179: 0 | I179: =F179+G179+H179 -> 0 | J179: 0 | K179: =I179+J179 -> 0
C180: 52340 | D180: Sonstiges * | E180: 0 | F180: 0 | G180: 0 | H180: 0 | I180: =F180+G180+H180 -> 0 | J180: 0 | K180: =I180+J180 -> 0
C183: 53 | D183: Leasing, Mieten, Pachten *
C184: 53100 | D184: Grundstücke | E184: 0 | F184: 0 | G184: 0 | H184: 0 | I184: =F184+G184+H184 -> 0 | J184: 0 | K184: =I184+J184 -> 0
C185: 53200 | D185: Gebäude | E185: 0 | F185: 0 | G185: 0 | H185: 0 | I185: =F185+G185+H185 -> 0 | J185: 0 | K185: =I185+J185 -> 0
C186: 53300 | D186: Techn. Geräte und Anlagen | E186: 0 | F186: 0 | G186: 0 | H186: 0 | I186: =F186+G186+H186 -> 0 | J186: 0 | K186: =I186+J186 -> 0
C189: 54 | D189: Bewirtschaftung Grundstücke
C190: 54110 | D190: Heizung | E190: 0 | F190: 0 | G190: 0 | H190: 0 | I190: =F190+G190+H190 -> 0 | J190: 0 | K190: =I190+J190 -> 0
C191: 54120 | D191: Elektro/Gas/Wasser | E191: 0 | F191: 0 | G191: 0 | H191: 0 | I191: 0 | J191: 0 | K191: 0
C192: 54200 | D192: Reinigung | E192: 0 | F192: 0 | G192: 0 | H192: 0 | I192: 0 | J192: 0 | K192: 0
C193: 54300 | D193: Sachversicherungen | E193: 0 | F193: 0 | G193: 0 | H193: 0 | I193: 0 | J193: 0 | K193: 0
C194: 54400 | D194: Gebühren/Beiträge/Steuern | E194: 0 | F194: 0 | G194: 0 | H194: 0 | I194: 0 | J194: 0 | K194: 0
C195: 54500 | D195: Wartung Inventar | E195: 0 | F195: 0 | G195: 0 | H195: 0 | I195: 0 | J195: 0 | K195: 0
C196: 54600 | D196: Sonst. Raum- und Grundstückskosten | E196: 0 | F196: 0 | G196: 0 | H196: 0 | I196: 0 | J196: 0 | K196: 0
C199: 55 | D199: Haltung von Fahrzeugen
C200: 55100 | D200: Mieten / Leasing * | E200: 0 | F200: 0 | G200: 0 | H200: 0 | I200: =F200+G200+H200 -> 0 | J200: 0 | K200: =I200+J200 -> 0
C201: 55200 | D201: Kraftstoff/Öl | E201: 0 | F201: 0 | G201: 0 | H201: 0 | I201: 0 | J201: 0 | K201: 0
C202: 55310 | D202: KFZ-Unfall-Reparaturen | E202: 0 | F202: 0 | G202: 0 | H202: 0 | I202: 0 | J202: 0 | K202: 0
C203: 55320 | D203: KFZ-Reparaturen / Wartung | E203: 0 | F203: 0 | G203: 0 | H203: 0 | I203: 0 | J203: 0 | K203: 0
C204: 55400 | D204: KFZ-Bereifung / Zubehör | E204: 0 | F204: 0 | G204: 0 | H204: 0 | I204: 0 | J204: 0 | K204: 0
C205: 55500 | D205: KFZ-Versicherungen | E205: 0 | F205: 0 | G205: 0 | H205: 0 | I205: 0 | J205: 0 | K205: 0
C206: 55600 | D206: Sonstige KFZ-Kosten * | E206: 0 | F206: 0 | G206: 0 | H206: 0 | I206: 0 | J206: 0 | K206: 0
C207: 55700 | D207: KFZ-Steuern | E207: 0 | F207: 0 | G207: 0 | H207: 0 | I207: 0 | J207: 0 | K207: 0
C210: 56 | D210: Besondere Aufwendungen
C211: 56100 | D211: Beschaffung Berufskleidung | E211: 0 | F211: 0 | G211: 0 | H211: 0 | I211: =F211+G211+H211 -> 0 | J211: 0 | K211: =I211+J211 -> 0
C212: 56200 | D212: Reinigung/Unterhalt Berufskleidung | E212: 0 | F212: 0 | G212: 0 | H212: 0 | I212: 0 | J212: 0 | K212: 0
C213: 56300 | D213: Sonstige Aufwendungen | E213: 0 | F213: 0 | G213: 0 | H213: 0 | I213: 0 | J213: 0 | K213: 0
C214: 56400 | D214: Sachkosten der Qualitätssicherung | E214: 0 | F214: 0 | G214: 0 | H214: 0 | I214: 0 | J214: 0 | K214: 0
C215: 56500 | D215: Sachkosten MANV | E215: 0 | F215: 0 | G215: 0 | H215: 0 | I215: 0 | J215: 0 | K215: 0
C216: 57000 | D216: Weitere Betriebsausgaben * | E216: 0 | F216: 0 | G216: 0 | H216: 0 | I216: 0 | J216: 0 | K216: 0
D219: Summe E 3.2 | E219: =SUM(E161:E216) -> 0 | F219: =SUM(F161:F216) -> 0 | G219: 0 | H219: 0 | I219: 0 | J219: 0 | K219: 0
C225: E 3 | D225: Aufwand
C226: E 3.3 | D226: Sonstige Kosten
C229: 64 | D229: Versicherungen/Schadensfälle *
C230: 64100 | D230: Haftpflichtversicherung | E230: 0 | F230: 0 | G230: 0 | H230: 0 | I230: =F230+G230+H230 -> 0 | J230: 0 | K230: =I230+J230 -> 0
C231: 64200 | D231: Unfallversicherung | E231: 0 | F231: 0 | G231: 0 | H231: 0 | I231: =F231+G231+H231 -> 0 | J231: 0 | K231: =I231+J231 -> 0
C232: 64300 | D232: Sonstige Versicherungen | E232: 0 | F232: 0 | G232: 0 | H232: 0 | I232: =F232+G232+H232 -> 0 | J232: 0 | K232: =I232+J232 -> 0
C233: 64400 | D233: Schadensfälle | E233: 0 | F233: 0 | G233: 0 | H233: 0 | I233: =F233+G233+H233 -> 0 | J233: 0 | K233: =I233+J233 -> 0
C236: 65 | D236: Geschäftsausgaben
C237: 65100 | D237: Porto, Telefon- und Funkgebühren | E237: 0 | F237: 0 | G237: 0 | H237: 0 | I237: =F237+G237+H237 -> 0 | J237: 0 | K237: =I237+J237 -> 0
C238: 65200 | D238: Rechts- und Beratungskosten * | E238: 0 | F238: 0 | G238: 0 | H238: 0 | I238: 0 | J238: 0 | K238: 0
C239: 65300 | D239: Abschluss- und Prüfungskosten * | E239: 0 | F239: 0 | G239: 0 | H239: 0 | I239: 0 | J239: 0 | K239: 0
C240: 65400 | D240: Büromaterial | E240: 0 | F240: 0 | G240: 0 | H240: 0 | I240: 0 | J240: 0 | K240: 0
C241: 65500 | D241: Kosten des Geldverkehrs * | E241: 0 | F241: 0 | G241: 0 | H241: 0 | I241: 0 | J241: 0 | K241: 0
C242: 65600 | D242: Wartung EDV | E242: 0 | F242: 0 | G242: 0 | H242: 0 | I242: 0 | J242: 0 | K242: 0
C243: 65700 | D243: Sonstiger Verwaltungsaufwand | E243: 0 | F243: 0 | G243: 0 | H243: 0 | I243: 0 | J243: 0 | K243: 0
C244: 65800 | D244: Vordrucke/Formulare | E244: 0 | F244: 0 | G244: 0 | H244: 0 | I244: 0 | J244: 0 | K244: 0
C245: 65900 | D245: Fachliteratur | E245: 0 | F245: 0 | G245: 0 | H245: 0 | I245: 0 | J245: 0 | K245: 0
C246: 67000 | D246: Erstattung Querschnittsamtskosten * | E246: 0 | F246: 0 | G246: 0 | H246: 0 | I246: 0 | J246: 0 | K246: 0
D249: Summe E 3.3 | E249: =SUM(E230:E246) -> 0 | F249: =SUM(F230:F233)+SUM(F237:F246) -> 0 | G249: =SUM(G230:G233)+SUM(G237:G246) -> 0 | H249: =SUM(H230:H233)+SUM(H237:H246) -> 0 | I249: =F249+G249+H249 -> 0 | J249: =SUM(J230:J233)+SUM(J237:J246) -> 0 | K249: =I249+J249 -> 0
C255: E 3 | D255: Aufwand
C256: E 3.4 | D256: Kalkulatorische Kosten - Sonstige Finanzausgaben
C259: 68 | D259: Kalkulatorische Kosten *
C260: 68010 | D260: AfA Gebäude | E260: 0 | F260: 0 | G260: 0 | H260: 0 | I260: =F260+G260+H260 -> 0 | J260: 0 | K260: =I260+J260 -> 0
C261: 68020 | D261: AfA Fahrzeuge | E261: 0 | F261: 0 | G261: 0 | H261: 0 | I261: =F261+G261+H261 -> 0 | J261: 0 | K261: =I261+J261 -> 0
C262: 68030 | D262: AfA Ausrüstungen * | E262: 0 | F262: 0 | G262: 0 | H262: 0 | I262: 0 | J262: 0 | K262: 0
C263: 68040 | D263: AfA Med.-techn. Geräte | E263: 0 | F263: 0 | G263: 0 | H263: 0 | I263: =F263+G263+H263 -> 0 | J263: 0 | K263: =I263+J263 -> 0
C264: 68500 | D264: Verzinsung des Anlagekapitals | E264: 0 | F264: 0 | G264: 0 | H264: 0 | I264: 0 | J264: 0 | K264: 0
C265: 68600 | D265: Kalkulatorische Mieten * | E265: 0 | F265: 0 | G265: 0 | H265: 0 | I265: 0 | J265: 0 | K265: 0
C268: 8 | D268: Sonstige Finanzausgaben
C269: 80000 | D269: Zinsausgaben * | E269: 0 | F269: 0 | G269: 0 | H269: 0 | I269: =F269+G269+H269 -> 0 | J269: 0 | K269: =I269+J269 -> 0
C270: 89000 | D270: Einzelwertberichtigung zu Forderng. | E270: 0 | F270: 0 | G270: 0 | H270: 0 | I270: =F270+G270+H270 -> 0 | J270: 0 | K270: =I270+J270 -> 0
D273: Summe E 3.4 | E273: =SUM(E260:E270) -> 0 | F273: =SUM(F260:F270) -> 0 | G273: =SUM(G260:G270) -> 0 | H273: =SUM(H260:H270) -> 0 | I273: =F273+G273+H273 -> 0 | J273: =SUM(J260:J270) -> 0 | K273: =I273+J273 -> 0

Sheet Drucken-GN
F2: Druck-Vorlage Gesamtnachweis
C6: ="KLR Rettungsdienst für den RDB "&INDEX(ParameterDatei!C85:C102,ParameterDatei!B107)&" - 01.01.-31.12."&Stammdaten_1!D8 -> KLR Rettungsdienst für den RDB Havelland - 01.01.-31.12.2014
C7: A. Gesamtnachweis
E9: Ansatzfähige | F9: Buchhaltung | G9: Hoch- | H9: Plankonsten | I9: Ergebnis | J9: Änderungen | K9: Ansatzfähige
C10: Bezeichnung | E10: Kosten | F10: Ist | G10: rechnung | H10: Planerlöse | I10: (2+3+4) | K10: Kosten (5+6)
E11: =Stammdaten_1!D8-2 -> 2012 | F11: =Stammdaten_1!D8-2 -> 2012 | G11: =Stammdaten_1!D8-2&" > "&Stammdaten_1!D8 -> 2012 > 2014 | H11: =Stammdaten_1!D8-2&" > "&Stammdaten_1!D8 -> 2012 > 2014 | K11: =Stammdaten_1!D8 -> 2014
E13: 1 | F13: 2 | G13: 3 | H13: 4 | I13: 5 | J13: 6 | K13: 7
C16: A 1 | D16: Gesamtkostenermittlung
C19: A 2 | D19: Einnahmen
C20: A 2.1 | D20: Einnahmen aus Verwaltg. und Betrieb | E20: 0 | F20: 0 | G20: 0 | H20: 0 | I20: 0 | J20: 0 | K20: 0
C21: A 2.2 | D21: Sonstige Finanzeinnahmen | E21: 0 | F21: 0 | G21: 0 | H21: 0 | I21: 0 | J21: 0 | K21: 0
C22: A 2 | D22: Summe Einnahmen | E22: 0 | F22: 0 | G22: 0 | H22: 0 | I22: 0 | J22: 0 | K22: 0
C25: A 3 | D25: Aufwand
C26: A 3.1 | D26: Personalkosten | E26: 0 | F26: 0 | G26: 0 | H26: 0 | I26: 0 | J26: 0 | K26: 0
C27: A 3.2 | D27: Sachkosten | E27: 0 | F27: 0 | G27: 0 | H27: 0 | I27: 0 | J27: 0 | K27: 0
C28: A 3.3 | D28: Sonstige Kosten | E28: 0 | F28: 0 | G28: 0 | H28: 0 | I28: 0 | J28: 0 | K28: 0
C29: A 3.4 | D29: Kalkulatorische Kosten | E29: 0 | F29: 0 | G29: 0 | H29: 0 | I29: 0 | J29: 0 | K29: 0
C30: A 3 | D30: Summe Aufwand | E30: 0 | F30: 0 | G30: 0 | H30: 0 | I30: 0 | J30: 0 | K30: 0
C33: A G | D33: Gesamtkosten
D34: (A 3 - A 2) | E34: 0 | F34: 0 | G34: 0 | H34: 0 | I34: 0 | J34: 0 | K34: 0
C37: A 4 | D37: Gewinn- und Verlustausgleich
C38: A 4.1 | D38: Kostenansatz / Gebührenerlöse | E38: 0 | F38: 0 | I38: 0 | J38: 0 | K38: 0
C39: A 4.2 | D39: Gesamtkosten AG | E39: 0 | F39: 0 | I39: 0 | J39: 0 | K39: 0
C40: A 4 | D40: Ausgleich (A 4.1 + A 4.2) | K40: 0
C43: A K | D43: Kostenansatz 2010
D44: (A G - A 4) | K44: 0
C50: A 2 | D50: Einnahmen
C51: A 2.1 | D51: Einnahmen aus Verwaltung und Betrieb
C54: 11 | D54: Benutzungsgebühren
C55: 11100 | D55: Erlöse Leitstelle * | E55: 0 | F55: 0 | G55: 0 | H55: 0 | I55: 0 | J55: 0 | K55: 0
C56: 11200 | D56: Erstattung für Sicherstellungen * | E56: 0 | F56: 0 | G56: 0 | H56: 0 | I56: 0 | J56: 0 | K56: 0
C57: 11300 | D57: Erlöse Sondertarife * | E57: 0 | F57: 0 | G57: 0 | H57: 0 | I57: 0 | J57: 0 | K57: 0
C60: 13 | D60: Einnahmen aus Verkauf
C61: 13100 | D61: Erträge aus Anlagenverkauf | E61: 0 | F61: 0 | G61: 0 | H61: 0 | I61: 0 | J61: 0 | K61: 0
C64: 15 | D64: Sonstige Verwaltungseinnahmen
C65: 15100 | D65: Sonstige Erlöse | E65: 0 | F65: 0 | G65: 0 | H65: 0 | I65: 0 | J65: 0 | K65: 0
C68: 17 | D68: Zuweisungen und Zuschüsse
C69: 17100 | D69: Spenden, Zuschüsse | E69: 0 | F69: 0 | G69: 0 | H69: 0 | I69: 0 | J69: 0 | K69: 0
C70: 17400 | D70: Erstattung für BFD | E70: 0 | F70: 0 | G70: 0 | H70: 0 | I70: 0 | J70: 0 | K70: 0
D73: Summe A 2.1 | E73: 0 | F73: 0 | G73: 0 | H73: 0 | I73: 0 | J73: 0 | K73: 0
C79: A 2 | D79: Einnahmen
C80: A 2.2 | D80: Sonstige Finanzeinnahmen
C83: 20 | D83: Zinseinnahmen
C84: 20100 | D84: Zinserlöse | E84: 0 | F84: 0 | G84: 0 | H84: 0 | I84: 0 | J84: 0 | K84: 0
D87: Summe A 2.2 | E87: 0 | F87: 0 | G87: 0 | H87: 0 | I87: 0 | J87: 0 | K87: 0
C93: A 3 | D93: Aufwand
C94: A 3.1 | D94: Personalausgaben
C97: 40 | D97: Aufwendungen ehrenamtl. Tätigkeit
C98: 40000 | D98: Aufwendungen ehrenamtl. Tätigkeit | E98: 0 | F98: 0 | G98: 0 | H98: 0 | I98: 0 | J98: 0 | K98: 0
C101: 41 | D101: Dienstbezüge und dergl.
C102: 41000 | D102: Beamte | E102: 0 | F102: 0 | G102: 0 | H102: 0 | I102: 0 | J102: 0 | K102: 0
C103: 41400 | D103: Angestellte | E103: 0 | F103: 0 | G103: 0 | H103: 0 | I103: 0 | J103: 0 | K103: 0
C104: 41500 | D104: Arbeiter | E104: 0 | F104: 0 | G104: 0 | H104: 0 | I104: 0 | J104: 0 | K104: 0
C105: 41600 | D105: Beschäftg.-entgelte/Aufwandsentsch. | E105: 0 | F105: 0 | G105: 0 | H105: 0 | I105: 0 | J105: 0 | K105: 0
C108: 4141 | D108: Notarztvergütungen
C109: 41410 | D109: Ärztlicher Leiter Rettungsdienst | E109: 0 | F109: 0 | G109: 0 | H109: 0 | I109: 0 | J109: 0 | K109: 0
C110: 41411 | D110: angestellte Notärzte * | E110: 0 | F110: 0 | G110: 0 | H110: 0 | I110: 0 | J110: 0 | K110: 0
C111: 41412 | D111: Krankenhausärzte * | E111: 0 | F111: 0 | G111: 0 | H111: 0 | I111: 0 | J111: 0 | K111: 0
C112: 41413 | D112: niedergel. Ärzte/Vertragsärzte * | E112: 0 | F112: 0 | G112: 0 | H112: 0 | I112: 0 | J112: 0 | K112: 0
C113: 41414 | D113: Notärzte in Ausbildung | E113: 0 | F113: 0 | G113: 0 | H113: 0 | I113: 0 | J113: 0 | K113: 0
C116: 418 | D116: Zuschläge / Zulagen *
C117: 41810 | D117: Zuschläge Sa/So/Fei/Nachtzuschlag | E117: 0 | F117: 0 | G117: 0 | H117: 0 | I117: 0 | J117: 0 | K117: 0
C118: 41820 | D118: Wechselschicht/Schichtzulage | E118: 0 | F118: 0 | G118: 0 | H118: 0 | I118: 0 | J118: 0 | K118: 0
C119: 41830 | D119: Verpflegungsmehraufwand | E119: 0 | F119: 0 | G119: 0 | H119: 0 | I119: 0 | J119: 0 | K119: 0
C120: 41840 | D120: Überstundenvergütung | E120: 0 | F120: 0 | G120: 0 | H120: 0 | I120: 0 | J120: 0 | K120: 0
C121: 41850 | D121: Bereitschaftsdienst/ Rufbereitschaft | E121: 0 | F121: 0 | G121: 0 | H121: 0 | I121: 0 | J121: 0 | K121: 0
C122: 41860 | D122: Leitende Notärzte | E122: 0 | F122: 0 | G122: 0 | H122: 0 | I122: 0 | J122: 0 | K122: 0
C123: 41870 | D123: Sonstige Zulagen * | E123: 0 | F123: 0 | G123: 0 | H123: 0 | I123: 0 | J123: 0 | K123: 0
C126: 42 | D126: Versorgungsbezüge u. dgl. *
C127: 42000 | D127: Beamte | E127: 0 | F127: 0 | G127: 0 | H127: 0 | I127: 0 | J127: 0 | K127: 0
C128: 42400 | D128: Angestellte | E128: 0 | F128: 0 | G128: 0 | H128: 0 | I128: 0 | J128: 0 | K128: 0
C129: 42411 | D129: angestellte Notärzte | E129: 0 | F129: 0 | G129: 0 | H129: 0 | I129: 0 | J129: 0 | K129: 0
C130: 42500 | D130: Arbeiter | E130: 0 | F130: 0 | G130: 0 | H130: 0 | I130: 0 | J130: 0 | K130: 0
C131: 42800 | D131: Sonstige | E131: 0 | F131: 0 | G131: 0 | H131: 0 | I131: 0 | J131: 0 | K131: 0
C134: 43 | D134: Beiträge Versorgungskassen, ZVK
C135: 43000 | D135: Beamte | E135: 0 | F135: 0 | G135: 0 | H135: 0 | I135: 0 | J135: 0 | K135: 0
C136: 43400 | D136: Angestellte | E136: 0 | F136: 0 | G136: 0 | H136: 0 | I136: 0 | J136: 0 | K136: 0
C137: 43411 | D137: angestellte Notärzte | E137: 0 | F137: 0 | G137: 0 | H137: 0 | I137: 0 | J137: 0 | K137: 0
C138: 43500 | D138: Arbeiter | E138: 0 | F138: 0 | G138: 0 | H138: 0 | I138: 0 | J138: 0 | K138: 0
C139: 43800 | D139: Sonstige * | E139: 0 | F139: 0 | G139: 0 | H139: 0 | I139: 0 | J139: 0 | K139: 0
C142: 44 | D142: Beiträge zur gesetzl. Sozialvers.
C143: 44400 | D143: Angestellte | E143: 0 | F143: 0 | G143: 0 | H143: 0 | I143: 0 | J143: 0 | K143: 0
C144: 44411 | D144: angestellte Notärzte | E144: 0 | F144: 0 | G144: 0 | H144: 0 | I144: 0 | J144: 0 | K144: 0
C145: 44500 | D145: Arbeiter | E145: 0 | F145: 0 | G145: 0 | H145: 0 | I145: 0 | J145: 0 | K145: 0
C146: 44800 | D146: Sonstige | E146: 0 | F146: 0 | G146: 0 | H146: 0 | I146: 0 | J146: 0 | K146: 0
C147: 45000 | D147: Beihilfen/Beiträge zur Beihilfevers. * | E147: 0 | F147: 0 | G147: 0 | H147: 0 | I147: 0 | J147: 0 | K147: 0
C150: 46 | D150: Personalnebenausgaben
C151: 46100 | D151: Reisekostenerstattungen | E151: 0 | F151: 0 | G151: 0 | H151: 0 | I151: 0 | J151: 0 | K151: 0
C152: 46200 | D152: Fortbildung * | E152: 0 | F152: 0 | G152: 0 | H152: 0 | I152: 0 | J152: 0 | K152: 0
C153: 46300 | D153: Arbeitsmedizinische Untersuchungen | E153: 0 | F153: 0 | G153: 0 | H153: 0 | I153: 0 | J153: 0 | K153: 0
C154: 46400 | D154: Abfindungen * | E154: 0 | F154: 0 | G154: 0 | H154: 0 | I154: 0 | J154: 0 | K154: 0
C155: 46500 | D155: Sonstiger Personalaufwand * | E155: 0 | F155: 0 | G155: 0 | H155: 0 | I155: 0 | J155: 0 | K155: 0
C156: 46600 | D156: Ausbildungskosten nichtärztl. Personal * | E156: 0 | F156: 0 | G156: 0 | H156: 0 | I156: 0 | J156: 0 | K156: 0
C157: 46700 | D157: Ausbildungskosten Notärzte * | E157: 0 | F157: 0 | G157: 0 | H157: 0 | I157: 0 | J157: 0 | K157: 0
D160: Summe A 3.1 | E160: 0 | F160: 0 | G160: 0 | H160: 0 | I160: 0 | J160: 0 | K160: 0
C166: A 3 | D166: Aufwand
C167: A 3.2 | D167: Sachkosten
C170: 50 | D170: Unterhaltg. Grundstücke / Gebäude *
C171: 50100 | D171: Rep./Instandhaltg. von Gebäuden | E171: 0 | F171: 0 | G171: 0 | H171: 0 | I171: 0 | J171: 0 | K171: 0
C172: 50200 | D172: Re./Instandhaltg. an Außenanlagen | E172: 0 | F172: 0 | G172: 0 | H172: 0 | I172: 0 | J172: 0 | K172: 0
C173: 50300 | D173: Reparaturmaterial / Kleinwerkzeuge * | E173: 0 | F173: 0 | G173: 0 | H173: 0 | I173: 0 | J173: 0 | K173: 0
C174: 50400 | D174: Wartungsaufwand | E174: 0 | F174: 0 | G174: 0 | H174: 0 | I174: 0 | J174: 0 | K174: 0
C175: 50500 | D175: Sonstige Rep. und Instandsetzungen | E175: 0 | F175: 0 | G175: 0 | H175: 0 | I175: 0 | J175: 0 | K175: 0
C176: 51000 | D176: Unterhaltg. sonst. unbew. Vermög. | E176: 0 | F176: 0 | G176: 0 | H176: 0 | I176: 0 | J176: 0 | K176: 0
C179: 52 | D179: Geräte, Ausrüstung, Verbrauch
C180: 52100 | D180: Geringwertige Ausrüstungsgegenst. | E180: 0 | F180: 0 | G180: 0 | H180: 0 | I180: 0 | J180: 0 | K180: 0
C181: 52210 | D181: Medikamente | E181: 0 | F181: 0 | G181: 0 | H181: 0 | I181: 0 | J181: 0 | K181: 0
C182: 52220 | D182: Verbandsstoffe/med. Verbrauchsmat. * | E182: 0 | F182: 0 | G182: 0 | H182: 0 | I182: 0 | J182: 0 | K182: 0
C183: 52230 | D183: Med.-techn. Geräte als GWG | E183: 0 | F183: 0 | G183: 0 | H183: 0 | I183: 0 | J183: 0 | K183: 0
C186: 523 | D186: Reparaturen und Wartung
C187: 52310 | D187: Funkanlagen | E187: 0 | F187: 0 | G187: 0 | H187: 0 | I187: 0 | J187: 0 | K187: 0
C188: 52320 | D188: Fernsprechanlagen | E188: 0 | F188: 0 | G188: 0 | H188: 0 | I188: 0 | J188: 0 | K188: 0
C189: 52330 | D189: Med.-techn. Geräte | E189: 0 | F189: 0 | G189: 0 | H189: 0 | I189: 0 | J189: 0 | K189: 0
C190: 52340 | D190: Sonstiges * | E190: 0 | F190: 0 | G190: 0 | H190: 0 | I190: 0 | J190: 0 | K190: 0
C193: 53 | D193: Leasing, Mieten, Pachten *
C194: 53100 | D194: Grundstücke | E194: 0 | F194: 0 | G194: 0 | H194: 0 | I194: 0 | J194: 0 | K194: 0
C195: 53200 | D195: Gebäude | E195: 0 | F195: 0 | G195: 0 | H195: 0 | I195: 0 | J195: 0 | K195: 0
C196: 53300 | D196: Techn. Geräte und Anlagen | E196: 0 | F196: 0 | G196: 0 | H196: 0 | I196: 0 | J196: 0 | K196: 0
C199: 54 | D199: Bewirtschaftung Grundstücke
C200: 54110 | D200: Heizung | E200: 0 | F200: 0 | G200: 0 | H200: 0 | I200: 0 | J200: 0 | K200: 0
C201: 54120 | D201: Elektro/Gas/Wasser | E201: 0 | F201: 0 | G201: 0 | H201: 0 | I201: 0 | J201: 0 | K201: 0
C202: 54200 | D202: Reinigung | E202: 0 | F202: 0 | G202: 0 | H202: 0 | I202: 0 | J202: 0 | K202: 0
C203: 54300 | D203: Sachversicherungen | E203: 0 | F203: 0 | G203: 0 | H203: 0 | I203: 0 | J203: 0 | K203: 0
C204: 54400 | D204: Gebühren/Beiträge/Steuern | E204: 0 | F204: 0 | G204: 0 | H204: 0 | I204: 0 | J204: 0 | K204: 0
C205: 54500 | D205: Wartung Inventar | E205: 0 | F205: 0 | G205: 0 | H205: 0 | I205: 0 | J205: 0 | K205: 0
C206: 54600 | D206: Sonst. Raum- und Grundstückskosten | E206: 0 | F206: 0 | G206: 0 | H206: 0 | I206: 0 | J206: 0 | K206: 0
C209: 55 | D209: Haltung von Fahrzeugen
C210: 55100 | D210: Mieten / Leasing * | E210: 0 | F210: 0 | G210: 0 | H210: 0 | I210: 0 | J210: 0 | K210: 0
C211: 55200 | D211: Kraftstoff/Öl | E211: 0 | F211: 0 | G211: 0 | H211: 0 | I211: 0 | J211: 0 | K211: 0
C212: 55310 | D212: KFZ-Unfall-Reparaturen | E212: 0 | F212: 0 | G212: 0 | H212: 0 | I212: 0 | J212: 0 | K212: 0
C213: 55320 | D213: KFZ-Reparaturen / Wartung | E213: 0 | F213: 0 | G213: 0 | H213: 0 | I213: 0 | J213: 0 | K213: 0
C214: 55400 | D214: KFZ-Bereifung / Zubehör | E214: 0 | F214: 0 | G214: 0 | H214: 0 | I214: 0 | J214: 0 | K214: 0
C215: 55500 | D215: KFZ-Versicherungen | E215: 0 | F215: 0 | G215: 0 | H215: 0 | I215: 0 | J215: 0 | K215: 0
C216: 55600 | D216: Sonstige KFZ-Kosten * | E216: 0 | F216: 0 | G216: 0 | H216: 0 | I216: 0 | J216: 0 | K216: 0
C217: 55700 | D217: KFZ-Steuern | E217: 0 | F217: 0 | G217: 0 | H217: 0 | I217: 0 | J217: 0 | K217: 0
C220: 56 | D220: Besondere Aufwendungen
C221: 56100 | D221: Beschaffung Berufskleidung | E221: 0 | F221: 0 | G221: 0 | H221: 0 | I221: 0 | J221: 0 | K221: 0
C222: 56200 | D222: Reinigung/Unterhalt Berufskleidung | E222: 0 | F222: 0 | G222: 0 | H222: 0 | I222: 0 | J222: 0 | K222: 0
C223: 56300 | D223: Sonstige Aufwendungen | E223: 0 | F223: 0 | G223: 0 | H223: 0 | I223: 0 | J223: 0 | K223: 0
C224: 56400 | D224: Sachkosten der Qualitätssicherung * | E224: 0 | F224: 0 | G224: 0 | H224: 0 | I224: 0 | J224: 0 | K224: 0
C225: 56500 | D225: Sachkosten MANV * | E225: 0 | F225: 0 | G225: 0 | H225: 0 | I225: 0 | J225: 0 | K225: 0
C226: 57000 | D226: Weitere Betriebsausgaben * | E226: 0 | F226: 0 | G226: 0 | H226: 0 | I226: 0 | J226: 0 | K226: 0
D229: Summe A 3.2 | E229: 0 | F229: 0 | G229: 0 | H229: 0 | I229: 0 | J229: 0 | K229: 0
C235: A 3 | D235: Aufwand
C236: A3.3 | D236: Sonstige Kosten
C239: 64 | D239: Versicherungen/Schadensfälle *
C240: 64100 | D240: Haftpflichtversicherung | E240: 0 | F240: 0 | G240: 0 | H240: 0 | I240: 0 | J240: 0 | K240: 0
C241: 64200 | D241: Unfallversicherung | E241: 0 | F241: 0 | G241: 0 | H241: 0 | I241: 0 | J241: 0 | K241: 0
C242: 64300 | D242: Sonstige Versicherungen | E242: 0 | F242: 0 | G242: 0 | H242: 0 | I242: 0 | J242: 0 | K242: 0
C243: 64400 | D243: Schadensfälle | E243: 0 | F243: 0 | G243: 0 | H243: 0 | I243: 0 | J243: 0 | K243: 0
C246: 65 | D246: Geschäftsausgaben
C247: 65100 | D247: Porto, Telefon- und Funkgebühren | E247: 0 | F247: 0 | G247: 0 | H247: 0 | I247: 0 | J247: 0 | K247: 0
C248: 65200 | D248: Rechts- und Beratungskosten * | E248: 0 | F248: 0 | G248: 0 | H248: 0 | I248: 0 | J248: 0 | K248: 0
C249: 65300 | D249: Abschluss- und Prüfungskosten * | E249: 0 | F249: 0 | G249: 0 | H249: 0 | I249: 0 | J249: 0 | K249: 0
C250: 65400 | D250: Büromaterial | E250: 0 | F250: 0 | G250: 0 | H250: 0 | I250: 0 | J250: 0 | K250: 0
C251: 65500 | D251: Kosten des Geldverkehrs * | E251: 0 | F251: 0 | G251: 0 | H251: 0 | I251: 0 | J251: 0 | K251: 0
C252: 65600 | D252: Wartung EDV | E252: 0 | F252: 0 | G252: 0 | H252: 0 | I252: 0 | J252: 0 | K252: 0
C253: 65700 | D253: Sonstiger Verwaltungsaufwand | E253: 0 | F253: 0 | G253: 0 | H253: 0 | I253: 0 | J253: 0 | K253: 0
C254: 65800 | D254: Vordrucke/Formulare | E254: 0 | F254: 0 | G254: 0 | H254: 0 | I254: 0 | J254: 0 | K254: 0
C255: 65900 | D255: Fachliteratur | E255: 0 | F255: 0 | G255: 0 | H255: 0 | I255: 0 | J255: 0 | K255: 0
C256: 67000 | D256: Erstattung Querschnittsamtskosten * | E256: 0 | F256: 0 | G256: 0 | H256: 0 | I256: 0 | J256: 0 | K256: 0
D259: Summe A 3.3 | E259: 0 | F259: 0 | G259: 0 | H259: 0 | I259: 0 | J259: 0 | K259: 0
C265: A 3 | D265: Aufwand
C266: A 3.4 | D266: Kalkulatorische Kosten - Sonstige Finanzausgaben
C269: 68 | D269: Kalkulatorische Kosten *
C270: 68010 | D270: AfA Gebäude | E270: 0 | F270: 0 | G270: 0 | H270: 0 | I270: 0 | J270: 0 | K270: 0
C271: 68020 | D271: AfA Fahrzeuge | E271: 0 | F271: 0 | G271: 0 | H271: 0 | I271: 0 | J271: 0 | K271: 0
C272: 68030 | D272: AfA Ausrüstungen * | E272: 0 | F272: 0 | G272: 0 | H272: 0 | I272: 0 | J272: 0 | K272: 0
C273: 68040 | D273: AfA Med.-techn. Geräte | E273: 0 | F273: 0 | G273: 0 | H273: 0 | I273: 0 | J273: 0 | K273: 0
C274: 68500 | D274: Verzinsung des Anlagekapitals | E274: 0 | F274: 0 | G274: 0 | H274: 0 | I274: 0 | J274: 0 | K274: 0
C275: 68600 | D275: Kalkulatorische Mieten * | E275: 0 | F275: 0 | G275: 0 | H275: 0 | I275: 0 | J275: 0 | K275: 0
C278: 8 | D278: Sonstige Finanzausgaben
C279: 80000 | D279: Zinsausgaben * | E279: 0 | F279: 0 | G279: 0 | H279: 0 | I279: 0 | J279: 0 | K279: 0
C280: 89000 | D280: Einzelwertberichtigung zu Forderng. | E280: 0 | F280: 0 | G280: 0 | H280: 0 | I280: 0 | J280: 0 | K280: 0
D283: Summe A3.4 | E283: 0 | F283: 0 | G283: 0 | H283: 0 | I283: 0 | J283: 0 | K283: 0
C289: A 4 | D289: Ertragsausgleich
C290: A 4.1 | D290: Gebührenerlöse
D293: Gebührenerlöse
D294: Erlöse KTW-Pauschale
D295: Erlöse RTW-Pauschale
D296: Erlöse NEF-Pauschale
D297: Erlöse KM-Zuschlag
D298: Erstattungen für Notarzt
D301: Summe A 4.1 | F301: 0

Sheet Drucken-B1.2
F2: Druck-Vorlage Gesamtnachweis
C6: ="KLR Rettungsdienst für den RDB "&INDEX(ParameterDatei!C85:C102,ParameterDatei!B107)&" - 01.01.-31.12."&Stammdaten_1!D8 -> KLR Rettungsdienst für den RDB Havelland - 01.01.-31.12.2014
C7: B 1.2 | D7: Basisdaten zur Gebührenermittlung
K9: Ansatzfähige
C10: Bezeichnung | K10: Kosten
K11: =Stammdaten_1!D8 -> 2014
K13: 7
D16: Gesamtkosten
C17: B1.1.1 | D17: Gesamtkosten (A3 - A2 - A4) | K17: =Gesamt!K1218 -> 0
C18: B1.1.2 | D18: Vorkostenstelle Verwaltung (C3 - C2) | K18: =Gesamt!K1219 -> 0
C19: B1.1.3 | D19: Vorkostenstelle Leitstelle (D3 - D2) | K19: =Gesamt!K1220 -> 0
C20: B1.1.4 | D20: Kostenstellen Rettungswachen | K20: =Gesamt!K1221 -> 0
C22: Auf der Basis der Gebührenberechnungsmatirx B2 ergibt sich eine KTP-Grundgebühr in Höhe von | K22: =Gesamt!K1223 -> 0
C23: Auf der Basis der Gebührenberechnungsmatirx B2 ergibt sich eine RTW/NAW-Grundgebühr in Höhe von | K23: =Gesamt!K1224 -> 0
C24: Auf der Basis der Gebührenberechnungsmatirx B2 ergibt sich eine NEF-Grundgebühr in Höhe von | K24: =Gesamt!K1225 -> 0
D27: Variable KFZ-Kosten aus A3
C28: 55200 | D28: Kraftstoff/Öl | K28: =Gesamt!K1229 -> 0
C29: 55320 | D29: KFZ-Reparaturen / Wartung | K29: =Gesamt!K1230 -> 0
C30: 55400 | D30: KFZ-Bereifung / Zubehör | K30: =Gesamt!K1231 -> 0
C31: 55500 | D31: KFZ-Versicherungen | K31: =Gesamt!K1232 -> 0
C32: 55600 | D32: Sonstige KFZ-Kosten * | K32: =Gesamt!K1233 -> 0
C33: 55700 | D33: KFZ-Steuern | K33: =Gesamt!K1234 -> 0
D34: Summe Variable KFZ-Kosten | K34: =Gesamt!K1235 -> 0
C36: Auf der Basis der Gebührenberechnungsmatirx B2 ergibt sich ein KM-Zuschlag in Höhe von | K36: =Gesamt!K1237 -> 0
D39: Notarztkosten aus A3
C40: 41410 | D40: Vergütung Ärztlicher Leiter Rettungsdienst | K40: =Gesamt!K1241 -> 0
C41: 41411 | D41: Vergütung angestellte Notärzte * | K41: =Gesamt!K1242 -> 0
C42: 41412 | D42: Vergütung Krankenhausärzte * | K42: =Gesamt!K1243 -> 0
C43: 41413 | D43: Vergütung niedergel. Ärzte/Vertragsärzte * | K43: =Gesamt!K1244 -> 0
C44: 41414 | D44: Vergütung Notärzte in Ausbildung * | K44: =Gesamt!K1245 -> 0
K45: =Gesamt!K1246 -> 0
C46: 41860 | D46: Leitende Notärzte * | K46: =Gesamt!K1247 -> 0
C48: 42411 | D48: Versorgungsbez. angestellte Notärzte | K48: =Gesamt!K1249 -> 0
C49: 43411 | D49: Beiträge VK angestellte Notärzte | K49: =Gesamt!K1250 -> 0
C50: 44411 | D50: Beiträge Soz.Vers. angestellte Notärzte | K50: =Gesamt!K1251 -> 0
C51: 46700 | D51: Ausbildungskosten Notärzte * | K51: =Gesamt!K1252 -> 0
D52: Summe Notarztkosten | K52: =Gesamt!K1253 -> 0
C54: Auf der Basis der Gebührenberechnungsmatirx B2 ergibt sich ein Notarzt-Zuschlag in Höhe von | K54: =Gesamt!K1255 -> 0

Sheet F1
D1: x | E1: x | F1: x | H1: x | I1: x | J1: x | L1: x | M1: x | N1: x | P1: x
A2: 7 | B2: < Blättern • Drucken • Sichern • Hauptmenu • Auswahlmenu • Blättern >
C1813: ="KLR Rettungsdienst für den RDB "&INDEX(ParameterDatei!C$85:C$102,ParameterDatei!B$107)&" - 01.01.-31.12."&Stammdaten_1!D$8 -> KLR Rettungsdienst für den RDB Havelland - 01.01.-31.12.2014
C1815: ="F1 Jahresrettungsmittelstunden - Rettungswache "&ParameterDatei!E145 -> F1 Jahresrettungsmittelstunden - Rettungswache 0
C1817: ="Rettungsmittelvorhaltung im Zeitraum 01.01.-31.12."&Stammdaten_1!D$8 -> Rettungsmittelvorhaltung im Zeitraum 01.01.-31.12.2014
C1818: Rettungsmittel | E1818: Montag - Freitag (ohne Feiertage) | I1818: Samstage (ohne Feiertage) | M1818: Sonn- und Feiertage | Q1818: RM
E1819: in der Zeit | G1819: Vorhalte- | H1819: Tage | I1819: in der Zeit | K1819: Vorhalte- | L1819: Tage | M1819: in der Zeit | O1819: Vorhalte- | P1819: Tage | Q1819: Vorhalte-
E1820: von | F1820: bis | G1820: stunden | I1820: von | J1820: bis | K1820: stunden | M1820: von | N1820: bis | O1820: stunden | Q1820: stunden
E1821: ss:mm | F1821: ss:mm | I1821: ss:mm | J1821: ss:mm | M1821: ss:mm | N1821: ss:mm
A1822: x | G1822: =IF(E1822="",0,IF(HOUR(F1822)>HOUR(E1822),HOUR(F1822-E1822)+(MINUTE(F1822-E1822)/60),24+HOUR(F1822)-HOUR(E1822)+(MINUTE(F1822))/60-(MINUTE(E1822))/60)) -> 0 | K1822: =IF(I1822="",0,IF(HOUR(J1822)>HOUR(I1822),HOUR(J1822-I1822)+(MINUTE(J1822-I1822)/60),24+HOUR(J1822)-HOUR(I1822)+(MINUTE(J1822))/60-(MINUTE(I1822))/60)) -> 0 | O1822: =IF(M1822="",0,IF(HOUR(N1822)>HOUR(M1822),HOUR(N1822-M1822)+(MINUTE(N1822-M1822)/60),24+HOUR(N1822)-HOUR(M1822)+(MINUTE(N1822))/60-(MINUTE(M1822))/60)) -> 0 | Q1822: =(G1822*H1822)+(K1822*L1822)+(O1822*P1822) -> 0 | AC1822: F1.01 | AD1822: 13
A1823: x | G1823: =IF(E1823="",0,IF(HOUR(F1823)>HOUR(E1823),HOUR(F1823-E1823)+(MINUTE(F1823-E1823)/60),24+HOUR(F1823)-HOUR(E1823)+(MINUTE(F1823))/60-(MINUTE(E1823))/60)) -> 0 | K1823: =IF(I1823="",0,IF(HOUR(J1823)>HOUR(I1823),HOUR(J1823-I1823)+(MINUTE(J1823-I1823)/60),24+HOUR(J1823)-HOUR(I1823)+(MINUTE(J1823))/60-(MINUTE(I1823))/60)) -> 0 | O1823: =IF(M1823="",0,IF(HOUR(N1823)>HOUR(M1823),HOUR(N1823-M1823)+(MINUTE(N1823-M1823)/60),24+HOUR(N1823)-HOUR(M1823)+(MINUTE(N1823))/60-(MINUTE(M1823))/60)) -> 0 | Q1823: =(G1823*H1823)+(K1823*L1823)+(O1823*P1823) -> 0 | AC1823: F1.01 | AD1823: 14
A1824: x | G1824: 0 | K1824: 0 | O1824: 0 | Q1824: 0 | AC1824: F1.01 | AD1824: 15
A1825: x | G1825: 0 | K1825: 0 | O1825: 0 | Q1825: 0 | AC1825: F1.01 | AD1825: 16
A1826: x | G1826: =IF(E1826="",0,IF(HOUR(F1826)>HOUR(E1826),HOUR(F1826-E1826)+(MINUTE(F1826-E1826)/60),24+HOUR(F1826)-HOUR(E1826)+(MINUTE(F1826))/60-(MINUTE(E1826))/60)) -> 0 | K1826: =IF(I1826="",0,IF(HOUR(J1826)>HOUR(I1826),HOUR(J1826-I1826)+(MINUTE(J1826-I1826)/60),24+HOUR(J1826)-HOUR(I1826)+(MINUTE(J1826))/60-(MINUTE(I1826))/60)) -> 0 | O1826: =IF(M1826="",0,IF(HOUR(N1826)>HOUR(M1826),HOUR(N1826-M1826)+(MINUTE(N1826-M1826)/60),24+HOUR(N1826)-HOUR(M1826)+(MINUTE(N1826))/60-(MINUTE(M1826))/60)) -> 0 | Q1826: =(G1826*H1826)+(K1826*L1826)+(O1826*P1826) -> 0 | AC1826: F1.01 | AD1826: 17
A1827: x | G1827: =IF(E1827="",0,IF(HOUR(F1827)>HOUR(E1827),HOUR(F1827-E1827)+(MINUTE(F1827-E1827)/60),24+HOUR(F1827)-HOUR(E1827)+(MINUTE(F1827))/60-(MINUTE(E1827))/60)) -> 0 | K1827: =IF(I1827="",0,IF(HOUR(J1827)>HOUR(I1827),HOUR(J1827-I1827)+(MINUTE(J1827-I1827)/60),24+HOUR(J1827)-HOUR(I1827)+(MINUTE(J1827))/60-(MINUTE(I1827))/60)) -> 0 | O1827: =IF(M1827="",0,IF(HOUR(N1827)>HOUR(M1827),HOUR(N1827-M1827)+(MINUTE(N1827-M1827)/60),24+HOUR(N1827)-HOUR(M1827)+(MINUTE(N1827))/60-(MINUTE(M1827))/60)) -> 0 | Q1827: =(G1827*H1827)+(K1827*L1827)+(O1827*P1827) -> 0 | AC1827: F1.01 | AD1827: 18
A1828: x | G1828: =IF(E1828="",0,IF(HOUR(F1828)>HOUR(E1828),HOUR(F1828-E1828)+(MINUTE(F1828-E1828)/60),24+HOUR(F1828)-HOUR(E1828)+(MINUTE(F1828))/60-(MINUTE(E1828))/60)) -> 0 | K1828: =IF(I1828="",0,IF(HOUR(J1828)>HOUR(I1828),HOUR(J1828-I1828)+(MINUTE(J1828-I1828)/60),24+HOUR(J1828)-HOUR(I1828)+(MINUTE(J1828))/60-(MINUTE(I1828))/60)) -> 0 | O1828: =IF(M1828="",0,IF(HOUR(N1828)>HOUR(M1828),HOUR(N1828-M1828)+(MINUTE(N1828-M1828)/60),24+HOUR(N1828)-HOUR(M1828)+(MINUTE(N1828))/60-(MINUTE(M1828))/60)) -> 0 | Q1828: =(G1828*H1828)+(K1828*L1828)+(O1828*P1828) -> 0 | AC1828: F1.01 | AD1828: 19
A1829: x | G1829: =IF(E1829="",0,IF(HOUR(F1829)>HOUR(E1829),HOUR(F1829-E1829)+(MINUTE(F1829-E1829)/60),24+HOUR(F1829)-HOUR(E1829)+(MINUTE(F1829))/60-(MINUTE(E1829))/60)) -> 0 | K1829: =IF(I1829="",0,IF(HOUR(J1829)>HOUR(I1829),HOUR(J1829-I1829)+(MINUTE(J1829-I1829)/60),24+HOUR(J1829)-HOUR(I1829)+(MINUTE(J1829))/60-(MINUTE(I1829))/60)) -> 0 | O1829: =IF(M1829="",0,IF(HOUR(N1829)>HOUR(M1829),HOUR(N1829-M1829)+(MINUTE(N1829-M1829)/60),24+HOUR(N1829)-HOUR(M1829)+(MINUTE(N1829))/60-(MINUTE(M1829))/60)) -> 0 | Q1829: =(G1829*H1829)+(K1829*L1829)+(O1829*P1829) -> 0 | AC1829: F1.01 | AD1829: 20
A1830: x | G1830: 0 | K1830: 0 | O1830: 0 | Q1830: 0 | AC1830: F1.01 | AD1830: 21
A1831: x | G1831: 0 | K1831: 0 | O1831: 0 | Q1831: 0 | AC1831: F1.01 | AD1831: 22
A1832: x | G1832: 0 | K1832: 0 | O1832: 0 | Q1832: 0 | AC1832: F1.01 | AD1832: 23
A1833: x | G1833: 0 | K1833: 0 | O1833: 0 | Q1833: 0 | AC1833: F1.01 | AD1833: 24
A1834: x | G1834: 0 | K1834: 0 | O1834: 0 | Q1834: 0 | AC1834: F1.01 | AD1834: 25
A1835: x | G1835: 0 | K1835: 0 | O1835: 0 | Q1835: 0 | AC1835: F1.01 | AD1835: 26
A1836: x | G1836: 0 | K1836: 0 | O1836: 0 | Q1836: 0 | AC1836: F1.01 | AD1836: 27
A1837: x | G1837: 0 | K1837: 0 | O1837: 0 | Q1837: 0 | AC1837: F1.01 | AD1837: 28
A1838: x | G1838: 0 | K1838: 0 | O1838: 0 | Q1838: 0 | AC1838: F1.01 | AD1838: 29
A1839: x | G1839: 0 | K1839: 0 | O1839: 0 | Q1839: 0
A1840: x | G1840: 0 | K1840: 0 | O1840: 0 | Q1840: 0
A1841: x | G1841: 0 | K1841: 0 | O1841: 0 | Q1841: 0
P1842: Rettungsmittel-Vorhaltestunden insgesamt: | Q1842: =SUM(Q1822:Q1841) -> 0
C2113: ="KLR Rettungsdienst für den RDB "&INDEX(ParameterDatei!C$85:C$102,ParameterDatei!B$107)&" - 01.01.-31.12."&Stammdaten_1!D$8 -> KLR Rettungsdienst für den RDB Havelland - 01.01.-31.12.2014
C2115: ="F1 Jahresrettungsmittelstunden - Rettungswache "&ParameterDatei!E146 -> F1 Jahresrettungsmittelstunden - Rettungswache 0
C2117: ="Rettungsmittelvorhaltung im Zeitraum 01.01.-31.12."&Stammdaten_1!D$8 -> Rettungsmittelvorhaltung im Zeitraum 01.01.-31.12.2014
C2118: Rettungsmittel | E2118: Montag - Freitag (ohne Feiertage) | I2118: Samstage (ohne Feiertage) | M2118: Sonn- und Feiertage | Q2118: RM
E2119: in der Zeit | G2119: Vorhalte- | H2119: Tage | I2119: in der Zeit | K2119: Vorhalte- | L2119: Tage | M2119: in der Zeit | O2119: Vorhalte- | P2119: Tage | Q2119: Vorhalte-
E2120: von | F2120: bis | G2120: stunden | I2120: von | J2120: bis | K2120: stunden | M2120: von | N2120: bis | O2120: stunden | Q2120: stunden
E2121: ss:mm | F2121: ss:mm | I2121: ss:mm | J2121: ss:mm | M2121: ss:mm | N2121: ss:mm
A2122: x | G2122: =IF(E2122="",0,IF(HOUR(F2122)>HOUR(E2122),HOUR(F2122-E2122)+(MINUTE(F2122-E2122)/60),24+HOUR(F2122)-HOUR(E2122)+(MINUTE(F2122))/60-(MINUTE(E2122))/60)) -> 0 | K2122: =IF(I2122="",0,IF(HOUR(J2122)>HOUR(I2122),HOUR(J2122-I2122)+(MINUTE(J2122-I2122)/60),24+HOUR(J2122)-HOUR(I2122)+(MINUTE(J2122))/60-(MINUTE(I2122))/60)) -> 0 | O2122: =IF(M2122="",0,IF(HOUR(N2122)>HOUR(M2122),HOUR(N2122-M2122)+(MINUTE(N2122-M2122)/60),24+HOUR(N2122)-HOUR(M2122)+(MINUTE(N2122))/60-(MINUTE(M2122))/60)) -> 0 | Q2122: =(G2122*H2122)+(K2122*L2122)+(O2122*P2122) -> 0 | AC2122: F1.02 | AD2122: 13
A2123: x | G2123: 0 | K2123: 0 | O2123: 0 | Q2123: 0 | AC2123: F1.02 | AD2123: 14
A2124: x | G2124: 0 | K2124: 0 | O2124: 0 | Q2124: 0 | AC2124: F1.02 | AD2124: 15
A2125: x | G2125: 0 | K2125: 0 | O2125: 0 | Q2125: 0 | AC2125: F1.02 | AD2125: 16
A2126: x | G2126: 0 | K2126: 0 | O2126: 0 | Q2126: 0 | AC2126: F1.02 | AD2126: 17
A2127: x | G2127: 0 | K2127: 0 | O2127: 0 | Q2127: 0 | AC2127: F1.02 | AD2127: 18
A2128: x | G2128: 0 | K2128: 0 | O2128: 0 | Q2128: 0 | AC2128: F1.02 | AD2128: 19
A2129: x | G2129: 0 | K2129: 0 | O2129: 0 | Q2129: 0 | AC2129: F1.02 | AD2129: 20
A2130: x | G2130: =IF(E2130="",0,IF(HOUR(F2130)>HOUR(E2130),HOUR(F2130-E2130)+(MINUTE(F2130-E2130)/60),24+HOUR(F2130)-HOUR(E2130)+(MINUTE(F2130))/60-(MINUTE(E2130))/60)) -> 0 | K2130: =IF(I2130="",0,IF(HOUR(J2130)>HOUR(I2130),HOUR(J2130-I2130)+(MINUTE(J2130-I2130)/60),24+HOUR(J2130)-HOUR(I2130)+(MINUTE(J2130))/60-(MINUTE(I2130))/60)) -> 0 | O2130: =IF(M2130="",0,IF(HOUR(N2130)>HOUR(M2130),HOUR(N2130-M2130)+(MINUTE(N2130-M2130)/60),24+HOUR(N2130)-HOUR(M2130)+(MINUTE(N2130))/60-(MINUTE(M2130))/60)) -> 0 | Q2130: =(G2130*H2130)+(K2130*L2130)+(O2130*P2130) -> 0 | AC2130: F1.02 | AD2130: 21
A2131: x | G2131: 0 | K2131: 0 | O2131: 0 | Q2131: 0 | AC2131: F1.02 | AD2131: 22
A2132: x | G2132: 0 | K2132: 0 | O2132: 0 | Q2132: 0 | AC2132: F1.02 | AD2132: 23
A2133: x | G2133: 0 | K2133: 0 | O2133: 0 | Q2133: 0 | AC2133: F1.02 | AD2133: 24
A2134: x | G2134: 0 | K2134: 0 | O2134: 0 | Q2134: 0 | AC2134: F1.02 | AD2134: 25
A2135: x | G2135: 0 | K2135: 0 | O2135: 0 | Q2135: 0 | AC2135: F1.02 | AD2135: 26
A2136: x | G2136: 0 | K2136: 0 | O2136: 0 | Q2136: 0 | AC2136: F1.02 | AD2136: 27
A2137: x | G2137: 0 | K2137: 0 | O2137: 0 | Q2137: 0 | AC2137: F1.02 | AD2137: 28
A2138: x | G2138: 0 | K2138: 0 | O2138: 0 | Q2138: 0 | AC2138: F1.02 | AD2138: 29
A2139: x | G2139: 0 | K2139: 0 | O2139: 0 | Q2139: 0
A2140: x | G2140: 0 | K2140: 0 | O2140: 0 | Q2140: 0
A2141: x | G2141: 0 | K2141: 0 | O2141: 0 | Q2141: 0
P2142: Rettungsmittel-Vorhaltestunden insgesamt: | Q2142: =SUM(Q2122:Q2141) -> 0
C2413: ="KLR Rettungsdienst für den RDB "&INDEX(ParameterDatei!C$85:C$102,ParameterDatei!B$107)&" - 01.01.-31.12."&Stammdaten_1!D$8 -> KLR Rettungsdienst für den RDB Havelland - 01.01.-31.12.2014
C2415: ="F1 Jahresrettungsmittelstunden - Rettungswache "&ParameterDatei!E147 -> F1 Jahresrettungsmittelstunden - Rettungswache 0
C2417: ="Rettungsmittelvorhaltung im Zeitraum 01.01.-31.12."&Stammdaten_1!D$8 -> Rettungsmittelvorhaltung im Zeitraum 01.01.-31.12.2014
C2418: Rettungsmittel | E2418: Montag - Freitag (ohne Feiertage) | I2418: Samstage (ohne Feiertage) | M2418: Sonn- und Feiertage | Q2418: RM
E2419: in der Zeit | G2419: Vorhalte- | H2419: Tage | I2419: in der Zeit | K2419: Vorhalte- | L2419: Tage | M2419: in der Zeit | O2419: Vorhalte- | P2419: Tage | Q2419: Vorhalte-
E2420: von | F2420: bis | G2420: stunden | I2420: von | J2420: bis | K2420: stunden | M2420: von | N2420: bis | O2420: stunden | Q2420: stunden
E2421: ss:mm | F2421: ss:mm | I2421: ss:mm | J2421: ss:mm | M2421: ss:mm | N2421: ss:mm
A2422: x | G2422: =IF(E2422="",0,IF(HOUR(F2422)>HOUR(E2422),HOUR(F2422-E2422)+(MINUTE(F2422-E2422)/60),24+HOUR(F2422)-HOUR(E2422)+(MINUTE(F2422))/60-(MINUTE(E2422))/60)) -> 0 | K2422: =IF(I2422="",0,IF(HOUR(J2422)>HOUR(I2422),HOUR(J2422-I2422)+(MINUTE(J2422-I2422)/60),24+HOUR(J2422)-HOUR(I2422)+(MINUTE(J2422))/60-(MINUTE(I2422))/60)) -> 0 | O2422: =IF(M2422="",0,IF(HOUR(N2422)>HOUR(M2422),HOUR(N2422-M2422)+(MINUTE(N2422-M2422)/60),24+HOUR(N2422)-HOUR(M2422)+(MINUTE(N2422))/60-(MINUTE(M2422))/60)) -> 0 | Q2422: =(G2422*H2422)+(K2422*L2422)+(O2422*P2422) -> 0 | AC2422: F1.03 | AD2422: 13
A2423: x | G2423: 0 | K2423: 0 | O2423: 0 | Q2423: 0 | AC2423: F1.03 | AD2423: 14
A2424: x | G2424: 0 | K2424: 0 | O2424: 0 | Q2424: 0 | AC2424: F1.03 | AD2424: 15
A2425: x | G2425: 0 | K2425: 0 | O2425: 0 | Q2425: 0 | AC2425: F1.03 | AD2425: 16
A2426: x | G2426: 0 | K2426: 0 | O2426: 0 | Q2426: 0 | AC2426: F1.03 | AD2426: 17
A2427: x | G2427: 0 | K2427: 0 | O2427: 0 | Q2427: 0 | AC2427: F1.03 | AD2427: 18
A2428: x | G2428: 0 | K2428: 0 | O2428: 0 | Q2428: 0 | AC2428: F1.03 | AD2428: 19
A2429: x | G2429: 0 | K2429: 0 | O2429: 0 | Q2429: 0 | AC2429: F1.03 | AD2429: 20
A2430: x | G2430: =IF(E2430="",0,IF(HOUR(F2430)>HOUR(E2430),HOUR(F2430-E2430)+(MINUTE(F2430-E2430)/60),24+HOUR(F2430)-HOUR(E2430)+(MINUTE(F2430))/60-(MINUTE(E2430))/60)) -> 0 | K2430: =IF(I2430="",0,IF(HOUR(J2430)>HOUR(I2430),HOUR(J2430-I2430)+(MINUTE(J2430-I2430)/60),24+HOUR(J2430)-HOUR(I2430)+(MINUTE(J2430))/60-(MINUTE(I2430))/60)) -> 0 | O2430: =IF(M2430="",0,IF(HOUR(N2430)>HOUR(M2430),HOUR(N2430-M2430)+(MINUTE(N2430-M2430)/60),24+HOUR(N2430)-HOUR(M2430)+(MINUTE(N2430))/60-(MINUTE(M2430))/60)) -> 0 | Q2430: =(G2430*H2430)+(K2430*L2430)+(O2430*P2430) -> 0 | AC2430: F1.03 | AD2430: 21
A2431: x | G2431: 0 | K2431: 0 | O2431: 0 | Q2431: 0 | AC2431: F1.03 | AD2431: 22
A2432: x | G2432: 0 | K2432: 0 | O2432: 0 | Q2432: 0 | AC2432: F1.03 | AD2432: 23
A2433: x | G2433: 0 | K2433: 0 | O2433: 0 | Q2433: 0 | AC2433: F1.03 | AD2433: 24
A2434: x | G2434: 0 | K2434: 0 | O2434: 0 | Q2434: 0 | AC2434: F1.03 | AD2434: 25
A2435: x | G2435: 0 | K2435: 0 | O2435: 0 | Q2435: 0 | AC2435: F1.03 | AD2435: 26
A2436: x | G2436: 0 | K2436: 0 | O2436: 0 | Q2436: 0 | AC2436: F1.03 | AD2436: 27
A2437: x | G2437: 0 | K2437: 0 | O2437: 0 | Q2437: 0 | AC2437: F1.03 | AD2437: 28
A2438: x | G2438: 0 | K2438: 0 | O2438: 0 | Q2438: 0 | AC2438: F1.03 | AD2438: 29
A2439: x | G2439: 0 | K2439: 0 | O2439: 0 | Q2439: 0
A2440: x | G2440: 0 | K2440: 0 | O2440: 0 | Q2440: 0
A2441: x | G2441: 0 | K2441: 0 | O2441: 0 | Q2441: 0
P2442: Rettungsmittel-Vorhaltestunden insgesamt: | Q2442: =SUM(Q2422:Q2441) -> 0
C2713: ="KLR Rettungsdienst für den RDB "&INDEX(ParameterDatei!C$85:C$102,ParameterDatei!B$107)&" - 01.01.-31.12."&Stammdaten_1!D$8 -> KLR Rettungsdienst für den RDB Havelland - 01.01.-31.12.2014
C2715: ="F1 Jahresrettungsmittelstunden - Rettungswache "&ParameterDatei!E148 -> F1 Jahresrettungsmittelstunden - Rettungswache 0
C2717: ="Rettungsmittelvorhaltung im Zeitraum 01.01.-31.12."&Stammdaten_1!D$8 -> Rettungsmittelvorhaltung im Zeitraum 01.01.-31.12.2014
C2718: Rettungsmittel | E2718: Montag - Freitag (ohne Feiertage) | I2718: Samstage (ohne Feiertage) | M2718: Sonn- und Feiertage | Q2718: RM
E2719: in der Zeit | G2719: Vorhalte- | H2719: Tage | I2719: in der Zeit | K2719: Vorhalte- | L2719: Tage | M2719: in der Zeit | O2719: Vorhalte- | P2719: Tage | Q2719: Vorhalte-
E2720: von | F2720: bis | G2720: stunden | I2720: von | J2720: bis | K2720: stunden | M2720: von | N2720: bis | O2720: stunden | Q2720: stunden
E2721: ss:mm | F2721: ss:mm | I2721: ss:mm | J2721: ss:mm | M2721: ss:mm | N2721: ss:mm
A2722: x | G2722: =IF(E2722="",0,IF(HOUR(F2722)>HOUR(E2722),HOUR(F2722-E2722)+(MINUTE(F2722-E2722)/60),24+HOUR(F2722)-HOUR(E2722)+(MINUTE(F2722))/60-(MINUTE(E2722))/60)) -> 0 | K2722: =IF(I2722="",0,IF(HOUR(J2722)>HOUR(I2722),HOUR(J2722-I2722)+(MINUTE(J2722-I2722)/60),24+HOUR(J2722)-HOUR(I2722)+(MINUTE(J2722))/60-(MINUTE(I2722))/60)) -> 0 | O2722: =IF(M2722="",0,IF(HOUR(N2722)>HOUR(M2722),HOUR(N2722-M2722)+(MINUTE(N2722-M2722)/60),24+HOUR(N2722)-HOUR(M2722)+(MINUTE(N2722))/60-(MINUTE(M2722))/60)) -> 0 | Q2722: =(G2722*H2722)+(K2722*L2722)+(O2722*P2722) -> 0 | AC2722: F1.04 | AD2722: 13
A2723: x | G2723: 0 | K2723: 0 | O2723: 0 | Q2723: 0 | AC2723: F1.04 | AD2723: 14
A2724: x | G2724: 0 | K2724: 0 | O2724: 0 | Q2724: 0 | AC2724: F1.04 | AD2724: 15
A2725: x | G2725: 0 | K2725: 0 | O2725: 0 | Q2725: 0 | AC2725: F1.04 | AD2725: 16
A2726: x | G2726: 0 | K2726: 0 | O2726: 0 | Q2726: 0 | AC2726: F1.04 | AD2726: 17
A2727: x | G2727: 0 | K2727: 0 | O2727: 0 | Q2727: 0 | AC2727: F1.04 | AD2727: 18
A2728: x | G2728: 0 | K2728: 0 | O2728: 0 | Q2728: 0 | AC2728: F1.04 | AD2728: 19
A2729: x | G2729: 0 | K2729: 0 | O2729: 0 | Q2729: 0 | AC2729: F1.04 | AD2729: 20
A2730: x | G2730: =IF(E2730="",0,IF(HOUR(F2730)>HOUR(E2730),HOUR(F2730-E2730)+(MINUTE(F2730-E2730)/60),24+HOUR(F2730)-HOUR(E2730)+(MINUTE(F2730))/60-(MINUTE(E2730))/60)) -> 0 | K2730: =IF(I2730="",0,IF(HOUR(J2730)>HOUR(I2730),HOUR(J2730-I2730)+(MINUTE(J2730-I2730)/60),24+HOUR(J2730)-HOUR(I2730)+(MINUTE(J2730))/60-(MINUTE(I2730))/60)) -> 0 | O2730: =IF(M2730="",0,IF(HOUR(N2730)>HOUR(M2730),HOUR(N2730-M2730)+(MINUTE(N2730-M2730)/60),24+HOUR(N2730)-HOUR(M2730)+(MINUTE(N2730))/60-(MINUTE(M2730))/60)) -> 0 | Q2730: =(G2730*H2730)+(K2730*L2730)+(O2730*P2730) -> 0 | AC2730: F1.04 | AD2730: 21
A2731: x | G2731: 0 | K2731: 0 | O2731: 0 | Q2731: 0 | AC2731: F1.04 | AD2731: 22
A2732: x | G2732: 0 | K2732: 0 | O2732: 0 | Q2732: 0 | AC2732: F1.04 | AD2732: 23
A2733: x | G2733: 0 | K2733: 0 | O2733: 0 | Q2733: 0 | AC2733: F1.04 | AD2733: 24
A2734: x | G2734: 0 | K2734: 0 | O2734: 0 | Q2734: 0 | AC2734: F1.04 | AD2734: 25
A2735: x | G2735: 0 | K2735: 0 | O2735: 0 | Q2735: 0 | AC2735: F1.04 | AD2735: 26
A2736: x | G2736: 0 | K2736: 0 | O2736: 0 | Q2736: 0 | AC2736: F1.04 | AD2736: 27
A2737: x | G2737: 0 | K2737: 0 | O2737: 0 | Q2737: 0 | AC2737: F1.04 | AD2737: 28
A2738: x | G2738: 0 | K2738: 0 | O2738: 0 | Q2738: 0 | AC2738: F1.04 | AD2738: 29
A2739: x | G2739: 0 | K2739: 0 | O2739: 0 | Q2739: 0
A2740: x | G2740: 0 | K2740: 0 | O2740: 0 | Q2740: 0
A2741: x | G2741: 0 | K2741: 0 | O2741: 0 | Q2741: 0
P2742: Rettungsmittel-Vorhaltestunden insgesamt: | Q2742: =SUM(Q2722:Q2741) -> 0
C3013: ="KLR Rettungsdienst für den RDB "&INDEX(ParameterDatei!C$85:C$102,ParameterDatei!B$107)&" - 01.01.-31.12."&Stammdaten_1!D$8 -> KLR Rettungsdienst für den RDB Havelland - 01.01.-31.12.2014
C3015: ="F1 Jahresrettungsmittelstunden - Rettungswache "&ParameterDatei!E149 -> F1 Jahresrettungsmittelstunden - Rettungswache 0
C3017: ="Rettungsmittelvorhaltung im Zeitraum 01.01.-31.12."&Stammdaten_1!D$8 -> Rettungsmittelvorhaltung im Zeitraum 01.01.-31.12.2014
C3018: Rettungsmittel | E3018: Montag - Freitag (ohne Feiertage) | I3018: Samstage (ohne Feiertage) | M3018: Sonn- und Feiertage | Q3018: RM
E3019: in der Zeit | G3019: Vorhalte- | H3019: Tage | I3019: in der Zeit | K3019: Vorhalte- | L3019: Tage | M3019: in der Zeit | O3019: Vorhalte- | P3019: Tage | Q3019: Vorhalte-
E3020: von | F3020: bis | G3020: stunden | I3020: von | J3020: bis | K3020: stunden | M3020: von | N3020: bis | O3020: stunden | Q3020: stunden
E3021: ss:mm | F3021: ss:mm | I3021: ss:mm | J3021: ss:mm | M3021: ss:mm | N3021: ss:mm
A3022: x | G3022: =IF(E3022="",0,IF(HOUR(F3022)>HOUR(E3022),HOUR(F3022-E3022)+(MINUTE(F3022-E3022)/60),24+HOUR(F3022)-HOUR(E3022)+(MINUTE(F3022))/60-(MINUTE(E3022))/60)) -> 0 | K3022: =IF(I3022="",0,IF(HOUR(J3022)>HOUR(I3022),HOUR(J3022-I3022)+(MINUTE(J3022-I3022)/60),24+HOUR(J3022)-HOUR(I3022)+(MINUTE(J3022))/60-(MINUTE(I3022))/60)) -> 0 | O3022: =IF(M3022="",0,IF(HOUR(N3022)>HOUR(M3022),HOUR(N3022-M3022)+(MINUTE(N3022-M3022)/60),24+HOUR(N3022)-HOUR(M3022)+(MINUTE(N3022))/60-(MINUTE(M3022))/60)) -> 0 | Q3022: =(G3022*H3022)+(K3022*L3022)+(O3022*P3022) -> 0 | AC3022: F1.05 | AD3022: 13
A3023: x | G3023: 0 | K3023: 0 | O3023: 0 | Q3023: 0 | AC3023: F1.05 | AD3023: 14
A3024: x | G3024: 0 | K3024: 0 | O3024: 0 | Q3024: 0 | AC3024: F1.05 | AD3024: 15
A3025: x | G3025: 0 | K3025: 0 | O3025: 0 | Q3025: 0 | AC3025: F1.05 | AD3025: 16
A3026: x | G3026: 0 | K3026: 0 | O3026: 0 | Q3026: 0 | AC3026: F1.05 | AD3026: 17
A3027: x | G3027: 0 | K3027: 0 | O3027: 0 | Q3027: 0 | AC3027: F1.05 | AD3027: 18
A3028: x | G3028: 0 | K3028: 0 | O3028: 0 | Q3028: 0 | AC3028: F1.05 | AD3028: 19
A3029: x | G3029: 0 | K3029: 0 | O3029: 0 | Q3029: 0 | AC3029: F1.05 | AD3029: 20
A3030: x | G3030: =IF(E3030="",0,IF(HOUR(F3030)>HOUR(E3030),HOUR(F3030-E3030)+(MINUTE(F3030-E3030)/60),24+HOUR(F3030)-HOUR(E3030)+(MINUTE(F3030))/60-(MINUTE(E3030))/60)) -> 0 | K3030: =IF(I3030="",0,IF(HOUR(J3030)>HOUR(I3030),HOUR(J3030-I3030)+(MINUTE(J3030-I3030)/60),24+HOUR(J3030)-HOUR(I3030)+(MINUTE(J3030))/60-(MINUTE(I3030))/60)) -> 0 | O3030: =IF(M3030="",0,IF(HOUR(N3030)>HOUR(M3030),HOUR(N3030-M3030)+(MINUTE(N3030-M3030)/60),24+HOUR(N3030)-HOUR(M3030)+(MINUTE(N3030))/60-(MINUTE(M3030))/60)) -> 0 | Q3030: =(G3030*H3030)+(K3030*L3030)+(O3030*P3030) -> 0 | AC3030: F1.05 | AD3030: 21
A3031: x | G3031: 0 | K3031: 0 | O3031: 0 | Q3031: 0 | AC3031: F1.05 | AD3031: 22
A3032: x | G3032: 0 | K3032: 0 | O3032: 0 | Q3032: 0 | AC3032: F1.05 | AD3032: 23
A3033: x | G3033: 0 | K3033: 0 | O3033: 0 | Q3033: 0 | AC3033: F1.05 | AD3033: 24
A3034: x | G3034: 0 | K3034: 0 | O3034: 0 | Q3034: 0 | AC3034: F1.05 | AD3034: 25
A3035: x | G3035: 0 | K3035: 0 | O3035: 0 | Q3035: 0 | AC3035: F1.05 | AD3035: 26
A3036: x | G3036: 0 | K3036: 0 | O3036: 0 | Q3036: 0 | AC3036: F1.05 | AD3036: 27
A3037: x | G3037: 0 | K3037: 0 | O3037: 0 | Q3037: 0 | AC3037: F1.05 | AD3037: 28
A3038: x | G3038: 0 | K3038: 0 | O3038: 0 | Q3038: 0 | AC3038: F1.05 | AD3038: 29
A3039: x | G3039: 0 | K3039: 0 | O3039: 0 | Q3039: 0
A3040: x | G3040: 0 | K3040: 0 | O3040: 0 | Q3040: 0
A3041: x | G3041: 0 | K3041: 0 | O3041: 0 | Q3041: 0
P3042: Rettungsmittel-Vorhaltestunden insgesamt: | Q3042: =SUM(Q3022:Q3041) -> 0
C3313: ="KLR Rettungsdienst für den RDB "&INDEX(ParameterDatei!C$85:C$102,ParameterDatei!B$107)&" - 01.01.-31.12."&Stammdaten_1!D$8 -> KLR Rettungsdienst für den RDB Havelland - 01.01.-31.12.2014
C3315: ="F1 Jahresrettungsmittelstunden - Rettungswache "&ParameterDatei!E150 -> F1 Jahresrettungsmittelstunden - Rettungswache 0
C3317: ="Rettungsmittelvorhaltung im Zeitraum 01.01.-31.12."&Stammdaten_1!D$8 -> Rettungsmittelvorhaltung im Zeitraum 01.01.-31.12.2014
C3318: Rettungsmittel | E3318: Montag - Freitag (ohne Feiertage) | I3318: Samstage (ohne Feiertage) | M3318: Sonn- und Feiertage | Q3318: RM
E3319: in der Zeit | G3319: Vorhalte- | H3319: Tage | I3319: in der Zeit | K3319: Vorhalte- | L3319: Tage | M3319: in der Zeit | O3319: Vorhalte- | P3319: Tage | Q3319: Vorhalte-
E3320: von | F3320: bis | G3320: stunden | I3320: von | J3320: bis | K3320: stunden | M3320: von | N3320: bis | O3320: stunden | Q3320: stunden
E3321: ss:mm | F3321: ss:mm | I3321: ss:mm | J3321: ss:mm | M3321: ss:mm | N3321: ss:mm
A3322: x | G3322: =IF(E3322="",0,IF(HOUR(F3322)>HOUR(E3322),HOUR(F3322-E3322)+(MINUTE(F3322-E3322)/60),24+HOUR(F3322)-HOUR(E3322)+(MINUTE(F3322))/60-(MINUTE(E3322))/60)) -> 0 | K3322: =IF(I3322="",0,IF(HOUR(J3322)>HOUR(I3322),HOUR(J3322-I3322)+(MINUTE(J3322-I3322)/60),24+HOUR(J3322)-HOUR(I3322)+(MINUTE(J3322))/60-(MINUTE(I3322))/60)) -> 0 | O3322: =IF(M3322="",0,IF(HOUR(N3322)>HOUR(M3322),HOUR(N3322-M3322)+(MINUTE(N3322-M3322)/60),24+HOUR(N3322)-HOUR(M3322)+(MINUTE(N3322))/60-(MINUTE(M3322))/60)) -> 0 | Q3322: =(G3322*H3322)+(K3322*L3322)+(O3322*P3322) -> 0 | AC3322: F1.06 | AD3322: 13
A3323: x | G3323: 0 | K3323: 0 | O3323: 0 | Q3323: 0 | AC3323: F1.06 | AD3323: 14
A3324: x | G3324: 0 | K3324: 0 | O3324: 0 | Q3324: 0 | AC3324: F1.06 | AD3324: 15
A3325: x | G3325: 0 | K3325: 0 | O3325: 0 | Q3325: 0 | AC3325: F1.06 | AD3325: 16
A3326: x | G3326: 0 | K3326: 0 | O3326: 0 | Q3326: 0 | AC3326: F1.06 | AD3326: 17
A3327: x | G3327: 0 | K3327: 0 | O3327: 0 | Q3327: 0 | AC3327: F1.06 | AD3327: 18
A3328: x | G3328: 0 | K3328: 0 | O3328: 0 | Q3328: 0 | AC3328: F1.06 | AD3328: 19
A3329: x | G3329: 0 | K3329: 0 | O3329: 0 | Q3329: 0 | AC3329: F1.06 | AD3329: 20
A3330: x | G3330: =IF(E3330="",0,IF(HOUR(F3330)>HOUR(E3330),HOUR(F3330-E3330)+(MINUTE(F3330-E3330)/60),24+HOUR(F3330)-HOUR(E3330)+(MINUTE(F3330))/60-(MINUTE(E3330))/60)) -> 0 | K3330: =IF(I3330="",0,IF(HOUR(J3330)>HOUR(I3330),HOUR(J3330-I3330)+(MINUTE(J3330-I3330)/60),24+HOUR(J3330)-HOUR(I3330)+(MINUTE(J3330))/60-(MINUTE(I3330))/60)) -> 0 | O3330: =IF(M3330="",0,IF(HOUR(N3330)>HOUR(M3330),HOUR(N3330-M3330)+(MINUTE(N3330-M3330)/60),24+HOUR(N3330)-HOUR(M3330)+(MINUTE(N3330))/60-(MINUTE(M3330))/60)) -> 0 | Q3330: =(G3330*H3330)+(K3330*L3330)+(O3330*P3330) -> 0 | AC3330: F1.06 | AD3330: 21
A3331: x | G3331: 0 | K3331: 0 | O3331: 0 | Q3331: 0 | AC3331: F1.06 | AD3331: 22
A3332: x | G3332: 0 | K3332: 0 | O3332: 0 | Q3332: 0 | AC3332: F1.06 | AD3332: 23
A3333: x | G3333: 0 | K3333: 0 | O3333: 0 | Q3333: 0 | AC3333: F1.06 | AD3333: 24
A3334: x | G3334: 0 | K3334: 0 | O3334: 0 | Q3334: 0 | AC3334: F1.06 | AD3334: 25
A3335: x | G3335: 0 | K3335: 0 | O3335: 0 | Q3335: 0 | AC3335: F1.06 | AD3335: 26
A3336: x | G3336: 0 | K3336: 0 | O3336: 0 | Q3336: 0 | AC3336: F1.06 | AD3336: 27
A3337: x | G3337: 0 | K3337: 0 | O3337: 0 | Q3337: 0 | AC3337: F1.06 | AD3337: 28
A3338: x | G3338: 0 | K3338: 0 | O3338: 0 | Q3338: 0 | AC3338: F1.06 | AD3338: 29
A3339: x | G3339: 0 | K3339: 0 | O3339: 0 | Q3339: 0
A3340: x | G3340: 0 | K3340: 0 | O3340: 0 | Q3340: 0
A3341: x | G3341: 0 | K3341: 0 | O3341: 0 | Q3341: 0
P3342: Rettungsmittel-Vorhaltestunden insgesamt: | Q3342: =SUM(Q3322:Q3341) -> 0
C3613: ="KLR Rettungsdienst für den RDB "&INDEX(ParameterDatei!C$85:C$102,ParameterDatei!B$107)&" - 01.01.-31.12."&Stammdaten_1!D$8 -> KLR Rettungsdienst für den RDB Havelland - 01.01.-31.12.2014
C3615: ="F1 Jahresrettungsmittelstunden - Rettungswache "&ParameterDatei!E151 -> F1 Jahresrettungsmittelstunden - Rettungswache 0
C3617: ="Rettungsmittelvorhaltung im Zeitraum 01.01.-31.12."&Stammdaten_1!D$8 -> Rettungsmittelvorhaltung im Zeitraum 01.01.-31.12.2014
C3618: Rettungsmittel | E3618: Montag - Freitag (ohne Feiertage) | I3618: Samstage (ohne Feiertage) | M3618: Sonn- und Feiertage | Q3618: RM
E3619: in der Zeit | G3619: Vorhalte- | H3619: Tage | I3619: in der Zeit | K3619: Vorhalte- | L3619: Tage | M3619: in der Zeit | O3619: Vorhalte- | P3619: Tage | Q3619: Vorhalte-
E3620: von | F3620: bis | G3620: stunden | I3620: von | J3620: bis | K3620: stunden | M3620: von | N3620: bis | O3620: stunden | Q3620: stunden
E3621: ss:mm | F3621: ss:mm | I3621: ss:mm | J3621: ss:mm | M3621: ss:mm | N3621: ss:mm
A3622: x | G3622: =IF(E3622="",0,IF(HOUR(F3622)>HOUR(E3622),HOUR(F3622-E3622)+(MINUTE(F3622-E3622)/60),24+HOUR(F3622)-HOUR(E3622)+(MINUTE(F3622))/60-(MINUTE(E3622))/60)) -> 0 | K3622: =IF(I3622="",0,IF(HOUR(J3622)>HOUR(I3622),HOUR(J3622-I3622)+(MINUTE(J3622-I3622)/60),24+HOUR(J3622)-HOUR(I3622)+(MINUTE(J3622))/60-(MINUTE(I3622))/60)) -> 0 | O3622: =IF(M3622="",0,IF(HOUR(N3622)>HOUR(M3622),HOUR(N3622-M3622)+(MINUTE(N3622-M3622)/60),24+HOUR(N3622)-HOUR(M3622)+(MINUTE(N3622))/60-(MINUTE(M3622))/60)) -> 0 | Q3622: =(G3622*H3622)+(K3622*L3622)+(O3622*P3622) -> 0 | AC3622: F1.07 | AD3622: 13
A3623: x | G3623: 0 | K3623: 0 | O3623: 0 | Q3623: 0 | AC3623: F1.07 | AD3623: 14
A3624: x | G3624: 0 | K3624: 0 | O3624: 0 | Q3624: 0 | AC3624: F1.07 | AD3624: 15
A3625: x | G3625: 0 | K3625: 0 | O3625: 0 | Q3625: 0 | AC3625: F1.07 | AD3625: 16
A3626: x | G3626: 0 | K3626: 0 | O3626: 0 | Q3626: 0 | AC3626: F1.07 | AD3626: 17
A3627: x | G3627: 0 | K3627: 0 | O3627: 0 | Q3627: 0 | AC3627: F1.07 | AD3627: 18
A3628: x | G3628: 0 | K3628: 0 | O3628: 0 | Q3628: 0 | AC3628: F1.07 | AD3628: 19
A3629: x | G3629: 0 | K3629: 0 | O3629: 0 | Q3629: 0 | AC3629: F1.07 | AD3629: 20
A3630: x | G3630: =IF(E3630="",0,IF(HOUR(F3630)>HOUR(E3630),HOUR(F3630-E3630)+(MINUTE(F3630-E3630)/60),24+HOUR(F3630)-HOUR(E3630)+(MINUTE(F3630))/60-(MINUTE(E3630))/60)) -> 0 | K3630: =IF(I3630="",0,IF(HOUR(J3630)>HOUR(I3630),HOUR(J3630-I3630)+(MINUTE(J3630-I3630)/60),24+HOUR(J3630)-HOUR(I3630)+(MINUTE(J3630))/60-(MINUTE(I3630))/60)) -> 0 | O3630: =IF(M3630="",0,IF(HOUR(N3630)>HOUR(M3630),HOUR(N3630-M3630)+(MINUTE(N3630-M3630)/60),24+HOUR(N3630)-HOUR(M3630)+(MINUTE(N3630))/60-(MINUTE(M3630))/60)) -> 0 | Q3630: =(G3630*H3630)+(K3630*L3630)+(O3630*P3630) -> 0 | AC3630: F1.07 | AD3630: 21
A3631: x | G3631: 0 | K3631: 0 | O3631: 0 | Q3631: 0 | AC3631: F1.07 | AD3631: 22
A3632: x | G3632: 0 | K3632: 0 | O3632: 0 | Q3632: 0 | AC3632: F1.07 | AD3632: 23
A3633: x | G3633: 0 | K3633: 0 | O3633: 0 | Q3633: 0 | AC3633: F1.07 | AD3633: 24
A3634: x | G3634: 0 | K3634: 0 | O3634: 0 | Q3634: 0 | AC3634: F1.07 | AD3634: 25
A3635: x | G3635: 0 | K3635: 0 | O3635: 0 | Q3635: 0 | AC3635: F1.07 | AD3635: 26
A3636: x | G3636: 0 | K3636: 0 | O3636: 0 | Q3636: 0 | AC3636: F1.07 | AD3636: 27
A3637: x | G3637: 0 | K3637: 0 | O3637: 0 | Q3637: 0 | AC3637: F1.07 | AD3637: 28
A3638: x | G3638: 0 | K3638: 0 | O3638: 0 | Q3638: 0 | AC3638: F1.07 | AD3638: 29
A3639: x | G3639: 0 | K3639: 0 | O3639: 0 | Q3639: 0
A3640: x | G3640: 0 | K3640: 0 | O3640: 0 | Q3640: 0
A3641: x | G3641: 0 | K3641: 0 | O3641: 0 | Q3641: 0
P3642: Rettungsmittel-Vorhaltestunden insgesamt: | Q3642: =SUM(Q3622:Q3641) -> 0
C3913: ="KLR Rettungsdienst für den RDB "&INDEX(ParameterDatei!C$85:C$102,ParameterDatei!B$107)&" - 01.01.-31.12."&Stammdaten_1!D$8 -> KLR Rettungsdienst für den RDB Havelland - 01.01.-31.12.2014
C3915: ="F1 Jahresrettungsmittelstunden - Rettungswache "&ParameterDatei!E152 -> F1 Jahresrettungsmittelstunden - Rettungswache 0
... 390 more rows

Sheet F2
D1: x | E1: x | F1: x | G1: x | H1: x | I1: x | J1: x | K1: x | L1: x | O1: x | P1: x | Q1: x | R1: x
A2: 7 | B2: < Blättern • Drucken • Sichern • Hauptmenu • Auswahlmenu • Blättern >
C1813: ="KLR Rettungsdienst für den RDB "&INDEX(ParameterDatei!C$85:C$102,ParameterDatei!B$107)&" - 01.01.-31.12."&Stammdaten_1!D$8 -> KLR Rettungsdienst für den RDB Havelland - 01.01.-31.12.2014
C1815: ="F2 Einsatzstatistik - Rettungswache "&ParameterDatei!E145 -> F2 Einsatzstatistik - Rettungswache 0
C1817: ="Leistungen im Zeitraum 01.01.-31.12."&Stammdaten_1!D$8-2 -> Leistungen im Zeitraum 01.01.-31.12.2012 | O1817: davon
D1818: Rettungsmittel | E1818: KTP | G1818: RTW | I1818: NAW | K1818: NEF | M1818: Gesamt | O1818: Fehlfahrten | Q1818: Fehleinsätze
E1819: KM | F1819: Einsätze | G1819: KM | H1819: Einsätze | I1819: KM | J1819: Einsätze | K1819: KM | L1819: Einsätze | M1819: KM | N1819: Einsätze | O1819: KM | P1819: Einsätze | Q1819: KM | R1819: Einsätze
A1821: x | M1821: =E1821+G1821+I1821+K1821 -> 0 | N1821: =F1821+H1821+J1821+L1821 -> 0 | U1821: F2.01 | V1821: 11
A1822: x | M1822: =E1822+G1822+I1822+K1822 -> 0 | N1822: =F1822+H1822+J1822+L1822 -> 0 | U1822: F2.01 | V1822: 12
A1823: x | M1823: 0 | N1823: 0 | U1823: F2.01 | V1823: 13
A1824: x | M1824: 0 | N1824: 0 | U1824: F2.01 | V1824: 14
A1825: x | M1825: 0 | N1825: 0 | U1825: F2.01 | V1825: 15
A1826: x | M1826: 0 | N1826: 0 | U1826: F2.01 | V1826: 16
A1827: x | M1827: 0 | N1827: 0 | U1827: F2.01 | V1827: 17
A1828: x | M1828: 0 | N1828: 0 | U1828: F2.01 | V1828: 18
A1829: x | M1829: 0 | N1829: 0 | U1829: F2.01 | V1829: 19
A1830: x | M1830: 0 | N1830: 0 | U1830: F2.01 | V1830: 20
A1831: x | M1831: 0 | N1831: 0 | U1831: F2.01 | V1831: 21
A1832: x | M1832: 0 | N1832: 0 | U1832: F2.01 | V1832: 22
A1833: x | M1833: 0 | N1833: 0 | U1833: F2.01 | V1833: 23
A1834: x | M1834: 0 | N1834: 0 | U1834: F2.01 | V1834: 24
A1835: x | M1835: 0 | N1835: 0 | U1835: F2.01 | V1835: 25
A1836: x | M1836: 0 | N1836: 0
A1837: x | M1837: 0 | N1837: 0
A1838: x | M1838: 0 | N1838: 0
A1839: x | M1839: 0 | N1839: 0
A1840: x | M1840: 0 | N1840: 0
A1841: x | M1841: 0 | N1841: 0
E1842: =SUM(E1821:E1841) -> 0 | F1842: =SUM(F1821:F1841) -> 0 | G1842: 0 | H1842: 0 | I1842: 0 | J1842: 0 | K1842: 0 | L1842: 0 | M1842: 0 | N1842: 0 | O1842: 0 | P1842: 0 | Q1842: 0 | R1842: 0
C2113: ="KLR Rettungsdienst für den RDB "&INDEX(ParameterDatei!C$85:C$102,ParameterDatei!B$107)&" - 01.01.-31.12."&Stammdaten_1!D$8 -> KLR Rettungsdienst für den RDB Havelland - 01.01.-31.12.2014
C2115: ="F2 Einsatzstatistik - Rettungswache "&ParameterDatei!E146 -> F2 Einsatzstatistik - Rettungswache 0
C2117: ="Leistungen im Zeitraum 01.01.-31.12."&Stammdaten_1!D$8-2 -> Leistungen im Zeitraum 01.01.-31.12.2012 | O2117: davon
D2118: Rettungsmittel | E2118: KTP | G2118: RTW | I2118: NAW | K2118: NEF | M2118: Gesamt | O2118: Fehlfahrten | Q2118: Fehleinsätze
E2119: KM | F2119: Einsätze | G2119: KM | H2119: Einsätze | I2119: KM | J2119: Einsätze | K2119: KM | L2119: Einsätze | M2119: KM | N2119: Einsätze | O2119: KM | P2119: Einsätze | Q2119: KM | R2119: Einsätze
A2121: x | M2121: =E2121+G2121+I2121+K2121 -> 0 | N2121: =F2121+H2121+J2121+L2121 -> 0 | U2121: F2.02 | V2121: 11
A2122: x | M2122: =E2122+G2122+I2122+K2122 -> 0 | N2122: =F2122+H2122+J2122+L2122 -> 0 | U2122: F2.02 | V2122: 12
A2123: x | M2123: 0 | N2123: 0 | U2123: F2.02 | V2123: 13
A2124: x | M2124: 0 | N2124: 0 | U2124: F2.02 | V2124: 14
A2125: x | M2125: 0 | N2125: 0 | U2125: F2.02 | V2125: 15
A2126: x | M2126: 0 | N2126: 0 | U2126: F2.02 | V2126: 16
A2127: x | M2127: 0 | N2127: 0 | U2127: F2.02 | V2127: 17
A2128: x | M2128: 0 | N2128: 0 | U2128: F2.02 | V2128: 18
A2129: x | M2129: 0 | N2129: 0 | U2129: F2.02 | V2129: 19
A2130: x | M2130: 0 | N2130: 0 | U2130: F2.02 | V2130: 20
A2131: x | M2131: 0 | N2131: 0 | U2131: F2.02 | V2131: 21
A2132: x | M2132: 0 | N2132: 0 | U2132: F2.02 | V2132: 22
A2133: x | M2133: 0 | N2133: 0 | U2133: F2.02 | V2133: 23
A2134: x | M2134: 0 | N2134: 0 | U2134: F2.02 | V2134: 24
A2135: x | M2135: 0 | N2135: 0 | U2135: F2.02 | V2135: 25
A2136: x | M2136: 0 | N2136: 0
A2137: x | M2137: 0 | N2137: 0
A2138: x | M2138: 0 | N2138: 0
A2139: x | M2139: 0 | N2139: 0
A2140: x | M2140: 0 | N2140: 0
A2141: x | M2141: 0 | N2141: 0
E2142: =SUM(E2121:E2141) -> 0 | F2142: 0 | G2142: 0 | H2142: 0 | I2142: 0 | J2142: 0 | K2142: 0 | L2142: 0 | M2142: 0 | N2142: 0 | O2142: 0 | P2142: 0 | Q2142: 0 | R2142: 0
C2413: ="KLR Rettungsdienst für den RDB "&INDEX(ParameterDatei!C$85:C$102,ParameterDatei!B$107)&" - 01.01.-31.12."&Stammdaten_1!D$8 -> KLR Rettungsdienst für den RDB Havelland - 01.01.-31.12.2014
C2415: ="F2 Einsatzstatistik - Rettungswache "&ParameterDatei!E147 -> F2 Einsatzstatistik - Rettungswache 0
C2417: ="Leistungen im Zeitraum 01.01.-31.12."&Stammdaten_1!D$8-2 -> Leistungen im Zeitraum 01.01.-31.12.2012 | O2417: davon
D2418: Rettungsmittel | E2418: KTP | G2418: RTW | I2418: NAW | K2418: NEF | M2418: Gesamt | O2418: Fehlfahrten | Q2418: Fehleinsätze
E2419: KM | F2419: Einsätze | G2419: KM | H2419: Einsätze | I2419: KM | J2419: Einsätze | K2419: KM | L2419: Einsätze | M2419: KM | N2419: Einsätze | O2419: KM | P2419: Einsätze | Q2419: KM | R2419: Einsätze
A2421: x | M2421: =E2421+G2421+I2421+K2421 -> 0 | N2421: =F2421+H2421+J2421+L2421 -> 0 | U2421: F2.03 | V2421: 11
A2422: x | M2422: =E2422+G2422+I2422+K2422 -> 0 | N2422: =F2422+H2422+J2422+L2422 -> 0 | U2422: F2.03 | V2422: 12
A2423: x | M2423: 0 | N2423: 0 | U2423: F2.03 | V2423: 13
A2424: x | M2424: 0 | N2424: 0 | U2424: F2.03 | V2424: 14
A2425: x | M2425: 0 | N2425: 0 | U2425: F2.03 | V2425: 15
A2426: x | M2426: 0 | N2426: 0 | U2426: F2.03 | V2426: 16
A2427: x | M2427: 0 | N2427: 0 | U2427: F2.03 | V2427: 17
A2428: x | M2428: 0 | N2428: 0 | U2428: F2.03 | V2428: 18
A2429: x | M2429: 0 | N2429: 0 | U2429: F2.03 | V2429: 19
A2430: x | M2430: 0 | N2430: 0 | U2430: F2.03 | V2430: 20
A2431: x | M2431: 0 | N2431: 0 | U2431: F2.03 | V2431: 21
A2432: x | M2432: 0 | N2432: 0 | U2432: F2.03 | V2432: 22
A2433: x | M2433: 0 | N2433: 0 | U2433: F2.03 | V2433: 23
A2434: x | M2434: 0 | N2434: 0 | U2434: F2.03 | V2434: 24
A2435: x | M2435: 0 | N2435: 0 | U2435: F2.03 | V2435: 25
A2436: x | M2436: 0 | N2436: 0
A2437: x | M2437: 0 | N2437: 0
A2438: x | M2438: 0 | N2438: 0
A2439: x | M2439: 0 | N2439: 0
A2440: x | M2440: 0 | N2440: 0
A2441: x | M2441: 0 | N2441: 0
E2442: =SUM(E2421:E2441) -> 0 | F2442: 0 | G2442: 0 | H2442: 0 | I2442: 0 | J2442: 0 | K2442: 0 | L2442: 0 | M2442: 0 | N2442: 0 | O2442: 0 | P2442: 0 | Q2442: 0 | R2442: 0
C2713: ="KLR Rettungsdienst für den RDB "&INDEX(ParameterDatei!C$85:C$102,ParameterDatei!B$107)&" - 01.01.-31.12."&Stammdaten_1!D$8 -> KLR Rettungsdienst für den RDB Havelland - 01.01.-31.12.2014
C2715: ="F2 Einsatzstatistik - Rettungswache "&ParameterDatei!E148 -> F2 Einsatzstatistik - Rettungswache 0
C2717: ="Leistungen im Zeitraum 01.01.-31.12."&Stammdaten_1!D$8-2 -> Leistungen im Zeitraum 01.01.-31.12.2012 | O2717: davon
D2718: Rettungsmittel | E2718: KTP | G2718: RTW | I2718: NAW | K2718: NEF | M2718: Gesamt | O2718: Fehlfahrten | Q2718: Fehleinsätze
E2719: KM | F2719: Einsätze | G2719: KM | H2719: Einsätze | I2719: KM | J2719: Einsätze | K2719: KM | L2719: Einsätze | M2719: KM | N2719: Einsätze | O2719: KM | P2719: Einsätze | Q2719: KM | R2719: Einsätze
A2721: x | M2721: =E2721+G2721+I2721+K2721 -> 0 | N2721: =F2721+H2721+J2721+L2721 -> 0 | U2721: F2.04 | V2721: 11
A2722: x | M2722: =E2722+G2722+I2722+K2722 -> 0 | N2722: =F2722+H2722+J2722+L2722 -> 0 | U2722: F2.04 | V2722: 12
A2723: x | M2723: 0 | N2723: 0 | U2723: F2.04 | V2723: 13
A2724: x | M2724: 0 | N2724: 0 | U2724: F2.04 | V2724: 14
A2725: x | M2725: 0 | N2725: 0 | U2725: F2.04 | V2725: 15
A2726: x | M2726: 0 | N2726: 0 | U2726: F2.04 | V2726: 16
A2727: x | M2727: 0 | N2727: 0 | U2727: F2.04 | V2727: 17
A2728: x | M2728: 0 | N2728: 0 | U2728: F2.04 | V2728: 18
A2729: x | M2729: 0 | N2729: 0 | U2729: F2.04 | V2729: 19
A2730: x | M2730: 0 | N2730: 0 | U2730: F2.04 | V2730: 20
A2731: x | M2731: 0 | N2731: 0 | U2731: F2.04 | V2731: 21
A2732: x | M2732: 0 | N2732: 0 | U2732: F2.04 | V2732: 22
A2733: x | M2733: 0 | N2733: 0 | U2733: F2.04 | V2733: 23
A2734: x | M2734: 0 | N2734: 0 | U2734: F2.04 | V2734: 24
A2735: x | M2735: 0 | N2735: 0 | U2735: F2.04 | V2735: 25
A2736: x | M2736: 0 | N2736: 0
A2737: x | M2737: 0 | N2737: 0
A2738: x | M2738: 0 | N2738: 0
A2739: x | M2739: 0 | N2739: 0
A2740: x | M2740: 0 | N2740: 0
A2741: x | M2741: 0 | N2741: 0
E2742: =SUM(E2721:E2741) -> 0 | F2742: 0 | G2742: 0 | H2742: 0 | I2742: 0 | J2742: 0 | K2742: 0 | L2742: 0 | M2742: 0 | N2742: 0 | O2742: 0 | P2742: 0 | Q2742: 0 | R2742: 0
C3013: ="KLR Rettungsdienst für den RDB "&INDEX(ParameterDatei!C$85:C$102,ParameterDatei!B$107)&" - 01.01.-31.12."&Stammdaten_1!D$8 -> KLR Rettungsdienst für den RDB Havelland - 01.01.-31.12.2014
C3015: ="F2 Einsatzstatistik - Rettungswache "&ParameterDatei!E149 -> F2 Einsatzstatistik - Rettungswache 0
C3017: ="Leistungen im Zeitraum 01.01.-31.12."&Stammdaten_1!D$8-2 -> Leistungen im Zeitraum 01.01.-31.12.2012 | O3017: davon
D3018: Rettungsmittel | E3018: KTP | G3018: RTW | I3018: NAW | K3018: NEF | M3018: Gesamt | O3018: Fehlfahrten | Q3018: Fehleinsätze
E3019: KM | F3019: Einsätze | G3019: KM | H3019: Einsätze | I3019: KM | J3019: Einsätze | K3019: KM | L3019: Einsätze | M3019: KM | N3019: Einsätze | O3019: KM | P3019: Einsätze | Q3019: KM | R3019: Einsätze
A3021: x | M3021: =E3021+G3021+I3021+K3021 -> 0 | N3021: =F3021+H3021+J3021+L3021 -> 0 | U3021: F2.05 | V3021: 11
A3022: x | M3022: =E3022+G3022+I3022+K3022 -> 0 | N3022: =F3022+H3022+J3022+L3022 -> 0 | U3022: F2.05 | V3022: 12
A3023: x | M3023: 0 | N3023: 0 | U3023: F2.05 | V3023: 13
A3024: x | M3024: 0 | N3024: 0 | U3024: F2.05 | V3024: 14
A3025: x | M3025: 0 | N3025: 0 | U3025: F2.05 | V3025: 15
A3026: x | M3026: 0 | N3026: 0 | U3026: F2.05 | V3026: 16
A3027: x | M3027: 0 | N3027: 0 | U3027: F2.05 | V3027: 17
A3028: x | M3028: 0 | N3028: 0 | U3028: F2.05 | V3028: 18
A3029: x | M3029: 0 | N3029: 0 | U3029: F2.05 | V3029: 19
A3030: x | M3030: 0 | N3030: 0 | U3030: F2.05 | V3030: 20
A3031: x | M3031: 0 | N3031: 0 | U3031: F2.05 | V3031: 21
A3032: x | M3032: 0 | N3032: 0 | U3032: F2.05 | V3032: 22
A3033: x | M3033: 0 | N3033: 0 | U3033: F2.05 | V3033: 23
A3034: x | M3034: 0 | N3034: 0 | U3034: F2.05 | V3034: 24
A3035: x | M3035: 0 | N3035: 0 | U3035: F2.05 | V3035: 25
A3036: x | M3036: 0 | N3036: 0
A3037: x | M3037: 0 | N3037: 0
A3038: x | M3038: 0 | N3038: 0
A3039: x | M3039: 0 | N3039: 0
A3040: x | M3040: 0 | N3040: 0
A3041: x | M3041: 0 | N3041: 0
E3042: =SUM(E3021:E3041) -> 0 | F3042: 0 | G3042: 0 | H3042: 0 | I3042: 0 | J3042: 0 | K3042: 0 | L3042: 0 | M3042: 0 | N3042: 0 | O3042: 0 | P3042: 0 | Q3042: 0 | R3042: 0
C3313: ="KLR Rettungsdienst für den RDB "&INDEX(ParameterDatei!C$85:C$102,ParameterDatei!B$107)&" - 01.01.-31.12."&Stammdaten_1!D$8 -> KLR Rettungsdienst für den RDB Havelland - 01.01.-31.12.2014
C3315: ="F2 Einsatzstatistik - Rettungswache "&ParameterDatei!E150 -> F2 Einsatzstatistik - Rettungswache 0
C3317: ="Leistungen im Zeitraum 01.01.-31.12."&Stammdaten_1!D$8-2 -> Leistungen im Zeitraum 01.01.-31.12.2012 | O3317: davon
D3318: Rettungsmittel | E3318: KTP | G3318: RTW | I3318: NAW | K3318: NEF | M3318: Gesamt | O3318: Fehlfahrten | Q3318: Fehleinsätze
E3319: KM | F3319: Einsätze | G3319: KM | H3319: Einsätze | I3319: KM | J3319: Einsätze | K3319: KM | L3319: Einsätze | M3319: KM | N3319: Einsätze | O3319: KM | P3319: Einsätze | Q3319: KM | R3319: Einsätze
A3321: x | M3321: =E3321+G3321+I3321+K3321 -> 0 | N3321: =F3321+H3321+J3321+L3321 -> 0 | U3321: F2.06 | V3321: 11
A3322: x | M3322: =E3322+G3322+I3322+K3322 -> 0 | N3322: =F3322+H3322+J3322+L3322 -> 0 | U3322: F2.06 | V3322: 12
A3323: x | M3323: 0 | N3323: 0 | U3323: F2.06 | V3323: 13
A3324: x | M3324: 0 | N3324: 0 | U3324: F2.06 | V3324: 14
A3325: x | M3325: 0 | N3325: 0 | U3325: F2.06 | V3325: 15
A3326: x | M3326: 0 | N3326: 0 | U3326: F2.06 | V3326: 16
A3327: x | M3327: 0 | N3327: 0 | U3327: F2.06 | V3327: 17
A3328: x | M3328: 0 | N3328: 0 | U3328: F2.06 | V3328: 18
A3329: x | M3329: 0 | N3329: 0 | U3329: F2.06 | V3329: 19
A3330: x | M3330: 0 | N3330: 0 | U3330: F2.06 | V3330: 20
A3331: x | M3331: 0 | N3331: 0 | U3331: F2.06 | V3331: 21
A3332: x | M3332: 0 | N3332: 0 | U3332: F2.06 | V3332: 22
A3333: x | M3333: 0 | N3333: 0 | U3333: F2.06 | V3333: 23
A3334: x | M3334: 0 | N3334: 0 | U3334: F2.06 | V3334: 24
A3335: x | M3335: 0 | N3335: 0 | U3335: F2.06 | V3335: 25
A3336: x | M3336: 0 | N3336: 0
A3337: x | M3337: 0 | N3337: 0
A3338: x | M3338: 0 | N3338: 0
A3339: x | M3339: 0 | N3339: 0
A3340: x | M3340: 0 | N3340: 0
A3341: x | M3341: 0 | N3341: 0
E3342: =SUM(E3321:E3341) -> 0 | F3342: 0 | G3342: 0 | H3342: 0 | I3342: 0 | J3342: 0 | K3342: 0 | L3342: 0 | M3342: 0 | N3342: 0 | O3342: 0 | P3342: 0 | Q3342: 0 | R3342: 0
C3613: ="KLR Rettungsdienst für den RDB "&INDEX(ParameterDatei!C$85:C$102,ParameterDatei!B$107)&" - 01.01.-31.12."&Stammdaten_1!D$8 -> KLR Rettungsdienst für den RDB Havelland - 01.01.-31.12.2014
C3615: ="F2 Einsatzstatistik - Rettungswache "&ParameterDatei!E151 -> F2 Einsatzstatistik - Rettungswache 0
C3617: ="Leistungen im Zeitraum 01.01.-31.12."&Stammdaten_1!D$8-2 -> Leistungen im Zeitraum 01.01.-31.12.2012 | O3617: davon
D3618: Rettungsmittel | E3618: KTP | G3618: RTW | I3618: NAW | K3618: NEF | M3618: Gesamt | O3618: Fehlfahrten | Q3618: Fehleinsätze
E3619: KM | F3619: Einsätze | G3619: KM | H3619: Einsätze | I3619: KM | J3619: Einsätze | K3619: KM | L3619: Einsätze | M3619: KM | N3619: Einsätze | O3619: KM | P3619: Einsätze | Q3619: KM | R3619: Einsätze
A3621: x | M3621: =E3621+G3621+I3621+K3621 -> 0 | N3621: =F3621+H3621+J3621+L3621 -> 0 | U3621: F2.07 | V3621: 11
A3622: x | M3622: =E3622+G3622+I3622+K3622 -> 0 | N3622: =F3622+H3622+J3622+L3622 -> 0 | U3622: F2.07 | V3622: 12
A3623: x | M3623: 0 | N3623: 0 | U3623: F2.07 | V3623: 13
A3624: x | M3624: 0 | N3624: 0 | U3624: F2.07 | V3624: 14
A3625: x | M3625: 0 | N3625: 0 | U3625: F2.07 | V3625: 15
A3626: x | M3626: 0 | N3626: 0 | U3626: F2.07 | V3626: 16
A3627: x | M3627: 0 | N3627: 0 | U3627: F2.07 | V3627: 17
A3628: x | M3628: 0 | N3628: 0 | U3628: F2.07 | V3628: 18
A3629: x | M3629: 0 | N3629: 0 | U3629: F2.07 | V3629: 19
A3630: x | M3630: 0 | N3630: 0 | U3630: F2.07 | V3630: 20
A3631: x | M3631: 0 | N3631: 0 | U3631: F2.07 | V3631: 21
A3632: x | M3632: 0 | N3632: 0 | U3632: F2.07 | V3632: 22
A3633: x | M3633: 0 | N3633: 0 | U3633: F2.07 | V3633: 23
A3634: x | M3634: 0 | N3634: 0 | U3634: F2.07 | V3634: 24
A3635: x | M3635: 0 | N3635: 0 | U3635: F2.07 | V3635: 25
A3636: x | M3636: 0 | N3636: 0
A3637: x | M3637: 0 | N3637: 0
A3638: x | M3638: 0 | N3638: 0
A3639: x | M3639: 0 | N3639: 0
A3640: x | M3640: 0 | N3640: 0
A3641: x | M3641: 0 | N3641: 0
E3642: =SUM(E3621:E3641) -> 0 | F3642: 0 | G3642: 0 | H3642: 0 | I3642: 0 | J3642: 0 | K3642: 0 | L3642: 0 | M3642: 0 | N3642: 0 | O3642: 0 | P3642: 0 | Q3642: 0 | R3642: 0
C3913: ="KLR Rettungsdienst für den RDB "&INDEX(ParameterDatei!C$85:C$102,ParameterDatei!B$107)&" - 01.01.-31.12."&Stammdaten_1!D$8 -> KLR Rettungsdienst für den RDB Havelland - 01.01.-31.12.2014
C3915: ="F2 Einsatzstatistik - Rettungswache "&ParameterDatei!E152 -> F2 Einsatzstatistik - Rettungswache 0
C3917: ="Leistungen im Zeitraum 01.01.-31.12."&Stammdaten_1!D$8-2 -> Leistungen im Zeitraum 01.01.-31.12.2012 | O3917: davon
D3918: Rettungsmittel | E3918: KTP | G3918: RTW | I3918: NAW | K3918: NEF | M3918: Gesamt | O3918: Fehlfahrten | Q3918: Fehleinsätze
E3919: KM | F3919: Einsätze | G3919: KM | H3919: Einsätze | I3919: KM | J3919: Einsätze | K3919: KM | L3919: Einsätze | M3919: KM | N3919: Einsätze | O3919: KM | P3919: Einsätze | Q3919: KM | R3919: Einsätze
A3921: x | M3921: =E3921+G3921+I3921+K3921 -> 0 | N3921: =F3921+H3921+J3921+L3921 -> 0 | U3921: F2.08 | V3921: 11
A3922: x | M3922: =E3922+G3922+I3922+K3922 -> 0 | N3922: =F3922+H3922+J3922+L3922 -> 0 | U3922: F2.08 | V3922: 12
A3923: x | M3923: 0 | N3923: 0 | U3923: F2.08 | V3923: 13
A3924: x | M3924: 0 | N3924: 0 | U3924: F2.08 | V3924: 14
... 370 more rows

Sheet F3
A1: F3 Frequenzstaqtistik - | F1: x | G1: x | H1: x | I1: x | J1: x | K1: x
A2: 7 | B2: < Blättern • Drucken • Sichern • Hauptmenu • Auswahlmenu • Blättern >
C1813: ="KLR Rettungsdienst für den RDB "&INDEX(ParameterDatei!C$85:C$102,ParameterDatei!B$107)&" - 01.01.-31.12."&Stammdaten_1!D$8 -> KLR Rettungsdienst für den RDB Havelland - 01.01.-31.12.2014
C1815: =A1&ParameterDatei!H145 -> F3 Frequenzstaqtistik - Rettungswache
C1817: ="Einsatzfrequenzen im Zeitraum 01.01.-31.12."&Stammdaten_1!D$8-2 -> Einsatzfrequenzen im Zeitraum 01.01.-31.12.2012
D1818: RM-Art | E1818: Zeitraum | F1818: Montag bis Freitag | H1818: Samstag | J1818: Sonntage
F1819: Anzahl | G1819: Durchschnittl. | H1819: Anzahl | I1819: Durchschnittl. | J1819: Anzahl | K1819: Durchschnittl.
F1820: begonnener | G1820: Einsatzdauer | H1820: begonnener | I1820: Einsatzdauer | J1820: begonnener | K1820: Einsatzdauer
F1821: Einsätze | G1821: (Minuten) | H1821: Einsätze | I1821: (Minuten) | J1821: Einsätze | K1821: (Minuten)
A1823: x | D1823: RTW | E1823: von 06:00 Uhr bis 09:59 Uhr | N1823: F3.01 | O1823: 13
A1824: x | E1824: von 10:00 Uhr bis 13:59 Uhr | N1824: F3.01 | O1824: 14
A1825: x | E1825: von 14:00 Uhr bis 17:59 Uhr | N1825: F3.01 | O1825: 15
A1826: x | E1826: von 18:00 Uhr bis 21:59 Uhr | N1826: F3.01 | O1826: 16
A1827: x | E1827: von 22:00 Uhr bis 05:59 Uhr | N1827: F3.01 | O1827: 17
A1828: x | D1828: NEF | E1828: von 06:00 Uhr bis 09:59 Uhr
A1829: x | E1829: von 10:00 Uhr bis 13:59 Uhr
A1830: x | E1830: von 14:00 Uhr bis 17:59 Uhr
A1831: x | E1831: von 18:00 Uhr bis 21:59 Uhr
A1832: x | E1832: von 22:00 Uhr bis 05:59 Uhr
A1833: x | D1833: KTW | E1833: von 06:00 Uhr bis 09:59 Uhr
A1834: x | E1834: von 10:00 Uhr bis 13:59 Uhr
A1835: x | E1835: von 14:00 Uhr bis 17:59 Uhr
A1836: x | E1836: von 18:00 Uhr bis 21:59 Uhr
A1837: x | E1837: von 22:00 Uhr bis 05:59 Uhr
D1839: RTW | E1839: Insgesamt | F1839: =SUM(F1823:F1827) -> 0 | G1839: =IF(ISERROR(((F1823*G1823)+(F1824*G1824)+(F1825*G1825)+(F1826*G1826)+(F1827*G1827))/F1839)=TRUE,0,((F1823*G1823)+(F1824*G1824)+(F1825*G1825)+(F1826*G1826)+(F1827*G1827))/F1839) -> 0 | H1839: =SUM(H1823:H1827) -> 0 | I1839: =IF(ISERROR(((H1823*I1823)+(H1824*I1824)+(H1825*I1825)+(H1826*I1826)+(H1827*I1827))/H1839)=TRUE,0,((H1823*I1823)+(H1824*I1824)+(H1825*I1825)+(H1826*I1826)+(H1827*I1827))/H1839) -> 0 | J1839: =SUM(J1823:J1827) -> 0 | K1839: =IF(ISERROR(((J1823*K1823)+(J1824*K1824)+(J1825*K1825)+(J1826*K1826)+(J1827*K1827))/J1839)=TRUE,0,((J1823*K1823)+(J1824*K1824)+(J1825*K1825)+(J1826*K1826)+(J1827*K1827))/J1839) -> 0
D1840: NEF | E1840: Insgesamt | F1840: =SUM(F1828:F1832) -> 0 | G1840: =IF(ISERROR(((F1828*G1828)+(F1829*G1829)+(F1830*G1830)+(F1831*G1831)+(F1832*G1832))/F1840)=TRUE,0,((F1828*G1828)+(F1829*G1829)+(F1830*G1830)+(F1831*G1831)+(F1832*G1832))/F1840) -> 0 | H1840: =SUM(H1828:H1832) -> 0 | I1840: =IF(ISERROR(((H1828*I1828)+(H1829*I1829)+(H1830*I1830)+(H1831*I1831)+(H1832*I1832))/H1840)=TRUE,0,((H1828*I1828)+(H1829*I1829)+(H1830*I1830)+(H1831*I1831)+(H1832*I1832))/H1840) -> 0 | J1840: =SUM(J1828:J1832) -> 0 | K1840: =IF(ISERROR(((J1828*K1828)+(J1829*K1829)+(J1830*K1830)+(J1831*K1831)+(J1832*K1832))/J1840)=TRUE,0,((J1828*K1828)+(J1829*K1829)+(J1830*K1830)+(J1831*K1831)+(J1832*K1832))/J1840) -> 0
D1841: KTW | E1841: Insgesamt | F1841: =SUM(F1833:F1837) -> 0 | G1841: =IF(ISERROR(((F1833*G1833)+(F1834*G1834)+(F1835*G1835)+(F1836*G1836)+(F1837*G1837))/F1841)=TRUE,0,((F1833*G1833)+(F1834*G1834)+(F1835*G1835)+(F1836*G1836)+(F1837*G1837))/F1841) -> 0 | H1841: =SUM(H1833:H1837) -> 0 | I1841: =IF(ISERROR(((H1833*I1833)+(H1834*I1834)+(H1835*I1835)+(H1836*I1836)+(H1837*I1837))/H1841)=TRUE,0,((H1833*I1833)+(H1834*I1834)+(H1835*I1835)+(H1836*I1836)+(H1837*I1837))/H1841) -> 0 | J1841: =SUM(J1833:J1837) -> 0 | K1841: =IF(ISERROR(((J1833*K1833)+(J1834*K1834)+(J1835*K1835)+(J1836*K1836)+(J1837*K1837))/J1841)=TRUE,0,((J1833*K1833)+(J1834*K1834)+(J1835*K1835)+(J1836*K1836)+(J1837*K1837))/J1841) -> 0
C2113: ="KLR Rettungsdienst für den RDB "&INDEX(ParameterDatei!C$85:C$102,ParameterDatei!B$107)&" - 01.01.-31.12."&Stammdaten_1!D$8 -> KLR Rettungsdienst für den RDB Havelland - 01.01.-31.12.2014
C2115: =A1&ParameterDatei!H146 -> F3 Frequenzstaqtistik - Rettungswache
C2117: ="Einsatzfrequenzen im Zeitraum 01.01.-31.12."&Stammdaten_1!D$8-2 -> Einsatzfrequenzen im Zeitraum 01.01.-31.12.2012
D2118: RM-Art | E2118: Zeitraum | F2118: Montag bis Freitag | H2118: Samstag | J2118: Sonntage
F2119: Anzahl | G2119: Durchschnittl. | H2119: Anzahl | I2119: Durchschnittl. | J2119: Anzahl | K2119: Durchschnittl.
F2120: begonnener | G2120: Einsatzdauer | H2120: begonnener | I2120: Einsatzdauer | J2120: begonnener | K2120: Einsatzdauer
F2121: Einsätze | G2121: (Minuten) | H2121: Einsätze | I2121: (Minuten) | J2121: Einsätze | K2121: (Minuten)
A2123: x | D2123: RTW | E2123: von 06:00 Uhr bis 09:59 Uhr | N2123: F3.02 | O2123: 13
A2124: x | E2124: von 10:00 Uhr bis 13:59 Uhr | N2124: F3.02 | O2124: 14
A2125: x | E2125: von 14:00 Uhr bis 17:59 Uhr | N2125: F3.02 | O2125: 15
A2126: x | E2126: von 18:00 Uhr bis 21:59 Uhr | N2126: F3.02 | O2126: 16
A2127: x | E2127: von 22:00 Uhr bis 05:59 Uhr | N2127: F3.02 | O2127: 17
A2128: x | D2128: NEF | E2128: von 06:00 Uhr bis 09:59 Uhr
A2129: x | E2129: von 10:00 Uhr bis 13:59 Uhr
A2130: x | E2130: von 14:00 Uhr bis 17:59 Uhr
A2131: x | E2131: von 18:00 Uhr bis 21:59 Uhr
A2132: x | E2132: von 22:00 Uhr bis 05:59 Uhr
A2133: x | D2133: KTW | E2133: von 06:00 Uhr bis 09:59 Uhr
A2134: x | E2134: von 10:00 Uhr bis 13:59 Uhr
A2135: x | E2135: von 14:00 Uhr bis 17:59 Uhr
A2136: x | E2136: von 18:00 Uhr bis 21:59 Uhr
A2137: x | E2137: von 22:00 Uhr bis 05:59 Uhr
D2139: RTW | E2139: Insgesamt | F2139: =SUM(F2123:F2127) -> 0 | G2139: =IF(ISERROR(((F2123*G2123)+(F2124*G2124)+(F2125*G2125)+(F2126*G2126)+(F2127*G2127))/F2139)=TRUE,0,((F2123*G2123)+(F2124*G2124)+(F2125*G2125)+(F2126*G2126)+(F2127*G2127))/F2139) -> 0 | H2139: =SUM(H2123:H2127) -> 0 | I2139: =IF(ISERROR(((H2123*I2123)+(H2124*I2124)+(H2125*I2125)+(H2126*I2126)+(H2127*I2127))/H2139)=TRUE,0,((H2123*I2123)+(H2124*I2124)+(H2125*I2125)+(H2126*I2126)+(H2127*I2127))/H2139) -> 0 | J2139: =SUM(J2123:J2127) -> 0 | K2139: =IF(ISERROR(((J2123*K2123)+(J2124*K2124)+(J2125*K2125)+(J2126*K2126)+(J2127*K2127))/J2139)=TRUE,0,((J2123*K2123)+(J2124*K2124)+(J2125*K2125)+(J2126*K2126)+(J2127*K2127))/J2139) -> 0
D2140: NEF | E2140: Insgesamt | F2140: =SUM(F2128:F2132) -> 0 | G2140: =IF(ISERROR(((F2128*G2128)+(F2129*G2129)+(F2130*G2130)+(F2131*G2131)+(F2132*G2132))/F2140)=TRUE,0,((F2128*G2128)+(F2129*G2129)+(F2130*G2130)+(F2131*G2131)+(F2132*G2132))/F2140) -> 0 | H2140: =SUM(H2128:H2132) -> 0 | I2140: =IF(ISERROR(((H2128*I2128)+(H2129*I2129)+(H2130*I2130)+(H2131*I2131)+(H2132*I2132))/H2140)=TRUE,0,((H2128*I2128)+(H2129*I2129)+(H2130*I2130)+(H2131*I2131)+(H2132*I2132))/H2140) -> 0 | J2140: =SUM(J2128:J2132) -> 0 | K2140: =IF(ISERROR(((J2128*K2128)+(J2129*K2129)+(J2130*K2130)+(J2131*K2131)+(J2132*K2132))/J2140)=TRUE,0,((J2128*K2128)+(J2129*K2129)+(J2130*K2130)+(J2131*K2131)+(J2132*K2132))/J2140) -> 0
D2141: KTW | E2141: Insgesamt | F2141: =SUM(F2133:F2137) -> 0 | G2141: =IF(ISERROR(((F2133*G2133)+(F2134*G2134)+(F2135*G2135)+(F2136*G2136)+(F2137*G2137))/F2141)=TRUE,0,((F2133*G2133)+(F2134*G2134)+(F2135*G2135)+(F2136*G2136)+(F2137*G2137))/F2141) -> 0 | H2141: =SUM(H2133:H2137) -> 0 | I2141: =IF(ISERROR(((H2133*I2133)+(H2134*I2134)+(H2135*I2135)+(H2136*I2136)+(H2137*I2137))/H2141)=TRUE,0,((H2133*I2133)+(H2134*I2134)+(H2135*I2135)+(H2136*I2136)+(H2137*I2137))/H2141) -> 0 | J2141: =SUM(J2133:J2137) -> 0 | K2141: =IF(ISERROR(((J2133*K2133)+(J2134*K2134)+(J2135*K2135)+(J2136*K2136)+(J2137*K2137))/J2141)=TRUE,0,((J2133*K2133)+(J2134*K2134)+(J2135*K2135)+(J2136*K2136)+(J2137*K2137))/J2141) -> 0
C2413: ="KLR Rettungsdienst für den RDB "&INDEX(ParameterDatei!C$85:C$102,ParameterDatei!B$107)&" - 01.01.-31.12."&Stammdaten_1!D$8 -> KLR Rettungsdienst für den RDB Havelland - 01.01.-31.12.2014
C2415: =A1&ParameterDatei!H147 -> F3 Frequenzstaqtistik - Rettungswache
C2417: ="Einsatzfrequenzen im Zeitraum 01.01.-31.12."&Stammdaten_1!D$8-2 -> Einsatzfrequenzen im Zeitraum 01.01.-31.12.2012
D2418: RM-Art | E2418: Zeitraum | F2418: Montag bis Freitag | H2418: Samstag | J2418: Sonntage
F2419: Anzahl | G2419: Durchschnittl. | H2419: Anzahl | I2419: Durchschnittl. | J2419: Anzahl | K2419: Durchschnittl.
F2420: begonnener | G2420: Einsatzdauer | H2420: begonnener | I2420: Einsatzdauer | J2420: begonnener | K2420: Einsatzdauer
F2421: Einsätze | G2421: (Minuten) | H2421: Einsätze | I2421: (Minuten) | J2421: Einsätze | K2421: (Minuten)
A2423: x | D2423: RTW | E2423: von 06:00 Uhr bis 09:59 Uhr | N2423: F3.03 | O2423: 13
A2424: x | E2424: von 10:00 Uhr bis 13:59 Uhr | N2424: F3.03 | O2424: 14
A2425: x | E2425: von 14:00 Uhr bis 17:59 Uhr | N2425: F3.03 | O2425: 15
A2426: x | E2426: von 18:00 Uhr bis 21:59 Uhr | N2426: F3.03 | O2426: 16
A2427: x | E2427: von 22:00 Uhr bis 05:59 Uhr | N2427: F3.03 | O2427: 17
A2428: x | D2428: NEF | E2428: von 06:00 Uhr bis 09:59 Uhr
A2429: x | E2429: von 10:00 Uhr bis 13:59 Uhr
A2430: x | E2430: von 14:00 Uhr bis 17:59 Uhr
A2431: x | E2431: von 18:00 Uhr bis 21:59 Uhr
A2432: x | E2432: von 22:00 Uhr bis 05:59 Uhr
A2433: x | D2433: KTW | E2433: von 06:00 Uhr bis 09:59 Uhr
A2434: x | E2434: von 10:00 Uhr bis 13:59 Uhr
A2435: x | E2435: von 14:00 Uhr bis 17:59 Uhr
A2436: x | E2436: von 18:00 Uhr bis 21:59 Uhr
A2437: x | E2437: von 22:00 Uhr bis 05:59 Uhr
D2439: RTW | E2439: Insgesamt | F2439: =SUM(F2423:F2427) -> 0 | G2439: =IF(ISERROR(((F2423*G2423)+(F2424*G2424)+(F2425*G2425)+(F2426*G2426)+(F2427*G2427))/F2439)=TRUE,0,((F2423*G2423)+(F2424*G2424)+(F2425*G2425)+(F2426*G2426)+(F2427*G2427))/F2439) -> 0 | H2439: =SUM(H2423:H2427) -> 0 | I2439: =IF(ISERROR(((H2423*I2423)+(H2424*I2424)+(H2425*I2425)+(H2426*I2426)+(H2427*I2427))/H2439)=TRUE,0,((H2423*I2423)+(H2424*I2424)+(H2425*I2425)+(H2426*I2426)+(H2427*I2427))/H2439) -> 0 | J2439: =SUM(J2423:J2427) -> 0 | K2439: =IF(ISERROR(((J2423*K2423)+(J2424*K2424)+(J2425*K2425)+(J2426*K2426)+(J2427*K2427))/J2439)=TRUE,0,((J2423*K2423)+(J2424*K2424)+(J2425*K2425)+(J2426*K2426)+(J2427*K2427))/J2439) -> 0
D2440: NEF | E2440: Insgesamt | F2440: =SUM(F2428:F2432) -> 0 | G2440: =IF(ISERROR(((F2428*G2428)+(F2429*G2429)+(F2430*G2430)+(F2431*G2431)+(F2432*G2432))/F2440)=TRUE,0,((F2428*G2428)+(F2429*G2429)+(F2430*G2430)+(F2431*G2431)+(F2432*G2432))/F2440) -> 0 | H2440: =SUM(H2428:H2432) -> 0 | I2440: =IF(ISERROR(((H2428*I2428)+(H2429*I2429)+(H2430*I2430)+(H2431*I2431)+(H2432*I2432))/H2440)=TRUE,0,((H2428*I2428)+(H2429*I2429)+(H2430*I2430)+(H2431*I2431)+(H2432*I2432))/H2440) -> 0 | J2440: =SUM(J2428:J2432) -> 0 | K2440: =IF(ISERROR(((J2428*K2428)+(J2429*K2429)+(J2430*K2430)+(J2431*K2431)+(J2432*K2432))/J2440)=TRUE,0,((J2428*K2428)+(J2429*K2429)+(J2430*K2430)+(J2431*K2431)+(J2432*K2432))/J2440) -> 0
D2441: KTW | E2441: Insgesamt | F2441: =SUM(F2433:F2437) -> 0 | G2441: =IF(ISERROR(((F2433*G2433)+(F2434*G2434)+(F2435*G2435)+(F2436*G2436)+(F2437*G2437))/F2441)=TRUE,0,((F2433*G2433)+(F2434*G2434)+(F2435*G2435)+(F2436*G2436)+(F2437*G2437))/F2441) -> 0 | H2441: =SUM(H2433:H2437) -> 0 | I2441: =IF(ISERROR(((H2433*I2433)+(H2434*I2434)+(H2435*I2435)+(H2436*I2436)+(H2437*I2437))/H2441)=TRUE,0,((H2433*I2433)+(H2434*I2434)+(H2435*I2435)+(H2436*I2436)+(H2437*I2437))/H2441) -> 0 | J2441: =SUM(J2433:J2437) -> 0 | K2441: =IF(ISERROR(((J2433*K2433)+(J2434*K2434)+(J2435*K2435)+(J2436*K2436)+(J2437*K2437))/J2441)=TRUE,0,((J2433*K2433)+(J2434*K2434)+(J2435*K2435)+(J2436*K2436)+(J2437*K2437))/J2441) -> 0
C2713: ="KLR Rettungsdienst für den RDB "&INDEX(ParameterDatei!C$85:C$102,ParameterDatei!B$107)&" - 01.01.-31.12."&Stammdaten_1!D$8 -> KLR Rettungsdienst für den RDB Havelland - 01.01.-31.12.2014
C2715: =A1&ParameterDatei!H148 -> F3 Frequenzstaqtistik - Rettungswache
C2717: ="Einsatzfrequenzen im Zeitraum 01.01.-31.12."&Stammdaten_1!D$8-2 -> Einsatzfrequenzen im Zeitraum 01.01.-31.12.2012
D2718: RM-Art | E2718: Zeitraum | F2718: Montag bis Freitag | H2718: Samstag | J2718: Sonntage
F2719: Anzahl | G2719: Durchschnittl. | H2719: Anzahl | I2719: Durchschnittl. | J2719: Anzahl | K2719: Durchschnittl.
F2720: begonnener | G2720: Einsatzdauer | H2720: begonnener | I2720: Einsatzdauer | J2720: begonnener | K2720: Einsatzdauer
F2721: Einsätze | G2721: (Minuten) | H2721: Einsätze | I2721: (Minuten) | J2721: Einsätze | K2721: (Minuten)
A2723: x | D2723: RTW | E2723: von 06:00 Uhr bis 09:59 Uhr | N2723: F3.04 | O2723: 13
A2724: x | E2724: von 10:00 Uhr bis 13:59 Uhr | N2724: F3.04 | O2724: 14
A2725: x | E2725: von 14:00 Uhr bis 17:59 Uhr | N2725: F3.04 | O2725: 15
A2726: x | E2726: von 18:00 Uhr bis 21:59 Uhr | N2726: F3.04 | O2726: 16
A2727: x | E2727: von 22:00 Uhr bis 05:59 Uhr | N2727: F3.04 | O2727: 17
A2728: x | D2728: NEF | E2728: von 06:00 Uhr bis 09:59 Uhr
A2729: x | E2729: von 10:00 Uhr bis 13:59 Uhr
A2730: x | E2730: von 14:00 Uhr bis 17:59 Uhr
A2731: x | E2731: von 18:00 Uhr bis 21:59 Uhr
A2732: x | E2732: von 22:00 Uhr bis 05:59 Uhr
A2733: x | D2733: KTW | E2733: von 06:00 Uhr bis 09:59 Uhr
A2734: x | E2734: von 10:00 Uhr bis 13:59 Uhr
A2735: x | E2735: von 14:00 Uhr bis 17:59 Uhr
A2736: x | E2736: von 18:00 Uhr bis 21:59 Uhr
A2737: x | E2737: von 22:00 Uhr bis 05:59 Uhr
D2739: RTW | E2739: Insgesamt | F2739: =SUM(F2723:F2727) -> 0 | G2739: =IF(ISERROR(((F2723*G2723)+(F2724*G2724)+(F2725*G2725)+(F2726*G2726)+(F2727*G2727))/F2739)=TRUE,0,((F2723*G2723)+(F2724*G2724)+(F2725*G2725)+(F2726*G2726)+(F2727*G2727))/F2739) -> 0 | H2739: =SUM(H2723:H2727) -> 0 | I2739: =IF(ISERROR(((H2723*I2723)+(H2724*I2724)+(H2725*I2725)+(H2726*I2726)+(H2727*I2727))/H2739)=TRUE,0,((H2723*I2723)+(H2724*I2724)+(H2725*I2725)+(H2726*I2726)+(H2727*I2727))/H2739) -> 0 | J2739: =SUM(J2723:J2727) -> 0 | K2739: =IF(ISERROR(((J2723*K2723)+(J2724*K2724)+(J2725*K2725)+(J2726*K2726)+(J2727*K2727))/J2739)=TRUE,0,((J2723*K2723)+(J2724*K2724)+(J2725*K2725)+(J2726*K2726)+(J2727*K2727))/J2739) -> 0
D2740: NEF | E2740: Insgesamt | F2740: =SUM(F2728:F2732) -> 0 | G2740: =IF(ISERROR(((F2728*G2728)+(F2729*G2729)+(F2730*G2730)+(F2731*G2731)+(F2732*G2732))/F2740)=TRUE,0,((F2728*G2728)+(F2729*G2729)+(F2730*G2730)+(F2731*G2731)+(F2732*G2732))/F2740) -> 0 | H2740: =SUM(H2728:H2732) -> 0 | I2740: =IF(ISERROR(((H2728*I2728)+(H2729*I2729)+(H2730*I2730)+(H2731*I2731)+(H2732*I2732))/H2740)=TRUE,0,((H2728*I2728)+(H2729*I2729)+(H2730*I2730)+(H2731*I2731)+(H2732*I2732))/H2740) -> 0 | J2740: =SUM(J2728:J2732) -> 0 | K2740: =IF(ISERROR(((J2728*K2728)+(J2729*K2729)+(J2730*K2730)+(J2731*K2731)+(J2732*K2732))/J2740)=TRUE,0,((J2728*K2728)+(J2729*K2729)+(J2730*K2730)+(J2731*K2731)+(J2732*K2732))/J2740) -> 0
D2741: KTW | E2741: Insgesamt | F2741: =SUM(F2733:F2737) -> 0 | G2741: =IF(ISERROR(((F2733*G2733)+(F2734*G2734)+(F2735*G2735)+(F2736*G2736)+(F2737*G2737))/F2741)=TRUE,0,((F2733*G2733)+(F2734*G2734)+(F2735*G2735)+(F2736*G2736)+(F2737*G2737))/F2741) -> 0 | H2741: =SUM(H2733:H2737) -> 0 | I2741: =IF(ISERROR(((H2733*I2733)+(H2734*I2734)+(H2735*I2735)+(H2736*I2736)+(H2737*I2737))/H2741)=TRUE,0,((H2733*I2733)+(H2734*I2734)+(H2735*I2735)+(H2736*I2736)+(H2737*I2737))/H2741) -> 0 | J2741: =SUM(J2733:J2737) -> 0 | K2741: =IF(ISERROR(((J2733*K2733)+(J2734*K2734)+(J2735*K2735)+(J2736*K2736)+(J2737*K2737))/J2741)=TRUE,0,((J2733*K2733)+(J2734*K2734)+(J2735*K2735)+(J2736*K2736)+(J2737*K2737))/J2741) -> 0
C3013: ="KLR Rettungsdienst für den RDB "&INDEX(ParameterDatei!C$85:C$102,ParameterDatei!B$107)&" - 01.01.-31.12."&Stammdaten_1!D$8 -> KLR Rettungsdienst für den RDB Havelland - 01.01.-31.12.2014
C3015: =A1&ParameterDatei!H149 -> F3 Frequenzstaqtistik - Rettungswache
C3017: ="Einsatzfrequenzen im Zeitraum 01.01.-31.12."&Stammdaten_1!D$8-2 -> Einsatzfrequenzen im Zeitraum 01.01.-31.12.2012
D3018: RM-Art | E3018: Zeitraum | F3018: Montag bis Freitag | H3018: Samstag | J3018: Sonntage
F3019: Anzahl | G3019: Durchschnittl. | H3019: Anzahl | I3019: Durchschnittl. | J3019: Anzahl | K3019: Durchschnittl.
F3020: begonnener | G3020: Einsatzdauer | H3020: begonnener | I3020: Einsatzdauer | J3020: begonnener | K3020: Einsatzdauer
F3021: Einsätze | G3021: (Minuten) | H3021: Einsätze | I3021: (Minuten) | J3021: Einsätze | K3021: (Minuten)
A3023: x | D3023: RTW | E3023: von 06:00 Uhr bis 09:59 Uhr | N3023: F3.05 | O3023: 13
A3024: x | E3024: von 10:00 Uhr bis 13:59 Uhr | N3024: F3.05 | O3024: 14
A3025: x | E3025: von 14:00 Uhr bis 17:59 Uhr | N3025: F3.05 | O3025: 15
A3026: x | E3026: von 18:00 Uhr bis 21:59 Uhr | N3026: F3.05 | O3026: 16
A3027: x | E3027: von 22:00 Uhr bis 05:59 Uhr | N3027: F3.05 | O3027: 17
A3028: x | D3028: NEF | E3028: von 06:00 Uhr bis 09:59 Uhr
A3029: x | E3029: von 10:00 Uhr bis 13:59 Uhr
A3030: x | E3030: von 14:00 Uhr bis 17:59 Uhr
A3031: x | E3031: von 18:00 Uhr bis 21:59 Uhr
A3032: x | E3032: von 22:00 Uhr bis 05:59 Uhr
A3033: x | D3033: KTW | E3033: von 06:00 Uhr bis 09:59 Uhr
A3034: x | E3034: von 10:00 Uhr bis 13:59 Uhr
A3035: x | E3035: von 14:00 Uhr bis 17:59 Uhr
A3036: x | E3036: von 18:00 Uhr bis 21:59 Uhr
A3037: x | E3037: von 22:00 Uhr bis 05:59 Uhr
D3039: RTW | E3039: Insgesamt | F3039: =SUM(F3023:F3027) -> 0 | G3039: =IF(ISERROR(((F3023*G3023)+(F3024*G3024)+(F3025*G3025)+(F3026*G3026)+(F3027*G3027))/F3039)=TRUE,0,((F3023*G3023)+(F3024*G3024)+(F3025*G3025)+(F3026*G3026)+(F3027*G3027))/F3039) -> 0 | H3039: =SUM(H3023:H3027) -> 0 | I3039: =IF(ISERROR(((H3023*I3023)+(H3024*I3024)+(H3025*I3025)+(H3026*I3026)+(H3027*I3027))/H3039)=TRUE,0,((H3023*I3023)+(H3024*I3024)+(H3025*I3025)+(H3026*I3026)+(H3027*I3027))/H3039) -> 0 | J3039: =SUM(J3023:J3027) -> 0 | K3039: =IF(ISERROR(((J3023*K3023)+(J3024*K3024)+(J3025*K3025)+(J3026*K3026)+(J3027*K3027))/J3039)=TRUE,0,((J3023*K3023)+(J3024*K3024)+(J3025*K3025)+(J3026*K3026)+(J3027*K3027))/J3039) -> 0
D3040: NEF | E3040: Insgesamt | F3040: =SUM(F3028:F3032) -> 0 | G3040: =IF(ISERROR(((F3028*G3028)+(F3029*G3029)+(F3030*G3030)+(F3031*G3031)+(F3032*G3032))/F3040)=TRUE,0,((F3028*G3028)+(F3029*G3029)+(F3030*G3030)+(F3031*G3031)+(F3032*G3032))/F3040) -> 0 | H3040: =SUM(H3028:H3032) -> 0 | I3040: =IF(ISERROR(((H3028*I3028)+(H3029*I3029)+(H3030*I3030)+(H3031*I3031)+(H3032*I3032))/H3040)=TRUE,0,((H3028*I3028)+(H3029*I3029)+(H3030*I3030)+(H3031*I3031)+(H3032*I3032))/H3040) -> 0 | J3040: =SUM(J3028:J3032) -> 0 | K3040: =IF(ISERROR(((J3028*K3028)+(J3029*K3029)+(J3030*K3030)+(J3031*K3031)+(J3032*K3032))/J3040)=TRUE,0,((J3028*K3028)+(J3029*K3029)+(J3030*K3030)+(J3031*K3031)+(J3032*K3032))/J3040) -> 0
D3041: KTW | E3041: Insgesamt | F3041: =SUM(F3033:F3037) -> 0 | G3041: =IF(ISERROR(((F3033*G3033)+(F3034*G3034)+(F3035*G3035)+(F3036*G3036)+(F3037*G3037))/F3041)=TRUE,0,((F3033*G3033)+(F3034*G3034)+(F3035*G3035)+(F3036*G3036)+(F3037*G3037))/F3041) -> 0 | H3041: =SUM(H3033:H3037) -> 0 | I3041: =IF(ISERROR(((H3033*I3033)+(H3034*I3034)+(H3035*I3035)+(H3036*I3036)+(H3037*I3037))/H3041)=TRUE,0,((H3033*I3033)+(H3034*I3034)+(H3035*I3035)+(H3036*I3036)+(H3037*I3037))/H3041) -> 0 | J3041: =SUM(J3033:J3037) -> 0 | K3041: =IF(ISERROR(((J3033*K3033)+(J3034*K3034)+(J3035*K3035)+(J3036*K3036)+(J3037*K3037))/J3041)=TRUE,0,((J3033*K3033)+(J3034*K3034)+(J3035*K3035)+(J3036*K3036)+(J3037*K3037))/J3041) -> 0
C3313: ="KLR Rettungsdienst für den RDB "&INDEX(ParameterDatei!C$85:C$102,ParameterDatei!B$107)&" - 01.01.-31.12."&Stammdaten_1!D$8 -> KLR Rettungsdienst für den RDB Havelland - 01.01.-31.12.2014
C3315: =A1&ParameterDatei!H150 -> F3 Frequenzstaqtistik - Rettungswache
C3317: ="Einsatzfrequenzen im Zeitraum 01.01.-31.12."&Stammdaten_1!D$8-2 -> Einsatzfrequenzen im Zeitraum 01.01.-31.12.2012
D3318: RM-Art | E3318: Zeitraum | F3318: Montag bis Freitag | H3318: Samstag | J3318: Sonntage
F3319: Anzahl | G3319: Durchschnittl. | H3319: Anzahl | I3319: Durchschnittl. | J3319: Anzahl | K3319: Durchschnittl.
F3320: begonnener | G3320: Einsatzdauer | H3320: begonnener | I3320: Einsatzdauer | J3320: begonnener | K3320: Einsatzdauer
F3321: Einsätze | G3321: (Minuten) | H3321: Einsätze | I3321: (Minuten) | J3321: Einsätze | K3321: (Minuten)
A3323: x | D3323: RTW | E3323: von 06:00 Uhr bis 09:59 Uhr | N3323: F3.06 | O3323: 13
A3324: x | E3324: von 10:00 Uhr bis 13:59 Uhr | N3324: F3.06 | O3324: 14
A3325: x | E3325: von 14:00 Uhr bis 17:59 Uhr | N3325: F3.06 | O3325: 15
A3326: x | E3326: von 18:00 Uhr bis 21:59 Uhr | N3326: F3.06 | O3326: 16
A3327: x | E3327: von 22:00 Uhr bis 05:59 Uhr | N3327: F3.06 | O3327: 17
A3328: x | D3328: NEF | E3328: von 06:00 Uhr bis 09:59 Uhr
A3329: x | E3329: von 10:00 Uhr bis 13:59 Uhr
A3330: x | E3330: von 14:00 Uhr bis 17:59 Uhr
A3331: x | E3331: von 18:00 Uhr bis 21:59 Uhr
A3332: x | E3332: von 22:00 Uhr bis 05:59 Uhr
A3333: x | D3333: KTW | E3333: von 06:00 Uhr bis 09:59 Uhr
A3334: x | E3334: von 10:00 Uhr bis 13:59 Uhr
A3335: x | E3335: von 14:00 Uhr bis 17:59 Uhr
A3336: x | E3336: von 18:00 Uhr bis 21:59 Uhr
A3337: x | E3337: von 22:00 Uhr bis 05:59 Uhr
D3339: RTW | E3339: Insgesamt | F3339: =SUM(F3323:F3327) -> 0 | G3339: =IF(ISERROR(((F3323*G3323)+(F3324*G3324)+(F3325*G3325)+(F3326*G3326)+(F3327*G3327))/F3339)=TRUE,0,((F3323*G3323)+(F3324*G3324)+(F3325*G3325)+(F3326*G3326)+(F3327*G3327))/F3339) -> 0 | H3339: =SUM(H3323:H3327) -> 0 | I3339: =IF(ISERROR(((H3323*I3323)+(H3324*I3324)+(H3325*I3325)+(H3326*I3326)+(H3327*I3327))/H3339)=TRUE,0,((H3323*I3323)+(H3324*I3324)+(H3325*I3325)+(H3326*I3326)+(H3327*I3327))/H3339) -> 0 | J3339: =SUM(J3323:J3327) -> 0 | K3339: =IF(ISERROR(((J3323*K3323)+(J3324*K3324)+(J3325*K3325)+(J3326*K3326)+(J3327*K3327))/J3339)=TRUE,0,((J3323*K3323)+(J3324*K3324)+(J3325*K3325)+(J3326*K3326)+(J3327*K3327))/J3339) -> 0
D3340: NEF | E3340: Insgesamt | F3340: =SUM(F3328:F3332) -> 0 | G3340: =IF(ISERROR(((F3328*G3328)+(F3329*G3329)+(F3330*G3330)+(F3331*G3331)+(F3332*G3332))/F3340)=TRUE,0,((F3328*G3328)+(F3329*G3329)+(F3330*G3330)+(F3331*G3331)+(F3332*G3332))/F3340) -> 0 | H3340: =SUM(H3328:H3332) -> 0 | I3340: =IF(ISERROR(((H3328*I3328)+(H3329*I3329)+(H3330*I3330)+(H3331*I3331)+(H3332*I3332))/H3340)=TRUE,0,((H3328*I3328)+(H3329*I3329)+(H3330*I3330)+(H3331*I3331)+(H3332*I3332))/H3340) -> 0 | J3340: =SUM(J3328:J3332) -> 0 | K3340: =IF(ISERROR(((J3328*K3328)+(J3329*K3329)+(J3330*K3330)+(J3331*K3331)+(J3332*K3332))/J3340)=TRUE,0,((J3328*K3328)+(J3329*K3329)+(J3330*K3330)+(J3331*K3331)+(J3332*K3332))/J3340) -> 0
D3341: KTW | E3341: Insgesamt | F3341: =SUM(F3333:F3337) -> 0 | G3341: =IF(ISERROR(((F3333*G3333)+(F3334*G3334)+(F3335*G3335)+(F3336*G3336)+(F3337*G3337))/F3341)=TRUE,0,((F3333*G3333)+(F3334*G3334)+(F3335*G3335)+(F3336*G3336)+(F3337*G3337))/F3341) -> 0 | H3341: =SUM(H3333:H3337) -> 0 | I3341: =IF(ISERROR(((H3333*I3333)+(H3334*I3334)+(H3335*I3335)+(H3336*I3336)+(H3337*I3337))/H3341)=TRUE,0,((H3333*I3333)+(H3334*I3334)+(H3335*I3335)+(H3336*I3336)+(H3337*I3337))/H3341) -> 0 | J3341: =SUM(J3333:J3337) -> 0 | K3341: =IF(ISERROR(((J3333*K3333)+(J3334*K3334)+(J3335*K3335)+(J3336*K3336)+(J3337*K3337))/J3341)=TRUE,0,((J3333*K3333)+(J3334*K3334)+(J3335*K3335)+(J3336*K3336)+(J3337*K3337))/J3341) -> 0
C3613: ="KLR Rettungsdienst für den RDB "&INDEX(ParameterDatei!C$85:C$102,ParameterDatei!B$107)&" - 01.01.-31.12."&Stammdaten_1!D$8 -> KLR Rettungsdienst für den RDB Havelland - 01.01.-31.12.2014
C3615: =A1&ParameterDatei!H151 -> F3 Frequenzstaqtistik - Rettungswache
C3617: ="Einsatzfrequenzen im Zeitraum 01.01.-31.12."&Stammdaten_1!D$8-2 -> Einsatzfrequenzen im Zeitraum 01.01.-31.12.2012
D3618: RM-Art | E3618: Zeitraum | F3618: Montag bis Freitag | H3618: Samstag | J3618: Sonntage
F3619: Anzahl | G3619: Durchschnittl. | H3619: Anzahl | I3619: Durchschnittl. | J3619: Anzahl | K3619: Durchschnittl.
F3620: begonnener | G3620: Einsatzdauer | H3620: begonnener | I3620: Einsatzdauer | J3620: begonnener | K3620: Einsatzdauer
F3621: Einsätze | G3621: (Minuten) | H3621: Einsätze | I3621: (Minuten) | J3621: Einsätze | K3621: (Minuten)
A3623: x | D3623: RTW | E3623: von 06:00 Uhr bis 09:59 Uhr | N3623: F3.07 | O3623: 13
A3624: x | E3624: von 10:00 Uhr bis 13:59 Uhr | N3624: F3.07 | O3624: 14
A3625: x | E3625: von 14:00 Uhr bis 17:59 Uhr | N3625: F3.07 | O3625: 15
A3626: x | E3626: von 18:00 Uhr bis 21:59 Uhr | N3626: F3.07 | O3626: 16
A3627: x | E3627: von 22:00 Uhr bis 05:59 Uhr | N3627: F3.07 | O3627: 17
A3628: x | D3628: NEF | E3628: von 06:00 Uhr bis 09:59 Uhr
A3629: x | E3629: von 10:00 Uhr bis 13:59 Uhr
A3630: x | E3630: von 14:00 Uhr bis 17:59 Uhr
A3631: x | E3631: von 18:00 Uhr bis 21:59 Uhr
A3632: x | E3632: von 22:00 Uhr bis 05:59 Uhr
A3633: x | D3633: KTW | E3633: von 06:00 Uhr bis 09:59 Uhr
A3634: x | E3634: von 10:00 Uhr bis 13:59 Uhr
A3635: x | E3635: von 14:00 Uhr bis 17:59 Uhr
A3636: x | E3636: von 18:00 Uhr bis 21:59 Uhr
A3637: x | E3637: von 22:00 Uhr bis 05:59 Uhr
D3639: RTW | E3639: Insgesamt | F3639: =SUM(F3623:F3627) -> 0 | G3639: =IF(ISERROR(((F3623*G3623)+(F3624*G3624)+(F3625*G3625)+(F3626*G3626)+(F3627*G3627))/F3639)=TRUE,0,((F3623*G3623)+(F3624*G3624)+(F3625*G3625)+(F3626*G3626)+(F3627*G3627))/F3639) -> 0 | H3639: =SUM(H3623:H3627) -> 0 | I3639: =IF(ISERROR(((H3623*I3623)+(H3624*I3624)+(H3625*I3625)+(H3626*I3626)+(H3627*I3627))/H3639)=TRUE,0,((H3623*I3623)+(H3624*I3624)+(H3625*I3625)+(H3626*I3626)+(H3627*I3627))/H3639) -> 0 | J3639: =SUM(J3623:J3627) -> 0 | K3639: =IF(ISERROR(((J3623*K3623)+(J3624*K3624)+(J3625*K3625)+(J3626*K3626)+(J3627*K3627))/J3639)=TRUE,0,((J3623*K3623)+(J3624*K3624)+(J3625*K3625)+(J3626*K3626)+(J3627*K3627))/J3639) -> 0
D3640: NEF | E3640: Insgesamt | F3640: =SUM(F3628:F3632) -> 0 | G3640: =IF(ISERROR(((F3628*G3628)+(F3629*G3629)+(F3630*G3630)+(F3631*G3631)+(F3632*G3632))/F3640)=TRUE,0,((F3628*G3628)+(F3629*G3629)+(F3630*G3630)+(F3631*G3631)+(F3632*G3632))/F3640) -> 0 | H3640: =SUM(H3628:H3632) -> 0 | I3640: =IF(ISERROR(((H3628*I3628)+(H3629*I3629)+(H3630*I3630)+(H3631*I3631)+(H3632*I3632))/H3640)=TRUE,0,((H3628*I3628)+(H3629*I3629)+(H3630*I3630)+(H3631*I3631)+(H3632*I3632))/H3640) -> 0 | J3640: =SUM(J3628:J3632) -> 0 | K3640: =IF(ISERROR(((J3628*K3628)+(J3629*K3629)+(J3630*K3630)+(J3631*K3631)+(J3632*K3632))/J3640)=TRUE,0,((J3628*K3628)+(J3629*K3629)+(J3630*K3630)+(J3631*K3631)+(J3632*K3632))/J3640) -> 0
D3641: KTW | E3641: Insgesamt | F3641: =SUM(F3633:F3637) -> 0 | G3641: =IF(ISERROR(((F3633*G3633)+(F3634*G3634)+(F3635*G3635)+(F3636*G3636)+(F3637*G3637))/F3641)=TRUE,0,((F3633*G3633)+(F3634*G3634)+(F3635*G3635)+(F3636*G3636)+(F3637*G3637))/F3641) -> 0 | H3641: =SUM(H3633:H3637) -> 0 | I3641: =IF(ISERROR(((H3633*I3633)+(H3634*I3634)+(H3635*I3635)+(H3636*I3636)+(H3637*I3637))/H3641)=TRUE,0,((H3633*I3633)+(H3634*I3634)+(H3635*I3635)+(H3636*I3636)+(H3637*I3637))/H3641) -> 0 | J3641: =SUM(J3633:J3637) -> 0 | K3641: =IF(ISERROR(((J3633*K3633)+(J3634*K3634)+(J3635*K3635)+(J3636*K3636)+(J3637*K3637))/J3641)=TRUE,0,((J3633*K3633)+(J3634*K3634)+(J3635*K3635)+(J3636*K3636)+(J3637*K3637))/J3641) -> 0
C3913: ="KLR Rettungsdienst für den RDB "&INDEX(ParameterDatei!C$85:C$102,ParameterDatei!B$107)&" - 01.01.-31.12."&Stammdaten_1!D$8 -> KLR Rettungsdienst für den RDB Havelland - 01.01.-31.12.2014
C3915: =A1&ParameterDatei!H152 -> F3 Frequenzstaqtistik - Rettungswache
C3917: ="Einsatzfrequenzen im Zeitraum 01.01.-31.12."&Stammdaten_1!D$8-2 -> Einsatzfrequenzen im Zeitraum 01.01.-31.12.2012
D3918: RM-Art | E3918: Zeitraum | F3918: Montag bis Freitag | H3918: Samstag | J3918: Sonntage
F3919: Anzahl | G3919: Durchschnittl. | H3919: Anzahl | I3919: Durchschnittl. | J3919: Anzahl | K3919: Durchschnittl.
F3920: begonnener | G3920: Einsatzdauer | H3920: begonnener | I3920: Einsatzdauer | J3920: begonnener | K3920: Einsatzdauer
F3921: Einsätze | G3921: (Minuten) | H3921: Einsätze | I3921: (Minuten) | J3921: Einsätze | K3921: (Minuten)
A3923: x | D3923: RTW | E3923: von 06:00 Uhr bis 09:59 Uhr | N3923: F3.08 | O3923: 13
A3924: x | E3924: von 10:00 Uhr bis 13:59 Uhr | N3924: F3.08 | O3924: 14
A3925: x | E3925: von 14:00 Uhr bis 17:59 Uhr | N3925: F3.08 | O3925: 15
A3926: x | E3926: von 18:00 Uhr bis 21:59 Uhr | N3926: F3.08 | O3926: 16
A3927: x | E3927: von 22:00 Uhr bis 05:59 Uhr | N3927: F3.08 | O3927: 17
A3928: x | D3928: NEF | E3928: von 06:00 Uhr bis 09:59 Uhr
A3929: x | E3929: von 10:00 Uhr bis 13:59 Uhr
A3930: x | E3930: von 14:00 Uhr bis 17:59 Uhr
A3931: x | E3931: von 18:00 Uhr bis 21:59 Uhr
A3932: x | E3932: von 22:00 Uhr bis 05:59 Uhr
A3933: x | D3933: KTW | E3933: von 06:00 Uhr bis 09:59 Uhr
A3934: x | E3934: von 10:00 Uhr bis 13:59 Uhr
A3935: x | E3935: von 14:00 Uhr bis 17:59 Uhr
A3936: x | E3936: von 18:00 Uhr bis 21:59 Uhr
A3937: x | E3937: von 22:00 Uhr bis 05:59 Uhr
D3939: RTW | E3939: Insgesamt | F3939: =SUM(F3923:F3927) -> 0 | G3939: =IF(ISERROR(((F3923*G3923)+(F3924*G3924)+(F3925*G3925)+(F3926*G3926)+(F3927*G3927))/F3939)=TRUE,0,((F3923*G3923)+(F3924*G3924)+(F3925*G3925)+(F3926*G3926)+(F3927*G3927))/F3939) -> 0 | H3939: =SUM(H3923:H3927) -> 0 | I3939: =IF(ISERROR(((H3923*I3923)+(H3924*I3924)+(H3925*I3925)+(H3926*I3926)+(H3927*I3927))/H3939)=TRUE,0,((H3923*I3923)+(H3924*I3924)+(H3925*I3925)+(H3926*I3926)+(H3927*I3927))/H3939) -> 0 | J3939: =SUM(J3923:J3927) -> 0 | K3939: =IF(ISERROR(((J3923*K3923)+(J3924*K3924)+(J3925*K3925)+(J3926*K3926)+(J3927*K3927))/J3939)=TRUE,0,((J3923*K3923)+(J3924*K3924)+(J3925*K3925)+(J3926*K3926)+(J3927*K3927))/J3939) -> 0
... 327 more rows

Sheet F4
D1: x | E1: x | F1: x | G1: y | H1: x | I1: x | J1: x | K1: x | L1: x | M1: x | N1: x | O1: x
A2: 6 | B2: < Blättern • Drucken • Sichern • Hauptmenu • Auswahlmenu • Blättern >
C1513: ="KLR Rettungsdienst für den RDB "&INDEX(ParameterDatei!C$85:C$102,ParameterDatei!B$107)&" - 01.01.-31.12."&Stammdaten_1!D$8 -> KLR Rettungsdienst für den RDB Havelland - 01.01.-31.12.2014
C1515: ="F4 Personalbedarfsberechnung - "&ParameterDatei!H144 -> F4 Personalbedarfsberechnung - Leitstelle
C1517: ="Personalbedarfsberechnung für den Zeitraum vom 01.01.-31.12."&Stammdaten_1!D$8 -> Personalbedarfsberechnung für den Zeitraum vom 01.01.-31.12.2014
D1518: Dienstbezeichnung | E1518: Beginn | F1518: Ende | G1518: Dienst- | H1518: Dienstart | I1518: Einsatztage pro Jahr | M1518: Besatzung | P1518: Jahres-Arbeits-Stunden
G1519: stunden | I1519: Ins- | K1519: davon | M1519: HA | N1519: HA | O1519: NA
E1520: ss:mm | F1520: ss:mm | I1520: ges. | J1520: Sa | K1520: So | L1520: Fei | M1520: RA | N1520: RS | P1520: HA | Q1520: HA | R1520: NA | S1520: Gesamt
A1521: x | G1521: =IF(E1521="",0,IF(HOUR(F1521)>HOUR(E1521),HOUR(F1521-E1521)+(MINUTE(F1521-E1521)/60),24+HOUR(F1521)-HOUR(E1521)+(MINUTE(F1521))/60-(MINUTE(E1521))/60)) -> 0 | P1521: =($G1521*$I1521)*M1521 -> 0 | Q1521: =($G1521*$I1521)*N1521 -> 0 | R1521: =($G1521*$I1521)*O1521 -> 0 | S1521: =SUM(P1521:R1521) -> 0 | V1521: F4.13 | W1521: 13
A1522: x | G1522: =IF(E1522="",0,IF(HOUR(F1522)>HOUR(E1522),HOUR(F1522-E1522)+(MINUTE(F1522-E1522)/60),24+HOUR(F1522)-HOUR(E1522)+(MINUTE(F1522))/60-(MINUTE(E1522))/60)) -> 0 | P1522: =($G1522*$I1522)*M1522 -> 0 | Q1522: =($G1522*$I1522)*N1522 -> 0 | R1522: =($G1522*$I1522)*O1522 -> 0 | S1522: =SUM(P1522:R1522) -> 0 | V1522: F4.13 | W1522: 14
A1523: x | G1523: 0 | P1523: 0 | Q1523: 0 | R1523: 0 | S1523: 0 | V1523: F4.13 | W1523: 15
A1524: x | G1524: 0 | P1524: 0 | Q1524: 0 | R1524: 0 | S1524: 0 | V1524: F4.13 | W1524: 16
A1525: x | G1525: 0 | P1525: 0 | Q1525: 0 | R1525: 0 | S1525: 0 | V1525: F4.13 | W1525: 17
A1526: x | G1526: 0 | P1526: 0 | Q1526: 0 | R1526: 0 | S1526: 0 | V1526: F4.13 | W1526: 18
A1527: x | G1527: 0 | P1527: 0 | Q1527: 0 | R1527: 0 | S1527: 0 | V1527: F4.13 | W1527: 19
A1528: x | G1528: 0 | P1528: 0 | Q1528: 0 | R1528: 0 | S1528: 0 | V1528: F4.13 | W1528: 20
A1529: x | G1529: 0 | P1529: 0 | Q1529: 0 | R1529: 0 | S1529: 0 | V1529: F4.13 | W1529: 21
A1530: x | G1530: 0 | P1530: 0 | Q1530: 0 | R1530: 0 | S1530: 0 | V1530: F4.13 | W1530: 22
A1531: x | G1531: 0 | P1531: 0 | Q1531: 0 | R1531: 0 | S1531: 0 | V1531: F4.13 | W1531: 23
A1532: x | G1532: 0 | P1532: 0 | Q1532: 0 | R1532: 0 | S1532: 0 | V1532: F4.13 | W1532: 24
A1533: x | G1533: 0 | P1533: 0 | Q1533: 0 | R1533: 0 | S1533: 0 | V1533: F4.13 | W1533: 25
A1534: x | G1534: 0 | P1534: 0 | Q1534: 0 | R1534: 0 | S1534: 0 | V1534: F4.13 | W1534: 26
A1535: x | G1535: 0 | P1535: 0 | Q1535: 0 | R1535: 0 | S1535: 0 | V1535: F4.13 | W1535: 27
A1536: x | G1536: 0 | P1536: 0 | Q1536: 0 | R1536: 0 | S1536: 0 | V1536: F4.13 | W1536: 28
A1537: x | G1537: 0 | P1537: 0 | Q1537: 0 | R1537: 0 | S1537: 0 | V1537: F4.13 | W1537: 29
A1538: x | G1538: 0 | P1538: 0 | Q1538: 0 | R1538: 0 | S1538: 0
A1539: x | G1539: 0 | P1539: 0 | Q1539: 0 | R1539: 0 | S1539: 0
A1540: x | G1540: 0 | P1540: 0 | Q1540: 0 | R1540: 0 | S1540: 0
A1541: y | F1541: regelmäßige wöchentliche Arbeitszeit: | G1541: 0 | H1541: Std. | O1541: JAS | P1541: =SUM(P1521:P1540) -> 0 | Q1541: =SUM(Q1521:Q1540) -> 0 | R1541: =SUM(R1521:R1540) -> 0 | S1541: =SUM(S1521:S1540) -> 0
A1542: y | F1542: Mitarbeiter JAS-Leistung: | G1542: 0 | H1542: Std. | O1542: VK | P1542: =IF(ISERROR(P1541/G1542)=TRUE,,P1541/G1542) -> 0 | Q1542: =IF(ISERROR(Q1541/G1542)=TRUE,,Q1541/G1542) -> 0 | R1542: =IF(ISERROR(R1541/G1542)=TRUE,,R1541/G1542) -> 0 | S1542: =P1542+Q1542+R1542 -> 0 | V1542: F4.13 | W1542: 30
C1544: Beispiel für Dienstart: Volldienst, AB 48 (=Arbeitsbereitschaft 48 h), BD-B mvFA (=Bereitschaftsdienst Stufe B mit vollem Freizeitausgleich)
C1813: ="KLR Rettungsdienst für den RDB "&INDEX(ParameterDatei!C$85:C$102,ParameterDatei!B$107)&" - 01.01.-31.12."&Stammdaten_1!D$8 -> KLR Rettungsdienst für den RDB Havelland - 01.01.-31.12.2014
C1815: ="F4 Personalbedarfsberechnung - Rettungswache "&ParameterDatei!E145 -> F4 Personalbedarfsberechnung - Rettungswache 0
C1817: ="Personalbedarfsberechnung für den Zeitraum vom 01.01.-31.12."&Stammdaten_1!D$8 -> Personalbedarfsberechnung für den Zeitraum vom 01.01.-31.12.2014
D1818: Dienstbezeichnung | E1818: Beginn | F1818: Ende | G1818: Dienst- | H1818: Dienstart | I1818: Einsatztage pro Jahr | M1818: Besatzung | P1818: Jahres-Arbeits-Stunden
G1819: stunden | I1819: Ins- | K1819: davon | M1819: HA | N1819: HA | O1819: NA
E1820: ss:mm | F1820: ss:mm | I1820: ges. | J1820: Sa | K1820: So | L1820: Fei | M1820: RA | N1820: RS | P1820: HA | Q1820: HA | R1820: NA | S1820: Gesamt
A1821: x | G1821: =IF(E1821="",0,IF(HOUR(F1821)>HOUR(E1821),HOUR(F1821-E1821)+(MINUTE(F1821-E1821)/60),24+HOUR(F1821)-HOUR(E1821)+(MINUTE(F1821))/60-(MINUTE(E1821))/60)) -> 0 | P1821: =($G1821*$I1821)*M1821 -> 0 | Q1821: =($G1821*$I1821)*N1821 -> 0 | R1821: =($G1821*$I1821)*O1821 -> 0 | S1821: =SUM(P1821:R1821) -> 0 | V1821: F4.01 | W1821: 13
A1822: x | G1822: =IF(E1822="",0,IF(HOUR(F1822)>HOUR(E1822),HOUR(F1822-E1822)+(MINUTE(F1822-E1822)/60),24+HOUR(F1822)-HOUR(E1822)+(MINUTE(F1822))/60-(MINUTE(E1822))/60)) -> 0 | P1822: =($G1822*$I1822)*M1822 -> 0 | Q1822: =($G1822*$I1822)*N1822 -> 0 | R1822: =($G1822*$I1822)*O1822 -> 0 | S1822: =SUM(P1822:R1822) -> 0 | V1822: F4.01 | W1822: 14
A1823: x | G1823: 0 | P1823: 0 | Q1823: 0 | R1823: 0 | S1823: 0 | V1823: F4.01 | W1823: 15
A1824: x | G1824: 0 | P1824: 0 | Q1824: 0 | R1824: 0 | S1824: 0 | V1824: F4.01 | W1824: 16
A1825: x | G1825: 0 | P1825: 0 | Q1825: 0 | R1825: 0 | S1825: 0 | V1825: F4.01 | W1825: 17
